{"text_format":"1","workbook":"xlsx","n_sheets":9,"sheets":["Sheet1","DIAMERISMATA","TEX.EK8ESH","EISAGOGH","KPITHPIA","INDEX","PLHROFORIES","Text_ODHGIES","CONTROL"],"not_rendered":{"charts":0,"images":8,"macros":1,"external_links":2,"defined_names":77,"comments":0,"pivot_tables":0},"unopened":[],"bounds":{"document_bytes":16777216,"sheet_cells":100000,"rows_first":2000,"rows_last":500,"rows_between":2000,"halvings":0,"cell_chars":16384,"cell_head_chars":4096},"cells_cut":0,"cells_raw":0,"read":"whole","date_system":"1900"}

{"sheet":"Sheet1","index":0,"n_rows":22,"n_cols":4,"rows_kept":22,"cut":false,"hidden":true,"merged":[[22,3,22,37],[16,3,16,37],[17,3,17,37],[18,3,18,37],[19,3,19,37],[20,3,20,37],[21,3,21,37],[15,3,15,37],[2,2,3,37],[5,3,5,37],[6,3,6,37],[7,3,7,37],[8,3,8,37],[9,3,9,37],[10,3,10,37],[11,3,11,37],[12,3,12,37],[13,3,13,37],[14,3,14,37]]}
[]
[]
["Αρχή Σελ.",null,"Οδηγίες Χρήσης του Πλαισίου Βαθμολόγησης Κριτηρίων\nγια σκοπούς Αρχικής / Ανανέωσης Κατάταξης Ξενοδοχειακών Επιχειρήσεων\nΒάσει των περί της Ρύθμισης της Ίδρυσης και Λειτουργίας Ξενοδοχείων και Τουριστικών Καταλυμάτων Νόμων 34(Ι)2019, 9(I)2020  και Κ.Δ.Π. 90/2019"]
["Τέλος Σελ."]
[]
[null,null,1,"Η παρούσα εφαρμογή (πλαίσιο βαθμολόγησης) χρησιμοποιείται για σκοπούς ελέγχου της ικανοποίησης των κριτηρίων κατάταξης ή ανανέωσης κατάταξης των ξενοδοχειακών επιχειρήσεων σε αστέρες, ως αυτά έχουν καθοριστεί στους περί της Ρύθμισης της Ίδρυσης και Λειτουργίας Ξενοδοχείων και Τουριστικών Καταλυμάτων Νόμους 34(Ι)2019, 9(I)2020 και Κ.Δ.Π. 90/2019\n_"]
[null,null,{"$f":"+C6+1","v":2},"H πλέον πρόσφατη έκδοση της εφαρμογής διατίθεται σε μορφή \"Excel Template\", η οποία και βρίσκεται στον υπηρεσιακό φάκελο του Υφυπουργείου (Public Server), στην διεύθυνση:  \\\\Kyreneia\\_ΤΜ_ΔΙΑΣΦ_ΠΟΙΟΤ\\Epitheoriseis\\_Templates .   Η πρόσβαση στον υπό αναφορά φάκελο επιτυγχάνεται μέσω του υπηρεσιακού σας υπολογιστή, εφόσον είστε συνδεδεμένοι με το υπηρεσιακό δίκτυο (ctodomain), πληκτρολογώντας την πιο πάνω διεύθυνση στην εφαρμογή \"File Explorer\" των \"Windows\".   Η εφαρμογή θα πρέπει να μεταφερθεί (Copy / Paste) στον υπολογιστή (ή laptop) που θα χρησιμοποιηθεί για την επιθεώρηση.\n_"]
[null,null,{"$f":"+C7+1","v":3},"Κατά την εκάστοτε ενεργοποίηση (Open) της εφαρμογής, εμφανίζεται στο πάνω μέρος της οθόνης (σε κίτρινο φόντο), μια προειδοποίηση (Security Warning) η οποία αφορά στην ενεργοποίηση των μακροεντολών που υπάρχουν, η οποία και θα πρέπει να γίνει αποδεχτή (Enable Content).   Στην συνεχεια, θα πρέπει να καταχωρηθούν στα αντίστοιχα πεδία της σελίδας \"Εισαγωγή\" (EISAGOGH), όλα τα στοιχεία της αξιολογούμενης επιχείρησης.\n_  "]
[null,null,{"$f":"+C8+1","v":4},"Προϋπόθεση για τη σωστή απάντηση των κριτηρίων και απόδοση των βαθμολογίων, είναι το πλήρες συμπλήρωμα όλων των πεδίων στην σελίδα \"Εισαγωγή\", ειδικότερα εκείνων που είναι χρωματισμένα με ανοικτό κόκκινο.  Μόνο μετά την συμπλήρωση αυτών των στοιχείων, θα πρέπει να αρχίσει η καταχώρηση των απαντήσεων στα διάφορα κριτήρια, αρχίζοντας πρώτα από την σελίδα με τα Υποχρεωτικά (YPOX_KPITHPIA) και ακλουθώντας τον αύξοντα αριθμό των κριτηρίων (από πάνω προς τα κάτω). \n_ "]
[null,null,5,"Με την συμπλήρωση των πεδίων \"Ημερομηνία Επιθεώρησης\" (αρ. 02) και  \"Όνομα Μονάδας\" (αρ. 03), εντός της σελίδας \"Εισαγωγή\",  θα πρέπει να ενεργοποιηθεί η εντολή \"SAVE AS\", στο πάνω αριστερό μέρος της σελίδας,  ώστε αυτόματα να δημιουργηθεί ειδικό  αρχείο με τα αποτελέσματα της αξιολογούμενης μονάδας, το οποίο θα φέρει το καταχωρηθέν της όνομα (μονάδας) και την ημερομηνία διενέργειας της επιθεώρησης.  Το νεοδημιουργηθέν αρχείο αποθηκεύεται αυτόματα στον ειδικό κοινόχρηστο φάκελο (Public Folder) του υπολογιστή σας,  που βρίσκεται στη διεύθυνση \"C:\\Users\\Public\\Documents\".   Εισήγηση είναι όπως για δική σας ευκολία, δημιουργήσετε \"Shortcut\" στο \"Desktop\" του υπολογιστή σας, για γρήγορη πρόσβαση στον υπό αναφορά φάκελο.\n_ "]
[null,null,6,"Απαραίτητη είναι η εκ μέρους σας συχνή αποθήκευση της διεκπεραιωθείσας εργασίας, μέσω της εντολής \"SAVE\" που επίσης βρίσκεται στο πάνω αριστερό μέρος κάθε σελίδας εντός της εφαρμογής.  Αυτό θα πρέπει να γίνεται καθ' όλη τη διάρκεια χρήσης της εφαρμογής, ώστε να ελαχιστοποιηθεί ο κίνδυνος απώλειας εργασίας σε ενδεχόμενη απροειδοποίητη απενεργοποίηση του υπολογιστή.   Σε κάθε περίπτωση επανανοίγματος της εφαρμογής για συνέχιση της καταχώρησης στοιχείων σε σχέση με την επιθεωρούμενη μονάδα, το αρχείο που πρέπει να ενεργοποιηθεί είναι αυτό που έχει αποθηκευτεί στον ειδικό φάκελο (Public Folder) και φέρει το όνομα της μονάδας και την ημερομηνία, και όχι το πρωτότυπο \"template\" που είχε αρχικά ληφθεί από τον κοινόχρηστο \"Server\"."]
[null,null,7,"Τα κριτήρια είναι κατανεμημένα σε δυο σελίδες (Worksheets).   Στην πρώτη (YPOX_KPITHPIA), περιλαμβάνονται αυτά στα οποία κατά κανόνα δεν δίδονται βαθμοί (πλην κάποιων εξαιρέσεων), αφού η ικανοποίηση τους είναι υποχρεωτική, ανάλογα και με την τάξη στην οποία η αξιολογούμενη μονάδα αιτείται ή προσβλέπει να καταταγεί.   Στη δεύτερη σελίδα (PRO_KPITHPIA), περιλαμβάνονται όσα κριτήρια είναι κατά κανόνα προαιρετικά (και πάλι πλην κάποιων εξαιρέσεων), και η ικανοποίηση τους προσθέτει βαθμούς στην αξιολογούμενη μονάδα, ώστε να μπορέσει να καλύψει την συνολική ελάχιστη απαιτούμενη βαθμολογία για την αιτούμενη τάξη (δείτε τον σχετικό πίνακα εντός της σελίδας \"Εισαγωγή\"). \n_"]
[null,null,8,"Εκτός του ευρύτερου διαχωρισμού τους σε \"Υποχρεωτικά\" και \"Προαιρετικά\", τα κριτήρια είναι περεταίρω ομαδοποιημένα με βάση τον χώρο (περιοχή) μιας ξενοδοχειακής επιχείρησης με την οποία σχετίζονται (π.χ. Κτιριακές Εγκαταστάσεις, Υποδοχή - Κοινόχρηστοι χώροι, Προδιαγραφές δωματίων, κ.ο.κ.) , ή με βάση κάποια πτυχή της λειτουργίας της (π.χ. Προσωπικό, Καθαριότητα - Υγιεινή, Ειδικές Πιστοποιήσεις, Εστίαση, Διασκέδαση – Άθληση – Ψυχαγωγία, κ.ο.κ.).  Στη σελίδα Περιεχομένων (INDEX), μπορεί κάποιος να δει την συνοπτική εικόνα του τρόπου ταξινόμησης των κριτηρίων, ως επίσης και να μεταβεί από εκεί σε οποιοδήποτε από αυτά, πατώντας στο πεδίο με τον αύξοντα αριθμό του.\n_"]
[null,null,9,"Κάθε κριτήριο παρουσιάζεται εντός αριθμημένου πλαισίου στο οποίο υπάρχει η περιγραφή του και κατά πόσο αυτό είναι υποχρεωτικό (Υ) ή προαιρετικό (ΠΡ) για κάθε μια από τις 5 διαθέσιμες τάξεις σε αστέρες.  Παρουσιάζονται επιπρόσθετα οι διαθέσιμοι βαθμοί, σε περίπτωση ικανοποίησης του.  Οι βαθμοί πιστώνονται στην αξιολογούμενη μονάδα, μόνο στην περίπτωση που το κριτήριο είναι προαιρετικό για την αιτούμενη τάξη.  Σε περίπτωση που έστω και ένα υποχρεωτικό κριτήριο δεν ικανοποιείται, η μονάδα θεωρείται ότι αποτυγχάνει και δεν μπορεί να καταταγεί στη συγκεκριμένη τάξη.\n_"]
[null,null,10,"Υπάρχουν δυο ευρύτεροι τρόποι παρουσίασης των κριτηρίων, ανάλογα με την μέθοδο απάντησης τους.  Ο ένας αφορά στα κριτήρια που απαντώνται απευθείας με \"ΝΑΙ\" (Ν) ή \"ΌΧΙ\" (Χ), εντός του ορισθέντος πεδίου με κίτρινο χρώμα.  Ο άλλος τρόπος αφορά στα κριτήρια στα οποία το ζητούμενο είναι η εισαγωγή κάποιων στοιχείων όπως αριθμοί, εμβαδά, διαστάσεις, κ.ο.κ.  Σε αυτή την περίπτωση, υπάρχει η ανάλογη επεξήγηση των ζητουμένων, δίπλα ή πάνω από τα πεδία στα οποία θα πρέπει να καταχωρηθούν αυτά τα στοιχεία.\n_   "]
[null,null,11,"Ένεκα του ότι κατά την διάρκεια της επιθεώρησης ελέγχου των σχετικών κριτηρίων, η εμβαδομέτρηση όλων των κοινόχρηστων χώρων, δωματίων και άλλων εγκαταστάσεων είναι χρονοβόρα και παρουσιάζει πρακτικές δυσκολίες, ιδίως όταν η επιχείρηση είναι σε λειτουργία, η εργασία αυτή διενεργείται προκαταρκτικά από την Τεχνική Υπηρεσία του Υφυπουργείου, με βάση τα υποβληθέντα αρχιτεκτονικά σχέδια των αδειών οικοδομής.   Η Τεχνική Υπηρεσία ετοιμάζει ειδική Τεχνική Έκθεση, η οποία και θα πρέπει να ευρίσκεται στην διάθεση των λειτουργών, πριν την διενέργεια της επιθεώρησης κατάταξης. \n_ "]
[null,null,12,"Κάθε ένα από τα τεχνικής υφής κριτήρια φέρει στο κάτω μέρος του αύξοντα αριθμού του την ένδειξη \"Τ.Ε.\".  Αυτή η ένδειξη συνιστά παραπομπή στη υπό αναφορά Τεχνική Έκθεση.   Στη τελευταία (3η) σελίδα της Τεχνικής έκθεσης, παρατίθεται αριθμημένος πίνακας με όλα τα τεχνικής υφής κριτήρια, μαζί με τα αναγκαία στοιχεία (μετρήσεις).   Αυτά τα στοιχεία  θα πρέπει να εισαχθούν στα σχετικά πεδία των αντίστοιχων κριτήριων, αφού πρώτα ελεγχθούν και επιβεβαιωθούν οι σχετικοί χώροι της μονάδας κατά την επιθεώρηση κατάταξης.\n_   \n"]
[null,null,13,"Στο κάτω μέρος κάθε κριτηρίου, υπάρχει πεδίο (σε ανοιχτό πράσινο) στο οποίο μπορούν να αναγράφουν σχόλια ή παρατηρήσεις σε σχέση με τα ευρήματα και την δοθείσα απάντηση στο συγκεκριμένο κριτήριο.   Η έκταση του σχολιασμού δεν μπορεί να υπερβεί τις δύο γραμμές (περίπου 35 λέξεις).  Επιπρόσθετα, υπάρχει δυνατότητα ορθογραφικής διόρθωσης του κειμένου, επιλέγοντας πρώτα το πεδίο σχολιασμού και ενεργοποιώντας την μακροεντολή \"ΟΡΘΟΓΡΑΦΟΣ\", που βρίσκεται στο πάνω μέρος κάθε σελίδας.\n_"]
[null,null,14,"Στη αριστερή στήλη του πλαισίου κάθε ενός από τα κριτήρια, υπάρχει ένα ερωτηματικό (?) σε κόκκινο φόντο.  Αυτό είναι ένδειξη ότι το συγκεκριμένο κριτήριο δεν έχει ακόμη απαντηθεί.   Με την απάντηση του κριτηρίου, το ερωτηματικό αντικαθίσταται αυτόματα με την ένδειξη \"ok\" σε ανοιχτό πράσινο.  Θα πρέπει να βεβαιωθείτε ότι όλα τα κριτήρια έχουν απαντηθεί, και ότι δεν έχουν απομείνει ερωτηματικά στην υπό αναφορά στήλη, ως επίσης και ότι έχει μηδενιστεί ο αριθμός αναπάντητων κριτηρίων στην άνω δεξιά λεζάντα.\n_"]
[null,null,15,"Τα τελικά αποτελέσματα της μονάδας και οι πίνακες όλων των κριτηρίων δύναται να εξαχθούν (εκτυπωθούν) στην μορφή αρχείου \"PDF\", πατώντας την μακροεντολή \"ΕΚΤΥΠΩΣΗ σε Pdf\" που βρίσκεται στο πάνω δεξιό μέρος της σελίδας «Εισαγωγή».  Η αποθήκευση του αρχείου \"PDF\" γίνεται αυτόματα στον ίδιο φάκελο (Public Folder), στον οποίο έχει αποθηκευτεί και το το αρχείο \"EXCEL\" με τα αποτελέσματα της επιθεωρούμενης μονάδας.\n_"]
[null,null,16,"Τα αρχεία \"EXCEL\" και \"PDF\", με τα αποτελέσματα της επιθεώρησης, θα πρέπει να αποσταλούν ως συνημμένα ηλεκτρονικού μηνύματος στον αρμόδιο λειτουργό της κεντρικής υπηρεσίας, για περαιτέρω διαχείριση των αποτελεσμάτων και ολοκλήρωση της διαδικασίας κατάταξης.\n_"]
[null,null,null,"Για περαιτέρω πληροφορίες / βοήθεια σε σχέση με τη χρήση της εφαρμογής, μπορείτε να επικοινωνήσετε με τον:  \n\nΝίκος Χατζηπέτρου\nΛειτουργός Διασφάλισης Ποιότητας\nΥφυπουργείο Τουρισμού\nΤηλέφωνα: 26938388, 99413326\nnicoshadjipetrou@visitcyprus.com"]

{"sheet":"DIAMERISMATA","index":1,"n_rows":1000,"n_cols":27,"rows_kept":1000,"cut":false,"hidden":true,"merged":[[7,2,7,6],[7,8,7,12],[7,14,7,18],[7,20,7,24],[998,2,998,4],[998,8,998,10],[998,14,998,16],[998,20,998,22],[999,2,999,4],[999,8,999,10],[999,14,999,16],[999,20,999,22],[996,2,996,4],[996,8,996,10],[996,14,996,16],[996,20,996,22],[997,2,997,4],[997,8,997,10],[997,14,997,16],[997,20,997,22],[994,2,994,4],[994,8,994,10],[994,14,994,16],[994,20,994,22],[995,2,995,4],[995,8,995,10],[995,14,995,16],[995,20,995,22],[992,2,992,4],[992,8,992,10],[992,14,992,16],[992,20,992,22],[993,2,993,4],[993,8,993,10],[993,14,993,16],[993,20,993,22],[990,2,990,4],[990,8,990,10],[990,14,990,16],[990,20,990,22],[991,2,991,4],[991,8,991,10],[991,14,991,16],[991,20,991,22],[988,2,988,4],[988,8,988,10],[988,14,988,16],[988,20,988,22],[989,2,989,4],[989,8,989,10],[989,14,989,16],[989,20,989,22],[986,2,986,4],[986,8,986,10],[986,14,986,16],[986,20,986,22],[987,2,987,4],[987,8,987,10],[987,14,987,16],[987,20,987,22],[984,2,984,4],[984,8,984,10],[984,14,984,16],[984,20,984,22],[985,2,985,4],[985,8,985,10],[985,14,985,16],[985,20,985,22],[982,2,982,4],[982,8,982,10],[982,14,982,16],[982,20,982,22],[983,2,983,4],[983,8,983,10],[983,14,983,16],[983,20,983,22],[980,2,980,4],[980,8,980,10],[980,14,980,16],[980,20,980,22],[981,2,981,4],[981,8,981,10],[981,14,981,16],[981,20,981,22],[978,2,978,4],[978,8,978,10],[978,14,978,16],[978,20,978,22],[979,2,979,4],[979,8,979,10],[979,14,979,16],[979,20,979,22],[976,2,976,4],[976,8,976,10],[976,14,976,16],[976,20,976,22],[977,2,977,4],[977,8,977,10],[977,14,977,16],[977,20,977,22],[974,2,974,4],[974,8,974,10],[974,14,974,16],[974,20,974,22],[975,2,975,4],[975,8,975,10],[975,14,975,16],[975,20,975,22],[972,2,972,4],[972,8,972,10],[972,14,972,16],[972,20,972,22],[973,2,973,4],[973,8,973,10],[973,14,973,16],[973,20,973,22],[970,2,970,4],[970,8,970,10],[970,14,970,16],[970,20,970,22],[971,2,971,4],[971,8,971,10],[971,14,971,16],[971,20,971,22],[968,2,968,4],[968,8,968,10],[968,14,968,16],[968,20,968,22],[969,2,969,4],[969,8,969,10],[969,14,969,16],[969,20,969,22],[966,2,966,4],[966,8,966,10],[966,14,966,16],[966,20,966,22],[967,2,967,4],[967,8,967,10],[967,14,967,16],[967,20,967,22],[964,2,964,4],[964,8,964,10],[964,14,964,16],[964,20,964,22],[965,2,965,4],[965,8,965,10],[965,14,965,16],[965,20,965,22],[962,2,962,4],[962,8,962,10],[962,14,962,16],[962,20,962,22],[963,2,963,4],[963,8,963,10],[963,14,963,16],[963,20,963,22],[960,2,960,4],[960,8,960,10],[960,14,960,16],[960,20,960,22],[961,2,961,4],[961,8,961,10],[961,14,961,16],[961,20,961,22],[958,2,958,4],[958,8,958,10],[958,14,958,16],[958,20,958,22],[959,2,959,4],[959,8,959,10],[959,14,959,16],[959,20,959,22],[956,2,956,4],[956,8,956,10],[956,14,956,16],[956,20,956,22],[957,2,957,4],[957,8,957,10],[957,14,957,16],[957,20,957,22],[954,2,954,4],[954,8,954,10],[954,14,954,16],[954,20,954,22],[955,2,955,4],[955,8,955,10],[955,14,955,16],[955,20,955,22],[952,2,952,4],[952,8,952,10],[952,14,952,16],[952,20,952,22],[953,2,953,4],[953,8,953,10],[953,14,953,16],[953,20,953,22],[950,2,950,4],[950,8,950,10],[950,14,950,16],[950,20,950,22],[951,2,951,4],[951,8,951,10],[951,14,951,16],[951,20,951,22],[948,2,948,4],[948,8,948,10],[948,14,948,16],[948,20,948,22],[949,2,949,4],[949,8,949,10],[949,14,949,16],[949,20,949,22],[946,2,946,4],[946,8,946,10],[946,14,946,16],[946,20,946,22],[947,2,947,4],[947,8,947,10],[947,14,947,16],[947,20,947,22],[944,2,944,4],[944,8,944,10],[944,14,944,16],[944,20,944,22],[945,2,945,4],[945,8,945,10],[945,14,945,16],[945,20,945,22],[942,2,942,4],[942,8,942,10],[942,14,942,16],[942,20,942,22],[943,2,943,4],[943,8,943,10],[943,14,943,16],[943,20,943,22],[940,2,940,4],[940,8,940,10],[940,14,940,16],[940,20,940,22],[941,2,941,4],[941,8,941,10],[941,14,941,16],[941,20,941,22],[938,2,938,4],[938,8,938,10],[938,14,938,16],[938,20,938,22],[939,2,939,4],[939,8,939,10],[939,14,939,16],[939,20,939,22],[936,2,936,4],[936,8,936,10],[936,14,936,16],[936,20,936,22],[937,2,937,4],[937,8,937,10],[937,14,937,16],[937,20,937,22],[934,2,934,4],[934,8,934,10],[934,14,934,16],[934,20,934,22],[935,2,935,4],[935,8,935,10],[935,14,935,16],[935,20,935,22],[932,2,932,4],[932,8,932,10],[932,14,932,16],[932,20,932,22],[933,2,933,4],[933,8,933,10],[933,14,933,16],[933,20,933,22],[930,2,930,4],[930,8,930,10],[930,14,930,16],[930,20,930,22],[931,2,931,4],[931,8,931,10],[931,14,931,16],[931,20,931,22],[928,2,928,4],[928,8,928,10],[928,14,928,16],[928,20,928,22],[929,2,929,4],[929,8,929,10],[929,14,929,16],[929,20,929,22],[926,2,926,4],[926,8,926,10],[926,14,926,16],[926,20,926,22],[927,2,927,4],[927,8,927,10],[927,14,927,16],[927,20,927,22],[924,2,924,4],[924,8,924,10],[924,14,924,16],[924,20,924,22],[925,2,925,4],[925,8,925,10],[925,14,925,16],[925,20,925,22],[922,2,922,4],[922,8,922,10],[922,14,922,16],[922,20,922,22],[923,2,923,4],[923,8,923,10],[923,14,923,16],[923,20,923,22],[920,2,920,4],[920,8,920,10],[920,14,920,16],[920,20,920,22],[921,2,921,4],[921,8,921,10],[921,14,921,16],[921,20,921,22],[918,2,918,4],[918,8,918,10],[918,14,918,16],[918,20,918,22],[919,2,919,4],[919,8,919,10],[919,14,919,16],[919,20,919,22],[916,2,916,4],[916,8,916,10],[916,14,916,16],[916,20,916,22],[917,2,917,4],[917,8,917,10],[917,14,917,16],[917,20,917,22],[914,2,914,4],[914,8,914,10],[914,14,914,16],[914,20,914,22],[915,2,915,4],[915,8,915,10],[915,14,915,16],[915,20,915,22],[912,2,912,4],[912,8,912,10],[912,14,912,16],[912,20,912,22],[913,2,913,4],[913,8,913,10],[913,14,913,16],[913,20,913,22],[910,2,910,4],[910,8,910,10],[910,14,910,16],[910,20,910,22],[911,2,911,4],[911,8,911,10],[911,14,911,16],[911,20,911,22],[908,2,908,4],[908,8,908,10],[908,14,908,16],[908,20,908,22],[909,2,909,4],[909,8,909,10],[909,14,909,16],[909,20,909,22],[906,2,906,4],[906,8,906,10],[906,14,906,16],[906,20,906,22],[907,2,907,4],[907,8,907,10],[907,14,907,16],[907,20,907,22],[904,2,904,4],[904,8,904,10],[904,14,904,16],[904,20,904,22],[905,2,905,4],[905,8,905,10],[905,14,905,16],[905,20,905,22],[902,2,902,4],[902,8,902,10],[902,14,902,16],[902,20,902,22],[903,2,903,4],[903,8,903,10],[903,14,903,16],[903,20,903,22],[900,2,900,4],[900,8,900,10],[900,14,900,16],[900,20,900,22],[901,2,901,4],[901,8,901,10],[901,14,901,16],[901,20,901,22],[898,2,898,4],[898,8,898,10],[898,14,898,16],[898,20,898,22],[899,2,899,4],[899,8,899,10],[899,14,899,16],[899,20,899,22],[896,2,896,4],[896,8,896,10],[896,14,896,16],[896,20,896,22],[897,2,897,4],[897,8,897,10],[897,14,897,16],[897,20,897,22],[894,2,894,4],[894,8,894,10],[894,14,894,16],[894,20,894,22],[895,2,895,4],[895,8,895,10],[895,14,895,16],[895,20,895,22],[892,2,892,4],[892,8,892,10],[892,14,892,16],[892,20,892,22],[893,2,893,4],[893,8,893,10],[893,14,893,16],[893,20,893,22],[890,2,890,4],[890,8,890,10],[890,14,890,16],[890,20,890,22],[891,2,891,4],[891,8,891,10],[891,14,891,16],[891,20,891,22],[888,2,888,4],[888,8,888,10],[888,14,888,16],[888,20,888,22],[889,2,889,4],[889,8,889,10],[889,14,889,16],[889,20,889,22],[886,2,886,4],[886,8,886,10],[886,14,886,16],[886,20,886,22],[887,2,887,4],[887,8,887,10],[887,14,887,16],[887,20,887,22],[884,2,884,4],[884,8,884,10],[884,14,884,16],[884,20,884,22],[885,2,885,4],[885,8,885,10],[885,14,885,16],[885,20,885,22],[882,2,882,4],[882,8,882,10],[882,14,882,16],[882,20,882,22],[883,2,883,4],[883,8,883,10],[883,14,883,16],[883,20,883,22],[880,2,880,4],[880,8,880,10],[880,14,880,16],[880,20,880,22],[881,2,881,4],[881,8,881,10],[881,14,881,16],[881,20,881,22],[878,2,878,4],[878,8,878,10],[878,14,878,16],[878,20,878,22],[879,2,879,4],[879,8,879,10],[879,14,879,16],[879,20,879,22],[876,2,876,4],[876,8,876,10],[876,14,876,16],[876,20,876,22],[877,2,877,4],[877,8,877,10],[877,14,877,16],[877,20,877,22],[874,2,874,4],[874,8,874,10],[874,14,874,16],[874,20,874,22],[875,2,875,4],[875,8,875,10],[875,14,875,16],[875,20,875,22],[872,2,872,4],[872,8,872,10],[872,14,872,16],[872,20,872,22],[873,2,873,4],[873,8,873,10],[873,14,873,16],[873,20,873,22],[870,2,870,4],[870,8,870,10],[870,14,870,16],[870,20,870,22],[871,2,871,4],[871,8,871,10],[871,14,871,16],[871,20,871,22],[868,2,868,4],[868,8,868,10],[868,14,868,16],[868,20,868,22],[869,2,869,4],[869,8,869,10],[869,14,869,16],[869,20,869,22],[866,2,866,4],[866,8,866,10],[866,14,866,16],[866,20,866,22],[867,2,867,4],[867,8,867,10],[867,14,867,16],[867,20,867,22],[864,2,864,4],[864,8,864,10],[864,14,864,16],[864,20,864,22],[865,2,865,4],[865,8,865,10],[865,14,865,16],[865,20,865,22],[862,2,862,4],[862,8,862,10],[862,14,862,16],[862,20,862,22],[863,2,863,4],[863,8,863,10],[863,14,863,16],[863,20,863,22],[860,2,860,4],[860,8,860,10],[860,14,860,16],[860,20,860,22],[861,2,861,4],[861,8,861,10],[861,14,861,16],[861,20,861,22],[858,2,858,4],[858,8,858,10],[858,14,858,16],[858,20,858,22],[859,2,859,4],[859,8,859,10],[859,14,859,16],[859,20,859,22],[856,2,856,4],[856,8,856,10],[856,14,856,16],[856,20,856,22],[857,2,857,4],[857,8,857,10],[857,14,857,16],[857,20,857,22],[854,2,854,4],[854,8,854,10],[854,14,854,16],[854,20,854,22],[855,2,855,4],[855,8,855,10],[855,14,855,16],[855,20,855,22],[852,2,852,4],[852,8,852,10],[852,14,852,16],[852,20,852,22],[853,2,853,4],[853,8,853,10],[853,14,853,16],[853,20,853,22],[850,2,850,4],[850,8,850,10],[850,14,850,16],[850,20,850,22],[851,2,851,4],[851,8,851,10],[851,14,851,16],[851,20,851,22],[848,2,848,4],[848,8,848,10],[848,14,848,16],[848,20,848,22],[849,2,849,4],[849,8,849,10],[849,14,849,16],[849,20,849,22],[846,2,846,4],[846,8,846,10],[846,14,846,16],[846,20,846,22],[847,2,847,4],[847,8,847,10],[847,14,847,16],[847,20,847,22],[844,2,844,4],[844,8,844,10],[844,14,844,16],[844,20,844,22],[845,2,845,4],[845,8,845,10],[845,14,845,16],[845,20,845,22],[842,2,842,4],[842,8,842,10],[842,14,842,16],[842,20,842,22],[843,2,843,4],[843,8,843,10],[843,14,843,16],[843,20,843,22],[840,2,840,4],[840,8,840,10],[840,14,840,16],[840,20,840,22],[841,2,841,4],[841,8,841,10],[841,14,841,16],[841,20,841,22],[838,2,838,4],[838,8,838,10],[838,14,838,16],[838,20,838,22],[839,2,839,4],[839,8,839,10],[839,14,839,16],[839,20,839,22],[836,2,836,4],[836,8,836,10],[836,14,836,16],[836,20,836,22],[837,2,837,4],[837,8,837,10],[837,14,837,16],[837,20,837,22],[834,2,834,4],[834,8,834,10],[834,14,834,16],[834,20,834,22],[835,2,835,4],[835,8,835,10],[835,14,835,16],[835,20,835,22],[832,2,832,4],[832,8,832,10],[832,14,832,16],[832,20,832,22],[833,2,833,4],[833,8,833,10],[833,14,833,16],[833,20,833,22],[830,2,830,4],[830,8,830,10],[830,14,830,16],[830,20,830,22],[831,2,831,4],[831,8,831,10],[831,14,831,16],[831,20,831,22],[828,2,828,4],[828,8,828,10],[828,14,828,16],[828,20,828,22],[829,2,829,4],[829,8,829,10],[829,14,829,16],[829,20,829,22],[826,2,826,4],[826,8,826,10],[826,14,826,16],[826,20,826,22],[827,2,827,4],[827,8,827,10],[827,14,827,16],[827,20,827,22],[824,2,824,4],[824,8,824,10],[824,14,824,16],[824,20,824,22],[825,2,825,4],[825,8,825,10],[825,14,825,16],[825,20,825,22],[822,2,822,4],[822,8,822,10],[822,14,822,16],[822,20,822,22],[823,2,823,4],[823,8,823,10],[823,14,823,16],[823,20,823,22],[820,2,820,4],[820,8,820,10],[820,14,820,16],[820,20,820,22],[821,2,821,4],[821,8,821,10],[821,14,821,16],[821,20,821,22],[818,2,818,4],[818,8,818,10],[818,14,818,16],[818,20,818,22],[819,2,819,4],[819,8,819,10],[819,14,819,16],[819,20,819,22],[816,2,816,4],[816,8,816,10],[816,14,816,16],[816,20,816,22],[817,2,817,4],[817,8,817,10],[817,14,817,16],[817,20,817,22],[814,2,814,4],[814,8,814,10],[814,14,814,16],[814,20,814,22],[815,2,815,4],[815,8,815,10],[815,14,815,16],[815,20,815,22],[812,2,812,4],[812,8,812,10],[812,14,812,16],[812,20,812,22],[813,2,813,4],[813,8,813,10],[813,14,813,16],[813,20,813,22],[810,2,810,4],[810,8,810,10],[810,14,810,16],[810,20,810,22],[811,2,811,4],[811,8,811,10],[811,14,811,16],[811,20,811,22],[808,2,808,4],[808,8,808,10],[808,14,808,16],[808,20,808,22],[809,2,809,4],[809,8,809,10],[809,14,809,16],[809,20,809,22],[806,2,806,4],[806,8,806,10],[806,14,806,16],[806,20,806,22],[807,2,807,4],[807,8,807,10],[807,14,807,16],[807,20,807,22],[804,2,804,4],[804,8,804,10],[804,14,804,16],[804,20,804,22],[805,2,805,4],[805,8,805,10],[805,14,805,16],[805,20,805,22],[802,2,802,4],[802,8,802,10],[802,14,802,16],[802,20,802,22],[803,2,803,4],[803,8,803,10],[803,14,803,16],[803,20,803,22],[800,2,800,4],[800,8,800,10],[800,14,800,16],[800,20,800,22],[801,2,801,4],[801,8,801,10],[801,14,801,16],[801,20,801,22],[798,2,798,4],[798,8,798,10],[798,14,798,16],[798,20,798,22],[799,2,799,4],[799,8,799,10],[799,14,799,16],[799,20,799,22],[796,2,796,4],[796,8,796,10],[796,14,796,16],[796,20,796,22],[797,2,797,4],[797,8,797,10],[797,14,797,16],[797,20,797,22],[794,2,794,4],[794,8,794,10],[794,14,794,16],[794,20,794,22],[795,2,795,4],[795,8,795,10],[795,14,795,16],[795,20,795,22],[792,2,792,4],[792,8,792,10],[792,14,792,16],[792,20,792,22],[793,2,793,4],[793,8,793,10],[793,14,793,16],[793,20,793,22],[790,2,790,4],[790,8,790,10],[790,14,790,16],[790,20,790,22],[791,2,791,4],[791,8,791,10],[791,14,791,16],[791,20,791,22],[788,2,788,4],[788,8,788,10],[788,14,788,16],[788,20,788,22],[789,2,789,4],[789,8,789,10],[789,14,789,16],[789,20,789,22],[786,2,786,4],[786,8,786,10],[786,14,786,16],[786,20,786,22],[787,2,787,4],[787,8,787,10],[787,14,787,16],[787,20,787,22],[784,2,784,4],[784,8,784,10],[784,14,784,16],[784,20,784,22],[785,2,785,4],[785,8,785,10],[785,14,785,16],[785,20,785,22],[782,2,782,4],[782,8,782,10],[782,14,782,16],[782,20,782,22],[783,2,783,4],[783,8,783,10],[783,14,783,16],[783,20,783,22],[780,2,780,4],[780,8,780,10],[780,14,780,16],[780,20,780,22],[781,2,781,4],[781,8,781,10],[781,14,781,16],[781,20,781,22],[778,2,778,4],[778,8,778,10],[778,14,778,16],[778,20,778,22],[779,2,779,4],[779,8,779,10],[779,14,779,16],[779,20,779,22],[776,2,776,4],[776,8,776,10],[776,14,776,16],[776,20,776,22],[777,2,777,4],[777,8,777,10],[777,14,777,16],[777,20,777,22],[774,2,774,4],[774,8,774,10],[774,14,774,16],[774,20,774,22],[775,2,775,4],[775,8,775,10],[775,14,775,16],[775,20,775,22],[772,2,772,4],[772,8,772,10],[772,14,772,16],[772,20,772,22],[773,2,773,4],[773,8,773,10],[773,14,773,16],[773,20,773,22],[770,2,770,4],[770,8,770,10],[770,14,770,16],[770,20,770,22],[771,2,771,4],[771,8,771,10],[771,14,771,16],[771,20,771,22],[768,2,768,4],[768,8,768,10],[768,14,768,16],[768,20,768,22],[769,2,769,4],[769,8,769,10],[769,14,769,16],[769,20,769,22],[766,2,766,4],[766,8,766,10],[766,14,766,16],[766,20,766,22],[767,2,767,4],[767,8,767,10],[767,14,767,16],[767,20,767,22],[764,2,764,4],[764,8,764,10],[764,14,764,16],[764,20,764,22],[765,2,765,4],[765,8,765,10],[765,14,765,16],[765,20,765,22],[762,2,762,4],[762,8,762,10],[762,14,762,16],[762,20,762,22],[763,2,763,4],[763,8,763,10],[763,14,763,16],[763,20,763,22],[760,2,760,4],[760,8,760,10],[760,14,760,16],[760,20,760,22],[761,2,761,4],[761,8,761,10],[761,14,761,16],[761,20,761,22],[758,2,758,4],[758,8,758,10],[758,14,758,16],[758,20,758,22],[759,2,759,4],[759,8,759,10],[759,14,759,16],[759,20,759,22],[756,2,756,4],[756,8,756,10],[756,14,756,16],[756,20,756,22],[757,2,757,4],[757,8,757,10],[757,14,757,16],[757,20,757,22],[754,2,754,4],[754,8,754,10],[754,14,754,16],[754,20,754,22],[755,2,755,4],[755,8,755,10],[755,14,755,16],[755,20,755,22],[752,2,752,4],[752,8,752,10],[752,14,752,16],[752,20,752,22],[753,2,753,4],[753,8,753,10],[753,14,753,16],[753,20,753,22],[750,2,750,4],[750,8,750,10],[750,14,750,16],[750,20,750,22]],"merged_total":3996,"flags":["merged_cut"]}
[{"$f":"+C1","v":"L"},null,"L"]
[null,null,"01.","Διαμερίσματα Στούντιο (Studios)",null,null,null,null,"02.","Διαμερίσματα 1 Υπνοδωματίου",null,null,null,null,"03.","Διαμερίσματα 2 Υπνοδωματίων",null,null,null,null,"04.","Διαμερίσματα 3 Υπνοδωματίων"]
["Αρχή",null,"01.)  Συνολ. αριθμός καταμετρηθέντων Στούντιο:",null,null,null,{"$f":"SUM(F10:F1000)","v":0},null,"01.)  Συνολ. αριθμός καταμετρηθέντων Διαμερισμάτων:",null,null,null,{"$f":"SUM(L10:L1000)","v":0},null,"01.)  Συνολ. αριθμός καταμετρηθέντων Διαμερισμάτων:",null,null,null,{"$f":"+S7/2","v":0},null,"01.)  Συνολ. αριθμός καταμετρηθέντων Διαμερισμάτων:",null,null,null,{"$f":"+Y7/3","v":0}]
["Τέλος",null,"02.)  Ελάχ. απαιτούμενο εμβαδό Στούντιο για \nτην αιτούμενη τάξη:",null,null,null,{"$f":"+TEX.EK8ESH!Q59","v":0},null,"02.)  Ελάχ. απαιτούμενο εμβαδό Υπνοδωματίου για \nτην αιτούμενη τάξη:",null,null,null,{"$f":"+TEX.EK8ESH!P70","v":0},null,"02.)  Ελάχ. απαιτούμενο εμβαδό Υπνοδωματίου για \nτην αιτούμενη τάξη:",null,null,null,{"$f":"+TEX.EK8ESH!P70","v":0},null,"02.)  Ελάχ. απαιτούμενο εμβαδό Υπνοδωματίου για \nτην αιτούμενη τάξη:",null,null,null,{"$f":"+TEX.EK8ESH!P70","v":0}]
["Στούντιο",null,"03.)  Εμβαδό μικρότερου Στούντιο μονάδας (τ.μ.):",null,null,null,{"$f":"IF(G3>0,MIN(G10:G511),\"Δ/Ε\")","v":"Δ/Ε"},null,"03.)  Εμβαδό μικρότερου Υπνοδωματίου (τ.μ.):",null,null,null,{"$f":"IF(M7>0,MIN(M10:M511),\"Δ/Ε\")","v":"Δ/Ε"},null,"03.)  Εμβαδό μικρότερου Υπνοδωματίου (τ.μ.):",null,null,null,{"$f":"IF(S7>0,MIN(S10:S511),\"Δ/Ε\")","v":"Δ/Ε"},null,"03.)  Εμβαδό μικρότερου Υπνοδωματίου (τ.μ.):",null,null,null,{"$f":"IF(Y7>0,MIN(Y10:Y511),\"Δ/Ε\")","v":"Δ/Ε"},null,{"$f":"IF(AND(Y5=\"Δ/Ε\",S5=\"Δ/Ε\",M5=\"Δ/Ε\"),\"Δ/Ε\",MIN(Y5,S5,M5))","v":"Δ/Ε"}]
["1-Υπνοδ.",null,"04.)  Μέσος Όρος εμβαδών συνόλου Στούντιο (τ.μ.):",null,null,null,{"$f":"IF(G3=0,0,+H8/G3)","v":0},null,"04.)  Μέσος Όρος εμβαδών συνόλου Υπνοδωματίων (τ.μ.):",null,null,null,{"$f":"IF(M7=0,0,+N8/M7)","v":0},null,"04.)  Μέσος Όρος εμβαδών συνόλου Υπνοδωματίων (τ.μ.):",null,null,null,{"$f":"IF(S7=0,0,+T8/S7)","v":0},null,"04.)  Μέσος Όρος εμβαδών συνόλου Υπνοδωματίων (τ.μ.):",null,null,null,{"$f":"IF(Y7=0,0,+Z8/Y7)","v":0}]
["2-Υπνοδ.",null,null,null,null,null,null,null,"5.)  Συνολ. αριθμός καταμετρηθέντων Υπνοδωματίων:",null,null,null,{"$f":"SUM(L10:L1000)","v":0},null,"5.)  Συνολ. αριθμός καταμετρηθέντων Υπνοδωματίων:",null,null,null,{"$f":"SUM(R10:R1000)","v":0},null,"5.)  Συνολ. αριθμός καταμετρηθέντων Υπνοδωματίων:",null,null,null,{"$f":"SUM(X10:X1000)","v":0},null,{"$f":"+M7+S7+Y7","v":0}]
["3-Υπνοδ.",null,{"$f":"CONCATENATE(TEX.EK8ESH!$H$14,\",   \",D2)","v":",   Διαμερίσματα Στούντιο (Studios)"},null,null,null,null,{"$f":"SUM(H10:H1000)","v":0},{"$f":"CONCATENATE(TEX.EK8ESH!$H$14,\",   \",J2)","v":",   Διαμερίσματα 1 Υπνοδωματίου"},null,null,null,null,{"$f":"SUM(N10:N1000)","v":0},{"$f":"CONCATENATE(TEX.EK8ESH!$H$14,\",   \",P2)","v":",   Διαμερίσματα 2 Υπνοδωματίων"},null,null,null,null,{"$f":"SUM(T10:T1000)","v":0},{"$f":"CONCATENATE(TEX.EK8ESH!$H$14,\",   \",V2)","v":",   Διαμερίσματα 3 Υπνοδωματίων"},null,null,null,null,{"$f":"SUM(Z10:Z1000)","v":0},{"$f":"+N8+T8+Z8","v":0}]
[null,null,"Τοποθεσία / Περιγραφή  \nΔιαμερίσματος(ων) Στούντιο",null,null,"Αριθμός\nΣτούντιο","Εμβαδό\nΣτούντιο (τ.μ.)","Σταθ-\nμιστης","Τοποθεσία / Περιγραφή\nΔιαμερίσματος(ων)",null,null,"Αριθμός\nΥπνοδωματίων","Εμβαδό\nΥπνοδωμ.\n (τ.μ.)","Σταθ-\nμιστης","Τοποθεσία / Περιγραφή\nΔιαμερίσματος(ων)",null,null,"Αριθμός\nΥπνοδωματίων","Εμβαδό\nΥπνοδωμ.\n (τ.μ.)","Σταθ-\nμιστης","Τοποθεσία / Περιγραφή\nΔιαμερίσματος(ων)",null,null,"Αριθμός\nΥπνοδωματίων","Εμβαδό\nΥπνοδωμ.\n (τ.μ.)","Σταθ-\nμιστης",{"$f":"IF(OR(AA7=0,AA8=0),0,+AA8/AA7)","v":0}]
[null,null,null,null,null,null,null,{"$f":"IF(OR(F10=\"\",F10=0),\"\",+F10*G10)","v":""},null,null,null,null,null,{"$f":"IF(OR(L10=\"\",L10=0),\"\",+L10*M10)","v":""},null,null,null,null,null,{"$f":"IF(OR(R10=\"\",R10=0),\"\",+R10*S10)","v":""},null,null,null,null,null,{"$f":"IF(OR(X10=\"\",X10=0),\"\",+X10*Y10)","v":""}]
[null,null,null,null,null,null,null,"",null,null,null,null,null,"",null,null,null,null,null,"",null,null,null,null,null,""]
[null,null,null,null,null,null,null,"",null,null,null,null,null,"",null,null,null,null,null,"",null,null,null,null,null,""]
[null,null,null,null,null,null,null,"",null,null,null,null,null,"",null,null,null,null,null,"",null,null,null,null,null,""]
[null,null,null,null,null,null,null,"",null,null,null,null,null,"",null,null,null,null,null,"",null,null,null,null,null,""]
[null,null,null,null,null,null,null,"",null,null,null,null,null,"",null,null,null,null,null,"",null,null,null,null,null,""]
[null,null,null,null,null,null,null,"",null,null,null,null,null,"",null,null,null,null,null,"",null,null,null,null,null,""]
[null,null,null,null,null,null,null,"",null,null,null,null,null,"",null,null,null,null,null,"",null,null,null,null,null,""]
[null,null,null,null,null,null,null,"",null,null,null,null,null,"",null,null,null,null,null,"",null,null,null,null,null,""]
[null,null,null,null,null,null,null,"",null,null,null,null,null,"",null,null,null,null,null,"",null,null,null,null,null,""]
[null,null,null,null,null,null,null,"",null,null,null,null,null,"",null,null,null,null,null,"",null,null,null,null,null,""]
[null,null,null,null,null,null,null,"",null,null,null,null,null,"",null,null,null,null,null,"",null,null,null,null,null,""]
[null,null,null,null,null,null,null,"",null,null,null,null,null,"",null,null,null,null,null,"",null,null,null,null,null,""]
[null,null,null,null,null,null,null,"",null,null,null,null,null,"",null,null,null,null,null,"",null,null,null,null,null,""]
[null,null,null,null,null,null,null,"",null,null,null,null,null,"",null,null,null,null,null,"",null,null,null,null,null,""]
[null,null,null,null,null,null,null,"",null,null,null,null,null,"",null,null,null,null,null,"",null,null,null,null,null,""]
[null,null,null,null,null,null,null,"",null,null,null,null,null,"",null,null,null,null,null,"",null,null,null,null,null,""]
[null,null,null,null,null,null,null,"",null,null,null,null,null,"",null,null,null,null,null,"",null,null,null,null,null,""]
[null,null,null,null,null,null,null,"",null,null,null,null,null,"",null,null,null,null,null,"",null,null,null,null,null,""]
[null,null,null,null,null,null,null,"",null,null,null,null,null,"",null,null,null,null,null,"",null,null,null,null,null,""]
[null,null,null,null,null,null,null,"",null,null,null,null,null,"",null,null,null,null,null,"",null,null,null,null,null,""]
[null,null,null,null,null,null,null,"",null,null,null,null,null,"",null,null,null,null,null,"",null,null,null,null,null,""]
[null,null,null,null,null,null,null,"",null,null,null,null,null,"",null,null,null,null,null,"",null,null,null,null,null,""]
[null,null,null,null,null,null,null,"",null,null,null,null,null,"",null,null,null,null,null,"",null,null,null,null,null,""]
[null,null,null,null,null,null,null,"",null,null,null,null,null,"",null,null,null,null,null,"",null,null,null,null,null,""]
[null,null,null,null,null,null,null,"",null,null,null,null,null,"",null,null,null,null,null,"",null,null,null,null,null,""]
[null,null,null,null,null,null,null,"",null,null,null,null,null,"",null,null,null,null,null,"",null,null,null,null,null,""]
[null,null,null,null,null,null,null,"",null,null,null,null,null,"",null,null,null,null,null,"",null,null,null,null,null,""]
[null,null,null,null,null,null,null,"",null,null,null,null,null,"",null,null,null,null,null,"",null,null,null,null,null,""]
[null,null,null,null,null,null,null,"",null,null,null,null,null,"",null,null,null,null,null,"",null,null,null,null,null,""]
[null,null,null,null,null,null,null,"",null,null,null,null,null,"",null,null,null,null,null,"",null,null,null,null,null,""]
[null,null,null,null,null,null,null,"",null,null,null,null,null,"",null,null,null,null,null,"",null,null,null,null,null,""]
[null,null,null,null,null,null,null,"",null,null,null,null,null,"",null,null,null,null,null,"",null,null,null,null,null,""]
[null,null,null,null,null,null,null,"",null,null,null,null,null,"",null,null,null,null,null,"",null,null,null,null,null,""]
[null,null,null,null,null,null,null,"",null,null,null,null,null,"",null,null,null,null,null,"",null,null,null,null,null,""]
[null,null,null,null,null,null,null,"",null,null,null,null,null,"",null,null,null,null,null,"",null,null,null,null,null,""]
[null,null,null,null,null,null,null,"",null,null,null,null,null,"",null,null,null,null,null,"",null,null,null,null,null,""]
[null,null,null,null,null,null,null,"",null,null,null,null,null,"",null,null,null,null,null,"",null,null,null,null,null,""]
[null,null,null,null,null,null,null,"",null,null,null,null,null,"",null,null,null,null,null,"",null,null,null,null,null,""]
[null,null,null,null,null,null,null,"",null,null,null,null,null,"",null,null,null,null,null,"",null,null,null,null,null,""]
[null,null,null,null,null,null,null,"",null,null,null,null,null,"",null,null,null,null,null,"",null,null,null,null,null,""]
[null,null,null,null,null,null,null,"",null,null,null,null,null,"",null,null,null,null,null,"",null,null,null,null,null,""]
[null,null,null,null,null,null,null,"",null,null,null,null,null,"",null,null,null,null,null,"",null,null,null,null,null,""]
[null,null,null,null,null,null,null,"",null,null,null,null,null,"",null,null,null,null,null,"",null,null,null,null,null,""]
[null,null,null,null,null,null,null,"",null,null,null,null,null,"",null,null,null,null,null,"",null,null,null,null,null,""]
[null,null,null,null,null,null,null,"",null,null,null,null,null,"",null,null,null,null,null,"",null,null,null,null,null,""]
[null,null,null,null,null,null,null,"",null,null,null,null,null,"",null,null,null,null,null,"",null,null,null,null,null,""]
[null,null,null,null,null,null,null,"",null,null,null,null,null,"",null,null,null,null,null,"",null,null,null,null,null,""]
[null,null,null,null,null,null,null,"",null,null,null,null,null,"",null,null,null,null,null,"",null,null,null,null,null,""]
[null,null,null,null,null,null,null,"",null,null,null,null,null,"",null,null,null,null,null,"",null,null,null,null,null,""]
[null,null,null,null,null,null,null,"",null,null,null,null,null,"",null,null,null,null,null,"",null,null,null,null,null,""]
[null,null,null,null,null,null,null,"",null,null,null,null,null,"",null,null,null,null,null,"",null,null,null,null,null,""]
[null,null,null,null,null,null,null,"",null,null,null,null,null,"",null,null,null,null,null,"",null,null,null,null,null,""]
[null,null,null,null,null,null,null,"",null,null,null,null,null,"",null,null,null,null,null,"",null,null,null,null,null,""]
[null,null,null,null,null,null,null,"",null,null,null,null,null,"",null,null,null,null,null,"",null,null,null,null,null,""]
[null,null,null,null,null,null,null,"",null,null,null,null,null,"",null,null,null,null,null,"",null,null,null,null,null,""]
[null,null,null,null,null,null,null,"",null,null,null,null,null,"",null,null,null,null,null,"",null,null,null,null,null,""]
[null,null,null,null,null,null,null,"",null,null,null,null,null,"",null,null,null,null,null,"",null,null,null,null,null,""]
[null,null,null,null,null,null,null,"",null,null,null,null,null,"",null,null,null,null,null,"",null,null,null,null,null,""]
[null,null,null,null,null,null,null,"",null,null,null,null,null,"",null,null,null,null,null,"",null,null,null,null,null,""]
[null,null,null,null,null,null,null,"",null,null,null,null,null,"",null,null,null,null,null,"",null,null,null,null,null,""]
[null,null,null,null,null,null,null,"",null,null,null,null,null,"",null,null,null,null,null,"",null,null,null,null,null,""]
[null,null,null,null,null,null,null,"",null,null,null,null,null,"",null,null,null,null,null,"",null,null,null,null,null,""]
[null,null,null,null,null,null,null,"",null,null,null,null,null,"",null,null,null,null,null,"",null,null,null,null,null,""]
[null,null,null,null,null,null,null,{"$f":"IF(OR(F74=\"\",F74=0),\"\",+F74*G74)","v":""},null,null,null,null,null,{"$f":"IF(OR(L74=\"\",L74=0),\"\",+L74*M74)","v":""},null,null,null,null,null,{"$f":"IF(OR(R74=\"\",R74=0),\"\",+R74*S74)","v":""},null,null,null,null,null,{"$f":"IF(OR(X74=\"\",X74=0),\"\",+X74*Y74)","v":""}]
[null,null,null,null,null,null,null,"",null,null,null,null,null,"",null,null,null,null,null,"",null,null,null,null,null,""]
[null,null,null,null,null,null,null,"",null,null,null,null,null,"",null,null,null,null,null,"",null,null,null,null,null,""]
[null,null,null,null,null,null,null,"",null,null,null,null,null,"",null,null,null,null,null,"",null,null,null,null,null,""]
[null,null,null,null,null,null,null,"",null,null,null,null,null,"",null,null,null,null,null,"",null,null,null,null,null,""]
[null,null,null,null,null,null,null,"",null,null,null,null,null,"",null,null,null,null,null,"",null,null,null,null,null,""]
[null,null,null,null,null,null,null,"",null,null,null,null,null,"",null,null,null,null,null,"",null,null,null,null,null,""]
[null,null,null,null,null,null,null,"",null,null,null,null,null,"",null,null,null,null,null,"",null,null,null,null,null,""]
[null,null,null,null,null,null,null,"",null,null,null,null,null,"",null,null,null,null,null,"",null,null,null,null,null,""]
[null,null,null,null,null,null,null,"",null,null,null,null,null,"",null,null,null,null,null,"",null,null,null,null,null,""]
[null,null,null,null,null,null,null,"",null,null,null,null,null,"",null,null,null,null,null,"",null,null,null,null,null,""]
[null,null,null,null,null,null,null,"",null,null,null,null,null,"",null,null,null,null,null,"",null,null,null,null,null,""]
[null,null,null,null,null,null,null,"",null,null,null,null,null,"",null,null,null,null,null,"",null,null,null,null,null,""]
[null,null,null,null,null,null,null,"",null,null,null,null,null,"",null,null,null,null,null,"",null,null,null,null,null,""]
[null,null,null,null,null,null,null,"",null,null,null,null,null,"",null,null,null,null,null,"",null,null,null,null,null,""]
[null,null,null,null,null,null,null,"",null,null,null,null,null,"",null,null,null,null,null,"",null,null,null,null,null,""]
[null,null,null,null,null,null,null,"",null,null,null,null,null,"",null,null,null,null,null,"",null,null,null,null,null,""]
[null,null,null,null,null,null,null,"",null,null,null,null,null,"",null,null,null,null,null,"",null,null,null,null,null,""]
[null,null,null,null,null,null,null,"",null,null,null,null,null,"",null,null,null,null,null,"",null,null,null,null,null,""]
[null,null,null,null,null,null,null,"",null,null,null,null,null,"",null,null,null,null,null,"",null,null,null,null,null,""]
[null,null,null,null,null,null,null,"",null,null,null,null,null,"",null,null,null,null,null,"",null,null,null,null,null,""]
[null,null,null,null,null,null,null,"",null,null,null,null,null,"",null,null,null,null,null,"",null,null,null,null,null,""]
[null,null,null,null,null,null,null,"",null,null,null,null,null,"",null,null,null,null,null,"",null,null,null,null,null,""]
[null,null,null,null,null,null,null,"",null,null,null,null,null,"",null,null,null,null,null,"",null,null,null,null,null,""]
[null,null,null,null,null,null,null,"",null,null,null,null,null,"",null,null,null,null,null,"",null,null,null,null,null,""]
[null,null,null,null,null,null,null,"",null,null,null,null,null,"",null,null,null,null,null,"",null,null,null,null,null,""]
[null,null,null,null,null,null,null,"",null,null,null,null,null,"",null,null,null,null,null,"",null,null,null,null,null,""]
[null,null,null,null,null,null,null,"",null,null,null,null,null,"",null,null,null,null,null,"",null,null,null,null,null,""]
[null,null,null,null,null,null,null,"",null,null,null,null,null,"",null,null,null,null,null,"",null,null,null,null,null,""]
[null,null,null,null,null,null,null,"",null,null,null,null,null,"",null,null,null,null,null,"",null,null,null,null,null,""]
[null,null,null,null,null,null,null,"",null,null,null,null,null,"",null,null,null,null,null,"",null,null,null,null,null,""]
[null,null,null,null,null,null,null,"",null,null,null,null,null,"",null,null,null,null,null,"",null,null,null,null,null,""]
[null,null,null,null,null,null,null,"",null,null,null,null,null,"",null,null,null,null,null,"",null,null,null,null,null,""]
[null,null,null,null,null,null,null,"",null,null,null,null,null,"",null,null,null,null,null,"",null,null,null,null,null,""]
[null,null,null,null,null,null,null,"",null,null,null,null,null,"",null,null,null,null,null,"",null,null,null,null,null,""]
[null,null,null,null,null,null,null,"",null,null,null,null,null,"",null,null,null,null,null,"",null,null,null,null,null,""]
[null,null,null,null,null,null,null,"",null,null,null,null,null,"",null,null,null,null,null,"",null,null,null,null,null,""]
[null,null,null,null,null,null,null,"",null,null,null,null,null,"",null,null,null,null,null,"",null,null,null,null,null,""]
[null,null,null,null,null,null,null,"",null,null,null,null,null,"",null,null,null,null,null,"",null,null,null,null,null,""]
[null,null,null,null,null,null,null,"",null,null,null,null,null,"",null,null,null,null,null,"",null,null,null,null,null,""]
[null,null,null,null,null,null,null,"",null,null,null,null,null,"",null,null,null,null,null,"",null,null,null,null,null,""]
[null,null,null,null,null,null,null,"",null,null,null,null,null,"",null,null,null,null,null,"",null,null,null,null,null,""]
[null,null,null,null,null,null,null,"",null,null,null,null,null,"",null,null,null,null,null,"",null,null,null,null,null,""]
[null,null,null,null,null,null,null,"",null,null,null,null,null,"",null,null,null,null,null,"",null,null,null,null,null,""]
[null,null,null,null,null,null,null,"",null,null,null,null,null,"",null,null,null,null,null,"",null,null,null,null,null,""]
[null,null,null,null,null,null,null,"",null,null,null,null,null,"",null,null,null,null,null,"",null,null,null,null,null,""]
[null,null,null,null,null,null,null,"",null,null,null,null,null,"",null,null,null,null,null,"",null,null,null,null,null,""]
[null,null,null,null,null,null,null,"",null,null,null,null,null,"",null,null,null,null,null,"",null,null,null,null,null,""]
[null,null,null,null,null,null,null,"",null,null,null,null,null,"",null,null,null,null,null,"",null,null,null,null,null,""]
[null,null,null,null,null,null,null,"",null,null,null,null,null,"",null,null,null,null,null,"",null,null,null,null,null,""]
[null,null,null,null,null,null,null,"",null,null,null,null,null,"",null,null,null,null,null,"",null,null,null,null,null,""]
[null,null,null,null,null,null,null,"",null,null,null,null,null,"",null,null,null,null,null,"",null,null,null,null,null,""]
[null,null,null,null,null,null,null,"",null,null,null,null,null,"",null,null,null,null,null,"",null,null,null,null,null,""]
[null,null,null,null,null,null,null,"",null,null,null,null,null,"",null,null,null,null,null,"",null,null,null,null,null,""]
[null,null,null,null,null,null,null,"",null,null,null,null,null,"",null,null,null,null,null,"",null,null,null,null,null,""]
[null,null,null,null,null,null,null,"",null,null,null,null,null,"",null,null,null,null,null,"",null,null,null,null,null,""]
[null,null,null,null,null,null,null,"",null,null,null,null,null,"",null,null,null,null,null,"",null,null,null,null,null,""]
[null,null,null,null,null,null,null,"",null,null,null,null,null,"",null,null,null,null,null,"",null,null,null,null,null,""]
[null,null,null,null,null,null,null,"",null,null,null,null,null,"",null,null,null,null,null,"",null,null,null,null,null,""]
[null,null,null,null,null,null,null,"",null,null,null,null,null,"",null,null,null,null,null,"",null,null,null,null,null,""]
[null,null,null,null,null,null,null,"",null,null,null,null,null,"",null,null,null,null,null,"",null,null,null,null,null,""]
[null,null,null,null,null,null,null,"",null,null,null,null,null,"",null,null,null,null,null,"",null,null,null,null,null,""]
[null,null,null,null,null,null,null,"",null,null,null,null,null,"",null,null,null,null,null,"",null,null,null,null,null,""]
[null,null,null,null,null,null,null,"",null,null,null,null,null,"",null,null,null,null,null,"",null,null,null,null,null,""]
[null,null,null,null,null,null,null,{"$f":"IF(OR(F138=\"\",F138=0),\"\",+F138*G138)","v":""},null,null,null,null,null,{"$f":"IF(OR(L138=\"\",L138=0),\"\",+L138*M138)","v":""},null,null,null,null,null,{"$f":"IF(OR(R138=\"\",R138=0),\"\",+R138*S138)","v":""},null,null,null,null,null,{"$f":"IF(OR(X138=\"\",X138=0),\"\",+X138*Y138)","v":""}]
[null,null,null,null,null,null,null,"",null,null,null,null,null,"",null,null,null,null,null,"",null,null,null,null,null,""]
[null,null,null,null,null,null,null,"",null,null,null,null,null,"",null,null,null,null,null,"",null,null,null,null,null,""]
[null,null,null,null,null,null,null,"",null,null,null,null,null,"",null,null,null,null,null,"",null,null,null,null,null,""]
[null,null,null,null,null,null,null,"",null,null,null,null,null,"",null,null,null,null,null,"",null,null,null,null,null,""]
[null,null,null,null,null,null,null,"",null,null,null,null,null,"",null,null,null,null,null,"",null,null,null,null,null,""]
[null,null,null,null,null,null,null,"",null,null,null,null,null,"",null,null,null,null,null,"",null,null,null,null,null,""]
[null,null,null,null,null,null,null,"",null,null,null,null,null,"",null,null,null,null,null,"",null,null,null,null,null,""]
[null,null,null,null,null,null,null,"",null,null,null,null,null,"",null,null,null,null,null,"",null,null,null,null,null,""]
[null,null,null,null,null,null,null,"",null,null,null,null,null,"",null,null,null,null,null,"",null,null,null,null,null,""]
[null,null,null,null,null,null,null,"",null,null,null,null,null,"",null,null,null,null,null,"",null,null,null,null,null,""]
[null,null,null,null,null,null,null,"",null,null,null,null,null,"",null,null,null,null,null,"",null,null,null,null,null,""]
[null,null,null,null,null,null,null,"",null,null,null,null,null,"",null,null,null,null,null,"",null,null,null,null,null,""]
[null,null,null,null,null,null,null,"",null,null,null,null,null,"",null,null,null,null,null,"",null,null,null,null,null,""]
[null,null,null,null,null,null,null,"",null,null,null,null,null,"",null,null,null,null,null,"",null,null,null,null,null,""]
[null,null,null,null,null,null,null,"",null,null,null,null,null,"",null,null,null,null,null,"",null,null,null,null,null,""]
[null,null,null,null,null,null,null,"",null,null,null,null,null,"",null,null,null,null,null,"",null,null,null,null,null,""]
[null,null,null,null,null,null,null,"",null,null,null,null,null,"",null,null,null,null,null,"",null,null,null,null,null,""]
[null,null,null,null,null,null,null,"",null,null,null,null,null,"",null,null,null,null,null,"",null,null,null,null,null,""]
[null,null,null,null,null,null,null,"",null,null,null,null,null,"",null,null,null,null,null,"",null,null,null,null,null,""]
[null,null,null,null,null,null,null,"",null,null,null,null,null,"",null,null,null,null,null,"",null,null,null,null,null,""]
[null,null,null,null,null,null,null,"",null,null,null,null,null,"",null,null,null,null,null,"",null,null,null,null,null,""]
[null,null,null,null,null,null,null,"",null,null,null,null,null,"",null,null,null,null,null,"",null,null,null,null,null,""]
[null,null,null,null,null,null,null,"",null,null,null,null,null,"",null,null,null,null,null,"",null,null,null,null,null,""]
[null,null,null,null,null,null,null,"",null,null,null,null,null,"",null,null,null,null,null,"",null,null,null,null,null,""]
[null,null,null,null,null,null,null,"",null,null,null,null,null,"",null,null,null,null,null,"",null,null,null,null,null,""]
[null,null,null,null,null,null,null,"",null,null,null,null,null,"",null,null,null,null,null,"",null,null,null,null,null,""]
[null,null,null,null,null,null,null,"",null,null,null,null,null,"",null,null,null,null,null,"",null,null,null,null,null,""]
[null,null,null,null,null,null,null,"",null,null,null,null,null,"",null,null,null,null,null,"",null,null,null,null,null,""]
[null,null,null,null,null,null,null,"",null,null,null,null,null,"",null,null,null,null,null,"",null,null,null,null,null,""]
[null,null,null,null,null,null,null,"",null,null,null,null,null,"",null,null,null,null,null,"",null,null,null,null,null,""]
[null,null,null,null,null,null,null,"",null,null,null,null,null,"",null,null,null,null,null,"",null,null,null,null,null,""]
[null,null,null,null,null,null,null,"",null,null,null,null,null,"",null,null,null,null,null,"",null,null,null,null,null,""]
[null,null,null,null,null,null,null,"",null,null,null,null,null,"",null,null,null,null,null,"",null,null,null,null,null,""]
[null,null,null,null,null,null,null,"",null,null,null,null,null,"",null,null,null,null,null,"",null,null,null,null,null,""]
[null,null,null,null,null,null,null,"",null,null,null,null,null,"",null,null,null,null,null,"",null,null,null,null,null,""]
[null,null,null,null,null,null,null,"",null,null,null,null,null,"",null,null,null,null,null,"",null,null,null,null,null,""]
[null,null,null,null,null,null,null,"",null,null,null,null,null,"",null,null,null,null,null,"",null,null,null,null,null,""]
[null,null,null,null,null,null,null,"",null,null,null,null,null,"",null,null,null,null,null,"",null,null,null,null,null,""]
[null,null,null,null,null,null,null,"",null,null,null,null,null,"",null,null,null,null,null,"",null,null,null,null,null,""]
[null,null,null,null,null,null,null,"",null,null,null,null,null,"",null,null,null,null,null,"",null,null,null,null,null,""]
[null,null,null,null,null,null,null,"",null,null,null,null,null,"",null,null,null,null,null,"",null,null,null,null,null,""]
[null,null,null,null,null,null,null,"",null,null,null,null,null,"",null,null,null,null,null,"",null,null,null,null,null,""]
[null,null,null,null,null,null,null,"",null,null,null,null,null,"",null,null,null,null,null,"",null,null,null,null,null,""]
[null,null,null,null,null,null,null,"",null,null,null,null,null,"",null,null,null,null,null,"",null,null,null,null,null,""]
[null,null,null,null,null,null,null,"",null,null,null,null,null,"",null,null,null,null,null,"",null,null,null,null,null,""]
[null,null,null,null,null,null,null,"",null,null,null,null,null,"",null,null,null,null,null,"",null,null,null,null,null,""]
[null,null,null,null,null,null,null,"",null,null,null,null,null,"",null,null,null,null,null,"",null,null,null,null,null,""]
[null,null,null,null,null,null,null,"",null,null,null,null,null,"",null,null,null,null,null,"",null,null,null,null,null,""]
[null,null,null,null,null,null,null,"",null,null,null,null,null,"",null,null,null,null,null,"",null,null,null,null,null,""]
[null,null,null,null,null,null,null,"",null,null,null,null,null,"",null,null,null,null,null,"",null,null,null,null,null,""]
[null,null,null,null,null,null,null,"",null,null,null,null,null,"",null,null,null,null,null,"",null,null,null,null,null,""]
[null,null,null,null,null,null,null,"",null,null,null,null,null,"",null,null,null,null,null,"",null,null,null,null,null,""]
[null,null,null,null,null,null,null,"",null,null,null,null,null,"",null,null,null,null,null,"",null,null,null,null,null,""]
[null,null,null,null,null,null,null,"",null,null,null,null,null,"",null,null,null,null,null,"",null,null,null,null,null,""]
[null,null,null,null,null,null,null,"",null,null,null,null,null,"",null,null,null,null,null,"",null,null,null,null,null,""]
[null,null,null,null,null,null,null,"",null,null,null,null,null,"",null,null,null,null,null,"",null,null,null,null,null,""]
[null,null,null,null,null,null,null,"",null,null,null,null,null,"",null,null,null,null,null,"",null,null,null,null,null,""]
[null,null,null,null,null,null,null,"",null,null,null,null,null,"",null,null,null,null,null,"",null,null,null,null,null,""]
[null,null,null,null,null,null,null,"",null,null,null,null,null,"",null,null,null,null,null,"",null,null,null,null,null,""]
[null,null,null,null,null,null,null,"",null,null,null,null,null,"",null,null,null,null,null,"",null,null,null,null,null,""]
[null,null,null,null,null,null,null,"",null,null,null,null,null,"",null,null,null,null,null,"",null,null,null,null,null,""]
[null,null,null,null,null,null,null,"",null,null,null,null,null,"",null,null,null,null,null,"",null,null,null,null,null,""]
[null,null,null,null,null,null,null,"",null,null,null,null,null,"",null,null,null,null,null,"",null,null,null,null,null,""]
[null,null,null,null,null,null,null,{"$f":"IF(OR(F202=\"\",F202=0),\"\",+F202*G202)","v":""},null,null,null,null,null,{"$f":"IF(OR(L202=\"\",L202=0),\"\",+L202*M202)","v":""},null,null,null,null,null,{"$f":"IF(OR(R202=\"\",R202=0),\"\",+R202*S202)","v":""},null,null,null,null,null,{"$f":"IF(OR(X202=\"\",X202=0),\"\",+X202*Y202)","v":""}]
[null,null,null,null,null,null,null,"",null,null,null,null,null,"",null,null,null,null,null,"",null,null,null,null,null,""]
[null,null,null,null,null,null,null,"",null,null,null,null,null,"",null,null,null,null,null,"",null,null,null,null,null,""]
[null,null,null,null,null,null,null,"",null,null,null,null,null,"",null,null,null,null,null,"",null,null,null,null,null,""]
[null,null,null,null,null,null,null,"",null,null,null,null,null,"",null,null,null,null,null,"",null,null,null,null,null,""]
[null,null,null,null,null,null,null,"",null,null,null,null,null,"",null,null,null,null,null,"",null,null,null,null,null,""]
[null,null,null,null,null,null,null,"",null,null,null,null,null,"",null,null,null,null,null,"",null,null,null,null,null,""]
[null,null,null,null,null,null,null,"",null,null,null,null,null,"",null,null,null,null,null,"",null,null,null,null,null,""]
[null,null,null,null,null,null,null,"",null,null,null,null,null,"",null,null,null,null,null,"",null,null,null,null,null,""]
[null,null,null,null,null,null,null,"",null,null,null,null,null,"",null,null,null,null,null,"",null,null,null,null,null,""]
[null,null,null,null,null,null,null,"",null,null,null,null,null,"",null,null,null,null,null,"",null,null,null,null,null,""]
[null,null,null,null,null,null,null,"",null,null,null,null,null,"",null,null,null,null,null,"",null,null,null,null,null,""]
[null,null,null,null,null,null,null,"",null,null,null,null,null,"",null,null,null,null,null,"",null,null,null,null,null,""]
[null,null,null,null,null,null,null,"",null,null,null,null,null,"",null,null,null,null,null,"",null,null,null,null,null,""]
[null,null,null,null,null,null,null,"",null,null,null,null,null,"",null,null,null,null,null,"",null,null,null,null,null,""]
[null,null,null,null,null,null,null,"",null,null,null,null,null,"",null,null,null,null,null,"",null,null,null,null,null,""]
[null,null,null,null,null,null,null,"",null,null,null,null,null,"",null,null,null,null,null,"",null,null,null,null,null,""]
[null,null,null,null,null,null,null,"",null,null,null,null,null,"",null,null,null,null,null,"",null,null,null,null,null,""]
[null,null,null,null,null,null,null,"",null,null,null,null,null,"",null,null,null,null,null,"",null,null,null,null,null,""]
[null,null,null,null,null,null,null,"",null,null,null,null,null,"",null,null,null,null,null,"",null,null,null,null,null,""]
[null,null,null,null,null,null,null,"",null,null,null,null,null,"",null,null,null,null,null,"",null,null,null,null,null,""]
[null,null,null,null,null,null,null,"",null,null,null,null,null,"",null,null,null,null,null,"",null,null,null,null,null,""]
[null,null,null,null,null,null,null,"",null,null,null,null,null,"",null,null,null,null,null,"",null,null,null,null,null,""]
[null,null,null,null,null,null,null,"",null,null,null,null,null,"",null,null,null,null,null,"",null,null,null,null,null,""]
[null,null,null,null,null,null,null,"",null,null,null,null,null,"",null,null,null,null,null,"",null,null,null,null,null,""]
[null,null,null,null,null,null,null,"",null,null,null,null,null,"",null,null,null,null,null,"",null,null,null,null,null,""]
[null,null,null,null,null,null,null,"",null,null,null,null,null,"",null,null,null,null,null,"",null,null,null,null,null,""]
[null,null,null,null,null,null,null,"",null,null,null,null,null,"",null,null,null,null,null,"",null,null,null,null,null,""]
[null,null,null,null,null,null,null,"",null,null,null,null,null,"",null,null,null,null,null,"",null,null,null,null,null,""]
[null,null,null,null,null,null,null,"",null,null,null,null,null,"",null,null,null,null,null,"",null,null,null,null,null,""]
[null,null,null,null,null,null,null,"",null,null,null,null,null,"",null,null,null,null,null,"",null,null,null,null,null,""]
[null,null,null,null,null,null,null,"",null,null,null,null,null,"",null,null,null,null,null,"",null,null,null,null,null,""]
[null,null,null,null,null,null,null,"",null,null,null,null,null,"",null,null,null,null,null,"",null,null,null,null,null,""]
[null,null,null,null,null,null,null,"",null,null,null,null,null,"",null,null,null,null,null,"",null,null,null,null,null,""]
[null,null,null,null,null,null,null,"",null,null,null,null,null,"",null,null,null,null,null,"",null,null,null,null,null,""]
[null,null,null,null,null,null,null,"",null,null,null,null,null,"",null,null,null,null,null,"",null,null,null,null,null,""]
[null,null,null,null,null,null,null,"",null,null,null,null,null,"",null,null,null,null,null,"",null,null,null,null,null,""]
[null,null,null,null,null,null,null,"",null,null,null,null,null,"",null,null,null,null,null,"",null,null,null,null,null,""]
[null,null,null,null,null,null,null,"",null,null,null,null,null,"",null,null,null,null,null,"",null,null,null,null,null,""]
[null,null,null,null,null,null,null,"",null,null,null,null,null,"",null,null,null,null,null,"",null,null,null,null,null,""]
[null,null,null,null,null,null,null,"",null,null,null,null,null,"",null,null,null,null,null,"",null,null,null,null,null,""]
[null,null,null,null,null,null,null,"",null,null,null,null,null,"",null,null,null,null,null,"",null,null,null,null,null,""]
[null,null,null,null,null,null,null,"",null,null,null,null,null,"",null,null,null,null,null,"",null,null,null,null,null,""]
[null,null,null,null,null,null,null,"",null,null,null,null,null,"",null,null,null,null,null,"",null,null,null,null,null,""]
[null,null,null,null,null,null,null,"",null,null,null,null,null,"",null,null,null,null,null,"",null,null,null,null,null,""]
[null,null,null,null,null,null,null,"",null,null,null,null,null,"",null,null,null,null,null,"",null,null,null,null,null,""]
[null,null,null,null,null,null,null,"",null,null,null,null,null,"",null,null,null,null,null,"",null,null,null,null,null,""]
[null,null,null,null,null,null,null,"",null,null,null,null,null,"",null,null,null,null,null,"",null,null,null,null,null,""]
[null,null,null,null,null,null,null,"",null,null,null,null,null,"",null,null,null,null,null,"",null,null,null,null,null,""]
[null,null,null,null,null,null,null,"",null,null,null,null,null,"",null,null,null,null,null,"",null,null,null,null,null,""]
[null,null,null,null,null,null,null,"",null,null,null,null,null,"",null,null,null,null,null,"",null,null,null,null,null,""]
[null,null,null,null,null,null,null,"",null,null,null,null,null,"",null,null,null,null,null,"",null,null,null,null,null,""]
[null,null,null,null,null,null,null,"",null,null,null,null,null,"",null,null,null,null,null,"",null,null,null,null,null,""]
[null,null,null,null,null,null,null,"",null,null,null,null,null,"",null,null,null,null,null,"",null,null,null,null,null,""]
[null,null,null,null,null,null,null,"",null,null,null,null,null,"",null,null,null,null,null,"",null,null,null,null,null,""]
[null,null,null,null,null,null,null,"",null,null,null,null,null,"",null,null,null,null,null,"",null,null,null,null,null,""]
[null,null,null,null,null,null,null,"",null,null,null,null,null,"",null,null,null,null,null,"",null,null,null,null,null,""]
[null,null,null,null,null,null,null,"",null,null,null,null,null,"",null,null,null,null,null,"",null,null,null,null,null,""]
[null,null,null,null,null,null,null,"",null,null,null,null,null,"",null,null,null,null,null,"",null,null,null,null,null,""]
[null,null,null,null,null,null,null,"",null,null,null,null,null,"",null,null,null,null,null,"",null,null,null,null,null,""]
[null,null,null,null,null,null,null,"",null,null,null,null,null,"",null,null,null,null,null,"",null,null,null,null,null,""]
[null,null,null,null,null,null,null,"",null,null,null,null,null,"",null,null,null,null,null,"",null,null,null,null,null,""]
[null,null,null,null,null,null,null,"",null,null,null,null,null,"",null,null,null,null,null,"",null,null,null,null,null,""]
[null,null,null,null,null,null,null,"",null,null,null,null,null,"",null,null,null,null,null,"",null,null,null,null,null,""]
[null,null,null,null,null,null,null,{"$f":"IF(OR(F266=\"\",F266=0),\"\",+F266*G266)","v":""},null,null,null,null,null,{"$f":"IF(OR(L266=\"\",L266=0),\"\",+L266*M266)","v":""},null,null,null,null,null,{"$f":"IF(OR(R266=\"\",R266=0),\"\",+R266*S266)","v":""},null,null,null,null,null,{"$f":"IF(OR(X266=\"\",X266=0),\"\",+X266*Y266)","v":""}]
[null,null,null,null,null,null,null,"",null,null,null,null,null,"",null,null,null,null,null,"",null,null,null,null,null,""]
[null,null,null,null,null,null,null,"",null,null,null,null,null,"",null,null,null,null,null,"",null,null,null,null,null,""]
[null,null,null,null,null,null,null,"",null,null,null,null,null,"",null,null,null,null,null,"",null,null,null,null,null,""]
[null,null,null,null,null,null,null,"",null,null,null,null,null,"",null,null,null,null,null,"",null,null,null,null,null,""]
[null,null,null,null,null,null,null,"",null,null,null,null,null,"",null,null,null,null,null,"",null,null,null,null,null,""]
[null,null,null,null,null,null,null,"",null,null,null,null,null,"",null,null,null,null,null,"",null,null,null,null,null,""]
[null,null,null,null,null,null,null,"",null,null,null,null,null,"",null,null,null,null,null,"",null,null,null,null,null,""]
[null,null,null,null,null,null,null,"",null,null,null,null,null,"",null,null,null,null,null,"",null,null,null,null,null,""]
[null,null,null,null,null,null,null,"",null,null,null,null,null,"",null,null,null,null,null,"",null,null,null,null,null,""]
[null,null,null,null,null,null,null,"",null,null,null,null,null,"",null,null,null,null,null,"",null,null,null,null,null,""]
[null,null,null,null,null,null,null,"",null,null,null,null,null,"",null,null,null,null,null,"",null,null,null,null,null,""]
[null,null,null,null,null,null,null,"",null,null,null,null,null,"",null,null,null,null,null,"",null,null,null,null,null,""]
[null,null,null,null,null,null,null,"",null,null,null,null,null,"",null,null,null,null,null,"",null,null,null,null,null,""]
[null,null,null,null,null,null,null,"",null,null,null,null,null,"",null,null,null,null,null,"",null,null,null,null,null,""]
[null,null,null,null,null,null,null,"",null,null,null,null,null,"",null,null,null,null,null,"",null,null,null,null,null,""]
[null,null,null,null,null,null,null,"",null,null,null,null,null,"",null,null,null,null,null,"",null,null,null,null,null,""]
[null,null,null,null,null,null,null,"",null,null,null,null,null,"",null,null,null,null,null,"",null,null,null,null,null,""]
[null,null,null,null,null,null,null,"",null,null,null,null,null,"",null,null,null,null,null,"",null,null,null,null,null,""]
[null,null,null,null,null,null,null,"",null,null,null,null,null,"",null,null,null,null,null,"",null,null,null,null,null,""]
[null,null,null,null,null,null,null,"",null,null,null,null,null,"",null,null,null,null,null,"",null,null,null,null,null,""]
[null,null,null,null,null,null,null,"",null,null,null,null,null,"",null,null,null,null,null,"",null,null,null,null,null,""]
[null,null,null,null,null,null,null,"",null,null,null,null,null,"",null,null,null,null,null,"",null,null,null,null,null,""]
[null,null,null,null,null,null,null,"",null,null,null,null,null,"",null,null,null,null,null,"",null,null,null,null,null,""]
[null,null,null,null,null,null,null,"",null,null,null,null,null,"",null,null,null,null,null,"",null,null,null,null,null,""]
[null,null,null,null,null,null,null,"",null,null,null,null,null,"",null,null,null,null,null,"",null,null,null,null,null,""]
[null,null,null,null,null,null,null,"",null,null,null,null,null,"",null,null,null,null,null,"",null,null,null,null,null,""]
[null,null,null,null,null,null,null,"",null,null,null,null,null,"",null,null,null,null,null,"",null,null,null,null,null,""]
[null,null,null,null,null,null,null,"",null,null,null,null,null,"",null,null,null,null,null,"",null,null,null,null,null,""]
[null,null,null,null,null,null,null,"",null,null,null,null,null,"",null,null,null,null,null,"",null,null,null,null,null,""]
[null,null,null,null,null,null,null,"",null,null,null,null,null,"",null,null,null,null,null,"",null,null,null,null,null,""]
[null,null,null,null,null,null,null,"",null,null,null,null,null,"",null,null,null,null,null,"",null,null,null,null,null,""]
[null,null,null,null,null,null,null,"",null,null,null,null,null,"",null,null,null,null,null,"",null,null,null,null,null,""]
[null,null,null,null,null,null,null,"",null,null,null,null,null,"",null,null,null,null,null,"",null,null,null,null,null,""]
[null,null,null,null,null,null,null,"",null,null,null,null,null,"",null,null,null,null,null,"",null,null,null,null,null,""]
[null,null,null,null,null,null,null,"",null,null,null,null,null,"",null,null,null,null,null,"",null,null,null,null,null,""]
[null,null,null,null,null,null,null,"",null,null,null,null,null,"",null,null,null,null,null,"",null,null,null,null,null,""]
[null,null,null,null,null,null,null,"",null,null,null,null,null,"",null,null,null,null,null,"",null,null,null,null,null,""]
[null,null,null,null,null,null,null,"",null,null,null,null,null,"",null,null,null,null,null,"",null,null,null,null,null,""]
[null,null,null,null,null,null,null,"",null,null,null,null,null,"",null,null,null,null,null,"",null,null,null,null,null,""]
[null,null,null,null,null,null,null,"",null,null,null,null,null,"",null,null,null,null,null,"",null,null,null,null,null,""]
[null,null,null,null,null,null,null,"",null,null,null,null,null,"",null,null,null,null,null,"",null,null,null,null,null,""]
[null,null,null,null,null,null,null,"",null,null,null,null,null,"",null,null,null,null,null,"",null,null,null,null,null,""]
[null,null,null,null,null,null,null,"",null,null,null,null,null,"",null,null,null,null,null,"",null,null,null,null,null,""]
[null,null,null,null,null,null,null,"",null,null,null,null,null,"",null,null,null,null,null,"",null,null,null,null,null,""]
[null,null,null,null,null,null,null,"",null,null,null,null,null,"",null,null,null,null,null,"",null,null,null,null,null,""]
[null,null,null,null,null,null,null,"",null,null,null,null,null,"",null,null,null,null,null,"",null,null,null,null,null,""]
[null,null,null,null,null,null,null,"",null,null,null,null,null,"",null,null,null,null,null,"",null,null,null,null,null,""]
[null,null,null,null,null,null,null,"",null,null,null,null,null,"",null,null,null,null,null,"",null,null,null,null,null,""]
[null,null,null,null,null,null,null,"",null,null,null,null,null,"",null,null,null,null,null,"",null,null,null,null,null,""]
[null,null,null,null,null,null,null,"",null,null,null,null,null,"",null,null,null,null,null,"",null,null,null,null,null,""]
[null,null,null,null,null,null,null,"",null,null,null,null,null,"",null,null,null,null,null,"",null,null,null,null,null,""]
[null,null,null,null,null,null,null,"",null,null,null,null,null,"",null,null,null,null,null,"",null,null,null,null,null,""]
[null,null,null,null,null,null,null,"",null,null,null,null,null,"",null,null,null,null,null,"",null,null,null,null,null,""]
[null,null,null,null,null,null,null,"",null,null,null,null,null,"",null,null,null,null,null,"",null,null,null,null,null,""]
[null,null,null,null,null,null,null,"",null,null,null,null,null,"",null,null,null,null,null,"",null,null,null,null,null,""]
[null,null,null,null,null,null,null,"",null,null,null,null,null,"",null,null,null,null,null,"",null,null,null,null,null,""]
[null,null,null,null,null,null,null,"",null,null,null,null,null,"",null,null,null,null,null,"",null,null,null,null,null,""]
[null,null,null,null,null,null,null,"",null,null,null,null,null,"",null,null,null,null,null,"",null,null,null,null,null,""]
[null,null,null,null,null,null,null,"",null,null,null,null,null,"",null,null,null,null,null,"",null,null,null,null,null,""]
[null,null,null,null,null,null,null,"",null,null,null,null,null,"",null,null,null,null,null,"",null,null,null,null,null,""]
[null,null,null,null,null,null,null,"",null,null,null,null,null,"",null,null,null,null,null,"",null,null,null,null,null,""]
[null,null,null,null,null,null,null,"",null,null,null,null,null,"",null,null,null,null,null,"",null,null,null,null,null,""]
[null,null,null,null,null,null,null,"",null,null,null,null,null,"",null,null,null,null,null,"",null,null,null,null,null,""]
[null,null,null,null,null,null,null,{"$f":"IF(OR(F330=\"\",F330=0),\"\",+F330*G330)","v":""},null,null,null,null,null,{"$f":"IF(OR(L330=\"\",L330=0),\"\",+L330*M330)","v":""},null,null,null,null,null,{"$f":"IF(OR(R330=\"\",R330=0),\"\",+R330*S330)","v":""},null,null,null,null,null,{"$f":"IF(OR(X330=\"\",X330=0),\"\",+X330*Y330)","v":""}]
[null,null,null,null,null,null,null,"",null,null,null,null,null,"",null,null,null,null,null,"",null,null,null,null,null,""]
[null,null,null,null,null,null,null,"",null,null,null,null,null,"",null,null,null,null,null,"",null,null,null,null,null,""]
[null,null,null,null,null,null,null,"",null,null,null,null,null,"",null,null,null,null,null,"",null,null,null,null,null,""]
[null,null,null,null,null,null,null,"",null,null,null,null,null,"",null,null,null,null,null,"",null,null,null,null,null,""]
[null,null,null,null,null,null,null,"",null,null,null,null,null,"",null,null,null,null,null,"",null,null,null,null,null,""]
[null,null,null,null,null,null,null,"",null,null,null,null,null,"",null,null,null,null,null,"",null,null,null,null,null,""]
[null,null,null,null,null,null,null,"",null,null,null,null,null,"",null,null,null,null,null,"",null,null,null,null,null,""]
[null,null,null,null,null,null,null,"",null,null,null,null,null,"",null,null,null,null,null,"",null,null,null,null,null,""]
[null,null,null,null,null,null,null,"",null,null,null,null,null,"",null,null,null,null,null,"",null,null,null,null,null,""]
[null,null,null,null,null,null,null,"",null,null,null,null,null,"",null,null,null,null,null,"",null,null,null,null,null,""]
[null,null,null,null,null,null,null,"",null,null,null,null,null,"",null,null,null,null,null,"",null,null,null,null,null,""]
[null,null,null,null,null,null,null,"",null,null,null,null,null,"",null,null,null,null,null,"",null,null,null,null,null,""]
[null,null,null,null,null,null,null,"",null,null,null,null,null,"",null,null,null,null,null,"",null,null,null,null,null,""]
[null,null,null,null,null,null,null,"",null,null,null,null,null,"",null,null,null,null,null,"",null,null,null,null,null,""]
[null,null,null,null,null,null,null,"",null,null,null,null,null,"",null,null,null,null,null,"",null,null,null,null,null,""]
[null,null,null,null,null,null,null,"",null,null,null,null,null,"",null,null,null,null,null,"",null,null,null,null,null,""]
[null,null,null,null,null,null,null,"",null,null,null,null,null,"",null,null,null,null,null,"",null,null,null,null,null,""]
[null,null,null,null,null,null,null,"",null,null,null,null,null,"",null,null,null,null,null,"",null,null,null,null,null,""]
[null,null,null,null,null,null,null,"",null,null,null,null,null,"",null,null,null,null,null,"",null,null,null,null,null,""]
[null,null,null,null,null,null,null,"",null,null,null,null,null,"",null,null,null,null,null,"",null,null,null,null,null,""]
[null,null,null,null,null,null,null,"",null,null,null,null,null,"",null,null,null,null,null,"",null,null,null,null,null,""]
[null,null,null,null,null,null,null,"",null,null,null,null,null,"",null,null,null,null,null,"",null,null,null,null,null,""]
[null,null,null,null,null,null,null,"",null,null,null,null,null,"",null,null,null,null,null,"",null,null,null,null,null,""]
[null,null,null,null,null,null,null,"",null,null,null,null,null,"",null,null,null,null,null,"",null,null,null,null,null,""]
[null,null,null,null,null,null,null,"",null,null,null,null,null,"",null,null,null,null,null,"",null,null,null,null,null,""]
[null,null,null,null,null,null,null,"",null,null,null,null,null,"",null,null,null,null,null,"",null,null,null,null,null,""]
[null,null,null,null,null,null,null,"",null,null,null,null,null,"",null,null,null,null,null,"",null,null,null,null,null,""]
[null,null,null,null,null,null,null,"",null,null,null,null,null,"",null,null,null,null,null,"",null,null,null,null,null,""]
[null,null,null,null,null,null,null,"",null,null,null,null,null,"",null,null,null,null,null,"",null,null,null,null,null,""]
[null,null,null,null,null,null,null,"",null,null,null,null,null,"",null,null,null,null,null,"",null,null,null,null,null,""]
[null,null,null,null,null,null,null,"",null,null,null,null,null,"",null,null,null,null,null,"",null,null,null,null,null,""]
[null,null,null,null,null,null,null,"",null,null,null,null,null,"",null,null,null,null,null,"",null,null,null,null,null,""]
[null,null,null,null,null,null,null,"",null,null,null,null,null,"",null,null,null,null,null,"",null,null,null,null,null,""]
[null,null,null,null,null,null,null,"",null,null,null,null,null,"",null,null,null,null,null,"",null,null,null,null,null,""]
[null,null,null,null,null,null,null,"",null,null,null,null,null,"",null,null,null,null,null,"",null,null,null,null,null,""]
[null,null,null,null,null,null,null,"",null,null,null,null,null,"",null,null,null,null,null,"",null,null,null,null,null,""]
[null,null,null,null,null,null,null,"",null,null,null,null,null,"",null,null,null,null,null,"",null,null,null,null,null,""]
[null,null,null,null,null,null,null,"",null,null,null,null,null,"",null,null,null,null,null,"",null,null,null,null,null,""]
[null,null,null,null,null,null,null,"",null,null,null,null,null,"",null,null,null,null,null,"",null,null,null,null,null,""]
[null,null,null,null,null,null,null,"",null,null,null,null,null,"",null,null,null,null,null,"",null,null,null,null,null,""]
[null,null,null,null,null,null,null,"",null,null,null,null,null,"",null,null,null,null,null,"",null,null,null,null,null,""]
[null,null,null,null,null,null,null,"",null,null,null,null,null,"",null,null,null,null,null,"",null,null,null,null,null,""]
[null,null,null,null,null,null,null,"",null,null,null,null,null,"",null,null,null,null,null,"",null,null,null,null,null,""]
[null,null,null,null,null,null,null,"",null,null,null,null,null,"",null,null,null,null,null,"",null,null,null,null,null,""]
[null,null,null,null,null,null,null,"",null,null,null,null,null,"",null,null,null,null,null,"",null,null,null,null,null,""]
[null,null,null,null,null,null,null,"",null,null,null,null,null,"",null,null,null,null,null,"",null,null,null,null,null,""]
[null,null,null,null,null,null,null,"",null,null,null,null,null,"",null,null,null,null,null,"",null,null,null,null,null,""]
[null,null,null,null,null,null,null,"",null,null,null,null,null,"",null,null,null,null,null,"",null,null,null,null,null,""]
[null,null,null,null,null,null,null,"",null,null,null,null,null,"",null,null,null,null,null,"",null,null,null,null,null,""]
[null,null,null,null,null,null,null,"",null,null,null,null,null,"",null,null,null,null,null,"",null,null,null,null,null,""]
[null,null,null,null,null,null,null,"",null,null,null,null,null,"",null,null,null,null,null,"",null,null,null,null,null,""]
[null,null,null,null,null,null,null,"",null,null,null,null,null,"",null,null,null,null,null,"",null,null,null,null,null,""]
[null,null,null,null,null,null,null,"",null,null,null,null,null,"",null,null,null,null,null,"",null,null,null,null,null,""]
[null,null,null,null,null,null,null,"",null,null,null,null,null,"",null,null,null,null,null,"",null,null,null,null,null,""]
[null,null,null,null,null,null,null,"",null,null,null,null,null,"",null,null,null,null,null,"",null,null,null,null,null,""]
[null,null,null,null,null,null,null,"",null,null,null,null,null,"",null,null,null,null,null,"",null,null,null,null,null,""]
[null,null,null,null,null,null,null,"",null,null,null,null,null,"",null,null,null,null,null,"",null,null,null,null,null,""]
[null,null,null,null,null,null,null,"",null,null,null,null,null,"",null,null,null,null,null,"",null,null,null,null,null,""]
[null,null,null,null,null,null,null,"",null,null,null,null,null,"",null,null,null,null,null,"",null,null,null,null,null,""]
[null,null,null,null,null,null,null,"",null,null,null,null,null,"",null,null,null,null,null,"",null,null,null,null,null,""]
[null,null,null,null,null,null,null,"",null,null,null,null,null,"",null,null,null,null,null,"",null,null,null,null,null,""]
[null,null,null,null,null,null,null,"",null,null,null,null,null,"",null,null,null,null,null,"",null,null,null,null,null,""]
[null,null,null,null,null,null,null,"",null,null,null,null,null,"",null,null,null,null,null,"",null,null,null,null,null,""]
[null,null,null,null,null,null,null,{"$f":"IF(OR(F394=\"\",F394=0),\"\",+F394*G394)","v":""},null,null,null,null,null,{"$f":"IF(OR(L394=\"\",L394=0),\"\",+L394*M394)","v":""},null,null,null,null,null,{"$f":"IF(OR(R394=\"\",R394=0),\"\",+R394*S394)","v":""},null,null,null,null,null,{"$f":"IF(OR(X394=\"\",X394=0),\"\",+X394*Y394)","v":""}]
[null,null,null,null,null,null,null,"",null,null,null,null,null,"",null,null,null,null,null,"",null,null,null,null,null,""]
[null,null,null,null,null,null,null,"",null,null,null,null,null,"",null,null,null,null,null,"",null,null,null,null,null,""]
[null,null,null,null,null,null,null,"",null,null,null,null,null,"",null,null,null,null,null,"",null,null,null,null,null,""]
[null,null,null,null,null,null,null,"",null,null,null,null,null,"",null,null,null,null,null,"",null,null,null,null,null,""]
[null,null,null,null,null,null,null,"",null,null,null,null,null,"",null,null,null,null,null,"",null,null,null,null,null,""]
[null,null,null,null,null,null,null,"",null,null,null,null,null,"",null,null,null,null,null,"",null,null,null,null,null,""]
[null,null,null,null,null,null,null,"",null,null,null,null,null,"",null,null,null,null,null,"",null,null,null,null,null,""]
[null,null,null,null,null,null,null,"",null,null,null,null,null,"",null,null,null,null,null,"",null,null,null,null,null,""]
[null,null,null,null,null,null,null,"",null,null,null,null,null,"",null,null,null,null,null,"",null,null,null,null,null,""]
[null,null,null,null,null,null,null,"",null,null,null,null,null,"",null,null,null,null,null,"",null,null,null,null,null,""]
[null,null,null,null,null,null,null,"",null,null,null,null,null,"",null,null,null,null,null,"",null,null,null,null,null,""]
[null,null,null,null,null,null,null,"",null,null,null,null,null,"",null,null,null,null,null,"",null,null,null,null,null,""]
[null,null,null,null,null,null,null,"",null,null,null,null,null,"",null,null,null,null,null,"",null,null,null,null,null,""]
[null,null,null,null,null,null,null,"",null,null,null,null,null,"",null,null,null,null,null,"",null,null,null,null,null,""]
[null,null,null,null,null,null,null,"",null,null,null,null,null,"",null,null,null,null,null,"",null,null,null,null,null,""]
[null,null,null,null,null,null,null,"",null,null,null,null,null,"",null,null,null,null,null,"",null,null,null,null,null,""]
[null,null,null,null,null,null,null,"",null,null,null,null,null,"",null,null,null,null,null,"",null,null,null,null,null,""]
[null,null,null,null,null,null,null,"",null,null,null,null,null,"",null,null,null,null,null,"",null,null,null,null,null,""]
[null,null,null,null,null,null,null,"",null,null,null,null,null,"",null,null,null,null,null,"",null,null,null,null,null,""]
[null,null,null,null,null,null,null,"",null,null,null,null,null,"",null,null,null,null,null,"",null,null,null,null,null,""]
[null,null,null,null,null,null,null,"",null,null,null,null,null,"",null,null,null,null,null,"",null,null,null,null,null,""]
[null,null,null,null,null,null,null,"",null,null,null,null,null,"",null,null,null,null,null,"",null,null,null,null,null,""]
[null,null,null,null,null,null,null,"",null,null,null,null,null,"",null,null,null,null,null,"",null,null,null,null,null,""]
[null,null,null,null,null,null,null,"",null,null,null,null,null,"",null,null,null,null,null,"",null,null,null,null,null,""]
[null,null,null,null,null,null,null,"",null,null,null,null,null,"",null,null,null,null,null,"",null,null,null,null,null,""]
[null,null,null,null,null,null,null,"",null,null,null,null,null,"",null,null,null,null,null,"",null,null,null,null,null,""]
[null,null,null,null,null,null,null,"",null,null,null,null,null,"",null,null,null,null,null,"",null,null,null,null,null,""]
[null,null,null,null,null,null,null,"",null,null,null,null,null,"",null,null,null,null,null,"",null,null,null,null,null,""]
[null,null,null,null,null,null,null,"",null,null,null,null,null,"",null,null,null,null,null,"",null,null,null,null,null,""]
[null,null,null,null,null,null,null,"",null,null,null,null,null,"",null,null,null,null,null,"",null,null,null,null,null,""]
[null,null,null,null,null,null,null,"",null,null,null,null,null,"",null,null,null,null,null,"",null,null,null,null,null,""]
[null,null,null,null,null,null,null,"",null,null,null,null,null,"",null,null,null,null,null,"",null,null,null,null,null,""]
[null,null,null,null,null,null,null,"",null,null,null,null,null,"",null,null,null,null,null,"",null,null,null,null,null,""]
[null,null,null,null,null,null,null,"",null,null,null,null,null,"",null,null,null,null,null,"",null,null,null,null,null,""]
[null,null,null,null,null,null,null,"",null,null,null,null,null,"",null,null,null,null,null,"",null,null,null,null,null,""]
[null,null,null,null,null,null,null,"",null,null,null,null,null,"",null,null,null,null,null,"",null,null,null,null,null,""]
[null,null,null,null,null,null,null,"",null,null,null,null,null,"",null,null,null,null,null,"",null,null,null,null,null,""]
[null,null,null,null,null,null,null,"",null,null,null,null,null,"",null,null,null,null,null,"",null,null,null,null,null,""]
[null,null,null,null,null,null,null,"",null,null,null,null,null,"",null,null,null,null,null,"",null,null,null,null,null,""]
[null,null,null,null,null,null,null,"",null,null,null,null,null,"",null,null,null,null,null,"",null,null,null,null,null,""]
[null,null,null,null,null,null,null,"",null,null,null,null,null,"",null,null,null,null,null,"",null,null,null,null,null,""]
[null,null,null,null,null,null,null,"",null,null,null,null,null,"",null,null,null,null,null,"",null,null,null,null,null,""]
[null,null,null,null,null,null,null,"",null,null,null,null,null,"",null,null,null,null,null,"",null,null,null,null,null,""]
[null,null,null,null,null,null,null,"",null,null,null,null,null,"",null,null,null,null,null,"",null,null,null,null,null,""]
[null,null,null,null,null,null,null,"",null,null,null,null,null,"",null,null,null,null,null,"",null,null,null,null,null,""]
[null,null,null,null,null,null,null,"",null,null,null,null,null,"",null,null,null,null,null,"",null,null,null,null,null,""]
[null,null,null,null,null,null,null,"",null,null,null,null,null,"",null,null,null,null,null,"",null,null,null,null,null,""]
[null,null,null,null,null,null,null,"",null,null,null,null,null,"",null,null,null,null,null,"",null,null,null,null,null,""]
[null,null,null,null,null,null,null,"",null,null,null,null,null,"",null,null,null,null,null,"",null,null,null,null,null,""]
[null,null,null,null,null,null,null,"",null,null,null,null,null,"",null,null,null,null,null,"",null,null,null,null,null,""]
[null,null,null,null,null,null,null,"",null,null,null,null,null,"",null,null,null,null,null,"",null,null,null,null,null,""]
[null,null,null,null,null,null,null,"",null,null,null,null,null,"",null,null,null,null,null,"",null,null,null,null,null,""]
[null,null,null,null,null,null,null,"",null,null,null,null,null,"",null,null,null,null,null,"",null,null,null,null,null,""]
[null,null,null,null,null,null,null,"",null,null,null,null,null,"",null,null,null,null,null,"",null,null,null,null,null,""]
[null,null,null,null,null,null,null,"",null,null,null,null,null,"",null,null,null,null,null,"",null,null,null,null,null,""]
[null,null,null,null,null,null,null,"",null,null,null,null,null,"",null,null,null,null,null,"",null,null,null,null,null,""]
[null,null,null,null,null,null,null,"",null,null,null,null,null,"",null,null,null,null,null,"",null,null,null,null,null,""]
[null,null,null,null,null,null,null,"",null,null,null,null,null,"",null,null,null,null,null,"",null,null,null,null,null,""]
[null,null,null,null,null,null,null,"",null,null,null,null,null,"",null,null,null,null,null,"",null,null,null,null,null,""]
[null,null,null,null,null,null,null,"",null,null,null,null,null,"",null,null,null,null,null,"",null,null,null,null,null,""]
[null,null,null,null,null,null,null,"",null,null,null,null,null,"",null,null,null,null,null,"",null,null,null,null,null,""]
[null,null,null,null,null,null,null,"",null,null,null,null,null,"",null,null,null,null,null,"",null,null,null,null,null,""]
[null,null,null,null,null,null,null,"",null,null,null,null,null,"",null,null,null,null,null,"",null,null,null,null,null,""]
[null,null,null,null,null,null,null,{"$f":"IF(OR(F458=\"\",F458=0),\"\",+F458*G458)","v":""},null,null,null,null,null,{"$f":"IF(OR(L458=\"\",L458=0),\"\",+L458*M458)","v":""},null,null,null,null,null,{"$f":"IF(OR(R458=\"\",R458=0),\"\",+R458*S458)","v":""},null,null,null,null,null,{"$f":"IF(OR(X458=\"\",X458=0),\"\",+X458*Y458)","v":""}]
[null,null,null,null,null,null,null,"",null,null,null,null,null,"",null,null,null,null,null,"",null,null,null,null,null,""]
[null,null,null,null,null,null,null,"",null,null,null,null,null,"",null,null,null,null,null,"",null,null,null,null,null,""]
[null,null,null,null,null,null,null,"",null,null,null,null,null,"",null,null,null,null,null,"",null,null,null,null,null,""]
[null,null,null,null,null,null,null,"",null,null,null,null,null,"",null,null,null,null,null,"",null,null,null,null,null,""]
[null,null,null,null,null,null,null,"",null,null,null,null,null,"",null,null,null,null,null,"",null,null,null,null,null,""]
[null,null,null,null,null,null,null,"",null,null,null,null,null,"",null,null,null,null,null,"",null,null,null,null,null,""]
[null,null,null,null,null,null,null,"",null,null,null,null,null,"",null,null,null,null,null,"",null,null,null,null,null,""]
[null,null,null,null,null,null,null,"",null,null,null,null,null,"",null,null,null,null,null,"",null,null,null,null,null,""]
[null,null,null,null,null,null,null,"",null,null,null,null,null,"",null,null,null,null,null,"",null,null,null,null,null,""]
[null,null,null,null,null,null,null,"",null,null,null,null,null,"",null,null,null,null,null,"",null,null,null,null,null,""]
[null,null,null,null,null,null,null,"",null,null,null,null,null,"",null,null,null,null,null,"",null,null,null,null,null,""]
[null,null,null,null,null,null,null,"",null,null,null,null,null,"",null,null,null,null,null,"",null,null,null,null,null,""]
[null,null,null,null,null,null,null,"",null,null,null,null,null,"",null,null,null,null,null,"",null,null,null,null,null,""]
[null,null,null,null,null,null,null,"",null,null,null,null,null,"",null,null,null,null,null,"",null,null,null,null,null,""]
[null,null,null,null,null,null,null,"",null,null,null,null,null,"",null,null,null,null,null,"",null,null,null,null,null,""]
[null,null,null,null,null,null,null,"",null,null,null,null,null,"",null,null,null,null,null,"",null,null,null,null,null,""]
[null,null,null,null,null,null,null,"",null,null,null,null,null,"",null,null,null,null,null,"",null,null,null,null,null,""]
[null,null,null,null,null,null,null,"",null,null,null,null,null,"",null,null,null,null,null,"",null,null,null,null,null,""]
[null,null,null,null,null,null,null,"",null,null,null,null,null,"",null,null,null,null,null,"",null,null,null,null,null,""]
[null,null,null,null,null,null,null,"",null,null,null,null,null,"",null,null,null,null,null,"",null,null,null,null,null,""]
[null,null,null,null,null,null,null,"",null,null,null,null,null,"",null,null,null,null,null,"",null,null,null,null,null,""]
[null,null,null,null,null,null,null,"",null,null,null,null,null,"",null,null,null,null,null,"",null,null,null,null,null,""]
[null,null,null,null,null,null,null,"",null,null,null,null,null,"",null,null,null,null,null,"",null,null,null,null,null,""]
[null,null,null,null,null,null,null,"",null,null,null,null,null,"",null,null,null,null,null,"",null,null,null,null,null,""]
[null,null,null,null,null,null,null,"",null,null,null,null,null,"",null,null,null,null,null,"",null,null,null,null,null,""]
[null,null,null,null,null,null,null,"",null,null,null,null,null,"",null,null,null,null,null,"",null,null,null,null,null,""]
[null,null,null,null,null,null,null,"",null,null,null,null,null,"",null,null,null,null,null,"",null,null,null,null,null,""]
[null,null,null,null,null,null,null,"",null,null,null,null,null,"",null,null,null,null,null,"",null,null,null,null,null,""]
[null,null,null,null,null,null,null,"",null,null,null,null,null,"",null,null,null,null,null,"",null,null,null,null,null,""]
[null,null,null,null,null,null,null,"",null,null,null,null,null,"",null,null,null,null,null,"",null,null,null,null,null,""]
[null,null,null,null,null,null,null,"",null,null,null,null,null,"",null,null,null,null,null,"",null,null,null,null,null,""]
[null,null,null,null,null,null,null,"",null,null,null,null,null,"",null,null,null,null,null,"",null,null,null,null,null,""]
[null,null,null,null,null,null,null,"",null,null,null,null,null,"",null,null,null,null,null,"",null,null,null,null,null,""]
[null,null,null,null,null,null,null,"",null,null,null,null,null,"",null,null,null,null,null,"",null,null,null,null,null,""]
[null,null,null,null,null,null,null,"",null,null,null,null,null,"",null,null,null,null,null,"",null,null,null,null,null,""]
[null,null,null,null,null,null,null,"",null,null,null,null,null,"",null,null,null,null,null,"",null,null,null,null,null,""]
[null,null,null,null,null,null,null,"",null,null,null,null,null,"",null,null,null,null,null,"",null,null,null,null,null,""]
[null,null,null,null,null,null,null,"",null,null,null,null,null,"",null,null,null,null,null,"",null,null,null,null,null,""]
[null,null,null,null,null,null,null,"",null,null,null,null,null,"",null,null,null,null,null,"",null,null,null,null,null,""]
[null,null,null,null,null,null,null,"",null,null,null,null,null,"",null,null,null,null,null,"",null,null,null,null,null,""]
[null,null,null,null,null,null,null,"",null,null,null,null,null,"",null,null,null,null,null,"",null,null,null,null,null,""]
[null,null,null,null,null,null,null,"",null,null,null,null,null,"",null,null,null,null,null,"",null,null,null,null,null,""]
[null,null,null,null,null,null,null,"",null,null,null,null,null,"",null,null,null,null,null,"",null,null,null,null,null,""]
[null,null,null,null,null,null,null,"",null,null,null,null,null,"",null,null,null,null,null,"",null,null,null,null,null,""]
[null,null,null,null,null,null,null,"",null,null,null,null,null,"",null,null,null,null,null,"",null,null,null,null,null,""]
[null,null,null,null,null,null,null,"",null,null,null,null,null,"",null,null,null,null,null,"",null,null,null,null,null,""]
[null,null,null,null,null,null,null,"",null,null,null,null,null,"",null,null,null,null,null,"",null,null,null,null,null,""]
[null,null,null,null,null,null,null,"",null,null,null,null,null,"",null,null,null,null,null,"",null,null,null,null,null,""]
[null,null,null,null,null,null,null,"",null,null,null,null,null,"",null,null,null,null,null,"",null,null,null,null,null,""]
[null,null,null,null,null,null,null,"",null,null,null,null,null,"",null,null,null,null,null,"",null,null,null,null,null,""]
[null,null,null,null,null,null,null,"",null,null,null,null,null,"",null,null,null,null,null,"",null,null,null,null,null,""]
[null,null,null,null,null,null,null,"",null,null,null,null,null,"",null,null,null,null,null,"",null,null,null,null,null,""]
[null,null,null,null,null,null,null,"",null,null,null,null,null,"",null,null,null,null,null,"",null,null,null,null,null,""]
[null,null,null,null,null,null,null,"",null,null,null,null,null,"",null,null,null,null,null,"",null,null,null,null,null,""]
[null,null,null,null,null,null,null,"",null,null,null,null,null,"",null,null,null,null,null,"",null,null,null,null,null,""]
[null,null,null,null,null,null,null,"",null,null,null,null,null,"",null,null,null,null,null,"",null,null,null,null,null,""]
[null,null,null,null,null,null,null,"",null,null,null,null,null,"",null,null,null,null,null,"",null,null,null,null,null,""]
[null,null,null,null,null,null,null,"",null,null,null,null,null,"",null,null,null,null,null,"",null,null,null,null,null,""]
[null,null,null,null,null,null,null,"",null,null,null,null,null,"",null,null,null,null,null,"",null,null,null,null,null,""]
[null,null,null,null,null,null,null,"",null,null,null,null,null,"",null,null,null,null,null,"",null,null,null,null,null,""]
[null,null,null,null,null,null,null,"",null,null,null,null,null,"",null,null,null,null,null,"",null,null,null,null,null,""]
[null,null,null,null,null,null,null,"",null,null,null,null,null,"",null,null,null,null,null,"",null,null,null,null,null,""]
[null,null,null,null,null,null,null,"",null,null,null,null,null,"",null,null,null,null,null,"",null,null,null,null,null,""]
[null,null,null,null,null,null,null,{"$f":"IF(OR(F522=\"\",F522=0),\"\",+F522*G522)","v":""},null,null,null,null,null,{"$f":"IF(OR(L522=\"\",L522=0),\"\",+L522*M522)","v":""},null,null,null,null,null,{"$f":"IF(OR(R522=\"\",R522=0),\"\",+R522*S522)","v":""},null,null,null,null,null,{"$f":"IF(OR(X522=\"\",X522=0),\"\",+X522*Y522)","v":""}]
[null,null,null,null,null,null,null,"",null,null,null,null,null,"",null,null,null,null,null,"",null,null,null,null,null,""]
[null,null,null,null,null,null,null,"",null,null,null,null,null,"",null,null,null,null,null,"",null,null,null,null,null,""]
[null,null,null,null,null,null,null,"",null,null,null,null,null,"",null,null,null,null,null,"",null,null,null,null,null,""]
[null,null,null,null,null,null,null,"",null,null,null,null,null,"",null,null,null,null,null,"",null,null,null,null,null,""]
[null,null,null,null,null,null,null,"",null,null,null,null,null,"",null,null,null,null,null,"",null,null,null,null,null,""]
[null,null,null,null,null,null,null,"",null,null,null,null,null,"",null,null,null,null,null,"",null,null,null,null,null,""]
[null,null,null,null,null,null,null,"",null,null,null,null,null,"",null,null,null,null,null,"",null,null,null,null,null,""]
[null,null,null,null,null,null,null,"",null,null,null,null,null,"",null,null,null,null,null,"",null,null,null,null,null,""]
[null,null,null,null,null,null,null,"",null,null,null,null,null,"",null,null,null,null,null,"",null,null,null,null,null,""]
[null,null,null,null,null,null,null,"",null,null,null,null,null,"",null,null,null,null,null,"",null,null,null,null,null,""]
[null,null,null,null,null,null,null,"",null,null,null,null,null,"",null,null,null,null,null,"",null,null,null,null,null,""]
[null,null,null,null,null,null,null,"",null,null,null,null,null,"",null,null,null,null,null,"",null,null,null,null,null,""]
[null,null,null,null,null,null,null,"",null,null,null,null,null,"",null,null,null,null,null,"",null,null,null,null,null,""]
[null,null,null,null,null,null,null,"",null,null,null,null,null,"",null,null,null,null,null,"",null,null,null,null,null,""]
[null,null,null,null,null,null,null,"",null,null,null,null,null,"",null,null,null,null,null,"",null,null,null,null,null,""]
[null,null,null,null,null,null,null,"",null,null,null,null,null,"",null,null,null,null,null,"",null,null,null,null,null,""]
[null,null,null,null,null,null,null,"",null,null,null,null,null,"",null,null,null,null,null,"",null,null,null,null,null,""]
[null,null,null,null,null,null,null,"",null,null,null,null,null,"",null,null,null,null,null,"",null,null,null,null,null,""]
[null,null,null,null,null,null,null,"",null,null,null,null,null,"",null,null,null,null,null,"",null,null,null,null,null,""]
[null,null,null,null,null,null,null,"",null,null,null,null,null,"",null,null,null,null,null,"",null,null,null,null,null,""]
[null,null,null,null,null,null,null,"",null,null,null,null,null,"",null,null,null,null,null,"",null,null,null,null,null,""]
[null,null,null,null,null,null,null,"",null,null,null,null,null,"",null,null,null,null,null,"",null,null,null,null,null,""]
[null,null,null,null,null,null,null,"",null,null,null,null,null,"",null,null,null,null,null,"",null,null,null,null,null,""]
[null,null,null,null,null,null,null,"",null,null,null,null,null,"",null,null,null,null,null,"",null,null,null,null,null,""]
[null,null,null,null,null,null,null,"",null,null,null,null,null,"",null,null,null,null,null,"",null,null,null,null,null,""]
[null,null,null,null,null,null,null,"",null,null,null,null,null,"",null,null,null,null,null,"",null,null,null,null,null,""]
[null,null,null,null,null,null,null,"",null,null,null,null,null,"",null,null,null,null,null,"",null,null,null,null,null,""]
[null,null,null,null,null,null,null,"",null,null,null,null,null,"",null,null,null,null,null,"",null,null,null,null,null,""]
[null,null,null,null,null,null,null,"",null,null,null,null,null,"",null,null,null,null,null,"",null,null,null,null,null,""]
[null,null,null,null,null,null,null,"",null,null,null,null,null,"",null,null,null,null,null,"",null,null,null,null,null,""]
[null,null,null,null,null,null,null,"",null,null,null,null,null,"",null,null,null,null,null,"",null,null,null,null,null,""]
[null,null,null,null,null,null,null,"",null,null,null,null,null,"",null,null,null,null,null,"",null,null,null,null,null,""]
[null,null,null,null,null,null,null,"",null,null,null,null,null,"",null,null,null,null,null,"",null,null,null,null,null,""]
[null,null,null,null,null,null,null,"",null,null,null,null,null,"",null,null,null,null,null,"",null,null,null,null,null,""]
[null,null,null,null,null,null,null,"",null,null,null,null,null,"",null,null,null,null,null,"",null,null,null,null,null,""]
[null,null,null,null,null,null,null,"",null,null,null,null,null,"",null,null,null,null,null,"",null,null,null,null,null,""]
[null,null,null,null,null,null,null,"",null,null,null,null,null,"",null,null,null,null,null,"",null,null,null,null,null,""]
[null,null,null,null,null,null,null,"",null,null,null,null,null,"",null,null,null,null,null,"",null,null,null,null,null,""]
[null,null,null,null,null,null,null,"",null,null,null,null,null,"",null,null,null,null,null,"",null,null,null,null,null,""]
[null,null,null,null,null,null,null,"",null,null,null,null,null,"",null,null,null,null,null,"",null,null,null,null,null,""]
[null,null,null,null,null,null,null,"",null,null,null,null,null,"",null,null,null,null,null,"",null,null,null,null,null,""]
[null,null,null,null,null,null,null,"",null,null,null,null,null,"",null,null,null,null,null,"",null,null,null,null,null,""]
[null,null,null,null,null,null,null,"",null,null,null,null,null,"",null,null,null,null,null,"",null,null,null,null,null,""]
[null,null,null,null,null,null,null,"",null,null,null,null,null,"",null,null,null,null,null,"",null,null,null,null,null,""]
[null,null,null,null,null,null,null,"",null,null,null,null,null,"",null,null,null,null,null,"",null,null,null,null,null,""]
[null,null,null,null,null,null,null,"",null,null,null,null,null,"",null,null,null,null,null,"",null,null,null,null,null,""]
[null,null,null,null,null,null,null,"",null,null,null,null,null,"",null,null,null,null,null,"",null,null,null,null,null,""]
[null,null,null,null,null,null,null,"",null,null,null,null,null,"",null,null,null,null,null,"",null,null,null,null,null,""]
[null,null,null,null,null,null,null,"",null,null,null,null,null,"",null,null,null,null,null,"",null,null,null,null,null,""]
[null,null,null,null,null,null,null,"",null,null,null,null,null,"",null,null,null,null,null,"",null,null,null,null,null,""]
[null,null,null,null,null,null,null,"",null,null,null,null,null,"",null,null,null,null,null,"",null,null,null,null,null,""]
[null,null,null,null,null,null,null,"",null,null,null,null,null,"",null,null,null,null,null,"",null,null,null,null,null,""]
[null,null,null,null,null,null,null,"",null,null,null,null,null,"",null,null,null,null,null,"",null,null,null,null,null,""]
[null,null,null,null,null,null,null,"",null,null,null,null,null,"",null,null,null,null,null,"",null,null,null,null,null,""]
[null,null,null,null,null,null,null,"",null,null,null,null,null,"",null,null,null,null,null,"",null,null,null,null,null,""]
[null,null,null,null,null,null,null,"",null,null,null,null,null,"",null,null,null,null,null,"",null,null,null,null,null,""]
[null,null,null,null,null,null,null,"",null,null,null,null,null,"",null,null,null,null,null,"",null,null,null,null,null,""]
[null,null,null,null,null,null,null,"",null,null,null,null,null,"",null,null,null,null,null,"",null,null,null,null,null,""]
[null,null,null,null,null,null,null,"",null,null,null,null,null,"",null,null,null,null,null,"",null,null,null,null,null,""]
[null,null,null,null,null,null,null,"",null,null,null,null,null,"",null,null,null,null,null,"",null,null,null,null,null,""]
[null,null,null,null,null,null,null,"",null,null,null,null,null,"",null,null,null,null,null,"",null,null,null,null,null,""]
[null,null,null,null,null,null,null,"",null,null,null,null,null,"",null,null,null,null,null,"",null,null,null,null,null,""]
[null,null,null,null,null,null,null,"",null,null,null,null,null,"",null,null,null,null,null,"",null,null,null,null,null,""]
[null,null,null,null,null,null,null,{"$f":"IF(OR(F586=\"\",F586=0),\"\",+F586*G586)","v":""},null,null,null,null,null,{"$f":"IF(OR(L586=\"\",L586=0),\"\",+L586*M586)","v":""},null,null,null,null,null,{"$f":"IF(OR(R586=\"\",R586=0),\"\",+R586*S586)","v":""},null,null,null,null,null,{"$f":"IF(OR(X586=\"\",X586=0),\"\",+X586*Y586)","v":""}]
[null,null,null,null,null,null,null,"",null,null,null,null,null,"",null,null,null,null,null,"",null,null,null,null,null,""]
[null,null,null,null,null,null,null,"",null,null,null,null,null,"",null,null,null,null,null,"",null,null,null,null,null,""]
[null,null,null,null,null,null,null,"",null,null,null,null,null,"",null,null,null,null,null,"",null,null,null,null,null,""]
[null,null,null,null,null,null,null,"",null,null,null,null,null,"",null,null,null,null,null,"",null,null,null,null,null,""]
[null,null,null,null,null,null,null,"",null,null,null,null,null,"",null,null,null,null,null,"",null,null,null,null,null,""]
[null,null,null,null,null,null,null,"",null,null,null,null,null,"",null,null,null,null,null,"",null,null,null,null,null,""]
[null,null,null,null,null,null,null,"",null,null,null,null,null,"",null,null,null,null,null,"",null,null,null,null,null,""]
[null,null,null,null,null,null,null,"",null,null,null,null,null,"",null,null,null,null,null,"",null,null,null,null,null,""]
[null,null,null,null,null,null,null,"",null,null,null,null,null,"",null,null,null,null,null,"",null,null,null,null,null,""]
[null,null,null,null,null,null,null,"",null,null,null,null,null,"",null,null,null,null,null,"",null,null,null,null,null,""]
[null,null,null,null,null,null,null,"",null,null,null,null,null,"",null,null,null,null,null,"",null,null,null,null,null,""]
[null,null,null,null,null,null,null,"",null,null,null,null,null,"",null,null,null,null,null,"",null,null,null,null,null,""]
[null,null,null,null,null,null,null,"",null,null,null,null,null,"",null,null,null,null,null,"",null,null,null,null,null,""]
[null,null,null,null,null,null,null,"",null,null,null,null,null,"",null,null,null,null,null,"",null,null,null,null,null,""]
[null,null,null,null,null,null,null,"",null,null,null,null,null,"",null,null,null,null,null,"",null,null,null,null,null,""]
[null,null,null,null,null,null,null,"",null,null,null,null,null,"",null,null,null,null,null,"",null,null,null,null,null,""]
[null,null,null,null,null,null,null,"",null,null,null,null,null,"",null,null,null,null,null,"",null,null,null,null,null,""]
[null,null,null,null,null,null,null,"",null,null,null,null,null,"",null,null,null,null,null,"",null,null,null,null,null,""]
[null,null,null,null,null,null,null,"",null,null,null,null,null,"",null,null,null,null,null,"",null,null,null,null,null,""]
[null,null,null,null,null,null,null,"",null,null,null,null,null,"",null,null,null,null,null,"",null,null,null,null,null,""]
[null,null,null,null,null,null,null,"",null,null,null,null,null,"",null,null,null,null,null,"",null,null,null,null,null,""]
[null,null,null,null,null,null,null,"",null,null,null,null,null,"",null,null,null,null,null,"",null,null,null,null,null,""]
[null,null,null,null,null,null,null,"",null,null,null,null,null,"",null,null,null,null,null,"",null,null,null,null,null,""]
[null,null,null,null,null,null,null,"",null,null,null,null,null,"",null,null,null,null,null,"",null,null,null,null,null,""]
[null,null,null,null,null,null,null,"",null,null,null,null,null,"",null,null,null,null,null,"",null,null,null,null,null,""]
[null,null,null,null,null,null,null,"",null,null,null,null,null,"",null,null,null,null,null,"",null,null,null,null,null,""]
[null,null,null,null,null,null,null,"",null,null,null,null,null,"",null,null,null,null,null,"",null,null,null,null,null,""]
[null,null,null,null,null,null,null,"",null,null,null,null,null,"",null,null,null,null,null,"",null,null,null,null,null,""]
[null,null,null,null,null,null,null,"",null,null,null,null,null,"",null,null,null,null,null,"",null,null,null,null,null,""]
[null,null,null,null,null,null,null,"",null,null,null,null,null,"",null,null,null,null,null,"",null,null,null,null,null,""]
[null,null,null,null,null,null,null,"",null,null,null,null,null,"",null,null,null,null,null,"",null,null,null,null,null,""]
[null,null,null,null,null,null,null,"",null,null,null,null,null,"",null,null,null,null,null,"",null,null,null,null,null,""]
[null,null,null,null,null,null,null,"",null,null,null,null,null,"",null,null,null,null,null,"",null,null,null,null,null,""]
[null,null,null,null,null,null,null,"",null,null,null,null,null,"",null,null,null,null,null,"",null,null,null,null,null,""]
[null,null,null,null,null,null,null,"",null,null,null,null,null,"",null,null,null,null,null,"",null,null,null,null,null,""]
[null,null,null,null,null,null,null,"",null,null,null,null,null,"",null,null,null,null,null,"",null,null,null,null,null,""]
[null,null,null,null,null,null,null,"",null,null,null,null,null,"",null,null,null,null,null,"",null,null,null,null,null,""]
[null,null,null,null,null,null,null,"",null,null,null,null,null,"",null,null,null,null,null,"",null,null,null,null,null,""]
[null,null,null,null,null,null,null,"",null,null,null,null,null,"",null,null,null,null,null,"",null,null,null,null,null,""]
[null,null,null,null,null,null,null,"",null,null,null,null,null,"",null,null,null,null,null,"",null,null,null,null,null,""]
[null,null,null,null,null,null,null,"",null,null,null,null,null,"",null,null,null,null,null,"",null,null,null,null,null,""]
[null,null,null,null,null,null,null,"",null,null,null,null,null,"",null,null,null,null,null,"",null,null,null,null,null,""]
[null,null,null,null,null,null,null,"",null,null,null,null,null,"",null,null,null,null,null,"",null,null,null,null,null,""]
[null,null,null,null,null,null,null,"",null,null,null,null,null,"",null,null,null,null,null,"",null,null,null,null,null,""]
[null,null,null,null,null,null,null,"",null,null,null,null,null,"",null,null,null,null,null,"",null,null,null,null,null,""]
[null,null,null,null,null,null,null,"",null,null,null,null,null,"",null,null,null,null,null,"",null,null,null,null,null,""]
[null,null,null,null,null,null,null,"",null,null,null,null,null,"",null,null,null,null,null,"",null,null,null,null,null,""]
[null,null,null,null,null,null,null,"",null,null,null,null,null,"",null,null,null,null,null,"",null,null,null,null,null,""]
[null,null,null,null,null,null,null,"",null,null,null,null,null,"",null,null,null,null,null,"",null,null,null,null,null,""]
[null,null,null,null,null,null,null,"",null,null,null,null,null,"",null,null,null,null,null,"",null,null,null,null,null,""]
[null,null,null,null,null,null,null,"",null,null,null,null,null,"",null,null,null,null,null,"",null,null,null,null,null,""]
[null,null,null,null,null,null,null,"",null,null,null,null,null,"",null,null,null,null,null,"",null,null,null,null,null,""]
[null,null,null,null,null,null,null,"",null,null,null,null,null,"",null,null,null,null,null,"",null,null,null,null,null,""]
[null,null,null,null,null,null,null,"",null,null,null,null,null,"",null,null,null,null,null,"",null,null,null,null,null,""]
[null,null,null,null,null,null,null,"",null,null,null,null,null,"",null,null,null,null,null,"",null,null,null,null,null,""]
[null,null,null,null,null,null,null,"",null,null,null,null,null,"",null,null,null,null,null,"",null,null,null,null,null,""]
[null,null,null,null,null,null,null,"",null,null,null,null,null,"",null,null,null,null,null,"",null,null,null,null,null,""]
[null,null,null,null,null,null,null,"",null,null,null,null,null,"",null,null,null,null,null,"",null,null,null,null,null,""]
[null,null,null,null,null,null,null,"",null,null,null,null,null,"",null,null,null,null,null,"",null,null,null,null,null,""]
[null,null,null,null,null,null,null,"",null,null,null,null,null,"",null,null,null,null,null,"",null,null,null,null,null,""]
[null,null,null,null,null,null,null,"",null,null,null,null,null,"",null,null,null,null,null,"",null,null,null,null,null,""]
[null,null,null,null,null,null,null,"",null,null,null,null,null,"",null,null,null,null,null,"",null,null,null,null,null,""]
[null,null,null,null,null,null,null,"",null,null,null,null,null,"",null,null,null,null,null,"",null,null,null,null,null,""]
[null,null,null,null,null,null,null,{"$f":"IF(OR(F650=\"\",F650=0),\"\",+F650*G650)","v":""},null,null,null,null,null,{"$f":"IF(OR(L650=\"\",L650=0),\"\",+L650*M650)","v":""},null,null,null,null,null,{"$f":"IF(OR(R650=\"\",R650=0),\"\",+R650*S650)","v":""},null,null,null,null,null,{"$f":"IF(OR(X650=\"\",X650=0),\"\",+X650*Y650)","v":""}]
[null,null,null,null,null,null,null,"",null,null,null,null,null,"",null,null,null,null,null,"",null,null,null,null,null,""]
[null,null,null,null,null,null,null,"",null,null,null,null,null,"",null,null,null,null,null,"",null,null,null,null,null,""]
[null,null,null,null,null,null,null,"",null,null,null,null,null,"",null,null,null,null,null,"",null,null,null,null,null,""]
[null,null,null,null,null,null,null,"",null,null,null,null,null,"",null,null,null,null,null,"",null,null,null,null,null,""]
[null,null,null,null,null,null,null,"",null,null,null,null,null,"",null,null,null,null,null,"",null,null,null,null,null,""]
[null,null,null,null,null,null,null,"",null,null,null,null,null,"",null,null,null,null,null,"",null,null,null,null,null,""]
[null,null,null,null,null,null,null,"",null,null,null,null,null,"",null,null,null,null,null,"",null,null,null,null,null,""]
[null,null,null,null,null,null,null,"",null,null,null,null,null,"",null,null,null,null,null,"",null,null,null,null,null,""]
[null,null,null,null,null,null,null,"",null,null,null,null,null,"",null,null,null,null,null,"",null,null,null,null,null,""]
[null,null,null,null,null,null,null,"",null,null,null,null,null,"",null,null,null,null,null,"",null,null,null,null,null,""]
[null,null,null,null,null,null,null,"",null,null,null,null,null,"",null,null,null,null,null,"",null,null,null,null,null,""]
[null,null,null,null,null,null,null,"",null,null,null,null,null,"",null,null,null,null,null,"",null,null,null,null,null,""]
[null,null,null,null,null,null,null,"",null,null,null,null,null,"",null,null,null,null,null,"",null,null,null,null,null,""]
[null,null,null,null,null,null,null,"",null,null,null,null,null,"",null,null,null,null,null,"",null,null,null,null,null,""]
[null,null,null,null,null,null,null,"",null,null,null,null,null,"",null,null,null,null,null,"",null,null,null,null,null,""]
[null,null,null,null,null,null,null,"",null,null,null,null,null,"",null,null,null,null,null,"",null,null,null,null,null,""]
[null,null,null,null,null,null,null,"",null,null,null,null,null,"",null,null,null,null,null,"",null,null,null,null,null,""]
[null,null,null,null,null,null,null,"",null,null,null,null,null,"",null,null,null,null,null,"",null,null,null,null,null,""]
[null,null,null,null,null,null,null,"",null,null,null,null,null,"",null,null,null,null,null,"",null,null,null,null,null,""]
[null,null,null,null,null,null,null,"",null,null,null,null,null,"",null,null,null,null,null,"",null,null,null,null,null,""]
[null,null,null,null,null,null,null,"",null,null,null,null,null,"",null,null,null,null,null,"",null,null,null,null,null,""]
[null,null,null,null,null,null,null,"",null,null,null,null,null,"",null,null,null,null,null,"",null,null,null,null,null,""]
[null,null,null,null,null,null,null,"",null,null,null,null,null,"",null,null,null,null,null,"",null,null,null,null,null,""]
[null,null,null,null,null,null,null,"",null,null,null,null,null,"",null,null,null,null,null,"",null,null,null,null,null,""]
[null,null,null,null,null,null,null,"",null,null,null,null,null,"",null,null,null,null,null,"",null,null,null,null,null,""]
[null,null,null,null,null,null,null,"",null,null,null,null,null,"",null,null,null,null,null,"",null,null,null,null,null,""]
[null,null,null,null,null,null,null,"",null,null,null,null,null,"",null,null,null,null,null,"",null,null,null,null,null,""]
[null,null,null,null,null,null,null,"",null,null,null,null,null,"",null,null,null,null,null,"",null,null,null,null,null,""]
[null,null,null,null,null,null,null,"",null,null,null,null,null,"",null,null,null,null,null,"",null,null,null,null,null,""]
[null,null,null,null,null,null,null,"",null,null,null,null,null,"",null,null,null,null,null,"",null,null,null,null,null,""]
[null,null,null,null,null,null,null,"",null,null,null,null,null,"",null,null,null,null,null,"",null,null,null,null,null,""]
[null,null,null,null,null,null,null,"",null,null,null,null,null,"",null,null,null,null,null,"",null,null,null,null,null,""]
[null,null,null,null,null,null,null,"",null,null,null,null,null,"",null,null,null,null,null,"",null,null,null,null,null,""]
[null,null,null,null,null,null,null,"",null,null,null,null,null,"",null,null,null,null,null,"",null,null,null,null,null,""]
[null,null,null,null,null,null,null,"",null,null,null,null,null,"",null,null,null,null,null,"",null,null,null,null,null,""]
[null,null,null,null,null,null,null,"",null,null,null,null,null,"",null,null,null,null,null,"",null,null,null,null,null,""]
[null,null,null,null,null,null,null,"",null,null,null,null,null,"",null,null,null,null,null,"",null,null,null,null,null,""]
[null,null,null,null,null,null,null,"",null,null,null,null,null,"",null,null,null,null,null,"",null,null,null,null,null,""]
[null,null,null,null,null,null,null,"",null,null,null,null,null,"",null,null,null,null,null,"",null,null,null,null,null,""]
[null,null,null,null,null,null,null,"",null,null,null,null,null,"",null,null,null,null,null,"",null,null,null,null,null,""]
[null,null,null,null,null,null,null,"",null,null,null,null,null,"",null,null,null,null,null,"",null,null,null,null,null,""]
[null,null,null,null,null,null,null,"",null,null,null,null,null,"",null,null,null,null,null,"",null,null,null,null,null,""]
[null,null,null,null,null,null,null,"",null,null,null,null,null,"",null,null,null,null,null,"",null,null,null,null,null,""]
[null,null,null,null,null,null,null,"",null,null,null,null,null,"",null,null,null,null,null,"",null,null,null,null,null,""]
[null,null,null,null,null,null,null,"",null,null,null,null,null,"",null,null,null,null,null,"",null,null,null,null,null,""]
[null,null,null,null,null,null,null,"",null,null,null,null,null,"",null,null,null,null,null,"",null,null,null,null,null,""]
[null,null,null,null,null,null,null,"",null,null,null,null,null,"",null,null,null,null,null,"",null,null,null,null,null,""]
[null,null,null,null,null,null,null,"",null,null,null,null,null,"",null,null,null,null,null,"",null,null,null,null,null,""]
[null,null,null,null,null,null,null,"",null,null,null,null,null,"",null,null,null,null,null,"",null,null,null,null,null,""]
[null,null,null,null,null,null,null,"",null,null,null,null,null,"",null,null,null,null,null,"",null,null,null,null,null,""]
[null,null,null,null,null,null,null,"",null,null,null,null,null,"",null,null,null,null,null,"",null,null,null,null,null,""]
[null,null,null,null,null,null,null,"",null,null,null,null,null,"",null,null,null,null,null,"",null,null,null,null,null,""]
[null,null,null,null,null,null,null,"",null,null,null,null,null,"",null,null,null,null,null,"",null,null,null,null,null,""]
[null,null,null,null,null,null,null,"",null,null,null,null,null,"",null,null,null,null,null,"",null,null,null,null,null,""]
[null,null,null,null,null,null,null,"",null,null,null,null,null,"",null,null,null,null,null,"",null,null,null,null,null,""]
[null,null,null,null,null,null,null,"",null,null,null,null,null,"",null,null,null,null,null,"",null,null,null,null,null,""]
[null,null,null,null,null,null,null,"",null,null,null,null,null,"",null,null,null,null,null,"",null,null,null,null,null,""]
[null,null,null,null,null,null,null,"",null,null,null,null,null,"",null,null,null,null,null,"",null,null,null,null,null,""]
[null,null,null,null,null,null,null,"",null,null,null,null,null,"",null,null,null,null,null,"",null,null,null,null,null,""]
[null,null,null,null,null,null,null,"",null,null,null,null,null,"",null,null,null,null,null,"",null,null,null,null,null,""]
[null,null,null,null,null,null,null,"",null,null,null,null,null,"",null,null,null,null,null,"",null,null,null,null,null,""]
[null,null,null,null,null,null,null,"",null,null,null,null,null,"",null,null,null,null,null,"",null,null,null,null,null,""]
[null,null,null,null,null,null,null,"",null,null,null,null,null,"",null,null,null,null,null,"",null,null,null,null,null,""]
[null,null,null,null,null,null,null,{"$f":"IF(OR(F714=\"\",F714=0),\"\",+F714*G714)","v":""},null,null,null,null,null,{"$f":"IF(OR(L714=\"\",L714=0),\"\",+L714*M714)","v":""},null,null,null,null,null,{"$f":"IF(OR(R714=\"\",R714=0),\"\",+R714*S714)","v":""},null,null,null,null,null,{"$f":"IF(OR(X714=\"\",X714=0),\"\",+X714*Y714)","v":""}]
[null,null,null,null,null,null,null,"",null,null,null,null,null,"",null,null,null,null,null,"",null,null,null,null,null,""]
[null,null,null,null,null,null,null,"",null,null,null,null,null,"",null,null,null,null,null,"",null,null,null,null,null,""]
[null,null,null,null,null,null,null,"",null,null,null,null,null,"",null,null,null,null,null,"",null,null,null,null,null,""]
[null,null,null,null,null,null,null,"",null,null,null,null,null,"",null,null,null,null,null,"",null,null,null,null,null,""]
[null,null,null,null,null,null,null,"",null,null,null,null,null,"",null,null,null,null,null,"",null,null,null,null,null,""]
[null,null,null,null,null,null,null,"",null,null,null,null,null,"",null,null,null,null,null,"",null,null,null,null,null,""]
[null,null,null,null,null,null,null,"",null,null,null,null,null,"",null,null,null,null,null,"",null,null,null,null,null,""]
[null,null,null,null,null,null,null,"",null,null,null,null,null,"",null,null,null,null,null,"",null,null,null,null,null,""]
[null,null,null,null,null,null,null,"",null,null,null,null,null,"",null,null,null,null,null,"",null,null,null,null,null,""]
[null,null,null,null,null,null,null,"",null,null,null,null,null,"",null,null,null,null,null,"",null,null,null,null,null,""]
[null,null,null,null,null,null,null,"",null,null,null,null,null,"",null,null,null,null,null,"",null,null,null,null,null,""]
[null,null,null,null,null,null,null,"",null,null,null,null,null,"",null,null,null,null,null,"",null,null,null,null,null,""]
[null,null,null,null,null,null,null,"",null,null,null,null,null,"",null,null,null,null,null,"",null,null,null,null,null,""]
[null,null,null,null,null,null,null,"",null,null,null,null,null,"",null,null,null,null,null,"",null,null,null,null,null,""]
[null,null,null,null,null,null,null,"",null,null,null,null,null,"",null,null,null,null,null,"",null,null,null,null,null,""]
[null,null,null,null,null,null,null,"",null,null,null,null,null,"",null,null,null,null,null,"",null,null,null,null,null,""]
[null,null,null,null,null,null,null,"",null,null,null,null,null,"",null,null,null,null,null,"",null,null,null,null,null,""]
[null,null,null,null,null,null,null,"",null,null,null,null,null,"",null,null,null,null,null,"",null,null,null,null,null,""]
[null,null,null,null,null,null,null,"",null,null,null,null,null,"",null,null,null,null,null,"",null,null,null,null,null,""]
[null,null,null,null,null,null,null,"",null,null,null,null,null,"",null,null,null,null,null,"",null,null,null,null,null,""]
[null,null,null,null,null,null,null,"",null,null,null,null,null,"",null,null,null,null,null,"",null,null,null,null,null,""]
[null,null,null,null,null,null,null,"",null,null,null,null,null,"",null,null,null,null,null,"",null,null,null,null,null,""]
[null,null,null,null,null,null,null,"",null,null,null,null,null,"",null,null,null,null,null,"",null,null,null,null,null,""]
[null,null,null,null,null,null,null,"",null,null,null,null,null,"",null,null,null,null,null,"",null,null,null,null,null,""]
[null,null,null,null,null,null,null,"",null,null,null,null,null,"",null,null,null,null,null,"",null,null,null,null,null,""]
[null,null,null,null,null,null,null,"",null,null,null,null,null,"",null,null,null,null,null,"",null,null,null,null,null,""]
[null,null,null,null,null,null,null,"",null,null,null,null,null,"",null,null,null,null,null,"",null,null,null,null,null,""]
[null,null,null,null,null,null,null,"",null,null,null,null,null,"",null,null,null,null,null,"",null,null,null,null,null,""]
[null,null,null,null,null,null,null,"",null,null,null,null,null,"",null,null,null,null,null,"",null,null,null,null,null,""]
[null,null,null,null,null,null,null,"",null,null,null,null,null,"",null,null,null,null,null,"",null,null,null,null,null,""]
[null,null,null,null,null,null,null,"",null,null,null,null,null,"",null,null,null,null,null,"",null,null,null,null,null,""]
[null,null,null,null,null,null,null,"",null,null,null,null,null,"",null,null,null,null,null,"",null,null,null,null,null,""]
[null,null,null,null,null,null,null,"",null,null,null,null,null,"",null,null,null,null,null,"",null,null,null,null,null,""]
[null,null,null,null,null,null,null,"",null,null,null,null,null,"",null,null,null,null,null,"",null,null,null,null,null,""]
[null,null,null,null,null,null,null,"",null,null,null,null,null,"",null,null,null,null,null,"",null,null,null,null,null,""]
[null,null,null,null,null,null,null,"",null,null,null,null,null,"",null,null,null,null,null,"",null,null,null,null,null,""]
[null,null,null,null,null,null,null,"",null,null,null,null,null,"",null,null,null,null,null,"",null,null,null,null,null,""]
[null,null,null,null,null,null,null,"",null,null,null,null,null,"",null,null,null,null,null,"",null,null,null,null,null,""]
[null,null,null,null,null,null,null,"",null,null,null,null,null,"",null,null,null,null,null,"",null,null,null,null,null,""]
[null,null,null,null,null,null,null,"",null,null,null,null,null,"",null,null,null,null,null,"",null,null,null,null,null,""]
[null,null,null,null,null,null,null,"",null,null,null,null,null,"",null,null,null,null,null,"",null,null,null,null,null,""]
[null,null,null,null,null,null,null,"",null,null,null,null,null,"",null,null,null,null,null,"",null,null,null,null,null,""]
[null,null,null,null,null,null,null,"",null,null,null,null,null,"",null,null,null,null,null,"",null,null,null,null,null,""]
[null,null,null,null,null,null,null,"",null,null,null,null,null,"",null,null,null,null,null,"",null,null,null,null,null,""]
[null,null,null,null,null,null,null,"",null,null,null,null,null,"",null,null,null,null,null,"",null,null,null,null,null,""]
[null,null,null,null,null,null,null,"",null,null,null,null,null,"",null,null,null,null,null,"",null,null,null,null,null,""]
[null,null,null,null,null,null,null,"",null,null,null,null,null,"",null,null,null,null,null,"",null,null,null,null,null,""]
[null,null,null,null,null,null,null,"",null,null,null,null,null,"",null,null,null,null,null,"",null,null,null,null,null,""]
[null,null,null,null,null,null,null,"",null,null,null,null,null,"",null,null,null,null,null,"",null,null,null,null,null,""]
[null,null,null,null,null,null,null,"",null,null,null,null,null,"",null,null,null,null,null,"",null,null,null,null,null,""]
[null,null,null,null,null,null,null,"",null,null,null,null,null,"",null,null,null,null,null,"",null,null,null,null,null,""]
[null,null,null,null,null,null,null,"",null,null,null,null,null,"",null,null,null,null,null,"",null,null,null,null,null,""]
[null,null,null,null,null,null,null,"",null,null,null,null,null,"",null,null,null,null,null,"",null,null,null,null,null,""]
[null,null,null,null,null,null,null,"",null,null,null,null,null,"",null,null,null,null,null,"",null,null,null,null,null,""]
[null,null,null,null,null,null,null,"",null,null,null,null,null,"",null,null,null,null,null,"",null,null,null,null,null,""]
[null,null,null,null,null,null,null,"",null,null,null,null,null,"",null,null,null,null,null,"",null,null,null,null,null,""]
[null,null,null,null,null,null,null,"",null,null,null,null,null,"",null,null,null,null,null,"",null,null,null,null,null,""]
[null,null,null,null,null,null,null,"",null,null,null,null,null,"",null,null,null,null,null,"",null,null,null,null,null,""]
[null,null,null,null,null,null,null,"",null,null,null,null,null,"",null,null,null,null,null,"",null,null,null,null,null,""]
[null,null,null,null,null,null,null,"",null,null,null,null,null,"",null,null,null,null,null,"",null,null,null,null,null,""]
[null,null,null,null,null,null,null,"",null,null,null,null,null,"",null,null,null,null,null,"",null,null,null,null,null,""]
[null,null,null,null,null,null,null,"",null,null,null,null,null,"",null,null,null,null,null,"",null,null,null,null,null,""]
[null,null,null,null,null,null,null,"",null,null,null,null,null,"",null,null,null,null,null,"",null,null,null,null,null,""]
[null,null,null,null,null,null,null,{"$f":"IF(OR(F778=\"\",F778=0),\"\",+F778*G778)","v":""},null,null,null,null,null,{"$f":"IF(OR(L778=\"\",L778=0),\"\",+L778*M778)","v":""},null,null,null,null,null,{"$f":"IF(OR(R778=\"\",R778=0),\"\",+R778*S778)","v":""},null,null,null,null,null,{"$f":"IF(OR(X778=\"\",X778=0),\"\",+X778*Y778)","v":""}]
[null,null,null,null,null,null,null,"",null,null,null,null,null,"",null,null,null,null,null,"",null,null,null,null,null,""]
[null,null,null,null,null,null,null,"",null,null,null,null,null,"",null,null,null,null,null,"",null,null,null,null,null,""]
[null,null,null,null,null,null,null,"",null,null,null,null,null,"",null,null,null,null,null,"",null,null,null,null,null,""]
[null,null,null,null,null,null,null,"",null,null,null,null,null,"",null,null,null,null,null,"",null,null,null,null,null,""]
[null,null,null,null,null,null,null,"",null,null,null,null,null,"",null,null,null,null,null,"",null,null,null,null,null,""]
[null,null,null,null,null,null,null,"",null,null,null,null,null,"",null,null,null,null,null,"",null,null,null,null,null,""]
[null,null,null,null,null,null,null,"",null,null,null,null,null,"",null,null,null,null,null,"",null,null,null,null,null,""]
[null,null,null,null,null,null,null,"",null,null,null,null,null,"",null,null,null,null,null,"",null,null,null,null,null,""]
[null,null,null,null,null,null,null,"",null,null,null,null,null,"",null,null,null,null,null,"",null,null,null,null,null,""]
[null,null,null,null,null,null,null,"",null,null,null,null,null,"",null,null,null,null,null,"",null,null,null,null,null,""]
[null,null,null,null,null,null,null,"",null,null,null,null,null,"",null,null,null,null,null,"",null,null,null,null,null,""]
[null,null,null,null,null,null,null,"",null,null,null,null,null,"",null,null,null,null,null,"",null,null,null,null,null,""]
[null,null,null,null,null,null,null,"",null,null,null,null,null,"",null,null,null,null,null,"",null,null,null,null,null,""]
[null,null,null,null,null,null,null,"",null,null,null,null,null,"",null,null,null,null,null,"",null,null,null,null,null,""]
[null,null,null,null,null,null,null,"",null,null,null,null,null,"",null,null,null,null,null,"",null,null,null,null,null,""]
[null,null,null,null,null,null,null,"",null,null,null,null,null,"",null,null,null,null,null,"",null,null,null,null,null,""]
[null,null,null,null,null,null,null,"",null,null,null,null,null,"",null,null,null,null,null,"",null,null,null,null,null,""]
[null,null,null,null,null,null,null,"",null,null,null,null,null,"",null,null,null,null,null,"",null,null,null,null,null,""]
[null,null,null,null,null,null,null,"",null,null,null,null,null,"",null,null,null,null,null,"",null,null,null,null,null,""]
[null,null,null,null,null,null,null,"",null,null,null,null,null,"",null,null,null,null,null,"",null,null,null,null,null,""]
[null,null,null,null,null,null,null,"",null,null,null,null,null,"",null,null,null,null,null,"",null,null,null,null,null,""]
[null,null,null,null,null,null,null,"",null,null,null,null,null,"",null,null,null,null,null,"",null,null,null,null,null,""]
[null,null,null,null,null,null,null,"",null,null,null,null,null,"",null,null,null,null,null,"",null,null,null,null,null,""]
[null,null,null,null,null,null,null,"",null,null,null,null,null,"",null,null,null,null,null,"",null,null,null,null,null,""]
[null,null,null,null,null,null,null,"",null,null,null,null,null,"",null,null,null,null,null,"",null,null,null,null,null,""]
[null,null,null,null,null,null,null,"",null,null,null,null,null,"",null,null,null,null,null,"",null,null,null,null,null,""]
[null,null,null,null,null,null,null,"",null,null,null,null,null,"",null,null,null,null,null,"",null,null,null,null,null,""]
[null,null,null,null,null,null,null,"",null,null,null,null,null,"",null,null,null,null,null,"",null,null,null,null,null,""]
[null,null,null,null,null,null,null,"",null,null,null,null,null,"",null,null,null,null,null,"",null,null,null,null,null,""]
[null,null,null,null,null,null,null,"",null,null,null,null,null,"",null,null,null,null,null,"",null,null,null,null,null,""]
[null,null,null,null,null,null,null,"",null,null,null,null,null,"",null,null,null,null,null,"",null,null,null,null,null,""]
[null,null,null,null,null,null,null,"",null,null,null,null,null,"",null,null,null,null,null,"",null,null,null,null,null,""]
[null,null,null,null,null,null,null,"",null,null,null,null,null,"",null,null,null,null,null,"",null,null,null,null,null,""]
[null,null,null,null,null,null,null,"",null,null,null,null,null,"",null,null,null,null,null,"",null,null,null,null,null,""]
[null,null,null,null,null,null,null,"",null,null,null,null,null,"",null,null,null,null,null,"",null,null,null,null,null,""]
[null,null,null,null,null,null,null,"",null,null,null,null,null,"",null,null,null,null,null,"",null,null,null,null,null,""]
[null,null,null,null,null,null,null,"",null,null,null,null,null,"",null,null,null,null,null,"",null,null,null,null,null,""]
[null,null,null,null,null,null,null,"",null,null,null,null,null,"",null,null,null,null,null,"",null,null,null,null,null,""]
[null,null,null,null,null,null,null,"",null,null,null,null,null,"",null,null,null,null,null,"",null,null,null,null,null,""]
[null,null,null,null,null,null,null,"",null,null,null,null,null,"",null,null,null,null,null,"",null,null,null,null,null,""]
[null,null,null,null,null,null,null,"",null,null,null,null,null,"",null,null,null,null,null,"",null,null,null,null,null,""]
[null,null,null,null,null,null,null,"",null,null,null,null,null,"",null,null,null,null,null,"",null,null,null,null,null,""]
[null,null,null,null,null,null,null,"",null,null,null,null,null,"",null,null,null,null,null,"",null,null,null,null,null,""]
[null,null,null,null,null,null,null,"",null,null,null,null,null,"",null,null,null,null,null,"",null,null,null,null,null,""]
[null,null,null,null,null,null,null,"",null,null,null,null,null,"",null,null,null,null,null,"",null,null,null,null,null,""]
[null,null,null,null,null,null,null,"",null,null,null,null,null,"",null,null,null,null,null,"",null,null,null,null,null,""]
[null,null,null,null,null,null,null,"",null,null,null,null,null,"",null,null,null,null,null,"",null,null,null,null,null,""]
[null,null,null,null,null,null,null,"",null,null,null,null,null,"",null,null,null,null,null,"",null,null,null,null,null,""]
[null,null,null,null,null,null,null,"",null,null,null,null,null,"",null,null,null,null,null,"",null,null,null,null,null,""]
[null,null,null,null,null,null,null,"",null,null,null,null,null,"",null,null,null,null,null,"",null,null,null,null,null,""]
[null,null,null,null,null,null,null,"",null,null,null,null,null,"",null,null,null,null,null,"",null,null,null,null,null,""]
[null,null,null,null,null,null,null,"",null,null,null,null,null,"",null,null,null,null,null,"",null,null,null,null,null,""]
[null,null,null,null,null,null,null,"",null,null,null,null,null,"",null,null,null,null,null,"",null,null,null,null,null,""]
[null,null,null,null,null,null,null,"",null,null,null,null,null,"",null,null,null,null,null,"",null,null,null,null,null,""]
[null,null,null,null,null,null,null,"",null,null,null,null,null,"",null,null,null,null,null,"",null,null,null,null,null,""]
[null,null,null,null,null,null,null,"",null,null,null,null,null,"",null,null,null,null,null,"",null,null,null,null,null,""]
[null,null,null,null,null,null,null,"",null,null,null,null,null,"",null,null,null,null,null,"",null,null,null,null,null,""]
[null,null,null,null,null,null,null,"",null,null,null,null,null,"",null,null,null,null,null,"",null,null,null,null,null,""]
[null,null,null,null,null,null,null,"",null,null,null,null,null,"",null,null,null,null,null,"",null,null,null,null,null,""]
[null,null,null,null,null,null,null,"",null,null,null,null,null,"",null,null,null,null,null,"",null,null,null,null,null,""]
[null,null,null,null,null,null,null,"",null,null,null,null,null,"",null,null,null,null,null,"",null,null,null,null,null,""]
[null,null,null,null,null,null,null,"",null,null,null,null,null,"",null,null,null,null,null,"",null,null,null,null,null,""]
[null,null,null,null,null,null,null,"",null,null,null,null,null,"",null,null,null,null,null,"",null,null,null,null,null,""]
[null,null,null,null,null,null,null,{"$f":"IF(OR(F842=\"\",F842=0),\"\",+F842*G842)","v":""},null,null,null,null,null,{"$f":"IF(OR(L842=\"\",L842=0),\"\",+L842*M842)","v":""},null,null,null,null,null,{"$f":"IF(OR(R842=\"\",R842=0),\"\",+R842*S842)","v":""},null,null,null,null,null,{"$f":"IF(OR(X842=\"\",X842=0),\"\",+X842*Y842)","v":""}]
[null,null,null,null,null,null,null,"",null,null,null,null,null,"",null,null,null,null,null,"",null,null,null,null,null,""]
[null,null,null,null,null,null,null,"",null,null,null,null,null,"",null,null,null,null,null,"",null,null,null,null,null,""]
[null,null,null,null,null,null,null,"",null,null,null,null,null,"",null,null,null,null,null,"",null,null,null,null,null,""]
[null,null,null,null,null,null,null,"",null,null,null,null,null,"",null,null,null,null,null,"",null,null,null,null,null,""]
[null,null,null,null,null,null,null,"",null,null,null,null,null,"",null,null,null,null,null,"",null,null,null,null,null,""]
[null,null,null,null,null,null,null,"",null,null,null,null,null,"",null,null,null,null,null,"",null,null,null,null,null,""]
[null,null,null,null,null,null,null,"",null,null,null,null,null,"",null,null,null,null,null,"",null,null,null,null,null,""]
[null,null,null,null,null,null,null,"",null,null,null,null,null,"",null,null,null,null,null,"",null,null,null,null,null,""]
[null,null,null,null,null,null,null,"",null,null,null,null,null,"",null,null,null,null,null,"",null,null,null,null,null,""]
[null,null,null,null,null,null,null,"",null,null,null,null,null,"",null,null,null,null,null,"",null,null,null,null,null,""]
[null,null,null,null,null,null,null,"",null,null,null,null,null,"",null,null,null,null,null,"",null,null,null,null,null,""]
[null,null,null,null,null,null,null,"",null,null,null,null,null,"",null,null,null,null,null,"",null,null,null,null,null,""]
[null,null,null,null,null,null,null,"",null,null,null,null,null,"",null,null,null,null,null,"",null,null,null,null,null,""]
[null,null,null,null,null,null,null,"",null,null,null,null,null,"",null,null,null,null,null,"",null,null,null,null,null,""]
[null,null,null,null,null,null,null,"",null,null,null,null,null,"",null,null,null,null,null,"",null,null,null,null,null,""]
[null,null,null,null,null,null,null,"",null,null,null,null,null,"",null,null,null,null,null,"",null,null,null,null,null,""]
[null,null,null,null,null,null,null,"",null,null,null,null,null,"",null,null,null,null,null,"",null,null,null,null,null,""]
[null,null,null,null,null,null,null,"",null,null,null,null,null,"",null,null,null,null,null,"",null,null,null,null,null,""]
[null,null,null,null,null,null,null,"",null,null,null,null,null,"",null,null,null,null,null,"",null,null,null,null,null,""]
[null,null,null,null,null,null,null,"",null,null,null,null,null,"",null,null,null,null,null,"",null,null,null,null,null,""]
[null,null,null,null,null,null,null,"",null,null,null,null,null,"",null,null,null,null,null,"",null,null,null,null,null,""]
[null,null,null,null,null,null,null,"",null,null,null,null,null,"",null,null,null,null,null,"",null,null,null,null,null,""]
[null,null,null,null,null,null,null,"",null,null,null,null,null,"",null,null,null,null,null,"",null,null,null,null,null,""]
[null,null,null,null,null,null,null,"",null,null,null,null,null,"",null,null,null,null,null,"",null,null,null,null,null,""]
[null,null,null,null,null,null,null,"",null,null,null,null,null,"",null,null,null,null,null,"",null,null,null,null,null,""]
[null,null,null,null,null,null,null,"",null,null,null,null,null,"",null,null,null,null,null,"",null,null,null,null,null,""]
[null,null,null,null,null,null,null,"",null,null,null,null,null,"",null,null,null,null,null,"",null,null,null,null,null,""]
[null,null,null,null,null,null,null,"",null,null,null,null,null,"",null,null,null,null,null,"",null,null,null,null,null,""]
[null,null,null,null,null,null,null,"",null,null,null,null,null,"",null,null,null,null,null,"",null,null,null,null,null,""]
[null,null,null,null,null,null,null,"",null,null,null,null,null,"",null,null,null,null,null,"",null,null,null,null,null,""]
[null,null,null,null,null,null,null,"",null,null,null,null,null,"",null,null,null,null,null,"",null,null,null,null,null,""]
[null,null,null,null,null,null,null,"",null,null,null,null,null,"",null,null,null,null,null,"",null,null,null,null,null,""]
[null,null,null,null,null,null,null,"",null,null,null,null,null,"",null,null,null,null,null,"",null,null,null,null,null,""]
[null,null,null,null,null,null,null,"",null,null,null,null,null,"",null,null,null,null,null,"",null,null,null,null,null,""]
[null,null,null,null,null,null,null,"",null,null,null,null,null,"",null,null,null,null,null,"",null,null,null,null,null,""]
[null,null,null,null,null,null,null,"",null,null,null,null,null,"",null,null,null,null,null,"",null,null,null,null,null,""]
[null,null,null,null,null,null,null,"",null,null,null,null,null,"",null,null,null,null,null,"",null,null,null,null,null,""]
[null,null,null,null,null,null,null,"",null,null,null,null,null,"",null,null,null,null,null,"",null,null,null,null,null,""]
[null,null,null,null,null,null,null,"",null,null,null,null,null,"",null,null,null,null,null,"",null,null,null,null,null,""]
[null,null,null,null,null,null,null,"",null,null,null,null,null,"",null,null,null,null,null,"",null,null,null,null,null,""]
[null,null,null,null,null,null,null,"",null,null,null,null,null,"",null,null,null,null,null,"",null,null,null,null,null,""]
[null,null,null,null,null,null,null,"",null,null,null,null,null,"",null,null,null,null,null,"",null,null,null,null,null,""]
[null,null,null,null,null,null,null,"",null,null,null,null,null,"",null,null,null,null,null,"",null,null,null,null,null,""]
[null,null,null,null,null,null,null,"",null,null,null,null,null,"",null,null,null,null,null,"",null,null,null,null,null,""]
[null,null,null,null,null,null,null,"",null,null,null,null,null,"",null,null,null,null,null,"",null,null,null,null,null,""]
[null,null,null,null,null,null,null,"",null,null,null,null,null,"",null,null,null,null,null,"",null,null,null,null,null,""]
[null,null,null,null,null,null,null,"",null,null,null,null,null,"",null,null,null,null,null,"",null,null,null,null,null,""]
[null,null,null,null,null,null,null,"",null,null,null,null,null,"",null,null,null,null,null,"",null,null,null,null,null,""]
[null,null,null,null,null,null,null,"",null,null,null,null,null,"",null,null,null,null,null,"",null,null,null,null,null,""]
[null,null,null,null,null,null,null,"",null,null,null,null,null,"",null,null,null,null,null,"",null,null,null,null,null,""]
[null,null,null,null,null,null,null,"",null,null,null,null,null,"",null,null,null,null,null,"",null,null,null,null,null,""]
[null,null,null,null,null,null,null,"",null,null,null,null,null,"",null,null,null,null,null,"",null,null,null,null,null,""]
[null,null,null,null,null,null,null,"",null,null,null,null,null,"",null,null,null,null,null,"",null,null,null,null,null,""]
[null,null,null,null,null,null,null,"",null,null,null,null,null,"",null,null,null,null,null,"",null,null,null,null,null,""]
[null,null,null,null,null,null,null,"",null,null,null,null,null,"",null,null,null,null,null,"",null,null,null,null,null,""]
[null,null,null,null,null,null,null,"",null,null,null,null,null,"",null,null,null,null,null,"",null,null,null,null,null,""]
[null,null,null,null,null,null,null,"",null,null,null,null,null,"",null,null,null,null,null,"",null,null,null,null,null,""]
[null,null,null,null,null,null,null,"",null,null,null,null,null,"",null,null,null,null,null,"",null,null,null,null,null,""]
[null,null,null,null,null,null,null,"",null,null,null,null,null,"",null,null,null,null,null,"",null,null,null,null,null,""]
[null,null,null,null,null,null,null,"",null,null,null,null,null,"",null,null,null,null,null,"",null,null,null,null,null,""]
[null,null,null,null,null,null,null,"",null,null,null,null,null,"",null,null,null,null,null,"",null,null,null,null,null,""]
[null,null,null,null,null,null,null,"",null,null,null,null,null,"",null,null,null,null,null,"",null,null,null,null,null,""]
[null,null,null,null,null,null,null,"",null,null,null,null,null,"",null,null,null,null,null,"",null,null,null,null,null,""]
[null,null,null,null,null,null,null,{"$f":"IF(OR(F906=\"\",F906=0),\"\",+F906*G906)","v":""},null,null,null,null,null,{"$f":"IF(OR(L906=\"\",L906=0),\"\",+L906*M906)","v":""},null,null,null,null,null,{"$f":"IF(OR(R906=\"\",R906=0),\"\",+R906*S906)","v":""},null,null,null,null,null,{"$f":"IF(OR(X906=\"\",X906=0),\"\",+X906*Y906)","v":""}]
[null,null,null,null,null,null,null,"",null,null,null,null,null,"",null,null,null,null,null,"",null,null,null,null,null,""]
[null,null,null,null,null,null,null,"",null,null,null,null,null,"",null,null,null,null,null,"",null,null,null,null,null,""]
[null,null,null,null,null,null,null,"",null,null,null,null,null,"",null,null,null,null,null,"",null,null,null,null,null,""]
[null,null,null,null,null,null,null,"",null,null,null,null,null,"",null,null,null,null,null,"",null,null,null,null,null,""]
[null,null,null,null,null,null,null,"",null,null,null,null,null,"",null,null,null,null,null,"",null,null,null,null,null,""]
[null,null,null,null,null,null,null,"",null,null,null,null,null,"",null,null,null,null,null,"",null,null,null,null,null,""]
[null,null,null,null,null,null,null,"",null,null,null,null,null,"",null,null,null,null,null,"",null,null,null,null,null,""]
[null,null,null,null,null,null,null,"",null,null,null,null,null,"",null,null,null,null,null,"",null,null,null,null,null,""]
[null,null,null,null,null,null,null,"",null,null,null,null,null,"",null,null,null,null,null,"",null,null,null,null,null,""]
[null,null,null,null,null,null,null,"",null,null,null,null,null,"",null,null,null,null,null,"",null,null,null,null,null,""]
[null,null,null,null,null,null,null,"",null,null,null,null,null,"",null,null,null,null,null,"",null,null,null,null,null,""]
[null,null,null,null,null,null,null,"",null,null,null,null,null,"",null,null,null,null,null,"",null,null,null,null,null,""]
[null,null,null,null,null,null,null,"",null,null,null,null,null,"",null,null,null,null,null,"",null,null,null,null,null,""]
[null,null,null,null,null,null,null,"",null,null,null,null,null,"",null,null,null,null,null,"",null,null,null,null,null,""]
[null,null,null,null,null,null,null,"",null,null,null,null,null,"",null,null,null,null,null,"",null,null,null,null,null,""]
[null,null,null,null,null,null,null,"",null,null,null,null,null,"",null,null,null,null,null,"",null,null,null,null,null,""]
[null,null,null,null,null,null,null,"",null,null,null,null,null,"",null,null,null,null,null,"",null,null,null,null,null,""]
[null,null,null,null,null,null,null,"",null,null,null,null,null,"",null,null,null,null,null,"",null,null,null,null,null,""]
[null,null,null,null,null,null,null,"",null,null,null,null,null,"",null,null,null,null,null,"",null,null,null,null,null,""]
[null,null,null,null,null,null,null,"",null,null,null,null,null,"",null,null,null,null,null,"",null,null,null,null,null,""]
[null,null,null,null,null,null,null,"",null,null,null,null,null,"",null,null,null,null,null,"",null,null,null,null,null,""]
[null,null,null,null,null,null,null,"",null,null,null,null,null,"",null,null,null,null,null,"",null,null,null,null,null,""]
[null,null,null,null,null,null,null,"",null,null,null,null,null,"",null,null,null,null,null,"",null,null,null,null,null,""]
[null,null,null,null,null,null,null,"",null,null,null,null,null,"",null,null,null,null,null,"",null,null,null,null,null,""]
[null,null,null,null,null,null,null,"",null,null,null,null,null,"",null,null,null,null,null,"",null,null,null,null,null,""]
[null,null,null,null,null,null,null,"",null,null,null,null,null,"",null,null,null,null,null,"",null,null,null,null,null,""]
[null,null,null,null,null,null,null,"",null,null,null,null,null,"",null,null,null,null,null,"",null,null,null,null,null,""]
[null,null,null,null,null,null,null,"",null,null,null,null,null,"",null,null,null,null,null,"",null,null,null,null,null,""]
[null,null,null,null,null,null,null,"",null,null,null,null,null,"",null,null,null,null,null,"",null,null,null,null,null,""]
[null,null,null,null,null,null,null,"",null,null,null,null,null,"",null,null,null,null,null,"",null,null,null,null,null,""]
[null,null,null,null,null,null,null,"",null,null,null,null,null,"",null,null,null,null,null,"",null,null,null,null,null,""]
[null,null,null,null,null,null,null,"",null,null,null,null,null,"",null,null,null,null,null,"",null,null,null,null,null,""]
[null,null,null,null,null,null,null,"",null,null,null,null,null,"",null,null,null,null,null,"",null,null,null,null,null,""]
[null,null,null,null,null,null,null,"",null,null,null,null,null,"",null,null,null,null,null,"",null,null,null,null,null,""]
[null,null,null,null,null,null,null,"",null,null,null,null,null,"",null,null,null,null,null,"",null,null,null,null,null,""]
[null,null,null,null,null,null,null,"",null,null,null,null,null,"",null,null,null,null,null,"",null,null,null,null,null,""]
[null,null,null,null,null,null,null,"",null,null,null,null,null,"",null,null,null,null,null,"",null,null,null,null,null,""]
[null,null,null,null,null,null,null,"",null,null,null,null,null,"",null,null,null,null,null,"",null,null,null,null,null,""]
[null,null,null,null,null,null,null,"",null,null,null,null,null,"",null,null,null,null,null,"",null,null,null,null,null,""]
[null,null,null,null,null,null,null,"",null,null,null,null,null,"",null,null,null,null,null,"",null,null,null,null,null,""]
[null,null,null,null,null,null,null,"",null,null,null,null,null,"",null,null,null,null,null,"",null,null,null,null,null,""]
[null,null,null,null,null,null,null,"",null,null,null,null,null,"",null,null,null,null,null,"",null,null,null,null,null,""]
[null,null,null,null,null,null,null,"",null,null,null,null,null,"",null,null,null,null,null,"",null,null,null,null,null,""]
[null,null,null,null,null,null,null,"",null,null,null,null,null,"",null,null,null,null,null,"",null,null,null,null,null,""]
[null,null,null,null,null,null,null,"",null,null,null,null,null,"",null,null,null,null,null,"",null,null,null,null,null,""]
[null,null,null,null,null,null,null,"",null,null,null,null,null,"",null,null,null,null,null,"",null,null,null,null,null,""]
[null,null,null,null,null,null,null,"",null,null,null,null,null,"",null,null,null,null,null,"",null,null,null,null,null,""]
[null,null,null,null,null,null,null,"",null,null,null,null,null,"",null,null,null,null,null,"",null,null,null,null,null,""]
[null,null,null,null,null,null,null,"",null,null,null,null,null,"",null,null,null,null,null,"",null,null,null,null,null,""]
[null,null,null,null,null,null,null,"",null,null,null,null,null,"",null,null,null,null,null,"",null,null,null,null,null,""]
[null,null,null,null,null,null,null,"",null,null,null,null,null,"",null,null,null,null,null,"",null,null,null,null,null,""]
[null,null,null,null,null,null,null,"",null,null,null,null,null,"",null,null,null,null,null,"",null,null,null,null,null,""]
[null,null,null,null,null,null,null,"",null,null,null,null,null,"",null,null,null,null,null,"",null,null,null,null,null,""]
[null,null,null,null,null,null,null,"",null,null,null,null,null,"",null,null,null,null,null,"",null,null,null,null,null,""]
[null,null,null,null,null,null,null,"",null,null,null,null,null,"",null,null,null,null,null,"",null,null,null,null,null,""]
[null,null,null,null,null,null,null,"",null,null,null,null,null,"",null,null,null,null,null,"",null,null,null,null,null,""]
[null,null,null,null,null,null,null,"",null,null,null,null,null,"",null,null,null,null,null,"",null,null,null,null,null,""]
[null,null,null,null,null,null,null,"",null,null,null,null,null,"",null,null,null,null,null,"",null,null,null,null,null,""]
[null,null,null,null,null,null,null,"",null,null,null,null,null,"",null,null,null,null,null,"",null,null,null,null,null,""]
[null,null,null,null,null,null,null,"",null,null,null,null,null,"",null,null,null,null,null,"",null,null,null,null,null,""]
[null,null,null,null,null,null,null,"",null,null,null,null,null,"",null,null,null,null,null,"",null,null,null,null,null,""]
[null,null,null,null,null,null,null,"",null,null,null,null,null,"",null,null,null,null,null,"",null,null,null,null,null,""]
[null,null,null,null,null,null,null,"",null,null,null,null,null,"",null,null,null,null,null,"",null,null,null,null,null,""]
[null,null,null,null,null,null,null,{"$f":"IF(OR(F970=\"\",F970=0),\"\",+F970*G970)","v":""},null,null,null,null,null,{"$f":"IF(OR(L970=\"\",L970=0),\"\",+L970*M970)","v":""},null,null,null,null,null,{"$f":"IF(OR(R970=\"\",R970=0),\"\",+R970*S970)","v":""},null,null,null,null,null,{"$f":"IF(OR(X970=\"\",X970=0),\"\",+X970*Y970)","v":""}]
[null,null,null,null,null,null,null,"",null,null,null,null,null,"",null,null,null,null,null,"",null,null,null,null,null,""]
[null,null,null,null,null,null,null,"",null,null,null,null,null,"",null,null,null,null,null,"",null,null,null,null,null,""]
[null,null,null,null,null,null,null,"",null,null,null,null,null,"",null,null,null,null,null,"",null,null,null,null,null,""]
[null,null,null,null,null,null,null,"",null,null,null,null,null,"",null,null,null,null,null,"",null,null,null,null,null,""]
[null,null,null,null,null,null,null,"",null,null,null,null,null,"",null,null,null,null,null,"",null,null,null,null,null,""]
[null,null,null,null,null,null,null,"",null,null,null,null,null,"",null,null,null,null,null,"",null,null,null,null,null,""]
[null,null,null,null,null,null,null,"",null,null,null,null,null,"",null,null,null,null,null,"",null,null,null,null,null,""]
[null,null,null,null,null,null,null,"",null,null,null,null,null,"",null,null,null,null,null,"",null,null,null,null,null,""]
[null,null,null,null,null,null,null,"",null,null,null,null,null,"",null,null,null,null,null,"",null,null,null,null,null,""]
[null,null,null,null,null,null,null,"",null,null,null,null,null,"",null,null,null,null,null,"",null,null,null,null,null,""]
[null,null,null,null,null,null,null,"",null,null,null,null,null,"",null,null,null,null,null,"",null,null,null,null,null,""]
[null,null,null,null,null,null,null,"",null,null,null,null,null,"",null,null,null,null,null,"",null,null,null,null,null,""]
[null,null,null,null,null,null,null,"",null,null,null,null,null,"",null,null,null,null,null,"",null,null,null,null,null,""]
[null,null,null,null,null,null,null,"",null,null,null,null,null,"",null,null,null,null,null,"",null,null,null,null,null,""]
[null,null,null,null,null,null,null,"",null,null,null,null,null,"",null,null,null,null,null,"",null,null,null,null,null,""]
[null,null,null,null,null,null,null,"",null,null,null,null,null,"",null,null,null,null,null,"",null,null,null,null,null,""]
[null,null,null,null,null,null,null,"",null,null,null,null,null,"",null,null,null,null,null,"",null,null,null,null,null,""]
[null,null,null,null,null,null,null,"",null,null,null,null,null,"",null,null,null,null,null,"",null,null,null,null,null,""]
[null,null,null,null,null,null,null,"",null,null,null,null,null,"",null,null,null,null,null,"",null,null,null,null,null,""]
[null,null,null,null,null,null,null,"",null,null,null,null,null,"",null,null,null,null,null,"",null,null,null,null,null,""]
[null,null,null,null,null,null,null,"",null,null,null,null,null,"",null,null,null,null,null,"",null,null,null,null,null,""]
[null,null,null,null,null,null,null,"",null,null,null,null,null,"",null,null,null,null,null,"",null,null,null,null,null,""]
[null,null,null,null,null,null,null,"",null,null,null,null,null,"",null,null,null,null,null,"",null,null,null,null,null,""]
[null,null,null,null,null,null,null,"",null,null,null,null,null,"",null,null,null,null,null,"",null,null,null,null,null,""]
[null,null,null,null,null,null,null,"",null,null,null,null,null,"",null,null,null,null,null,"",null,null,null,null,null,""]
[null,null,null,null,null,null,null,"",null,null,null,null,null,"",null,null,null,null,null,"",null,null,null,null,null,""]
[null,null,null,null,null,null,null,"",null,null,null,null,null,"",null,null,null,null,null,"",null,null,null,null,null,""]
[null,null,null,null,null,null,null,"",null,null,null,null,null,"",null,null,null,null,null,"",null,null,null,null,null,""]
[null,null,null,null,null,null,null,"",null,null,null,null,null,"",null,null,null,null,null,"",null,null,null,null,null,""]
[null,null,null,null,null,null,null,"",null,null,null,null,null,"",null,null,null,null,null,"",null,null,null,null,null,""]

{"sheet":"TEX.EK8ESH","index":2,"n_rows":123,"n_cols":31,"rows_kept":123,"cut":false,"hidden":true,"merged":[[15,25,15,26],[15,27,15,29],[15,4,15,6],[15,7,15,24],[22,8,22,11],[20,21,20,28],[26,23,26,25],[26,17,26,18],[26,20,26,21],[26,11,26,12],[17,8,17,14],[17,15,17,16],[17,17,17,21],[17,22,17,24],[22,4,22,7],[19,4,20,7],[20,8,20,14],[19,16,20,20],[22,13,23,26],[22,27,22,28],[87,29,87,30],[50,4,50,30],[56,4,56,5],[58,28,58,29],[58,16,58,17],[54,7,54,15],[53,7,53,15],[52,7,52,15],[53,24,53,27],[54,24,54,27],[52,16,52,19],[53,16,53,19],[54,16,54,19],[52,20,52,23],[53,20,53,23],[54,20,54,23],[52,24,52,27],[56,19,56,30],[56,6,56,18],[57,18,59,27],[101,29,101,30],[100,4,100,5],[105,4,105,30],[106,4,106,5],[106,20,106,26],[106,27,106,28],[102,27,102,28],[102,29,102,30],[103,27,103,28],[103,4,104,5],[103,14,103,26],[103,6,104,13],[103,29,104,30],[104,14,104,26],[100,29,100,30],[113,4,114,9],[113,11,113,19],[113,21,113,29],[114,11,114,19],[114,21,114,29],[107,6,107,19],[102,4,102,5],[102,6,102,20],[102,21,102,26],[107,4,107,5],[108,27,108,28],[107,20,107,26],[107,27,107,28],[107,29,107,30],[106,6,106,19],[106,29,106,30],[108,6,108,19],[108,20,108,26],[108,29,108,30],[109,6,109,19],[109,20,109,26],[109,27,109,28],[109,29,109,30],[108,4,108,5],[115,26,115,27],[115,28,115,30],[115,21,115,25],[82,4,82,30],[82,33,82,35],[83,4,84,5],[83,6,84,26],[83,27,84,28],[83,29,84,30],[88,4,88,5],[88,6,88,19],[88,20,88,26],[88,27,88,28],[88,29,88,30],[89,4,89,5],[89,6,89,19],[89,20,89,26],[89,27,89,28],[89,29,89,30],[90,4,90,5],[91,4,91,5],[91,6,91,19],[91,20,91,26],[91,27,91,28],[30,15,30,16],[44,4,44,29],[46,4,46,29],[30,28,30,29],[45,4,45,29],[48,4,48,30],[26,27,26,29],[25,4,26,9],[38,11,38,30],[39,11,39,30],[40,11,40,30],[41,5,41,7],[41,8,41,10],[41,11,41,30],[29,4,30,14],[29,18,30,27],[34,4,34,30],[35,5,35,7],[35,8,35,10],[35,11,35,30],[36,5,36,7],[36,8,36,10],[36,11,36,30],[37,5,37,7],[3,4,4,15],[10,4,11,6],[10,15,11,17],[10,21,11,22],[10,28,10,29],[11,7,11,14],[11,18,11,20],[11,23,11,24],[11,28,11,29],[9,4,9,30],[3,19,4,25],[3,28,4,30],[5,4,7,30],[94,29,94,30],[95,6,95,19],[96,29,96,30],[98,4,99,5],[95,4,95,5],[94,4,94,5],[92,27,92,28],[92,29,92,30],[97,6,97,19],[97,20,97,26],[97,27,97,28],[97,29,97,30],[93,4,93,5],[93,6,93,19],[93,20,93,26],[93,27,93,28],[93,29,93,30],[99,27,99,28],[98,27,98,28],[98,29,99,30],[95,20,95,26],[95,27,95,28],[110,27,110,28],[12,4,13,6],[26,14,26,15],[60,5,62,15],[67,4,67,5],[68,17,70,27],[68,5,70,14],[65,16,65,17],[85,4,86,5],[85,27,85,28],[17,25,17,29],[12,23,12,29],[13,7,13,29],[17,4,17,7],[57,5,59,15],[57,16,57,17],[59,28,59,29],[57,28,57,29],[60,16,60,17],[59,16,59,17],[64,16,64,17],[91,29,91,30],[92,6,92,19],[92,4,92,5],[109,4,109,5],[85,6,86,14],[86,15,86,26],[67,20,67,30],[67,6,67,19],[75,15,75,16],[75,28,75,29],[71,5,73,14],[74,5,76,14],[71,17,73,27],[74,17,76,27],[69,28,69,29],[69,15,69,16],[72,15,72,16],[72,28,72,29],[90,29,90,30],[95,29,95,30],[78,4,78,30],[79,5,79,30],[94,27,94,28],[104,27,104,28],[97,4,97,5],[100,6,100,19],[100,20,100,26],[90,20,90,26],[90,27,90,28],[96,20,96,26],[96,27,96,28],[101,20,101,26],[101,27,101,28],[98,14,98,26],[99,23,99,26],[61,16,61,17],[63,5,65,15],[63,16,63,17],[62,16,62,17],[100,27,100,28],[94,6,94,19],[94,20,94,26],[99,21,99,22],[98,6,99,12],[99,13,99,20],[87,4,87,5],[87,6,87,19],[87,20,87,26],[87,27,87,28],[92,20,92,26],[37,8,37,10],[37,11,37,30],[25,10,25,12],[25,13,25,15],[25,16,25,18],[25,19,25,21],[25,22,25,25],[25,26,25,29],[110,4,111,5],[110,29,111,30],[110,22,110,26],[111,22,111,26],[111,13,111,20],[110,13,110,20],[110,6,111,12],[85,29,86,30],[86,27,86,28],[85,15,85,26],[90,6,90,19],[96,4,96,5],[96,6,96,19],[101,4,101,5],[101,6,101,19],[111,27,111,28]]}
[null,null,"L"]
[null,null,null,null,{"$f":"+C1","v":"L"}]
[]
[null,null,null,null,"ΚΥΠΡΙΑΚΗ ΔΗΜΟΚΡΑΤΙΑ",null,null,null,null,null,null,null,null,null,null,null,null,null,null,"ΥΦΥΠΟΥΡΓΕΙΟ ΤΟΥΡΙΣΜΟΥ",null,null,null,null,null,null,null,null,{"$f":"+EISAGOGH!AJ3","v":"V_23.02"}]
[null,"1 η Σελίδα"]
[null,"2 η Σελίδα",null,null,"Έκθεση Τεχνικής Υπηρεσίας για Κατάταξη Τουριστικού\nΣυγκροτήματος Οργανωμένων Διαμερισμάτων / Τουριστικού Χωριού\nΒάσει των περί της Ρύθμισης της Ίδρυσης και Λειτουργίας Ξενοδοχείων και Τουριστικών Καταλυμάτων Νόμων 34(Ι)2019, 9(I)2020  και Κ.Δ.Π. 90/2019"]
[null,"3 η Σελίδα"]
[]
[]
[null,"1η Σελίδα",null,null,"Στοιχεία Τουριστικού Καταλύματος"]
[null,null,null,null,"Αρ. Ηλεκτρ.\nΦακέλου:",null,null,null,null,null,null,null,null,null,null,"Αριθμός\nΦακέλου:",null,null,null,null,null,"Ημερο-\nμηνία:"]
[null,null,null,null,null,null,null,null,null,null,null,null,null,null,null,null,null,null,null,null,null,null,null,null,null,"/",null,"/"]
[null,null,null,null,"Όνομα\nΜονάδας:",null,null,null,null,null,null,null,null,null,null,null,null,null,null,null,null,null,null,"( Ημέρα    /   Μήνας     /     Έτος )"]
[]
[]
[null,null,null,null,"Διεύθυνση:",null,null,null,null,null,null,null,null,null,null,null,null,null,null,null,null,null,null,null,null,"Τ.Τ.:"]
[]
[null,null,null,null,"Επι Τεμαχίου(ων).:",null,null,null,null,null,null,null,null,null,null,"Φ/Σχ.:",null,null,null,null,null,null,"Επαρχία:"]
[]
[null,null,null,null,"Τύπος \n  Καταλύματος:",null,null,null,null,null,null,null,null,null,null,null,"13. Τοποθεσία    .\nΕπιχείρησης:"]
[null,null,null,null,null,null,null,null,{"$f":"+EISAGOGH!K27","v":0},null,null,null,null,null,null,{"$f":"+EISAGOGH!V27","v":"ER"},null,null,null,null,null,{"$f":"+EISAGOGH!AC27","v":0},null,null,null,null,null,null,null,{"$f":"+EISAGOGH!AN27","v":"ER"}]
[]
[null,null,null,null,"Αιτούμενη Τάξη:",null,null,null,{"$f":"+EISAGOGH!L29","v":0},null,null,null,{"$f":"+EISAGOGH!R29","v":"ER"},"15.  Μονάδα σε λειτουργία πριν την 15.03.2019 * (ΝΑΙ  /  ΌΧΙ ):\n* Ημερομηνία έναρξης ισχύος του παρόντος Νόμου",null,null,null,null,null,null,null,null,null,null,null,null,null,{"$f":"+EISAGOGH!AL29","v":0}]
[]
[]
[null,null,null,null,"Αριθμός  \n   Διαμερισμάτων & Κλινών:",null,null,null,null,null,"Στούντιο",null,null,"1ος Υπνοδ.",null,null,"2  Υπνοδ.",null,null,"3  Υπνοδ.",null,null," Συνολ. Διαμερ.",null,null,null,"Αριθμός Κλινών"]
[null,null,null,null,null,null,null,null,null,null,null,{"$f":"+EISAGOGH!P33","v":0},null,null,{"$f":"+EISAGOGH!T33","v":0},null,null,{"$f":"+EISAGOGH!X33","v":0},null,null,{"$f":"+EISAGOGH!AB33","v":0},null,null,{"$f":"+EISAGOGH!AF33","v":""},null,null,null,{"$f":"+EISAGOGH!AK33","v":""}]
[]
[]
[null,null,null,null,"Εξασφάλιση Άδειας Οικοδομής ΠΡΙΝ \nτην έναρξη ισχύος του παρόντος Νόμου:",null,null,null,null,null,null,null,null,null,null,null,null,null,"Εξασφάλιση Άδειας Οικοδομής ΜΕΤΑ \nτην έναρξη ισχύος του παρόντος Νόμου:"]
[null,null,null,null,null,null,null,null,null,null,null,null,null,null,null,{"$f":"+EISAGOGH!S37","v":0},null,null,null,null,null,null,null,null,null,null,null,null,{"$f":"+EISAGOGH!AK37","v":0}]
[]
[]
[]
[null,null,null,null,"Εξασφαλισθείσες Άδειες Οικοδομής"]
[null,null,null,null,null,"Αρ. Άδειας",null,null,"Ημερ. έκδοσης",null,null,"Περιγραφή"]
[null,null,null,null,"α.]"]
[null,null,null,null,"β.]"]
[null,null,null,null,"γ.]"]
[null,null,null,null,"δ.]"]
[null,null,null,null,"ε.]"]
[null,null,null,null,"στ.]"]
[]
[]
[null,null,null,null,"Σύμφωνα με τον σχετικό έλεγχο που πραγματοποιήθηκε από την Τεχνική Υπηρεσία των αρχιτεκτονικών σχεδίων της υποβληθείσας άδειας οικοδομής του κτιρίου/ των κτιρίων εντός των οποίων λειτουργεί η πιο πάνω ξενοδοχειακή επιχείρηση, διαπιστώθηκε ότι: ",null,null,null,null,null,null,null,null,null,null,null,null,null,null,null,null,null,null,null,null,null,null,null,null,null,{"$f":"IF(M23=\"ER\",\"\",IF(AND(M23>0,AE46<1),1,IF(AND(M23>0,AE46>0),2,\"\")))","v":""}]
[null,null,null,null,{"$f":"IF(AE45=\"\",E123,IF(AE45=1,E122,IF(AE45=2,E121,\"\")))","v":"…........................ …........................ …........................ …........................ …........................ …........................ …................ "},null,null,null,null,null,null,null,null,null,null,null,null,null,null,null,null,null,null,null,null,null,null,null,null,null,{"$f":"COUNTIF(AD86:AE111,\"ΟΧΙ\")","v":0}]
[null,null,null,null,"Λεπτομέρειες των ευρημάτων επί των αρχιτεκτονικών σχεδίων της άδειας οικοδομής, τόσο σε ότι αφορά τα υποχρεωτικά κτιριακά κριτήρια αλλά και όσο αφορά τις προαιρετικές κτιριακές εγκαταστάσεις, παρουσιάζονται στους πίνακες που ακολουθούν."]
[null,"1η Σελίδα"]
[null,"2η Σελίδα",null,null,"Καταμέτρηση Διαμερισμάτων (Βάσει Αρχιτεκτονικών Σχεδίων)"]
[]
[null,null,null,null,"Ελάχιστα απαιτούμενα εμβαδά (ανά τύπο διαμερίσματος και τάξη)"]
[]
[null,null,null,null,null,null,null,null,null,null,null,null,null,null,null,null,"Πολυτελείας",null,null,null,"Α' Τάξης",null,null,null,"Β' Τάξης"]
[null,null,null,null,null,null,null,"Διαμερίσματα τύπου Στούντιο (τ.μ.):",null,null,null,null,null,null,null,null,29,null,null,null,26,null,null,null,24]
[null,null,null,null,null,null,null,"Υπνοδωμάτια Διαμερισμάτων . \n1ος, 2 & 3ών υπνοδωματίων (τ.μ.):",null,null,null,null,null,null,null,null,14,null,null,null,13,null,null,null,12]
[]
[null,null,null,null,"01.",null,"Διαμερίσματα Στούντιο (Studios)",null,null,null,null,null,null,null,null,null,null,null,null,{"$f":"IF(AC59<>L$27,\"Ο αριθμός των καταμετρηθέντων Στούντιο διαφέρει αυτου που έχει καταχωρηθεί στην <<Εισαγωγή>>\",\"\")","v":""}]
[null,null,null,null,null,"01.]  Ελάχιστο απαιτούμενο εμβαδό\nΣτούντιο για αιτούμενη τάξη: ",null,null,null,null,null,null,null,null,null,null,null,null,"04.]  Συνολικός Αριθμός\nκαταμετρηθέντων Στούντιο:"]
[null,null,null,null,null,null,null,null,null,null,null,null,null,null,null,null,{"$f":"IF($M$23=1,$Q$54,IF($M$23=2,$U$54,IF($M$23=3,$Y$54,0)))","v":0},null,null,null,null,null,null,null,null,null,null,null,{"$f":"+DIAMERISMATA!G3","v":0}]
[]
[null,null,null,null,null,"02.]   Καταμετρηθέν Εμβαδό\nμικρότερου Στούντιο (τ.μ.):"]
[null,null,null,null,null,null,null,null,null,null,null,null,null,null,null,null,{"$f":"DIAMERISMATA!G5","v":"Δ/Ε"}]
[]
[null,null,null,null,null,"03.]   Σταθμ. Μέσος Όρος εμβαδών\nσυνολ. αριθμού Στούντιο (τ.μ.):"]
[null,null,null,null,null,null,null,null,null,null,null,null,null,null,null,null,{"$f":"+DIAMERISMATA!G6","v":0}]
[]
[]
[null,null,null,null,"02.",null,"Υπνοδωμάτια Διαμερισμάτων (1ος, 2 & 3ων υπν.) ",null,null,null,null,null,null,null,null,null,null,null,null,null,{"$f":"IF(OR(AE70=\"ER.\",AE73=\"ER.\",AE76=\"ER.\"),\"ER. = Ο αριθμός των καταμετρηθέντων διαμερισμάτων διαφέρει αυτου που έχει καταχωρηθεί στην <<Εισαγωγή>>\",\"\")","v":""}]
[null,null,null,null,null,"01.)   Ελάχιστο απαιτούμενο εμβαδό Υπνοδωματίων για αιτούμενη τάξη:",null,null,null,null,null,null,null,null,null,null,null,"04.)  Συνολ. Αριθμός καταμετρηθέντων\n διαμερισμάτων 1ος Υπνοδωματίου:"]
[null,null,null,null,null,null,null,null,null,null,null,null,null,null,null,{"$f":"IF($M$23=1,$Q$55,IF($M$23=2,$U$55,IF($M$23=3,$Y$55,0)))","v":0},null,null,null,null,null,null,null,null,null,null,null,null,{"$f":"+DIAMERISMATA!M3","v":0},null,{"$f":"IF(AC70<>O$27,\"ER.\",\"\")","v":""}]
[]
[null,null,null,null,null,"02.)   Καταμετρηθέν Εμβαδό\nμικρότερου Υπνοδωματίου (τ.μ.):",null,null,null,null,null,null,null,null,null,null,null,"05.)  Συνολ. Αριθμός καταμετρηθέντων\n διαμερισμάτων 2 Υπνοδωματίων:"]
[null,null,null,null,null,null,null,null,null,null,null,null,null,null,null,{"$f":"+DIAMERISMATA!AA5","v":"Δ/Ε"},null,null,null,null,null,null,null,null,null,null,null,null,{"$f":"+DIAMERISMATA!S3","v":0},null,{"$f":"IF(AC73<>R$27,\"ER.\",\"\")","v":""}]
[]
[null,null,null,null,null,"03.)   Σταθμ. Μέσος Όρος εμβαδών \nσυνόλ. αριθμού Υπνοδωματίων (τ.μ.):",null,null,null,null,null,null,null,null,null,null,null,"06.)  Συνολ. Αριθμός καταμετρηθέντων\n διαμερισμάτων 3ων Υπνοδωματίων:"]
[null,null,null,null,null,null,null,null,null,null,null,null,null,null,null,{"$f":"+DIAMERISMATA!AA9","v":0},null,null,null,null,null,null,null,null,null,null,null,null,{"$f":"+DIAMERISMATA!Y3","v":0},null,{"$f":"IF(AC76<>U$27,\"ER.\",\"\")","v":""}]
[]
[]
[null,null,null,null,"Γενικά Σχόλια / Παρατηρήσεις"]
[]
[null,"2 η Σελίδα"]
[]
[null,"3 η Σελίδα",null,null,"Πίνακας Τεχνικών Κριτηρίων (Μετρήσεις Βάσει Αρχιτεκτονικών Σχεδίων)"]
[null,null,null,null,"Αριθμός\nΚριτη-\nρίου",null,"Τεχνικά Κριτήρια",null,null,null,null,null,null,null,null,null,null,null,null,null,null,null,null,null,null,null,null,"Μέτ -\nρηση",null,"Ικανοπ.\nΥποχρ.\nΚριτηρ."]
[]
[null,null,null,null,1.1000000000000001,null,"Ανελκυστήρας πελατών.",null,null,null,null,null,null,null,null,"Αριθμός ορόφων μονάδας, εκτός ισογείου =",null,null,null,null,null,null,null,null,null,null,null,{"$f":"+KPITHPIA!L15","v":0},null,{"$f":"+KPITHPIA!X13","v":"___"}]
[null,null,null,null,null,null,null,null,null,null,null,null,null,null,null,"Αριθμός διαθέσιμων ανελκυστήρων πελατών =",null,null,null,null,null,null,null,null,null,null,null,{"$f":"+KPITHPIA!U15","v":0}]
[null,null,null,null,2.1,null,"Τουλάχ. ένας κλειστός ή υπαίθριος αθλητικός χώρος",null,null,null,null,null,null,null,null,null,null,null,null,null,"Διατίθεται? (ΝΑΙ / ΌΧΙ):",null,null,null,null,null,null,{"$f":"IF(KPITHPIA!M24=\"\",\"-\",IF(KPITHPIA!M24=1,\"ΝΑΙ\",IF(KPITHPIA!M24=0,\"ΌΧΙ\",\"\")))","v":"-"},null,{"$f":"+KPITHPIA!X22","v":"___"}]
[null,null,null,null,2.2000000000000002,null,"Επιπλέον άλλοι αθλητικοί χώροι (μόνο για Οργαν. Διαμερίσματα).",null,null,null,null,null,null,null,null,null,null,null,null,null,"Εάν υπάρχουν, αριθμός =",null,null,null,null,null,null,{"$f":"+KPITHPIA!N36","v":0},null,{"$f":"+KPITHPIA!X33","v":"___"}]
[null,null,null,null,2.2999999999999998,null,"Υπαίθρια κολυμβητική δεξαμενή",null,null,null,null,null,null,null,null,null,null,null,null,null,"Διατίθεται? (ΝΑΙ / ΌΧΙ):",null,null,null,null,null,null,{"$f":"IF(KPITHPIA!Q45=\"\",\"-\",IF(KPITHPIA!Q45=1,\"ΝΑΙ\",IF(KPITHPIA!Q45=0,\"ΌΧΙ\",\"\")))","v":"-"},null,{"$f":"+KPITHPIA!X42","v":"___"}]
[null,null,null,null,2.4,null,"Βοηθητικοί χώροι κολυμβητικής δεξαμενής.",null,null,null,null,null,null,null,null,null,null,null,null,null,"Διατίθενται? (ΝΑΙ / ΌΧΙ):",null,null,null,null,null,null,{"$f":"IF(KPITHPIA!Q54=\"\",\"-\",IF(KPITHPIA!Q54=1,\"ΝΑΙ\",IF(KPITHPIA!Q54=0,\"ΌΧΙ\",\"\")))","v":"-"},null,{"$f":"+KPITHPIA!X51","v":"___"}]
[null,null,null,null,2.5,null,"Θερμαινόμενη κολυμβητική δεξαμενή ",null,null,null,null,null,null,null,null,null,null,null,null,null,"Διατίθεται? (ΝΑΙ / ΌΧΙ):",null,null,null,null,null,null,{"$f":"IF(KPITHPIA!Q63=\"\",\"-\",IF(KPITHPIA!Q63=1,\"ΝΑΙ\",IF(KPITHPIA!Q63=0,\"ΌΧΙ\",\"\")))","v":"-"},null,{"$f":"+KPITHPIA!X60","v":"___"}]
[null,null,null,null,3.1,null,"Προθάλαμος προσέλευσης και υποδοχή.",null,null,null,null,null,null,null,null,null,null,null,null,null,"Διατίθενται? (ΝΑΙ / ΌΧΙ):",null,null,null,null,null,null,{"$f":"IF(KPITHPIA!Q81=\"\",\"-\",IF(KPITHPIA!Q81=1,\"ΝΑΙ\",IF(KPITHPIA!Q81=0,\"ΌΧΙ\",\"\")))","v":"-"},null,{"$f":"+KPITHPIA!X79","v":"___"}]
[null,null,null,null,3.2,null,"Κοινόχρηστη αίθουσα παραμονής (σαλόνι) και μπαρ",null,null,null,null,null,null,null,null,null,null,null,null,null,"Διατίθενται? (ΝΑΙ / ΌΧΙ):",null,null,null,null,null,null,{"$f":"IF(KPITHPIA!Q89=\"\",\"-\",IF(KPITHPIA!Q89=1,\"ΝΑΙ\",IF(KPITHPIA!Q89=0,\"ΌΧΙ\",\"\")))","v":"-"},null,{"$f":"+KPITHPIA!X87","v":"___"}]
[null,null,null,null,3.3,null,"Αίθουσα εστίασης (εστιατόριο / καφετέρια) ",null,null,null,null,null,null,null,null,null,null,null,null,null,"Διατίθεται? (ΝΑΙ / ΌΧΙ):",null,null,null,null,null,null,{"$f":"IF(KPITHPIA!Q97=\"\",\"-\",IF(KPITHPIA!Q97=1,\"ΝΑΙ\",IF(KPITHPIA!Q97=0,\"ΌΧΙ\",\"\")))","v":"-"},null,{"$f":"+KPITHPIA!X95","v":"___"}]
[null,null,null,null,3.4,null,"Αίθουσα πολλαπλής χρήσης",null,null,null,null,null,null,null,null,null,null,null,null,null,"Διατίθεται? (ΝΑΙ / ΌΧΙ):",null,null,null,null,null,null,{"$f":"IF(KPITHPIA!Q105=\"\",\"-\",IF(KPITHPIA!Q105=1,\"ΝΑΙ\",IF(KPITHPIA!Q105=0,\"ΌΧΙ\",\"\")))","v":"-"},null,{"$f":"+KPITHPIA!X103","v":"___"}]
[null,null,null,null,3.5,null,"Αίθουσα απασχόλησης παιδιών/αίθουσα παιχνιδιών ",null,null,null,null,null,null,null,null,null,null,null,null,null,"Διατίθεται? (ΝΑΙ / ΌΧΙ):",null,null,null,null,null,null,{"$f":"IF(KPITHPIA!Q113=\"\",\"-\",IF(KPITHPIA!Q113=1,\"ΝΑΙ\",IF(KPITHPIA!Q113=0,\"ΌΧΙ\",\"\")))","v":"-"},null,{"$f":"+KPITHPIA!X111","v":"___"}]
[null,null,null,null,3.6,null,"Κοινόχρηστοι χώροι υγιεινής ",null,null,null,null,null,null,null,null,null,null,null,null,null,"Διατίθενται? (ΝΑΙ / ΌΧΙ):",null,null,null,null,null,null,{"$f":"IF(KPITHPIA!Q121=\"\",\"-\",IF(KPITHPIA!Q121=1,\"ΝΑΙ\",IF(KPITHPIA!Q121=0,\"ΌΧΙ\",\"\")))","v":"-"},null,{"$f":"+KPITHPIA!X119","v":"___"}]
[null,null,null,null,4.0999999999999996,null,"Χώροι Στάθμευσης (ΧΣ) \n   πέραν των υποχρεωτικών",null,null,null,null,null,null,null,"Αριθμός Υποχρεωτικών ΧΣ, βάσει Άδειας Οικοδομής =",null,null,null,null,null,null,null,null,null,null,null,null,{"$f":"+KPITHPIA!T130","v":0},null,{"$f":"+KPITHPIA!X128","v":"___"}]
[null,null,null,null,null,null,null,null,null,null,null,null,null,"Διαθέσιμοι ΧΣ:     Στεγασμένοι (αρ.) =",null,null,null,null,null,null,null,{"$f":"+KPITHPIA!U132","v":0},null,"Υπαίθριοι (αρ.) =",null,null,null,{"$f":"+KPITHPIA!U131","v":0}]
[null,null,null,null,"5.33\n-5.35",null,"Ελάχιστη επιφάνεια δαπέδου υπνοδωματίου:",null,null,null,null,null,null,null,null,null,null,null,null,null,"Μικρότερο καταμετρηθέν \nεμβαδό (τ.μ.) =",null,null,null,null,null,null,{"$f":"P73","v":"Δ/Ε"},null,{"$f":"IF(AB101=\"Δ/Ε\",\"Δ/Ε\",IF(AB101>=P70,\"ΝΑΙ\",\"ΟΧΙ\"))","v":"Δ/Ε"}]
[null,null,null,null,"5.36\n-5.38",null,"Ελάχιστη επιφάνεια δαπέδου studio flats: ",null,null,null,null,null,null,null,null,null,null,null,null,null,"Μικρότερο καταμετρηθέν\nεμβαδό (τ.μ.) =",null,null,null,null,null,null,{"$f":"Q62","v":"Δ/Ε"},null,{"$f":"IF(AB102=\"Δ/Ε\",\"Δ/Ε\",IF(AB102>=Q59,\"ΝΑΙ\",\"ΟΧΙ\"))","v":"Δ/Ε"}]
[null,null,null,null,5.39,null,"Συμπληρωματικό αποχωρητήριο (για διαμερίσματα 3 υπνοδωματίων)",null,null,null,null,null,null,null,null,null,null,null,null,null,null,"Διατίθεται? (ΝΑΙ / ΌΧΙ / Δ/Ε):",null,null,null,null,null,{"$f":"IF(KPITHPIA!V427=0,\"Δ/Ε\",IF(KPITHPIA!P427=\"\",\"-\",IF(KPITHPIA!P427=1,\"ΝΑΙ\",IF(KPITHPIA!P427=0,\"ΌΧΙ\",\"\"))))","v":"-"},null,{"$f":"+KPITHPIA!X425","v":"___"}]
[null,null,null,null,6.1,null,"Διαμερίσματα για ΑμεΑ",null,null,null,null,null,null,null,"Αριθμός Διαμερισμάτων βάσει σχεδίων άδειας οικοδομής =",null,null,null,null,null,null,null,null,null,null,null,null,{"$f":"+KPITHPIA!M439","v":0},null,{"$f":"+KPITHPIA!X434","v":"___"}]
[null,null,null,null,null,null,null,null,null,null,null,null,null,null,"Αριθμός πραγματικά διαθέσιμων Διαμερισμάτων =",null,null,null,null,null,null,null,null,null,null,null,null,{"$f":"+KPITHPIA!V437","v":0}]
[null,null,null,null,"Εφαρμόζουν μόνο για Τουριστικά χωριά "]
[null,null,null,null,7.1,null,"Δυναμικότητα 50 τουλάχιστον διαμερίσματα",null,null,null,null,null,null,null,null,null,null,null,null,null,"Αριθμός Διαμερισμάτων =",null,null,null,null,null,null,{"$f":"+KPITHPIA!J450","v":""},null,{"$f":"+KPITHPIA!X448","v":"___"}]
[null,null,null,null,7.2,null,"Επιπρόσθετοι αθλητικοί χώροι (πέραν αυτού στο κρ. αρ. 2.1)",null,null,null,null,null,null,null,null,null,null,null,null,null,"Εάν υπάρχουν, αριθμός =",null,null,null,null,null,null,{"$f":"+KPITHPIA!N459","v":0},null,{"$f":"+KPITHPIA!X455","v":"___"}]
[null,null,null,null,7.3,null,"Παιδική χαρά (εξωτερική και εσωτερική)",null,null,null,null,null,null,null,null,null,null,null,null,null,"Διατίθεται? (ΝΑΙ / ΌΧΙ):",null,null,null,null,null,null,{"$f":"IF(KPITHPIA!Q467=\"\",\"-\",IF(KPITHPIA!Q467=1,\"ΝΑΙ\",IF(KPITHPIA!Q467=0,\"ΌΧΙ\",\"\")))","v":"-"},null,{"$f":"+KPITHPIA!X465","v":"___"}]
[null,null,null,null,7.4,null,"Κεντρική πλατεία (plazza) με καταστήματα, \n   εργαστήρια, κέντρα αναψυχής κ.λπ.",null,null,null,null,null,null,null,null,null,null,null,null,null,"Διατίθεται? (ΝΑΙ / ΌΧΙ):",null,null,null,null,null,null,{"$f":"IF(KPITHPIA!Q475=\"\",\"-\",IF(KPITHPIA!Q475=1,\"ΝΑΙ\",IF(KPITHPIA!Q475=0,\"ΌΧΙ\",\"\")))","v":"-"},null,{"$f":"+KPITHPIA!X473","v":"___"}]
[null,null,null,null,7.5,null,"Επιχείρηση αποτελούμενη\n  από αυτοτελείς οικίσκους\n  ή ομάδες /μπλοκ οικίσκων",null,null,null,null,null,null,"Αρ. Οικίσκων των 1 - 8  Διαμερ/των:",null,null,null,null,null,null,null,{"$f":"+KPITHPIA!Q484","v":0},"Αριθμ. Διαμερ/μάτων:",null,null,null,null,{"$f":"+KPITHPIA!S484","v":0},null,{"$f":"+KPITHPIA!X481","v":"___"}]
[null,null,null,null,null,null,null,null,null,null,null,null,null,"Αρ. Οικίσκων των 9 - 12  Διαμερ/των:",null,null,null,null,null,null,null,{"$f":"+KPITHPIA!Q485","v":0},"Αριθμ. Διαμερ/μάτων:",null,null,null,null,{"$f":"+KPITHPIA!S485","v":0}]
[]
[null,null,null,null,"Υπογραφή\n  και  Όνομα\n    Τεχνικού Λειτουργού: "]
[null,null,null,null,null,null,null,null,null,null,"1.)",null,null,null,null,null,null,null,null,null,"2.)"]
[null,null,null,null,null,null,null,null,null,null,null,null,null,null,null,null,null,null,null,null,null,{"$f":"+EISAGOGH!AC61","v":"V_23.02"},null,null,null,null,"Εκτ.:",null,{"$f":"NOW()","v":"2023-08-16T10:37:38.370"}]
[]
[]
[]
[]
[null,null,null,null,"Δεν ικανοποιεί όλα τα υποχρεωτικά κτιριακά κριτήρια για κατάταξη της στην πιο κάτω κατηγορία, τάξη και δυναμικότητα: "]
[null,null,null,null,"Ικανοποιεί όλα τα υποχρεωτικά κτιριακά κριτήρια για κατάταξη της στην πιο κάτω κατηγορία, τάξη και δυναμικότητα: "]
[null,null,null,null,"…........................ …........................ …........................ …........................ …........................ …........................ …................ "]

{"sheet":"EISAGOGH","index":3,"n_rows":61,"n_cols":45,"rows_kept":61,"cut":false,"hidden":false,"merged":[[2,41,2,45],[3,41,3,43],[3,44,3,45],[4,41,4,45],[18,5,18,38],[19,35,19,36],[19,37,19,39],[15,4,15,11],[17,4,17,12],[19,4,19,10],[17,13,17,39],[15,12,15,31],[15,32,15,35],[16,5,16,38],[12,31,12,32],[12,34,12,35],[12,37,12,39],[14,5,14,38],[1,5,1,6],[3,5,4,19],[3,20,3,23],[3,24,4,38],[10,37,10,39],[11,9,11,15],[11,21,11,24],[11,31,11,32],[11,34,11,35],[11,37,11,39],[8,5,8,38],[10,9,10,15],[10,16,11,20],[10,21,10,24],[10,31,10,32],[10,34,10,35],[2,35,2,39],[2,4,2,34],[5,4,7,39],[9,4,9,39],[10,4,11,8],[10,25,11,30],[60,28,60,33],[60,34,60,35],[60,36,60,38],[41,19,41,25],[42,19,42,25],[41,26,41,32],[45,5,45,38],[46,5,46,26],[46,27,46,30],[44,26,44,32],[44,33,44,34],[44,35,44,39],[56,5,56,38],[55,4,55,39],[53,5,53,39],[57,4,57,10],[52,5,52,26],[49,5,49,38],[50,5,50,30],[50,31,50,33],[59,11,59,38],[57,11,57,38],[59,4,59,10],[42,26,42,32],[40,4,40,31],[39,5,39,38],[28,18,29,36],[34,4,34,37],[35,4,36,17],[37,4,38,33],[31,14,31,17],[36,36,36,38],[28,37,28,38],[36,18,36,20],[50,34,50,38],[48,5,48,28],[48,29,48,32],[48,33,48,37],[41,12,41,18],[42,12,42,18],[44,4,44,24],[47,5,47,38],[43,5,43,38],[21,22,21,30],[19,11,19,34],[13,4,13,11],[13,12,13,39],[15,36,15,39],[21,10,21,16],[35,22,36,35],[32,36,32,38],[31,35,31,39],[32,31,32,33],[21,4,21,9],[22,5,22,38],[21,17,21,21],[21,31,21,33],[21,34,21,39],[31,30,31,34],[31,18,31,21],[31,22,31,25],[26,10,26,20],[26,28,26,38],[25,4,26,9],[25,22,26,27],[28,11,28,16],[24,5,24,38],[31,26,31,29],[30,31,30,38],[30,4,32,13],[23,4,23,7],[23,8,23,22],[23,26,23,39],[38,34,38,36],[27,4,28,10],[32,15,32,16],[32,27,32,28],[32,19,32,20],[32,23,32,24],[23,23,23,25]]}
[null,null,"L"]
[null,null,null,null,null,{"$f":"+C1","v":"L"}]
[null,null,null,null,"Εισαγωγή Στοιχείων",null,null,null,null,null,null,null,null,null,null,null,null,null,null,null,null,null,null,null,null,null,null,null,null,null,null,null,null,null,null,"V_23.02",null,null,null,null,null,{"$f":"IF(AP4>0,\"Εκκρεμεί η Απάντηση\",\"\")","v":"Εκκρεμεί η Απάντηση"}]
[null,"Αρχή Σελ.",null,null,null,"ΚΥΠΡΙΑΚΗ ΔΗΜΟΚΡΑΤΙΑ",null,null,null,null,null,null,null,null,null,null,null,null,null,null,null,null,null,null,"ΥΦΥΠΟΥΡΓΕΙΟ ΤΟΥΡΙΣΜΟΥ",null,null,null,null,null,null,null,null,null,null,null,null,null,null,null,null,{"$f":"+KPITHPIA!AE7","v":59},null,null,{"$f":"IF(AP4>0,\"Κριτηρίου(ων)\",\"Αναπάντητα\")","v":"Κριτηρίου(ων)"}]
[null,"Τέλος Σελ."]
[null,null,null,null,"Αποτελέσματα Ελέγχου Ικανοποίησης Κριτηρίων Κατάταξης\nΟργανωμένων Διαμερισμάτων και Τουριστικών Χωριών\nΒάσει των περί της Ρύθμισης της Ίδρυσης και Λειτουργίας Ξενοδοχ. & Τουριστ. Καταλυμάτων Νόμων 34(Ι)2019, 9(I)2020 & Κ.Δ.Π. 90/2019"]
[]
[]
[]
[null,null,null,null,"Στοιχεία Τουριστικού Καταλύματος"]
[null,null,null,null,"0] Αρ. Ηλεκ.\n       Φακέλου:",null,null,null,null,null,null,null,null,null,null,null,"1] Αριθμός\nΦακέλου:",null,null,null,null,null,null,null,null,"2] Ημερομηνία \nΕπιθεώρησης:"]
[null,null,null,null,null,null,null,null,null,null,null,null,null,null,null,null,null,null,null,null,null,null,null,null,null,null,null,null,null,null,null,null,null,"/",null,null,"/"]
[null,null,null,null,null,null,null,null,null,null,null,null,null,null,null,null,null,null,null,null,null,null,null,null,null,null,null,null,null,null,null,"( Ημέρα",null,"/","Μήνας",null,"/","Έτος  )"]
[null,null,null,null,"3]  Όνομα Μονάδας:"]
[]
[null,null,null,null,"4]  Επιχειρηματίας:",null,null,null,null,null,null,null,null,null,null,null,null,null,null,null,null,null,null,null,null,null,null,null,null,null,null,null,"Αρ. Ταυτότ.:"]
[]
[null,null,null,null,"5]  Όνομα Διευθυντή:"]
[]
[null,null,null,null,"6]  Διεύθυνση:",null,null,null,null,null,null,null,null,null,null,null,null,null,null,null,null,null,null,null,null,null,null,null,null,null,null,null,null,null,null,"Τ.Τ.:"]
[]
[null,null,null,null,"7] Επαρχία:",null,null,null,null,null,null,null,null,null,null,null,null,"8] Τηλέφωνο:",null,null,null,null,null,null,null,null,null,null,null,null,null,"9] Φαξ:"]
[]
[null,null,null,null,"10] e-Mail:",null,null,null,null,null,null,null,null,null,null,null,null,null,null,null,null,null,null,"11] URL:"]
[]
[null,null,null,null,"12] Τύπος     .\nΚαταλύματος:",null,null,null,null,null,null,null,null,null,null,null,null,null,null,null,null,null,"13] Τοποθεσία  .\nΕπιχείρησης:"]
[null,null,null,null,null,null,null,null,null,null,null,null,null,null,null,null,null,null,null,null,null,{"$f":"IF(K27=CONTROL!A53,1,IF(K27=CONTROL!A54,2,\"ER\"))","v":"ER"},null,null,null,null,null,null,null,null,null,null,null,null,null,null,null,null,null,{"$f":"IF(AC27=CONTROL!E49,1,IF(AC27=CONTROL!E50,3,\"ER\"))","v":"ER"}]
[null,null,null,null,"\n14] Αιτηθείσα Τάξη:"]
[null,null,null,null,null,null,null,null,null,null,null,null,null,null,null,null,null,{"$f":"IF(L29=CONTROL!A36,1,IF(L29=CONTROL!A37,2,IF(L29=CONTROL!A38,3,IF(L29=\"\",\"ER\"))))","v":"ER"},"15] Μονάδα σε λειτουργία πριν την 15.03.2019 * (ΝΑΙ / ΌΧΙ ):\n* Ημερομηνία έναρξης ισχύος του παρόντος Νόμου",null,null,null,null,null,null,null,null,null,null,null,null,null,null,null,null,null,null,null,null,{"$f":"IF(AL29=CONTROL!A47,1,IF(AL29=CONTROL!A48,2,\"ER\"))","v":"ER"}]
[]
[null,null,null,null,"16] Αριθμός Διαμερι-       .   \n         σμάτων & Κλινών:    .\n( όπου μη διαθέσιμα = 0 )",null,null,null,null,null,null,null,null,null,null,null,null,null,null,null,null,null,null,null,null,null,null,null,null,null,null,"Σύνολα"]
[null,null,null,null,null,null,null,null,null,null,null,null,null,null,"Στούντιο",null,null,null,"1ος Υπν.",null,null,null,"2  Υπν.",null,null,null,"3  Υπν.",null,null,null,"Δια/σματα",null,null,null,null,"Κλίνες"]
[null,null,null,null,null,null,null,null,null,null,null,null,null,null,null,null,null,{"$f":"IF(P33=\"\",\"ER\",\"ok\")","v":"ER"},null,null,null,{"$f":"IF(T33=\"\",\"ER\",\"ok\")","v":"ER"},null,null,null,{"$f":"IF(X33=\"\",\"ER\",\"ok\")","v":"ER"},null,null,null,{"$f":"IF(AB33=\"\",\"ER\",\"ok\")","v":"ER"},null,{"$f":"IF(OR(P33=\"\",T33=\"\",X33=\"\",AB33=\"\"),\"\",(P33+T33+X33+AB33))","v":""},null,null,{"$f":"IF(AF33=0,\"ER\",\"ok\")","v":"ok"},null,{"$f":"IF(OR(P33=\"\",T33=\"\",X33=\"\",AB33=\"\"),\"\",(+P33*2+T33*2+X33*4+AB33*6))","v":""},null,null,{"$f":"IF(AK33=0,\"ER\",\"ok\")","v":"ok"}]
[]
[null,null,null,null,"17]  Εξασφάλιση Αδειών Οικοδομής:  (Ενδέχεται να ισχύουν και οι δυο περιπτώσεις ταυτόχρονα)"]
[null,null,null,null,"α]   ΠΡΙΝ την έναρξη ισχύος\nτου παρόντος Νόμου; (ΝΑΙ / ΌΧΙ ):",null,null,null,null,null,null,null,null,null,null,null,null,null,null,null,null,null,"β]   ΜΕΤΑ την έναρξη ισχύος\nτου παρόντος Νόμου; (ΝΑΙ / ΌΧΙ ):"]
[null,null,null,null,null,null,null,null,null,null,null,null,null,null,null,null,null,null,null,null,null,{"$f":"IF(S37=CONTROL!A47,1,IF(S37=CONTROL!A48,2,\"ER\"))","v":"ER"},null,null,null,null,null,null,null,null,null,null,null,null,null,null,null,null,null,{"$f":"IF(AK37=CONTROL!A47,1,IF(AK37=CONTROL!A48,2,\"ER\"))","v":"ER"}]
[null,null,null,null,"18]  Συνολικός αριθμός  προσωπικού σε φάση μέγιστης πληρότητας:\n (Δεν περιλαμβάνει προσωπικό προερχόμενο από εκχώρηση υπηρεσιών σε τρίτους -άλλες εταιρείες)"]
[null,null,null,null,null,null,null,null,null,null,null,null,null,null,null,null,null,null,null,null,null,null,null,null,null,null,null,null,null,null,null,null,null,null,null,null,null,{"$f":"IF(OR(AI39=\"\",AI39=0),\"ER\",\"\")","v":"ER"}]
[]
[null,null,null,null,"Πίνακας Ελάχιστων Απαιτούμενων Βαθμών ανά Τάξη"]
[null,null,null,null,null,null,null,null,null,null,null,null,{"$f":"+CONTROL!A36","v":"Πολυτελείας"},null,null,null,null,null,null,{"$f":"+CONTROL!A37","v":"Α' Τάξης"},null,null,null,null,null,null,{"$f":"+CONTROL!A38","v":"Β' Τάξης"}]
[null,null,null,null,null,null,null,null,null,null,null,null,2200,null,null,null,null,null,null,1500,null,null,null,null,null,null,900]
[]
[null,null,null,null,"Αποτελέσματα Ελέγχου Κριτηρίων",null,null,null,null,null,null,null,null,null,null,null,null,null,null,null,null,null,null,null,null,null,{"$f":"IF(AP4>0,\"Εκκρεμεί η Απάντηση\",\"\")","v":"Εκκρεμεί η Απάντηση"},null,null,null,null,null,null,{"$f":"IF(AP4=0,\"\",AP4)","v":59},null,{"$f":"IF(AP4>0,\"Κριτηρίων(ου)\",\"\")","v":"Κριτηρίων(ου)"}]
[]
[null,null,null,null,null,"1. Ελάχιστη Απαιτούμενη Βαθμολογία για την Αιτούμενη Τάξη: ",null,null,null,null,null,null,null,null,null,null,null,null,null,null,null,null,null,null,null,null,null,{"$f":"IF($R$29=\"ER\",\"\",IF(R29=1,M43,IF(R29=2,T43,IF(R29=3,AA43,0))))","v":""}]
[]
[null,null,null,null,null,"2. Επιτευχθείσα Συνολική Βαθμολογία με βάση την Αιτούμενη Τάξη :",null,null,null,null,null,null,null,null,null,null,null,null,null,null,null,null,null,null,null,null,null,null,null,{"$f":"IF($R$29=\"ER\",\"\",KPITHPIA!X4)","v":""},null,null,null,{"$f":"IF($R$29=\"ER\",\"\",IF(EISAGOGH!AD49<EISAGOGH!AB47,CONTROL!A51,CONTROL!A50))","v":""}]
[]
[null,null,null,null,null,"3. Αριθμός Μη Ικανοποιηθέντων Υποχρεωτ. Κριτηρίων για Αιτούμενη Τάξη:",null,null,null,null,null,null,null,null,null,null,null,null,null,null,null,null,null,null,null,null,null,null,null,null,null,{"$f":"IF($R$29=\"ER\",\"\",KPITHPIA!X5)","v":""},null,null,{"$f":"IF($R$29=\"ER\",\"\",IF(EISAGOGH!AF51>0,CONTROL!A51,CONTROL!A50))","v":""}]
[]
[null,null,null,null,null,"Αυξ. αριθμοί μη ικανοποιηθέντων υποχρεωτικών κριτήριων:"]
[null,null,null,null,null,{"$f":"+KPITHPIA!AC9","v":""}]
[]
[null,null,null,null,"Στοιχεία Αξιολογητή(ών):"]
[]
[null,null,null,null,"01. Υπογραφή(ές):"]
[]
[null,null,null,null,"02. Όνομα(τα):"]
[null,null,null,null,null,null,null,null,null,null,null,null,null,null,null,null,null,null,null,null,null,null,null,null,null,null,null,null,{"$f":"+AJ3","v":"V_23.02"},null,null,null,null,null,"Εκτ.:",null,{"$f":"NOW()","v":"2023-08-16T10:37:38.370"}]

{"sheet":"KPITHPIA","index":4,"n_rows":491,"n_cols":35,"rows_kept":491,"cut":false,"hidden":false,"merged":[[14,20,14,21],[13,12,14,19],[13,5,14,10],[3,4,3,19],[3,20,3,22],[5,20,8,21],[4,20,4,22],[138,5,139,15],[486,5,486,21],[484,18,484,19],[483,18,483,19],[482,16,482,17],[482,18,482,19],[483,16,483,17],[484,16,484,17],[483,8,483,15],[484,8,484,15],[485,18,485,19],[483,20,483,21],[484,20,484,21],[485,20,485,21],[482,20,482,21],[485,4,485,17],[444,4,444,9],[444,10,444,23],[450,6,450,23],[453,4,454,4],[2,3,2,24],[5,22,8,22],[5,23,8,23],[449,5,449,8],[449,10,449,12],[449,13,449,23],[446,4,447,4],[196,20,196,21],[199,16,199,23],[168,20,168,21],[171,20,171,21],[190,5,190,14],[198,5,198,14],[187,5,188,15],[161,5,161,14],[166,5,167,15],[184,6,184,23],[247,5,247,14],[245,20,245,21],[150,13,152,18],[131,4,131,8],[132,4,132,8],[446,5,447,15],[177,8,177,9],[5,30,5,36],[6,30,6,32],[6,33,6,36],[23,5,24,11],[23,13,24,20],[26,11,26,20],[26,5,26,10],[133,5,133,23],[426,4,427,4],[427,5,427,23],[426,5,426,13],[425,16,426,20],[149,5,149,15],[153,5,153,6],[152,5,152,6],[143,10,143,11],[163,6,163,23],[207,16,207,23],[203,5,204,15],[200,6,200,23],[191,16,191,23],[204,20,204,21],[192,6,192,23],[176,6,176,23],[463,4,464,4],[64,6,64,23],[75,4,75,15],[77,4,78,4],[85,4,86,4],[93,4,94,4],[329,6,329,23],[333,20,333,21],[341,20,341,21],[349,20,349,21],[344,16,344,23],[345,6,345,23],[336,16,336,23],[320,16,320,23],[317,20,317,21],[325,20,325,21],[312,16,312,23],[183,16,183,23],[188,20,188,21],[148,5,148,15],[122,6,122,23],[195,5,196,15],[182,5,182,14],[177,6,177,7],[488,6,488,23],[487,5,487,23],[219,5,220,15],[260,5,261,15],[227,5,228,15],[236,5,237,15],[244,5,245,15],[252,5,253,15],[268,5,270,15],[276,5,277,15],[414,13,414,15],[453,5,455,15],[340,5,341,15],[407,16,407,23],[420,6,420,23],[479,5,482,15],[337,6,337,23],[328,16,328,23],[357,20,357,21],[253,20,253,21],[296,16,296,23],[297,6,297,23],[288,16,288,23],[255,5,255,14],[171,12,171,15],[171,8,171,10],[172,14,172,16],[132,10,132,13],[144,16,144,17],[144,18,144,19],[151,20,151,21],[142,8,142,11],[143,16,143,17],[143,18,143,19],[153,20,153,21],[153,13,153,19],[152,8,152,11],[151,5,151,6],[144,8,144,9],[144,10,144,11],[142,16,142,19],[132,20,132,21],[143,8,143,9],[142,12,143,14],[142,4,143,6],[121,16,121,23],[124,4,124,15],[129,5,129,9],[130,10,130,13],[134,6,134,23],[136,4,136,15],[131,15,131,19],[127,20,127,21],[139,20,139,21],[148,4,149,4],[150,11,150,12],[151,8,151,11],[109,4,110,4],[132,15,132,19],[113,16,113,23],[55,6,55,23],[77,5,79,15],[97,16,97,23],[69,14,69,16],[103,4,104,4],[79,4,80,4],[60,4,62,4],[118,20,118,21],[96,5,96,14],[104,5,104,14],[87,4,88,4],[95,4,96,4],[60,14,60,16],[130,15,130,19],[131,10,131,13],[120,5,120,14],[98,6,98,23],[114,6,114,23],[54,16,54,23],[85,5,86,15],[93,5,94,15],[89,16,89,23],[90,6,90,23],[109,5,110,15],[68,20,68,21],[117,5,118,15],[105,16,105,23],[106,6,106,23],[112,5,112,14],[62,5,62,14],[71,5,71,14],[80,5,80,14],[88,5,88,14],[78,20,78,21],[86,20,86,21],[94,20,94,21],[102,20,102,21],[110,20,110,21],[82,6,82,23],[73,6,73,23],[101,5,102,15],[11,5,12,15],[34,15,35,21],[51,16,51,18],[15,16,15,23],[4,5,8,15],[4,17,6,19],[4,16,8,16],[9,4,9,15],[34,5,35,12],[40,4,41,4],[7,17,8,17],[37,6,37,23],[12,20,12,21],[7,18,8,18],[7,19,8,19],[32,20,32,21],[42,14,42,16],[16,6,16,23],[18,4,18,15],[20,5,22,15],[28,6,28,23],[13,4,14,4],[20,4,21,4],[31,4,32,4],[21,20,21,21],[34,4,35,4],[50,20,50,21],[59,20,59,21],[40,5,41,15],[41,20,41,21],[42,4,44,4],[51,4,53,4],[44,5,44,14],[53,5,53,14],[46,6,46,23],[31,5,33,14],[33,15,33,21],[49,5,51,15],[490,4,490,21],[11,4,12,4],[58,5,59,15],[158,4,159,4],[158,5,159,15],[67,4,68,4],[430,4,430,15],[292,4,293,4],[300,4,301,4],[308,4,309,4],[316,4,317,4],[324,4,325,4],[332,4,333,4],[49,4,50,4],[67,5,68,15],[58,4,59,4],[432,4,433,4],[126,5,128,15],[131,20,131,21],[130,20,130,21],[141,5,141,12],[141,13,141,15],[129,19,129,20],[129,12,129,18],[4,4,8,4],[423,4,424,4],[471,4,472,4],[476,6,476,23],[471,5,473,15],[479,4,480,4],[472,20,472,21],[480,20,480,21],[466,5,466,14],[473,4,474,4],[466,4,467,4],[455,4,457,4],[474,5,474,14],[457,15,458,21],[455,16,456,21],[457,5,458,12],[468,6,468,23],[463,5,464,15],[464,20,464,21],[460,6,460,23],[145,6,145,23],[149,20,149,21],[159,20,159,21],[152,20,152,21],[348,5,349,15],[335,5,335,14],[343,5,343,14],[353,6,353,23],[361,6,361,23],[356,5,358,15],[153,8,153,11],[212,20,212,21],[220,20,220,21],[214,5,214,14],[215,16,215,23],[216,6,216,23],[179,5,180,15],[180,20,180,21],[174,20,174,21],[174,14,174,19],[173,5,174,11],[168,12,168,15],[168,8,168,10],[208,6,208,23],[211,5,212,15],[162,16,162,23],[155,6,155,23],[360,16,360,23],[447,20,447,21],[222,20,222,21],[221,5,222,13],[222,16,222,19],[295,5,295,14],[303,5,303,14],[256,16,256,23],[257,6,257,23],[271,5,271,14],[279,5,279,14],[261,20,261,21],[269,20,269,21],[300,5,301,15],[240,16,240,23],[230,5,230,14],[228,20,228,21],[237,20,237,21],[239,5,239,14],[352,16,352,23],[316,5,317,15],[324,5,325,15],[351,5,351,14],[359,5,359,14],[367,5,367,14],[365,20,365,21],[375,5,375,6],[375,8,375,10],[375,12,375,13],[375,15,375,17],[364,5,365,15],[454,20,454,21],[402,13,402,15],[423,5,425,15],[416,13,416,15],[399,5,401,15],[408,6,408,23],[402,20,402,21],[424,20,424,21],[433,20,433,21],[428,6,428,23],[414,20,414,21],[418,20,418,21],[417,13,417,15],[418,6,418,7],[442,6,442,23],[386,5,386,14],[395,16,395,23],[396,6,396,23],[308,5,309,15],[332,5,333,15],[301,20,301,21],[309,20,309,21],[263,5,263,14],[264,16,264,23],[265,6,265,23],[292,5,293,15],[284,5,285,15],[277,20,277,21],[285,20,285,21],[293,20,293,21],[311,5,311,14],[319,5,319,14],[327,5,327,14],[313,6,313,23],[304,16,304,23],[305,6,305,23],[321,6,321,23],[168,4,169,4],[179,4,180,4],[101,4,102,4],[364,4,365,4],[391,4,392,4],[219,4,220,4],[260,4,261,4],[268,4,269,4],[227,4,228,4],[236,4,237,4],[244,4,245,4],[252,4,253,4],[276,4,277,4],[284,4,285,4],[348,4,349,4],[356,4,357,4],[126,4,127,4],[211,4,212,4],[128,4,129,4],[119,4,120,4],[111,4,112,4],[138,4,139,4],[117,4,118,4],[340,4,341,4],[187,4,188,4],[195,4,196,4],[203,4,204,4],[402,4,403,4],[414,4,415,4],[387,16,387,23],[373,20,373,21],[404,13,404,15],[372,5,373,15],[368,16,368,23],[369,6,369,23],[248,16,248,23],[249,6,249,23],[287,5,287,14],[289,6,289,23],[280,16,280,23],[281,6,281,23],[272,16,272,23],[273,6,273,23],[206,5,206,14],[241,6,241,23],[233,6,233,23],[223,16,223,23],[224,6,224,23],[441,4,441,23],[434,15,436,20],[440,4,440,11],[432,5,436,14],[437,14,437,21],[438,14,440,21],[437,4,438,11],[418,13,418,15],[416,20,416,21],[404,20,404,21],[406,20,406,21],[406,13,406,15],[415,5,417,8],[407,4,407,10],[419,4,419,10],[403,5,405,8],[411,5,413,15],[383,4,384,4],[406,6,406,7],[405,13,405,15],[372,4,373,4],[392,20,392,21],[391,5,392,15],[394,5,394,14],[384,20,384,21],[383,5,384,15],[388,6,388,23],[376,5,378,12],[377,13,378,13],[377,14,378,14],[377,20,378,21],[377,15,378,19],[379,16,379,23],[380,6,380,23]]}
[null,null,"L"]
[null,null,null,null,{"$f":"+C1","v":"L"},null,null,null,null,null,null,null,null,null,null,null,null,null,null,null,null,null,null,null,null,null,null,null,null,null,null,null,null,null,{"$f":"+EISAGOGH!R29","v":"ER"}]
[]
[null,null,null,null,{"$f":"CONCATENATE(EISAGOGH!V12,\":  \",EISAGOGH!$M$14,\",    \",EISAGOGH!$K$27,\",   \",EISAGOGH!L29,\",     \",EISAGOGH!AF12,\".\",EISAGOGH!AI12,\".\",EISAGOGH!AL12)","v":":  ,    ,   ,     .."},null,null,null,null,null,null,null,null,null,null,null,null,null,null,null,"ΣΥΝΟΛΟ ΒΑΘΜΩΝ:",null,null,{"$f":"+W491","v":0}]
[null,null,null,null,"Α/Α\n","Κριτήρια Κατάταξης \nΟργανωμένων Διαμερισμάτων\nκαι Τουριστικών Χωριών",null,null,null,null,null,null,null,null,null,null," Β α θ μ ο ί","Καθορισμός\nΚριτηρίων ανά Τάξη\n“Υ” = Υποχρεωτικό\n“ΠΡ” = Προαιρετικό\n“Δ/Ε” = Δεν Εφαρμόζει",null,null,"ΑΡ. ΜΗ ΙΚΑΝΟΠ.\nΥΠΟΧΡ. ΚΡΙΤΗΡΙΩΝ:",null,null,{"$f":"+X491","v":0}]
[null,"Αρχή Σελ.",null,null,null,null,null,null,null,null,null,null,null,null,null,null,null,null,null,null,"Δείκτης\nΙκανοπ.\nΚριτη-\n-ρίου",null,"Ληφθ.\nΒαθμοί","Δείκτης\nΙκανοπ.\nΥποχρ.\nΚριτη-\n-ρίου",null,null,null,null,null,null,{"$f":"IF($AE$7>0,\"Εκκρεμεί η Απάντηση\",\"\")","v":"Εκκρεμεί η Απάντηση"}]
[null,"Τέλος Σελ.",null,null,null,null,null,null,null,null,null,null,null,null,null,null,null,null,null,null,null,null,null,null,null,null,null,null,null,null,{"$f":"+B9","v":59},null,null,{"$f":"IF($AE$7>0,\"Κριτηρίου(ων)\",\"Αναπάντητα\")","v":"Κριτηρίου(ων)"}]
[null,{"$f":"COUNTIF(B10:B491,\"ok\")","v":0},null,null,null,null,null,null,null,null,null,null,null,null,null,null,null,"Πολυ-\nτελείας","Α'\nΤάξης","Β'\nΤάξης",null,null,null,null,null,null,null,null," / "]
[null,{"$f":"COUNTIF(B10:B491,\"?\")","v":59},null,null,null,null,null,null,null,null,null,null,null,null,null,null,null,null,null,null,null,null,null,null,null,null,null,null,{"$f":"CONCATENATE(AC13,AC22,AC33,AC42,AC51,AC60,AC69,AC79,AC87,AC95,AC103,AC111,AC119,AC128,AC140,AC150,AC160,AC169,AC172,AC181,AC189,AC197,AC205,AC213,AC221,AC229,AC238,AC246,AC254,AC262,AC270,AC278,AC286,AC294,AC302,AC310,AC318,AC326,AC334,,AC342,AC350,AC358,AC366,AC374,AC385,AC393,AC403,AC405,AC407,AC415,AC417,AC419,AC425,AC434,AC448,AC455,AC465,AC473,AC481)","v":""}]
[null,null,null,null,"1.  Κτιριακές Εγκαταστάσεις"]
[]
[null,{"$f":"IF(X11=\"___\",\"?\",\"\")","v":""},null,null,1.1000000000000001,"Ανελκυστήρας πελατών \n(Εάν υπάρχουν πέραν των 2 ορόφων, εκτός από το ισόγειο, το κριτήριο είναι υποχρεωτικό για την τάξη Πολυτελείας)",null,null,null,null,null,null,null,null,null,null,null,null,null,null,{"$f":"IF(U15=\"\",\"\",IF(U15=0,0,IF(U15>=1,1)))","v":""}]
[null,{"$f":"IF(X13=\"___\",\"?\",\"ok\")","v":"?"},null,null,null,null,null,null,null,null,null,null,null,null,null,null,150,{"$f":"IF(L15=\"\",\"Υ\",IF(L15>2,\"Υ\",\"Δ/Ε\"))","v":"Υ"},"ΠΡ","ΠΡ",{"$f":"IF(U12=\"\",\"ΟΧΙ|ΝΑΙ\",IF(U12=0,\"ΟΧΙ\",IF(U12=1,\"ΝΑΙ\")))","v":"ΟΧΙ|ΝΑΙ"},null,{"$f":"IF(U12=\"\",\"___\",IF(U12=0,0,IF(AND(U12=1,OR(AND($AI$2=1,R13=\"ΠΡ\"),AND($AI$2=2,S13=\"ΠΡ\"),AND($AI$2=3, T13=\"ΠΡ\"))),Q13,0)))","v":"___"},{"$f":"IF(W13=\"___\",W13,IF(OR(AND($AI$2=1, R13=\"Υ\", U12=0), AND($AI$2=2, S13=\"Υ\", U12=0), AND($AI$2=3, T13=\"Υ\", U12=0)), \"ΟΧΙ\", IF(OR(AND($AI$2=1, R13=\"Υ\", U12=1), AND($AI$2=2, S13=\"Υ\", U12=1), AND($AI$2=3, T13=\"Υ\", U12=1)), \"ΝΑΙ\",\"Δ/Ε\")))","v":"___"},null,null,null,null,{"$f":"IF(X13=\"ΟΧΙ\",CONCATENATE(E12,$AC$8),\"\")","v":""}]
[null,null,null,null,"T.E.","Αριθμός ορόφων \nεκτός από το ισόγειο:",null,null,null,null,null,{"$f":"IF(AND(U15<>\"\",L15=\"\"),\"ERR.\",\"\")","v":""},"Αριθμός διαθέσιμων \nανελκυστήρων για πελάτες:"]
[]
[]
[null,null,null,null,null,"ΣΗΜΕΙ-\nΩΣΕΙΣ:"]
[]
[null,null,null,null,"2.   Αθλητικοί και παρόμοιοι χώροι "]
[]
[null,null,null,{"$f":"IF(X20=\"___\",\"?\",\"\")","v":""},2.1,"Τουλάχιστον 1 γήπεδο αντισφαίρισης ή άλλο αθλητικό χώρο (κλειστό ή υπαίθριο).\n(Η ύπαρξη γηπέδου ή άλλου αθλητικού χώρου είναι προαιρετική, για μονάδες που βρίσκονται εντός πυκνοκατοικημένης περιοχής)",null,null,null,null,null,null,null,null,null,null,null,null,null,null,{"$f":"IF(M24=\"\",\"\",IF(M24=0,0,IF(AND(M24=1,V23=1),1,IF(AND(M24=1,V23=\"\"),\"\"))))","v":""}]
[null,{"$f":"IF(X22=\"___\",\"?\",\"ok\")","v":"?"},null,null,null,null,null,null,null,null,null,null,null,null,null,null,150,{"$f":"IF(V24=1,\"ΠΡ\",\"Υ\")","v":"Υ"},"ΠΡ","ΠΡ",{"$f":"IF(U21=\"\",\"ΟΧΙ|ΝΑΙ\",IF(U21=0,\"ΟΧΙ\",IF(U21=1,\"ΝΑΙ\")))","v":"ΟΧΙ|ΝΑΙ"},null,{"$f":"IF(U21=\"\",\"___\",IF(U21=0,0,IF(AND(U21=1,OR(AND($AI$2=1,R22=\"ΠΡ\"),AND($AI$2=2,S22=\"ΠΡ\"),AND($AI$2=3, T22=\"ΠΡ\"))),Q22,0)))","v":"___"},{"$f":"IF(W22=\"___\",W22,IF(OR(AND($AI$2=1, R22=\"Υ\", U21=0), AND($AI$2=2, S22=\"Υ\", U21=0), AND($AI$2=3, T22=\"Υ\", U21=0)), \"ΟΧΙ\", IF(OR(AND($AI$2=1, R22=\"Υ\", U21=1), AND($AI$2=2, S22=\"Υ\", U21=1), AND($AI$2=3, T22=\"Υ\", U21=1)), \"ΝΑΙ\",\"Δ/Ε\")))","v":"___"},null,null,null,null,{"$f":"IF(X22=\"ΟΧΙ\",CONCATENATE(E21,$AC$8),\"\")","v":""}]
[null,null,null,null,null,null,null,null,null,null,null,null,null,null,null,null,null,null,null,null,null,{"$f":"IF(L27=\"\",\"\",IF(L27<>\"\",1))","v":""}]
[null,null,null,null,"T.E.","Διατίθεται τουλάχιστο\nένας κλειστός ή υπαίθριος\nαθλητικός χώρος? (Ν =\"ΝΑΙ\", Χ = \"ΟΧΙ\")",null,null,null,null,null,null,{"$f":"IF(M25=\"\",\"\",IF(OR(M25=\"X\",M25=\"Χ\",M25=0),0,IF(OR(M25=\"Ν\",M25=\"N\",M25=1),1)))","v":""}," Βεβαίωση από αρμόδια Τοπική Αρχή ότι η \nμονάδα βρίσκεται εντός πυκνοκατοικημένης\nπεριοχής?(Ν =\"ΝΑΙ\", Χ = \"ΟΧΙ\")",null,null,null,null,null,null,null,{"$f":"IF(V25=\"\",\"\",IF(OR(V25=\"X\",V25=\"Χ\",V25=0),0,IF(OR(V25=\"Ν\",V25=\"N\",V25=1),1)))","v":""}]
[]
[]
[null,null,null,null,null,"Περιγραφή αθλητικού χώρου:"]
[]
[null,null,null,null,null,"ΣΗΜΕΙ-\nΩΣΕΙΣ:"]
[]
[]
[null,null,null,{"$f":"IF(X31=\"___\",\"?\",\"\")","v":""},2.2000000000000002,"Επιπλέον άλλος αθλητικός χώρος.\n(Το κριτήριο εφαρμόζει μόνο στις περιπτώσεις Οργανωμένων Διαμερισμάτων. Για Τουριστ. Χωριά, δείτε κριτήριο αρ.7.2)",null,null,null,null,null,null,null,null,null,null,null,null,null,null,{"$f":"IF(OR(AND($AI$2=1,R33=\"Δ/Ε\"),AND($AI$2=2,S33=\"Δ/Ε\"),AND($AI$2=3, T33=\"Δ/Ε\")),2,IF(O36=\"\",\"\",IF(O36=0,0,IF(AND(O36=1,P35<>\"\"),1,IF(AND(O36=1,P35=\"\"),\"\")))))","v":""}]
[null,{"$f":"IF(X33=\"___\",\"?\",\"ok\")","v":"?"},null,null,null,null,null,null,null,null,null,null,null,null,null,null,150,{"$f":"IF(EISAGOGH!$V$27=1,\"Δ/Ε\",\"ΠΡ\")","v":"ΠΡ"},{"$f":"IF(EISAGOGH!$V$27=1,\"Δ/Ε\",\"ΠΡ\")","v":"ΠΡ"},{"$f":"IF(EISAGOGH!$V$27=1,\"Δ/Ε\",\"ΠΡ\")","v":"ΠΡ"},{"$f":"IF(U32=2,\"Δ/Ε\",IF(U32=\"\",\"ΟΧΙ|ΝΑΙ\",IF(U32=0,\"ΟΧΙ\",IF(U32=1,\"ΝΑΙ\"))))","v":"ΟΧΙ|ΝΑΙ"},null,{"$f":"IF(U32=\"\",\"___\",IF(U32=0,0,IF(AND(U32=1,OR(AND($AI$2=1,R33=\"ΠΡ\"),AND($AI$2=2,S33=\"ΠΡ\"),AND($AI$2=3, T33=\"ΠΡ\"))),Q33,0)))","v":"___"},{"$f":"IF(W33=\"___\",W33,IF(OR(AND($AI$2=1, R33=\"Υ\", U32=0), AND($AI$2=2, S33=\"Υ\", U32=0), AND($AI$2=3, T33=\"Υ\", U32=0)), \"ΟΧΙ\", IF(OR(AND($AI$2=1, R33=\"Υ\", U32=1), AND($AI$2=2, S33=\"Υ\", U32=1), AND($AI$2=3, T33=\"Υ\", U32=1)), \"ΝΑΙ\",\"Δ/Ε\")))","v":"___"},null,null,null,null,{"$f":"IF(X33=\"ΟΧΙ\",CONCATENATE(E32,$AC$8),\"\")","v":""}]
[null,null,null,null,null,null,null,null,null,null,null,null,null,null,null,"Περιγραφή πρόσθετων αθλητικών χώρων"]
[null,null,null,null,"T.E.","Αριθμός επιπρόσθετων κλειστών\nή υπαίθριων αθλητικών χώρων:"]
[null,null,null,null,null,null,null,null,null,null,null,null,null,null,{"$f":"IF(N36=\"\",\"\",IF(N36=0,0,IF(N36>0,1)))","v":""}]
[]
[null,null,null,null,null,"ΣΗΜΕΙ-\nΩΣΕΙΣ:","Δεν διατίθεται"]
[]
[]
[null,{"$f":"IF(X40=\"___\",\"?\",\"\")","v":""},null,null,2.2999999999999998,"Κολυμβητική δεξαμενή  \n(Στα \"Πολυτελείας\" είναι Υποχρεωτική μόνο για επιχειρήσεις δυναμικότητας πάνω από 30 διαμερίσματα) ",null,null,null,null,null,null,null,null,null,null,null,null,null,null,{"$f":"IF(OR(AND($AI$2=1,R42=\"Δ/Ε\"),AND($AI$2=2,S42=\"Δ/Ε\"),AND($AI$2=3, T42=\"Δ/Ε\")),2,IF(Q45=\"\",\"\",IF(Q45=1,1,IF(Q45=0,0))))","v":""}]
[null,{"$f":"IF(X42=\"___\",\"?\",\"ok\")","v":"?"},null,null,null,null,null,null,null,null,null,null,null,null,null,null,{"$f":"IF($AI$2=2,S43,IF($AI$2=3,T43,\"-\"))","v":"-"},{"$f":"IF(EISAGOGH!$AF$33<30,\"ΠΡ\",\"Υ\")","v":"Υ"},"ΠΡ","ΠΡ",{"$f":"IF(U41=\"\",\"ΟΧΙ|ΝΑΙ\",IF(U41=0,\"ΟΧΙ\",IF(U41=1,\"ΝΑΙ\",IF(U41=2,\"Δ/Ε\"))))","v":"ΟΧΙ|ΝΑΙ"},null,{"$f":"IF(U41=\"\",\"___\",IF(U41=0,0,IF(AND(U41=1,OR(AND($AI$2=1,R42=\"ΠΡ\"),AND($AI$2=2,S42=\"ΠΡ\"),AND($AI$2=3, T42=\"ΠΡ\"))),Q42,0)))","v":"___"},{"$f":"IF(W42=\"___\",W42,IF(OR(AND($AI$2=1, R42=\"Υ\", U41=0), AND($AI$2=2, S42=\"Υ\", U41=0), AND($AI$2=3, T42=\"Υ\", U41=0)), \"ΟΧΙ\", IF(OR(AND($AI$2=1, R42=\"Υ\", U41=1), AND($AI$2=2, S42=\"Υ\", U41=1), AND($AI$2=3, T42=\"Υ\", U41=1)), \"ΝΑΙ\",\"Δ/Ε\")))","v":"___"},null,null,null,null,{"$f":"IF(X42=\"ΟΧΙ\",CONCATENATE(E41,$AC$8),\"\")","v":""}]
[null,null,null,null,"T.E.",null,null,null,null,null,null,null,null,null,"Βαθμοί / τάξη:",null,null,"-",50,100]
[]
[null,null,null,null,null,"Ικανοποίηση Κριτηρίου? ( Ν =\"ΝΑΙ\", Χ = \"ΟΧΙ\"):",null,null,null,null,null,null,null,null,null,null,{"$f":"IF(P45=\"\",\"\",IF(OR(P45=\"X\",P45=\"Χ\",P45=0),0,IF(OR(P45=\"Ν\",P45=\"N\",P45=1),1)))","v":""}]
[]
[null,null,null,null,null,"ΣΗΜΕΙ-\nΩΣΕΙΣ:"]
[]
[]
[null,null,null,{"$f":"IF(X49=\"___\",\"?\",\"\")","v":""},2.4,"Βοηθητικοί χώροι κολυμβητικής δεξαμενής \n(αποδυτήρια, αποχωρητήρια, αποθήκη, μηχανοστάσιο) \n(Ισχύει μόνο εάν υπάρχει κολυμβητική δεξαμενή)",null,null,null,null,null,null,null,null,null,null,null,null,null,null,{"$f":"IF(OR(AND($AI$2=1,R51=\"Δ/Ε\"),AND($AI$2=2,S51=\"Δ/Ε\"),AND($AI$2=3, T51=\"Δ/Ε\")),2,IF(Q54=\"\",\"\",IF(Q54=1,1,IF(Q54=0,0))))","v":""}]
[null,{"$f":"IF(X51=\"___\",\"?\",\"ok\")","v":"?"},null,null,null,null,null,null,null,null,null,null,null,null,null,null,"-",{"$f":"IF($U$41=0,\"Δ/Ε\",\"Υ\")","v":"Υ"},{"$f":"IF($U$41=0,\"Δ/Ε\",\"Υ\")","v":"Υ"},{"$f":"IF($U$41=0,\"Δ/Ε\",\"Υ\")","v":"Υ"},{"$f":"IF(U50=\"\",\"ΟΧΙ|ΝΑΙ\",IF(U50=0,\"ΟΧΙ\",IF(U50=1,\"ΝΑΙ\",IF(U50=2,\"Δ/Ε\"))))","v":"ΟΧΙ|ΝΑΙ"},null,{"$f":"IF(U50=\"\",\"___\",IF(U50=0,0,IF(AND(U50=1,OR(AND($AI$2=1,R51=\"ΠΡ\"),AND($AI$2=2,S51=\"ΠΡ\"),AND($AI$2=3, T51=\"ΠΡ\"))),Q51,0)))","v":"___"},{"$f":"IF(W51=\"___\",W51,IF(OR(AND($AI$2=1, R51=\"Υ\", U50=0), AND($AI$2=2, S51=\"Υ\", U50=0), AND($AI$2=3, T51=\"Υ\", U50=0)), \"ΟΧΙ\", IF(OR(AND($AI$2=1, R51=\"Υ\", U50=1), AND($AI$2=2, S51=\"Υ\", U50=1), AND($AI$2=3, T51=\"Υ\", U50=1)), \"ΝΑΙ\",\"Δ/Ε\")))","v":"___"},null,null,null,null,{"$f":"IF(X51=\"ΟΧΙ\",CONCATENATE(E50,$AC$8),\"\")","v":""}]
[null,null,null,null,"T.E."]
[]
[null,null,null,null,null,"Ικανοποίηση Κριτηρίου? ( Ν =\"ΝΑΙ\", Χ = \"ΟΧΙ\"):",null,null,null,null,null,null,null,null,null,null,{"$f":"IF(P54=\"\",\"\",IF(OR(P54=\"X\",P54=\"Χ\",P54=0),0,IF(OR(P54=\"Ν\",P54=\"N\",P54=1),1)))","v":""}]
[]
[null,null,null,null,null,"ΣΗΜΕΙ-\nΩΣΕΙΣ:"]
[]
[]
[null,null,null,{"$f":"IF(X58=\"___\",\"?\",\"\")","v":""},2.5,"Θερμαινόμενη κολυμβητική δεξαμενή ",null,null,null,null,null,null,null,null,null,null,null,null,null,null,{"$f":"IF(OR(AND($AI$2=1,R60=\"Δ/Ε\"),AND($AI$2=2,S60=\"Δ/Ε\"),AND($AI$2=3, T60=\"Δ/Ε\")),2,IF(Q63=\"\",\"\",IF(Q63=1,1,IF(Q63=0,0))))","v":""}]
[null,{"$f":"IF(X60=\"___\",\"?\",\"ok\")","v":"?"},null,null,null,null,null,null,null,null,null,null,null,null,null,null,{"$f":"IF($AI$2=1,R61,IF($AI$2=2,S61,IF($AI$2=3,T61,\"-\")))","v":"-"},"ΠΡ","ΠΡ","ΠΡ",{"$f":"IF(U59=\"\",\"ΟΧΙ|ΝΑΙ\",IF(U59=0,\"ΟΧΙ\",IF(U59=1,\"ΝΑΙ\",IF(U59=2,\"Δ/Ε\"))))","v":"ΟΧΙ|ΝΑΙ"},null,{"$f":"IF(U59=\"\",\"___\",IF(U59=0,0,IF(AND(U59=1,OR(AND($AI$2=1,R60=\"ΠΡ\"),AND($AI$2=2,S60=\"ΠΡ\"),AND($AI$2=3, T60=\"ΠΡ\"))),Q60,0)))","v":"___"},{"$f":"IF(W60=\"___\",W60,IF(OR(AND($AI$2=1, R60=\"Υ\", U59=0), AND($AI$2=2, S60=\"Υ\", U59=0), AND($AI$2=3, T60=\"Υ\", U59=0)), \"ΟΧΙ\", IF(OR(AND($AI$2=1, R60=\"Υ\", U59=1), AND($AI$2=2, S60=\"Υ\", U59=1), AND($AI$2=3, T60=\"Υ\", U59=1)), \"ΝΑΙ\",\"Δ/Ε\")))","v":"___"},null,null,null,null,{"$f":"IF(X60=\"ΟΧΙ\",CONCATENATE(E59,$AC$8),\"\")","v":""}]
[null,null,null,null,"T.E.",null,null,null,null,null,null,null,null,null,"Βαθμοί / τάξη:",null,null,100,200,250]
[]
[null,null,null,null,null,"Ικανοποίηση Κριτηρίου? ( Ν =\"ΝΑΙ\", Χ = \"ΟΧΙ\"):",null,null,null,null,null,null,null,null,null,null,{"$f":"IF($U$41=0,0,IF(P63=\"\",\"\",IF(OR(P63=\"X\",P63=\"Χ\",P63=0),0,IF(OR(P63=\"Ν\",P63=\"N\",P63=1),1))))","v":""}]
[]
[null,null,null,null,null,"ΣΗΜΕΙ-\nΩΣΕΙΣ:"]
[]
[]
[null,null,null,{"$f":"IF(X67=\"___\",\"?\",\"\")","v":""},2.6,"Κήποι και χώροι πρασίνου ",null,null,null,null,null,null,null,null,null,null,null,null,null,null,{"$f":"IF(OR(AND($AI$2=1,R69=\"Δ/Ε\"),AND($AI$2=2,S69=\"Δ/Ε\"),AND($AI$2=3, T69=\"Δ/Ε\")),2,IF(Q72=\"\",\"\",IF(Q72=1,1,IF(Q72=0,0))))","v":""}]
[null,{"$f":"IF(X69=\"___\",\"?\",\"ok\")","v":"?"},null,null,null,null,null,null,null,null,null,null,null,null,null,null,{"$f":"IF($AI$2=1,R70,IF($AI$2=2,S70,IF($AI$2=3,T70,\"-\")))","v":"-"},"ΠΡ","ΠΡ","ΠΡ",{"$f":"IF(U68=\"\",\"ΟΧΙ|ΝΑΙ\",IF(U68=0,\"ΟΧΙ\",IF(U68=1,\"ΝΑΙ\",IF(U68=2,\"Δ/Ε\"))))","v":"ΟΧΙ|ΝΑΙ"},null,{"$f":"IF(U68=\"\",\"___\",IF(U68=0,0,IF(AND(U68=1,OR(AND($AI$2=1,R69=\"ΠΡ\"),AND($AI$2=2,S69=\"ΠΡ\"),AND($AI$2=3, T69=\"ΠΡ\"))),Q69,0)))","v":"___"},{"$f":"IF(W69=\"___\",W69,IF(OR(AND($AI$2=1, R69=\"Υ\", U68=0), AND($AI$2=2, S69=\"Υ\", U68=0), AND($AI$2=3, T69=\"Υ\", U68=0)), \"ΟΧΙ\", IF(OR(AND($AI$2=1, R69=\"Υ\", U68=1), AND($AI$2=2, S69=\"Υ\", U68=1), AND($AI$2=3, T69=\"Υ\", U68=1)), \"ΝΑΙ\",\"Δ/Ε\")))","v":"___"},null,null,null,null,{"$f":"IF(X69=\"ΟΧΙ\",CONCATENATE(E68,$AC$8),\"\")","v":""}]
[null,null,null,null,null,null,null,null,null,null,null,null,null,null,"Βαθμοί ανά τάξη:",null,null,50,100,150]
[]
[null,null,null,null,null,"Ικανοποίηση Κριτηρίου? ( Ν =\"ΝΑΙ\", Χ = \"ΟΧΙ\"):",null,null,null,null,null,null,null,null,null,null,{"$f":"IF(P72=\"\",\"\",IF(OR(P72=\"X\",P72=\"Χ\",P72=0),0,IF(OR(P72=\"Ν\",P72=\"N\",P72=1),1)))","v":""}]
[]
[null,null,null,null,null,"ΣΗΜΕΙ-\nΩΣΕΙΣ:"]
[]
[null,null,null,null,"3.  Κοινόχρηστοι χώροι"]
[]
[null,null,null,{"$f":"IF(X77=\"___\",\"?\",\"\")","v":""},3.1,"Προθάλαμος προσέλευσης και υποδοχή",null,null,null,null,null,null,null,null,null,null,null,null,null,null,{"$f":"IF(OR(AND($AI$2=1,R79=\"Δ/Ε\"),AND($AI$2=2,S79=\"Δ/Ε\"),AND($AI$2=3, T79=\"Δ/Ε\")),2,IF(Q81=\"\",\"\",IF(Q81=1,1,IF(Q81=0,0))))","v":""}]
[null,{"$f":"IF(X79=\"___\",\"?\",\"ok\")","v":"?"},null,null,null,null,null,null,null,null,null,null,null,null,null,null,"-","Υ","Υ","Υ",{"$f":"IF(U78=\"\",\"ΟΧΙ|ΝΑΙ\",IF(U78=0,\"ΟΧΙ\",IF(U78=1,\"ΝΑΙ\",IF(U78=2,\"Δ/Ε\"))))","v":"ΟΧΙ|ΝΑΙ"},null,{"$f":"IF(U78=\"\",\"___\",IF(U78=0,0,IF(AND(U78=1,OR(AND($AI$2=1,R79=\"ΠΡ\"),AND($AI$2=2,S79=\"ΠΡ\"),AND($AI$2=3, T79=\"ΠΡ\"))),Q79,0)))","v":"___"},{"$f":"IF(W79=\"___\",W79,IF(OR(AND($AI$2=1, R79=\"Υ\", U78=0), AND($AI$2=2, S79=\"Υ\", U78=0), AND($AI$2=3, T79=\"Υ\", U78=0)), \"ΟΧΙ\", IF(OR(AND($AI$2=1, R79=\"Υ\", U78=1), AND($AI$2=2, S79=\"Υ\", U78=1), AND($AI$2=3, T79=\"Υ\", U78=1)), \"ΝΑΙ\",\"Δ/Ε\")))","v":"___"},null,null,null,null,{"$f":"IF(X79=\"ΟΧΙ\",CONCATENATE(E78,$AC$8),\"\")","v":""}]
[null,null,null,null,"T.E."]
[null,null,null,null,null,"Ικανοποίηση Κριτηρίου? ( Ν =\"ΝΑΙ\", Χ = \"ΟΧΙ\"):",null,null,null,null,null,null,null,null,null,null,{"$f":"IF(P81=\"\",\"\",IF(OR(P81=\"X\",P81=\"Χ\",P81=0),0,IF(OR(P81=\"Ν\",P81=\"N\",P81=1),1)))","v":""}]
[]
[null,null,null,null,null,"ΣΗΜΕΙ-\nΩΣΕΙΣ:"]
[]
[]
[null,null,null,{"$f":"IF(X85=\"___\",\"?\",\"\")","v":""},3.2,"Κοινόχρηστη αίθουσα παραμονής (σαλόνι) και μπαρ",null,null,null,null,null,null,null,null,null,null,null,null,null,null,{"$f":"IF(OR(AND($AI$2=1,R87=\"Δ/Ε\"),AND($AI$2=2,S87=\"Δ/Ε\"),AND($AI$2=3, T87=\"Δ/Ε\")),2,IF(Q89=\"\",\"\",IF(Q89=1,1,IF(Q89=0,0))))","v":""}]
[null,{"$f":"IF(X87=\"___\",\"?\",\"ok\")","v":"?"},null,null,null,null,null,null,null,null,null,null,null,null,null,null,50,"ΠΡ","ΠΡ","ΠΡ",{"$f":"IF(U86=\"\",\"ΟΧΙ|ΝΑΙ\",IF(U86=0,\"ΟΧΙ\",IF(U86=1,\"ΝΑΙ\",IF(U86=2,\"Δ/Ε\"))))","v":"ΟΧΙ|ΝΑΙ"},null,{"$f":"IF(U86=\"\",\"___\",IF(U86=0,0,IF(AND(U86=1,OR(AND($AI$2=1,R87=\"ΠΡ\"),AND($AI$2=2,S87=\"ΠΡ\"),AND($AI$2=3, T87=\"ΠΡ\"))),Q87,0)))","v":"___"},{"$f":"IF(W87=\"___\",W87,IF(OR(AND($AI$2=1, R87=\"Υ\", U86=0), AND($AI$2=2, S87=\"Υ\", U86=0), AND($AI$2=3, T87=\"Υ\", U86=0)), \"ΟΧΙ\", IF(OR(AND($AI$2=1, R87=\"Υ\", U86=1), AND($AI$2=2, S87=\"Υ\", U86=1), AND($AI$2=3, T87=\"Υ\", U86=1)), \"ΝΑΙ\",\"Δ/Ε\")))","v":"___"},null,null,null,null,{"$f":"IF(X87=\"ΟΧΙ\",CONCATENATE(E86,$AC$8),\"\")","v":""}]
[null,null,null,null,"T.E."]
[null,null,null,null,null,"Ικανοποίηση Κριτηρίου? ( Ν =\"ΝΑΙ\", Χ = \"ΟΧΙ\"):",null,null,null,null,null,null,null,null,null,null,{"$f":"IF(P89=\"\",\"\",IF(OR(P89=\"X\",P89=\"Χ\",P89=0),0,IF(OR(P89=\"Ν\",P89=\"N\",P89=1),1)))","v":""}]
[]
[null,null,null,null,null,"ΣΗΜΕΙ-\nΩΣΕΙΣ:"]
[]
[]
[null,null,null,{"$f":"IF(X93=\"___\",\"?\",\"\")","v":""},3.3,"Αίθουσα εστίασης (εστιατόριο / καφετέρια) ",null,null,null,null,null,null,null,null,null,null,null,null,null,null,{"$f":"IF(OR(AND($AI$2=1,R95=\"Δ/Ε\"),AND($AI$2=2,S95=\"Δ/Ε\"),AND($AI$2=3, T95=\"Δ/Ε\")),2,IF(Q97=\"\",\"\",IF(Q97=1,1,IF(Q97=0,0))))","v":""}]
[null,{"$f":"IF(X95=\"___\",\"?\",\"ok\")","v":"?"},null,null,null,null,null,null,null,null,null,null,null,null,null,null,100,"ΠΡ","ΠΡ","ΠΡ",{"$f":"IF(U94=\"\",\"ΟΧΙ|ΝΑΙ\",IF(U94=0,\"ΟΧΙ\",IF(U94=1,\"ΝΑΙ\",IF(U94=2,\"Δ/Ε\"))))","v":"ΟΧΙ|ΝΑΙ"},null,{"$f":"IF(U94=\"\",\"___\",IF(U94=0,0,IF(AND(U94=1,OR(AND($AI$2=1,R95=\"ΠΡ\"),AND($AI$2=2,S95=\"ΠΡ\"),AND($AI$2=3, T95=\"ΠΡ\"))),Q95,0)))","v":"___"},{"$f":"IF(W95=\"___\",W95,IF(OR(AND($AI$2=1, R95=\"Υ\", U94=0), AND($AI$2=2, S95=\"Υ\", U94=0), AND($AI$2=3, T95=\"Υ\", U94=0)), \"ΟΧΙ\", IF(OR(AND($AI$2=1, R95=\"Υ\", U94=1), AND($AI$2=2, S95=\"Υ\", U94=1), AND($AI$2=3, T95=\"Υ\", U94=1)), \"ΝΑΙ\",\"Δ/Ε\")))","v":"___"},null,null,null,null,{"$f":"IF(X95=\"ΟΧΙ\",CONCATENATE(E94,$AC$8),\"\")","v":""}]
[null,null,null,null,"T.E."]
[null,null,null,null,null,"Ικανοποίηση Κριτηρίου? ( Ν =\"ΝΑΙ\", Χ = \"ΟΧΙ\"):",null,null,null,null,null,null,null,null,null,null,{"$f":"IF(P97=\"\",\"\",IF(OR(P97=\"X\",P97=\"Χ\",P97=0),0,IF(OR(P97=\"Ν\",P97=\"N\",P97=1),1)))","v":""}]
[]
[null,null,null,null,null,"ΣΗΜΕΙ-\nΩΣΕΙΣ:"]
[]
[]
[null,null,null,{"$f":"IF(X101=\"___\",\"?\",\"\")","v":""},3.4,"Αίθουσα πολλαπλής χρήσης",null,null,null,null,null,null,null,null,null,null,null,null,null,null,{"$f":"IF(OR(AND($AI$2=1,R103=\"Δ/Ε\"),AND($AI$2=2,S103=\"Δ/Ε\"),AND($AI$2=3, T103=\"Δ/Ε\")),2,IF(Q105=\"\",\"\",IF(Q105=1,1,IF(Q105=0,0))))","v":""}]
[null,{"$f":"IF(X103=\"___\",\"?\",\"ok\")","v":"?"},null,null,null,null,null,null,null,null,null,null,null,null,null,null,150,"ΠΡ","ΠΡ","ΠΡ",{"$f":"IF(U102=\"\",\"ΟΧΙ|ΝΑΙ\",IF(U102=0,\"ΟΧΙ\",IF(U102=1,\"ΝΑΙ\",IF(U102=2,\"Δ/Ε\"))))","v":"ΟΧΙ|ΝΑΙ"},null,{"$f":"IF(U102=\"\",\"___\",IF(U102=0,0,IF(AND(U102=1,OR(AND($AI$2=1,R103=\"ΠΡ\"),AND($AI$2=2,S103=\"ΠΡ\"),AND($AI$2=3, T103=\"ΠΡ\"))),Q103,0)))","v":"___"},{"$f":"IF(W103=\"___\",W103,IF(OR(AND($AI$2=1, R103=\"Υ\", U102=0), AND($AI$2=2, S103=\"Υ\", U102=0), AND($AI$2=3, T103=\"Υ\", U102=0)), \"ΟΧΙ\", IF(OR(AND($AI$2=1, R103=\"Υ\", U102=1), AND($AI$2=2, S103=\"Υ\", U102=1), AND($AI$2=3, T103=\"Υ\", U102=1)), \"ΝΑΙ\",\"Δ/Ε\")))","v":"___"},null,null,null,null,{"$f":"IF(X103=\"ΟΧΙ\",CONCATENATE(E102,$AC$8),\"\")","v":""}]
[null,null,null,null,"T.E."]
[null,null,null,null,null,"Ικανοποίηση Κριτηρίου? ( Ν =\"ΝΑΙ\", Χ = \"ΟΧΙ\"):",null,null,null,null,null,null,null,null,null,null,{"$f":"IF(P105=\"\",\"\",IF(OR(P105=\"X\",P105=\"Χ\",P105=0),0,IF(OR(P105=\"Ν\",P105=\"N\",P105=1),1)))","v":""}]
[]
[null,null,null,null,null,"ΣΗΜΕΙ-\nΩΣΕΙΣ:"]
[]
[]
[null,null,null,{"$f":"IF(X109=\"___\",\"?\",\"\")","v":""},3.5,"Αίθουσα απασχόλησης παιδιών/αίθουσα παιχνιδιών ",null,null,null,null,null,null,null,null,null,null,null,null,null,null,{"$f":"IF(OR(AND($AI$2=1,R111=\"Δ/Ε\"),AND($AI$2=2,S111=\"Δ/Ε\"),AND($AI$2=3, T111=\"Δ/Ε\")),2,IF(Q113=\"\",\"\",IF(Q113=1,1,IF(Q113=0,0))))","v":""}]
[null,{"$f":"IF(X111=\"___\",\"?\",\"ok\")","v":"?"},null,null,null,null,null,null,null,null,null,null,null,null,null,null,150,"ΠΡ","ΠΡ","ΠΡ",{"$f":"IF(U110=\"\",\"ΟΧΙ|ΝΑΙ\",IF(U110=0,\"ΟΧΙ\",IF(U110=1,\"ΝΑΙ\",IF(U110=2,\"Δ/Ε\"))))","v":"ΟΧΙ|ΝΑΙ"},null,{"$f":"IF(U110=\"\",\"___\",IF(U110=0,0,IF(AND(U110=1,OR(AND($AI$2=1,R111=\"ΠΡ\"),AND($AI$2=2,S111=\"ΠΡ\"),AND($AI$2=3, T111=\"ΠΡ\"))),Q111,0)))","v":"___"},{"$f":"IF(W111=\"___\",W111,IF(OR(AND($AI$2=1, R111=\"Υ\", U110=0), AND($AI$2=2, S111=\"Υ\", U110=0), AND($AI$2=3, T111=\"Υ\", U110=0)), \"ΟΧΙ\", IF(OR(AND($AI$2=1, R111=\"Υ\", U110=1), AND($AI$2=2, S111=\"Υ\", U110=1), AND($AI$2=3, T111=\"Υ\", U110=1)), \"ΝΑΙ\",\"Δ/Ε\")))","v":"___"},null,null,null,null,{"$f":"IF(X111=\"ΟΧΙ\",CONCATENATE(E110,$AC$8),\"\")","v":""}]
[null,null,null,null,"T.E."]
[null,null,null,null,null,"Ικανοποίηση Κριτηρίου? ( Ν =\"ΝΑΙ\", Χ = \"ΟΧΙ\"):",null,null,null,null,null,null,null,null,null,null,{"$f":"IF(P113=\"\",\"\",IF(OR(P113=\"X\",P113=\"Χ\",P113=0),0,IF(OR(P113=\"Ν\",P113=\"N\",P113=1),1)))","v":""}]
[]
[null,null,null,null,null,"ΣΗΜΕΙ-\nΩΣΕΙΣ:"]
[]
[]
[null,null,null,{"$f":"IF(X117=\"___\",\"?\",\"\")","v":""},3.6,"Κοινόχρηστοι χώροι υγιεινής ",null,null,null,null,null,null,null,null,null,null,null,null,null,null,{"$f":"IF(OR(AND($AI$2=1,R119=\"Δ/Ε\"),AND($AI$2=2,S119=\"Δ/Ε\"),AND($AI$2=3, T119=\"Δ/Ε\")),2,IF(Q121=\"\",\"\",IF(Q121=1,1,IF(Q121=0,0))))","v":""}]
[null,{"$f":"IF(X119=\"___\",\"?\",\"ok\")","v":"?"},null,null,null,null,null,null,null,null,null,null,null,null,null,null,50,"Υ","Υ","ΠΡ",{"$f":"IF(U118=\"\",\"ΟΧΙ|ΝΑΙ\",IF(U118=0,\"ΟΧΙ\",IF(U118=1,\"ΝΑΙ\",IF(U118=2,\"Δ/Ε\"))))","v":"ΟΧΙ|ΝΑΙ"},null,{"$f":"IF(U118=\"\",\"___\",IF(U118=0,0,IF(AND(U118=1,OR(AND($AI$2=1,R119=\"ΠΡ\"),AND($AI$2=2,S119=\"ΠΡ\"),AND($AI$2=3, T119=\"ΠΡ\"))),Q119,0)))","v":"___"},{"$f":"IF(W119=\"___\",W119,IF(OR(AND($AI$2=1, R119=\"Υ\", U118=0), AND($AI$2=2, S119=\"Υ\", U118=0), AND($AI$2=3, T119=\"Υ\", U118=0)), \"ΟΧΙ\", IF(OR(AND($AI$2=1, R119=\"Υ\", U118=1), AND($AI$2=2, S119=\"Υ\", U118=1), AND($AI$2=3, T119=\"Υ\", U118=1)), \"ΝΑΙ\",\"Δ/Ε\")))","v":"___"},null,null,null,null,{"$f":"IF(X119=\"ΟΧΙ\",CONCATENATE(E118,$AC$8),\"\")","v":""}]
[null,null,null,null,"T.E."]
[null,null,null,null,null,"Ικανοποίηση Κριτηρίου? ( Ν =\"ΝΑΙ\", Χ = \"ΟΧΙ\"):",null,null,null,null,null,null,null,null,null,null,{"$f":"IF(P121=\"\",\"\",IF(OR(P121=\"X\",P121=\"Χ\",P121=0),0,IF(OR(P121=\"Ν\",P121=\"N\",P121=1),1)))","v":""}]
[]
[null,null,null,null,null,"ΣΗΜΕΙ-\nΩΣΕΙΣ:"]
[]
[null,null,null,null,"4.  Χώρος στάθμευσης  "]
[]
[null,null,null,{"$f":"IF(X126=\"___\",\"?\",\"\")","v":""},4.0999999999999996,"Διαθέσιμος χώρος στάθμευσης πέραν του υποχρεωτικού εντός του χώρου του ακινήτου ή σε παρακείμενο παρκινγκ μέχρι 150μ από το τουριστικό κατάλυμα. ",null,null,null,null,null,null,null,null,null,null,null,null,null,null,{"$f":"IF(OR(AND($AI$2=1,R128=\"Δ/Ε\"),AND($AI$2=2,S128=\"Δ/Ε\"),AND($AI$2=3, T128=\"Δ/Ε\")),2,IF(T130=\"\",\"\",IF(O131=0,0,IF(O131>0,1,\"\"))))","v":""}]
[null,{"$f":"IF(X128=\"___\",\"?\",\"ok\")","v":"?"},null,null,null,null,null,null,null,null,null,null,null,null,null,null,{"$f":"IF(T130=\"\",\"\",(+O132*J132+O133*J133))","v":""},"ΠΡ","ΠΡ","ΠΡ",{"$f":"IF(U127=2,\"Δ/Ε\",IF(U127=\"\",\"ΟΧΙ|ΝΑΙ\",IF(U127=0,\"ΟΧΙ\",IF(U127=1,\"ΝΑΙ\"))))","v":"ΟΧΙ|ΝΑΙ"},null,{"$f":"IF(U127=\"\",\"___\",IF(U127=0,0,IF(AND(U127=1,OR(AND($AI$2=1,R128=\"ΠΡ\"),AND($AI$2=2,S128=\"ΠΡ\"),AND($AI$2=3, T128=\"ΠΡ\"))),Q128,0)))","v":"___"},{"$f":"IF(W128=\"___\",W128,IF(OR(AND($AI$2=1, R128=\"Υ\", U127=0), AND($AI$2=2, S128=\"Υ\", U127=0), AND($AI$2=3, T128=\"Υ\", U127=0)), \"ΟΧΙ\", IF(OR(AND($AI$2=1, R128=\"Υ\", U127=1), AND($AI$2=2, S128=\"Υ\", U127=1), AND($AI$2=3, T128=\"Υ\", U127=1)), \"ΝΑΙ\",\"Δ/Ε\")))","v":"___"},null,null,null,null,{"$f":"IF(X128=\"ΟΧΙ\",CONCATENATE(E127,$AC$8),\"\")","v":""}]
[null,null,null,null,"T.E."]
[null,null,null,null,null,"(**ΧΣ = Χώροι Στάθμευσης)",null,null,null,null,null,null,"Αριθμός υποχρεωτικών ΧΣ:"]
[null,null,null,null,null,null,null,null,null,null,"Σύνολο Πρόσθετων ΧΣ:",null,null,null,{"$f":"IF(T130=\"\",\"\",IF((U132+U131)>T130,(U132+U131-T130),0))","v":""},"Αριθμος διαθέσιμ. Υπαίθριων ΧΣ:"]
[null,null,null,null,"α) Βαθμοί/στεγασμένο ΧΣ =",null,null,null,null,20,"Πρόσθ. Στεγασμένοι (αρ.)",null,null,null,{"$f":"IF(T130=\"\",\"\",IF(O131<=0,0,IF(U132>=O131,O131,IF(U132<O131,U132,0))))","v":""},"Αριθμος διαθέσιμ. Στεγασμένων ΧΣ:"]
[null,null,null,null,"β) Βαθμοί/υπαίθριο ΧΣ =",null,null,null,null,10,"Πρόσθετοι Υπαίθριοι (αρ.):",null,null,null,{"$f":"IF(T130=\"\",\"\",IF(O131<=0,0,IF((U131+U132)>T130,(U131+U132-T130-O132),0)))","v":""},"Σύνολο Διαθέσιμων ΧΣ:",null,null,null,null,{"$f":"IF(AND(U131=\"\",U132=\"\"),\"\",(U131+U132))","v":""}]
[null,null,null,null,null,"* Τυχόν χρήση μη ιδιόκτητου χώρου στάθμευσης προϋποθέτει την ύπαρξη γραπτής συμφωνίας εκμίσθωσης για αποκλειστική χρήση."]
[null,null,null,null,null,"ΣΗΜΕΙ-\nΩΣΕΙΣ:"]
[]
[null,null,null,null,"5.  Διαμερίσματα  "]
[]
[null,null,null,{"$f":"IF(X138=\"___\",\"?\",\"\")","v":""},5.01,"Ελάχιστες διαστάσεις κρεβατιών: .\n\n(μονά: 90 εκ. Χ 200 εκ. ,  διπλά: 160 εκ. Χ 200 εκ.)",null,null,null,null,null,null,null,null,null,null,null,null,null,null,{"$f":"IF(OR(AND($AI$2=1,R140=\"Δ/Ε\"),AND($AI$2=2,S140=\"Δ/Ε\"),AND($AI$2=3, T140=\"Δ/Ε\")),2,IF(Q142=1,\"\",IF(OR(M145=0,U145=0),0,IF(AND(M145=1,U145=1),1,\"\"))))","v":""}]
[null,{"$f":"IF(X140=\"___\",\"?\",\"ok\")","v":"?"},null,null,null,null,null,null,null,null,null,null,null,null,null,null,0,"Υ","Υ","Υ",{"$f":"IF(U139=2,\"Δ/Ε\",IF(U139=\"\",\"ΟΧΙ|ΝΑΙ\",IF(U139=0,\"ΟΧΙ\",IF(U139=1,\"ΝΑΙ\"))))","v":"ΟΧΙ|ΝΑΙ"},null,{"$f":"IF(U139=\"\",\"___\",IF(U139=0,0,IF(AND(U139=1,OR(AND($AI$2=1,R140=\"ΠΡ\"),AND($AI$2=2,S140=\"ΠΡ\"),AND($AI$2=3, T140=\"ΠΡ\"))),Q140,0)))","v":"___"},{"$f":"IF(W140=\"___\",W140,IF(OR(AND($AI$2=1, R140=\"Υ\", U139=0), AND($AI$2=2, S140=\"Υ\", U139=0), AND($AI$2=3, T140=\"Υ\", U139=0)), \"ΟΧΙ\", IF(OR(AND($AI$2=1, R140=\"Υ\", U139=1), AND($AI$2=2, S140=\"Υ\", U139=1), AND($AI$2=3, T140=\"Υ\", U139=1)), \"ΝΑΙ\",\"Δ/Ε\")))","v":"___"},null,null,null,null,{"$f":"IF(X140=\"ΟΧΙ\",CONCATENATE(E139,$AC$8),\"\")","v":""}]
[]
[null,null,null,null,null,"Διαστάσεις Κρεβατιών Μονάδας",null,null,null,null,null,null,null,{"$f":"IF(AND(H144=\"ΟΧΙ\",P144=\"ΟΧΙ\"),\"ERROR\",\"\")","v":""},null,null,{"$f":"IF(N142=\"ERROR\",1,\"\")","v":""}]
[null,null,null,null,"Καταχωρήστε\nΌΧΙ\" εάν δεν\nδιατίθενται",null,null,null,"Μονά Κρεβάτια:",null,null,null,"Καταχωρήστε\nΌΧΙ\" εάν δεν\nδιατίθενται",null,null,null,"Διπλά Κρεβάτια:"]
[null,null,null,null,null,null,null,"ΝΑΙ",null,null,null,null,null,null,null,"ΝΑΙ"]
[null,null,null,null,null,null,null,null,"Πλάτος (μ.)",null,"Μήκος (μ.)",null,{"$f":"IF(H144=\"ΟΧΙ\",1,IF(OR(I144=\"\",K144=\"\"),\"\",IF(AND(I144>=90,K144>=200),1,0)))","v":""},null,null,null,"Πλάτος (μ.)",null,"Μήκος (μ.)",null,{"$f":"IF(P144=\"ΟΧΙ\",1,IF(OR(Q144=\"\",S144=\"\"),\"\",IF(AND(Q144>=160,S144>=200),1,0)))","v":""}]
[null,null,null,null,null,"ΣΗΜΕΙ-\nΩΣΕΙΣ:"]
[]
[]
[null,null,null,{"$f":"IF(X148=\"___\",\"?\",\"\")","v":""},5.0199999999999996,"Διαστάσεις κρεβατιών μεγαλύτερες από τις ελάχιστες",null,null,null,null,null,null,null,null,null,null,null,null,null,null,{"$f":"IF(OR(AND($AI$2=1,R150=\"Δ/Ε\"),AND($AI$2=2,S150=\"Δ/Ε\"),AND($AI$2=3, T150=\"Δ/Ε\")),2,IF(OR(T153=\"\",U154>1),\"\",IF(U154>=H152,1,0)))","v":""}]
[null,{"$f":"IF(X150=\"___\",\"?\",\"ok\")","v":"?"},null,null,null,"(Ελάχ. διαστάσεις: μονά=90 εκ. Χ 200 εκ. ,  διπλά=160 εκ. Χ 200 εκ.)",null,null,null,null,null,null,null,null,null,null,{"$f":"IF(U154<H152,0,IF(AND(U154>=H152,U154<H153),M152,IF(AND(U154>=H153,U154<H154),M153,IF(AND(U154>=H154,U154<=1),M154,0))))","v":0},"ΠΡ","ΠΡ","ΠΡ",{"$f":"IF(U149=2,\"Δ/Ε\",IF(U149=\"\",\"ΟΧΙ|ΝΑΙ\",IF(U149=0,\"ΟΧΙ\",IF(U149=1,\"ΝΑΙ\"))))","v":"ΟΧΙ|ΝΑΙ"},null,{"$f":"IF(U149=\"\",\"___\",IF(U149=0,0,IF(AND(U149=1,OR(AND($AI$2=1,R150=\"ΠΡ\"),AND($AI$2=2,S150=\"ΠΡ\"),AND($AI$2=3, T150=\"ΠΡ\"))),Q150,0)))","v":"___"},{"$f":"IF(W150=\"___\",W150,IF(OR(AND($AI$2=1, R150=\"Υ\", U149=0), AND($AI$2=2, S150=\"Υ\", U149=0), AND($AI$2=3, T150=\"Υ\", U149=0)), \"ΟΧΙ\", IF(OR(AND($AI$2=1, R150=\"Υ\", U149=1), AND($AI$2=2, S150=\"Υ\", U149=1), AND($AI$2=3, T150=\"Υ\", U149=1)), \"ΝΑΙ\",\"Δ/Ε\")))","v":"___"},null,null,null,null,{"$f":"IF(X150=\"ΟΧΙ\",CONCATENATE(E149,$AC$8),\"\")","v":""}]
[null,null,null,null,null,null,null,null,null,null,null,"βαθμοί",null,"Αριθμός Διαμερ/μάτων με διαστάσεις\nκρεβατιών μεγαλ. από ελάχιστες:"]
[null,null,null,null,null,"α] στο",null,0.1,"των διαμερισμάτων:",null,null,null,50,null,null,null,null,null,null,null,{"$f":"IF(AND(V140=0,V150=1),\"ERROR\",\"\")","v":""}]
[null,null,null,null,null,"β] στο",null,0.15,"των διαμερισμάτων:",null,null,null,100,null,null,null,null,null,null,null,{"$f":"IF(U154=\"\",\"\",IF(U154<=1,\"ok\",\"ERROR\"))","v":""}]
[null,null,null,null,null,"γ] άνω του",null,0.25,"των διαμερισμάτων:",null,null,null,150,"Ποσοστό διαμερίσματων επι συνόλου:",null,null,null,null,null,null,{"$f":"IF(T153=\"\",\"\",+T153/EISAGOGH!AF33)","v":""}]
[]
[null,null,null,null,null,"ΣΗΜΕΙ-\nΩΣΕΙΣ:"]
[]
[]
[null,null,null,{"$f":"IF(X158=\"___\",\"?\",\"\")","v":""},5.03,"Τζάκι στο δωμάτιο",null,null,null,null,null,null,null,null,null,null,null,null,null,null,{"$f":"IF(OR(AND($AI$2=1,R160=\"Δ/Ε\"),AND($AI$2=2,S160=\"Δ/Ε\"),AND($AI$2=3, T160=\"Δ/Ε\")),2,IF(Q162=\"\",\"\",IF(Q162=1,1,IF(Q162=0,0))))","v":""}]
[null,{"$f":"IF(X160=\"___\",\"?\",\"ok\")","v":"?"},null,null,null,null,null,null,null,null,null,null,null,null,null,null,100,"ΠΡ","ΠΡ","ΠΡ",{"$f":"IF(U159=\"\",\"ΟΧΙ|ΝΑΙ\",IF(U159=0,\"ΟΧΙ\",IF(U159=1,\"ΝΑΙ\",IF(U159=2,\"Δ/Ε\"))))","v":"ΟΧΙ|ΝΑΙ"},null,{"$f":"IF(U159=\"\",\"___\",IF(U159=0,0,IF(AND(U159=1,OR(AND($AI$2=1,R160=\"ΠΡ\"),AND($AI$2=2,S160=\"ΠΡ\"),AND($AI$2=3, T160=\"ΠΡ\"))),Q160,0)))","v":"___"},{"$f":"IF(W160=\"___\",W160,IF(OR(AND($AI$2=1, R160=\"Υ\", U159=0), AND($AI$2=2, S160=\"Υ\", U159=0), AND($AI$2=3, T160=\"Υ\", U159=0)), \"ΟΧΙ\", IF(OR(AND($AI$2=1, R160=\"Υ\", U159=1), AND($AI$2=2, S160=\"Υ\", U159=1), AND($AI$2=3, T160=\"Υ\", U159=1)), \"ΝΑΙ\",\"Δ/Ε\")))","v":"___"},null,null,null,null,{"$f":"IF(X160=\"ΟΧΙ\",CONCATENATE(E159,$AC$8),\"\")","v":""}]
[]
[null,null,null,null,null,"Ικανοποίηση Κριτηρίου? ( Ν =\"ΝΑΙ\", Χ = \"ΟΧΙ\"):",null,null,null,null,null,null,null,null,null,null,{"$f":"IF(P162=\"\",\"\",IF(OR(P162=\"X\",P162=\"Χ\",P162=0),0,IF(OR(P162=\"Ν\",P162=\"N\",P162=1),1)))","v":""}]
[]
[null,null,null,null,null,"ΣΗΜΕΙ-\nΩΣΕΙΣ:"]
[]
[]
[null,null,null,null,5.04,"Τηλεόραση στα διαμερίσματα:"]
[null,null,null,{"$f":"IF(X167=\"___\",\"?\",\"\")","v":""},"-",null,null,null,null,null,null,null,null,null,null,null,null,null,null,null,{"$f":"IF(OR(AND($AI$2=1,R169=\"Δ/Ε\"),AND($AI$2=2,S169=\"Δ/Ε\"),AND($AI$2=3, T169=\"Δ/Ε\")),2,IF(M174=0,0,IF(OR(U175=\"\",M174=\"\"),\"\",IF(AND(U175>=L169,M174=1),1,0))))","v":""}]
[null,{"$f":"IF(X169=\"___\",\"?\",\"ok\")","v":"?"},null,null,5.05,null,null,5.04,"κατ’ ελάχιστον ",null,null,28,"ιντσών, νέας τεχνολογίας:",null,null,null,0,"Υ","Υ","Υ",{"$f":"IF(U168=2,\"Δ/Ε\",IF(U168=\"\",\"ΟΧΙ|ΝΑΙ\",IF(U168=0,\"ΟΧΙ\",IF(U168=1,\"ΝΑΙ\"))))","v":"ΟΧΙ|ΝΑΙ"},null,{"$f":"IF(U168=\"\",\"___\",IF(U168=0,0,IF(AND(U168=1,OR(AND($AI$2=1,R169=\"ΠΡ\"),AND($AI$2=2,S169=\"ΠΡ\"),AND($AI$2=3, T169=\"ΠΡ\"))),Q169,0)))","v":"___"},{"$f":"IF(W169=\"___\",W169,IF(OR(AND($AI$2=1, R169=\"Υ\", U168=0), AND($AI$2=2, S169=\"Υ\", U168=0), AND($AI$2=3, T169=\"Υ\", U168=0)), \"ΟΧΙ\", IF(OR(AND($AI$2=1, R169=\"Υ\", U168=1), AND($AI$2=2, S169=\"Υ\", U168=1), AND($AI$2=3, T169=\"Υ\", U168=1)), \"ΝΑΙ\",\"Δ/Ε\")))","v":"___"},null,null,null,null,{"$f":"IF(X169=\"ΟΧΙ\",CONCATENATE(H169,$AC$8),\"\")","v":""}]
[]
[null,null,null,null,null,null,null,null,null,null,null,null,null,null,null,null,null,null,null,null,{"$f":"IF(OR(AND($AI$2=1,R172=\"Δ/Ε\"),AND($AI$2=2,S172=\"Δ/Ε\"),AND($AI$2=3, T172=\"Δ/Ε\")),2,IF(M174=0,0,IF(OR(U175=\"\",M174=\"\"),\"\",IF(AND(U175>=L172,M174=1),1,0))))","v":""}]
[null,{"$f":"IF(X172=\"___\",\"?\",\"ok\")","v":"?"},null,null,null,null,null,5.05,"κατ’ ελάχιστον ",null,null,32,"ιντσών, νέας τεχνολογίας:",null,null,null,{"$f":"IF($AI$2=1,R173,IF($AI$2=2,S173,IF($AI$2=3,T173,T173)))","v":100},"ΠΡ","ΠΡ","ΠΡ",{"$f":"IF(U171=2,\"Δ/Ε\",IF(U171=\"\",\"ΟΧΙ|ΝΑΙ\",IF(U171=0,\"ΟΧΙ\",IF(U171=1,\"ΝΑΙ\"))))","v":"ΟΧΙ|ΝΑΙ"},null,{"$f":"IF(U171=\"\",\"___\",IF(U171=0,0,IF(AND(U171=1,OR(AND($AI$2=1,R172=\"ΠΡ\"),AND($AI$2=2,S172=\"ΠΡ\"),AND($AI$2=3, T172=\"ΠΡ\"))),Q172,0)))","v":"___"},{"$f":"IF(W172=\"___\",W172,IF(OR(AND($AI$2=1, R172=\"Υ\", U171=0), AND($AI$2=2, S172=\"Υ\", U171=0), AND($AI$2=3, T172=\"Υ\", U171=0)), \"ΟΧΙ\", IF(OR(AND($AI$2=1, R172=\"Υ\", U171=1), AND($AI$2=2, S172=\"Υ\", U171=1), AND($AI$2=3, T172=\"Υ\", U171=1)), \"ΝΑΙ\",\"Δ/Ε\")))","v":"___"},null,null,null,null,{"$f":"IF(X172=\"ΟΧΙ\",CONCATENATE(H172,$AC$8),\"\")","v":""}]
[null,null,null,null,null,null,null,null,null,null,null,null,null,null,"Βαθμοί / τάξη:",null,null,50,50,100]
[null,null,null,null,null,"Διατίθενται TV νέας τεχνολογίας σε όλα\nτα διαμερίσματα ? (Ν=\"ΝΑΙ\", Χ=\"ΟΧΙ\"):",null,null,null,null,null,null,{"$f":"IF(M175=\"\",\"\",IF(OR(M175=\"X\",M175=\"Χ\",M175=0),0,IF(OR(M175=\"Ν\",M175=\"N\",M175=1),1)))","v":""}]
[null,null,null,null,null,null,null,null,null,null,null,null,null,{"$f":"IF(M174=\"\",\"\",IF(M174=0,\"OXI\",IF(M174=1,\"NAI\")))","v":""},"Ελάχιστο μέγεθος οθόνης (ίντσες)?:"]
[]
[null,null,null,null,null,"ΣΗΜΕΙ-\nΩΣΕΙΣ:"]
[]
[]
[null,null,null,{"$f":"IF(X179=\"___\",\"?\",\"\")","v":""},5.0599999999999996,"Δορυφορική τηλεόραση",null,null,null,null,null,null,null,null,null,null,null,null,null,null,{"$f":"IF(OR(AND($AI$2=1,R181=\"Δ/Ε\"),AND($AI$2=2,S181=\"Δ/Ε\"),AND($AI$2=3, T181=\"Δ/Ε\")),2,IF(Q183=\"\",\"\",IF(Q183=1,1,IF(Q183=0,0))))","v":""}]
[null,{"$f":"IF(X181=\"___\",\"?\",\"ok\")","v":"?"},null,null,null,null,null,null,null,null,null,null,null,null,null,null,100,"ΠΡ","ΠΡ","ΠΡ",{"$f":"IF(U180=\"\",\"ΟΧΙ|ΝΑΙ\",IF(U180=0,\"ΟΧΙ\",IF(U180=1,\"ΝΑΙ\",IF(U180=2,\"Δ/Ε\"))))","v":"ΟΧΙ|ΝΑΙ"},null,{"$f":"IF(U180=\"\",\"___\",IF(U180=0,0,IF(AND(U180=1,OR(AND($AI$2=1,R181=\"ΠΡ\"),AND($AI$2=2,S181=\"ΠΡ\"),AND($AI$2=3, T181=\"ΠΡ\"))),Q181,0)))","v":"___"},{"$f":"IF(W181=\"___\",W181,IF(OR(AND($AI$2=1, R181=\"Υ\", U180=0), AND($AI$2=2, S181=\"Υ\", U180=0), AND($AI$2=3, T181=\"Υ\", U180=0)), \"ΟΧΙ\", IF(OR(AND($AI$2=1, R181=\"Υ\", U180=1), AND($AI$2=2, S181=\"Υ\", U180=1), AND($AI$2=3, T181=\"Υ\", U180=1)), \"ΝΑΙ\",\"Δ/Ε\")))","v":"___"},null,null,null,null,{"$f":"IF(X181=\"ΟΧΙ\",CONCATENATE(E180,$AC$8),\"\")","v":""}]
[]
[null,null,null,null,null,"Ικανοποίηση Κριτηρίου? ( Ν =\"ΝΑΙ\", Χ = \"ΟΧΙ\"):",null,null,null,null,null,null,null,null,null,null,{"$f":"IF(P183=\"\",\"\",IF(OR(P183=\"X\",P183=\"Χ\",P183=0),0,IF(OR(P183=\"Ν\",P183=\"N\",P183=1),1)))","v":""}]
[]
[null,null,null,null,null,"ΣΗΜΕΙ-\nΩΣΕΙΣ:"]
[]
[]
[null,null,null,{"$f":"IF(X187=\"___\",\"?\",\"\")","v":""},5.07,"Πρόσβαση στο διαδίκτυο",null,null,null,null,null,null,null,null,null,null,null,null,null,null,{"$f":"IF(OR(AND($AI$2=1,R189=\"Δ/Ε\"),AND($AI$2=2,S189=\"Δ/Ε\"),AND($AI$2=3, T189=\"Δ/Ε\")),2,IF(Q191=\"\",\"\",IF(Q191=1,1,IF(Q191=0,0))))","v":""}]
[null,{"$f":"IF(X189=\"___\",\"?\",\"ok\")","v":"?"},null,null,null,null,null,null,null,null,null,null,null,null,null,null,"-","Υ","Υ","Υ",{"$f":"IF(U188=\"\",\"ΟΧΙ|ΝΑΙ\",IF(U188=0,\"ΟΧΙ\",IF(U188=1,\"ΝΑΙ\",IF(U188=2,\"Δ/Ε\"))))","v":"ΟΧΙ|ΝΑΙ"},null,{"$f":"IF(U188=\"\",\"___\",IF(U188=0,0,IF(AND(U188=1,OR(AND($AI$2=1,R189=\"ΠΡ\"),AND($AI$2=2,S189=\"ΠΡ\"),AND($AI$2=3, T189=\"ΠΡ\"))),Q189,0)))","v":"___"},{"$f":"IF(W189=\"___\",W189,IF(OR(AND($AI$2=1, R189=\"Υ\", U188=0), AND($AI$2=2, S189=\"Υ\", U188=0), AND($AI$2=3, T189=\"Υ\", U188=0)), \"ΟΧΙ\", IF(OR(AND($AI$2=1, R189=\"Υ\", U188=1), AND($AI$2=2, S189=\"Υ\", U188=1), AND($AI$2=3, T189=\"Υ\", U188=1)), \"ΝΑΙ\",\"Δ/Ε\")))","v":"___"},null,null,null,null,{"$f":"IF(X189=\"ΟΧΙ\",CONCATENATE(E188,$AC$8),\"\")","v":""}]
[]
[null,null,null,null,null,"Ικανοποίηση Κριτηρίου? ( Ν =\"ΝΑΙ\", Χ = \"ΟΧΙ\"):",null,null,null,null,null,null,null,null,null,null,{"$f":"IF(P191=\"\",\"\",IF(OR(P191=\"X\",P191=\"Χ\",P191=0),0,IF(OR(P191=\"Ν\",P191=\"N\",P191=1),1)))","v":""}]
[]
[null,null,null,null,null,"ΣΗΜΕΙ-\nΩΣΕΙΣ:"]
[]
[]
[null,null,null,{"$f":"IF(X195=\"___\",\"?\",\"\")","v":""},5.08,"Ελεύθερη πρόσβαση στο διαδίκτυο",null,null,null,null,null,null,null,null,null,null,null,null,null,null,{"$f":"IF(OR(AND($AI$2=1,R197=\"Δ/Ε\"),AND($AI$2=2,S197=\"Δ/Ε\"),AND($AI$2=3, T197=\"Δ/Ε\")),2,IF(Q199=\"\",\"\",IF(Q199=1,1,IF(Q199=0,0))))","v":""}]
[null,{"$f":"IF(X197=\"___\",\"?\",\"ok\")","v":"?"},null,null,null,null,null,null,null,null,null,null,null,null,null,null,50,"Υ","ΠΡ","ΠΡ",{"$f":"IF(U196=\"\",\"ΟΧΙ|ΝΑΙ\",IF(U196=0,\"ΟΧΙ\",IF(U196=1,\"ΝΑΙ\",IF(U196=2,\"Δ/Ε\"))))","v":"ΟΧΙ|ΝΑΙ"},null,{"$f":"IF(U196=\"\",\"___\",IF(U196=0,0,IF(AND(U196=1,OR(AND($AI$2=1,R197=\"ΠΡ\"),AND($AI$2=2,S197=\"ΠΡ\"),AND($AI$2=3, T197=\"ΠΡ\"))),Q197,0)))","v":"___"},{"$f":"IF(W197=\"___\",W197,IF(OR(AND($AI$2=1, R197=\"Υ\", U196=0), AND($AI$2=2, S197=\"Υ\", U196=0), AND($AI$2=3, T197=\"Υ\", U196=0)), \"ΟΧΙ\", IF(OR(AND($AI$2=1, R197=\"Υ\", U196=1), AND($AI$2=2, S197=\"Υ\", U196=1), AND($AI$2=3, T197=\"Υ\", U196=1)), \"ΝΑΙ\",\"Δ/Ε\")))","v":"___"},null,null,null,null,{"$f":"IF(X197=\"ΟΧΙ\",CONCATENATE(E196,$AC$8),\"\")","v":""}]
[]
[null,null,null,null,null,"Ικανοποίηση Κριτηρίου? ( Ν =\"ΝΑΙ\", Χ = \"ΟΧΙ\"):",null,null,null,null,null,null,null,null,null,null,{"$f":"IF($U$188=0,0,IF(P199=\"\",\"\",IF(OR(P199=\"X\",P199=\"Χ\",P199=0),0,IF(OR(P199=\"Ν\",P199=\"N\",P199=1),1))))","v":""}]
[]
[null,null,null,null,null,"ΣΗΜΕΙ-\nΩΣΕΙΣ:"]
[]
[]
[null,null,null,{"$f":"IF(X203=\"___\",\"?\",\"\")","v":""},5.09,"PAY TV− Movie channels",null,null,null,null,null,null,null,null,null,null,null,null,null,null,{"$f":"IF(OR(AND($AI$2=1,R205=\"Δ/Ε\"),AND($AI$2=2,S205=\"Δ/Ε\"),AND($AI$2=3, T205=\"Δ/Ε\")),2,IF(Q207=\"\",\"\",IF(Q207=1,1,IF(Q207=0,0))))","v":""}]
[null,{"$f":"IF(X205=\"___\",\"?\",\"ok\")","v":"?"},null,null,null,null,null,null,null,null,null,null,null,null,null,null,50,"ΠΡ","ΠΡ","ΠΡ",{"$f":"IF(U204=\"\",\"ΟΧΙ|ΝΑΙ\",IF(U204=0,\"ΟΧΙ\",IF(U204=1,\"ΝΑΙ\",IF(U204=2,\"Δ/Ε\"))))","v":"ΟΧΙ|ΝΑΙ"},null,{"$f":"IF(U204=\"\",\"___\",IF(U204=0,0,IF(AND(U204=1,OR(AND($AI$2=1,R205=\"ΠΡ\"),AND($AI$2=2,S205=\"ΠΡ\"),AND($AI$2=3, T205=\"ΠΡ\"))),Q205,0)))","v":"___"},{"$f":"IF(W205=\"___\",W205,IF(OR(AND($AI$2=1, R205=\"Υ\", U204=0), AND($AI$2=2, S205=\"Υ\", U204=0), AND($AI$2=3, T205=\"Υ\", U204=0)), \"ΟΧΙ\", IF(OR(AND($AI$2=1, R205=\"Υ\", U204=1), AND($AI$2=2, S205=\"Υ\", U204=1), AND($AI$2=3, T205=\"Υ\", U204=1)), \"ΝΑΙ\",\"Δ/Ε\")))","v":"___"},null,null,null,null,{"$f":"IF(X205=\"ΟΧΙ\",CONCATENATE(E204,$AC$8),\"\")","v":""}]
[]
[null,null,null,null,null,"Ικανοποίηση Κριτηρίου? ( Ν =\"ΝΑΙ\", Χ = \"ΟΧΙ\"):",null,null,null,null,null,null,null,null,null,null,{"$f":"IF(P207=\"\",\"\",IF(OR(P207=\"X\",P207=\"Χ\",P207=0),0,IF(OR(P207=\"Ν\",P207=\"N\",P207=1),1)))","v":""}]
[]
[null,null,null,null,null,"ΣΗΜΕΙ-\nΩΣΕΙΣ:"]
[]
[]
[null,null,null,{"$f":"IF(X211=\"___\",\"?\",\"\")","v":""},5.0999999999999996,"Δυνατότητα ασφαλούς κλειδώματος εξωτερικής πόρτας και παραθύρων",null,null,null,null,null,null,null,null,null,null,null,null,null,null,{"$f":"IF(OR(AND($AI$2=1,R213=\"Δ/Ε\"),AND($AI$2=2,S213=\"Δ/Ε\"),AND($AI$2=3, T213=\"Δ/Ε\")),2,IF(Q215=\"\",\"\",IF(Q215=1,1,IF(Q215=0,0))))","v":""}]
[null,{"$f":"IF(X213=\"___\",\"?\",\"ok\")","v":"?"},null,null,null,null,null,null,null,null,null,null,null,null,null,null,100,"ΠΡ","ΠΡ","ΠΡ",{"$f":"IF(U212=\"\",\"ΟΧΙ|ΝΑΙ\",IF(U212=0,\"ΟΧΙ\",IF(U212=1,\"ΝΑΙ\",IF(U212=2,\"Δ/Ε\"))))","v":"ΟΧΙ|ΝΑΙ"},null,{"$f":"IF(U212=\"\",\"___\",IF(U212=0,0,IF(AND(U212=1,OR(AND($AI$2=1,R213=\"ΠΡ\"),AND($AI$2=2,S213=\"ΠΡ\"),AND($AI$2=3, T213=\"ΠΡ\"))),Q213,0)))","v":"___"},{"$f":"IF(W213=\"___\",W213,IF(OR(AND($AI$2=1, R213=\"Υ\", U212=0), AND($AI$2=2, S213=\"Υ\", U212=0), AND($AI$2=3, T213=\"Υ\", U212=0)), \"ΟΧΙ\", IF(OR(AND($AI$2=1, R213=\"Υ\", U212=1), AND($AI$2=2, S213=\"Υ\", U212=1), AND($AI$2=3, T213=\"Υ\", U212=1)), \"ΝΑΙ\",\"Δ/Ε\")))","v":"___"},null,null,null,null,{"$f":"IF(X213=\"ΟΧΙ\",CONCATENATE(E212,$AC$8),\"\")","v":""}]
[]
[null,null,null,null,null,"Ικανοποίηση Κριτηρίου? ( Ν =\"ΝΑΙ\", Χ = \"ΟΧΙ\"):",null,null,null,null,null,null,null,null,null,null,{"$f":"IF(P215=\"\",\"\",IF(OR(P215=\"X\",P215=\"Χ\",P215=0),0,IF(OR(P215=\"Ν\",P215=\"N\",P215=1),1)))","v":""}]
[]
[null,null,null,null,null,"ΣΗΜΕΙ-\nΩΣΕΙΣ:"]
[]
[]
[null,null,null,{"$f":"IF(X219=\"___\",\"?\",\"\")","v":""},5.1100000000000003,"Κλειδαριά ασφαλείας στην μπαλκονόπορτα,\n στο 25% των δωματίων.",null,null,null,null,null,null,null,null,null,null,null,null,null,null,{"$f":"IF(OR(AND($AI$2=1,R221=\"Δ/Ε\"),AND($AI$2=2,S221=\"Δ/Ε\"),AND($AI$2=3, T221=\"Δ/Ε\")),2,IF(O223=\"\",\"\",IF(U223>=0.25,1,0)))","v":""}]
[null,{"$f":"IF(X221=\"___\",\"?\",\"ok\")","v":"?"},null,null,null,null,null,null,null,null,null,null,null,null,null,null,25,"ΠΡ","ΠΡ","ΠΡ",{"$f":"IF(U220=2,\"Δ/Ε\",IF(U220=\"\",\"ΟΧΙ|ΝΑΙ\",IF(U220=0,\"ΟΧΙ\",IF(U220=1,\"ΝΑΙ\"))))","v":"ΟΧΙ|ΝΑΙ"},null,{"$f":"IF(U220=\"\",\"___\",IF(U220=0,0,IF(AND(U220=1,OR(AND($AI$2=1,R221=\"ΠΡ\"),AND($AI$2=2,S221=\"ΠΡ\"),AND($AI$2=3, T221=\"ΠΡ\"))),Q221,0)))","v":"___"},{"$f":"IF(W221=\"___\",W221,IF(OR(AND($AI$2=1, R221=\"Υ\", U220=0), AND($AI$2=2, S221=\"Υ\", U220=0), AND($AI$2=3, T221=\"Υ\", U220=0)), \"ΟΧΙ\", IF(OR(AND($AI$2=1, R221=\"Υ\", U220=1), AND($AI$2=2, S221=\"Υ\", U220=1), AND($AI$2=3, T221=\"Υ\", U220=1)), \"ΝΑΙ\",\"Δ/Ε\")))","v":"___"},null,null,null,null,{"$f":"IF(X221=\"ΟΧΙ\",CONCATENATE(E220,$AC$8),\"\")","v":""}]
[null,null,null,null,null,"Αριθμός διαμερισμάτων με\n κλειδαριά ασφαλείας στην μπαλκονόπορτα?:"]
[null,null,null,null,null,null,null,null,null,null,null,null,null,null,null,{"$f":"IF(O223=\"\",\"\",IF(U223>1,\"ERR.\",\"\"))","v":""},"Ποσοστό επι συνόλου:",null,null,null,{"$f":"IF(O223=\"\",\"\",+O223/EISAGOGH!AF33)","v":""}]
[]
[null,null,null,null,null,"ΣΗΜΕΙ-\nΩΣΕΙΣ:"]
[]
[]
[null,null,null,{"$f":"IF(X227=\"___\",\"?\",\"\")","v":""},5.12,"Σύστημα ελέγχου λειτουργίας κλιματισμού εάν η μπαλκονόπορτα του δωματίου είναι κλειστή.",null,null,null,null,null,null,null,null,null,null,null,null,null,null,{"$f":"IF(OR(AND($AI$2=1,R229=\"Δ/Ε\"),AND($AI$2=2,S229=\"Δ/Ε\"),AND($AI$2=3, T229=\"Δ/Ε\")),2,IF(Q231=\"\",\"\",IF(Q231=1,1,IF(Q231=0,0))))","v":""}]
[null,{"$f":"IF(X229=\"___\",\"?\",\"ok\")","v":"?"},null,null,null,null,null,null,null,null,null,null,null,null,null,null,100,"ΠΡ","ΠΡ","ΠΡ",{"$f":"IF(U228=\"\",\"ΟΧΙ|ΝΑΙ\",IF(U228=0,\"ΟΧΙ\",IF(U228=1,\"ΝΑΙ\",IF(U228=2,\"Δ/Ε\"))))","v":"ΟΧΙ|ΝΑΙ"},null,{"$f":"IF(U228=\"\",\"___\",IF(U228=0,0,IF(AND(U228=1,OR(AND($AI$2=1,R229=\"ΠΡ\"),AND($AI$2=2,S229=\"ΠΡ\"),AND($AI$2=3, T229=\"ΠΡ\"))),Q229,0)))","v":"___"},{"$f":"IF(W229=\"___\",W229,IF(OR(AND($AI$2=1, R229=\"Υ\", U228=0), AND($AI$2=2, S229=\"Υ\", U228=0), AND($AI$2=3, T229=\"Υ\", U228=0)), \"ΟΧΙ\", IF(OR(AND($AI$2=1, R229=\"Υ\", U228=1), AND($AI$2=2, S229=\"Υ\", U228=1), AND($AI$2=3, T229=\"Υ\", U228=1)), \"ΝΑΙ\",\"Δ/Ε\")))","v":"___"},null,null,null,null,{"$f":"IF(X229=\"ΟΧΙ\",CONCATENATE(E228,$AC$8),\"\")","v":""}]
[]
[null,null,null,null,null,"Ικανοποίηση Κριτηρίου? ( Ν =\"ΝΑΙ\", Χ = \"ΟΧΙ\"):",null,null,null,null,null,null,null,null,null,null,{"$f":"IF(P231=\"\",\"\",IF(OR(P231=\"X\",P231=\"Χ\",P231=0),0,IF(OR(P231=\"Ν\",P231=\"N\",P231=1),1)))","v":""}]
[]
[]
[null,null,null,null,null,"ΣΗΜΕΙ-\nΩΣΕΙΣ:"]
[]
[]
[null,null,null,{"$f":"IF(X236=\"___\",\"?\",\"\")","v":""},5.13,"Δυνατότητα προσθήκης παιδικού κρεβατιού",null,null,null,null,null,null,null,null,null,null,null,null,null,null,{"$f":"IF(OR(AND($AI$2=1,R238=\"Δ/Ε\"),AND($AI$2=2,S238=\"Δ/Ε\"),AND($AI$2=3, T238=\"Δ/Ε\")),2,IF(Q240=\"\",\"\",IF(Q240=1,1,IF(Q240=0,0))))","v":""}]
[null,{"$f":"IF(X238=\"___\",\"?\",\"ok\")","v":"?"},null,null,null,null,null,null,null,null,null,null,null,null,null,null,50,"ΠΡ","ΠΡ","ΠΡ",{"$f":"IF(U237=\"\",\"ΟΧΙ|ΝΑΙ\",IF(U237=0,\"ΟΧΙ\",IF(U237=1,\"ΝΑΙ\",IF(U237=2,\"Δ/Ε\"))))","v":"ΟΧΙ|ΝΑΙ"},null,{"$f":"IF(U237=\"\",\"___\",IF(U237=0,0,IF(AND(U237=1,OR(AND($AI$2=1,R238=\"ΠΡ\"),AND($AI$2=2,S238=\"ΠΡ\"),AND($AI$2=3, T238=\"ΠΡ\"))),Q238,0)))","v":"___"},{"$f":"IF(W238=\"___\",W238,IF(OR(AND($AI$2=1, R238=\"Υ\", U237=0), AND($AI$2=2, S238=\"Υ\", U237=0), AND($AI$2=3, T238=\"Υ\", U237=0)), \"ΟΧΙ\", IF(OR(AND($AI$2=1, R238=\"Υ\", U237=1), AND($AI$2=2, S238=\"Υ\", U237=1), AND($AI$2=3, T238=\"Υ\", U237=1)), \"ΝΑΙ\",\"Δ/Ε\")))","v":"___"},null,null,null,null,{"$f":"IF(X238=\"ΟΧΙ\",CONCATENATE(E237,$AC$8),\"\")","v":""}]
[]
[null,null,null,null,null,"Ικανοποίηση Κριτηρίου? ( Ν =\"ΝΑΙ\", Χ = \"ΟΧΙ\"):",null,null,null,null,null,null,null,null,null,null,{"$f":"IF(P240=\"\",\"\",IF(OR(P240=\"X\",P240=\"Χ\",P240=0),0,IF(OR(P240=\"Ν\",P240=\"N\",P240=1),1)))","v":""}]
[]
[null,null,null,null,null,"ΣΗΜΕΙ-\nΩΣΕΙΣ:"]
[]
[]
[null,null,null,{"$f":"IF(X244=\"___\",\"?\",\"\")","v":""},5.14,"Χρηματοκιβώτιο",null,null,null,null,null,null,null,null,null,null,null,null,null,null,{"$f":"IF(OR(AND($AI$2=1,R246=\"Δ/Ε\"),AND($AI$2=2,S246=\"Δ/Ε\"),AND($AI$2=3, T246=\"Δ/Ε\")),2,IF(Q248=\"\",\"\",IF(Q248=1,1,IF(Q248=0,0))))","v":""}]
[null,{"$f":"IF(X246=\"___\",\"?\",\"ok\")","v":"?"},null,null,null,null,null,null,null,null,null,null,null,null,null,null,50,"ΠΡ","ΠΡ","ΠΡ",{"$f":"IF(U245=\"\",\"ΟΧΙ|ΝΑΙ\",IF(U245=0,\"ΟΧΙ\",IF(U245=1,\"ΝΑΙ\",IF(U245=2,\"Δ/Ε\"))))","v":"ΟΧΙ|ΝΑΙ"},null,{"$f":"IF(U245=\"\",\"___\",IF(U245=0,0,IF(AND(U245=1,OR(AND($AI$2=1,R246=\"ΠΡ\"),AND($AI$2=2,S246=\"ΠΡ\"),AND($AI$2=3, T246=\"ΠΡ\"))),Q246,0)))","v":"___"},{"$f":"IF(W246=\"___\",W246,IF(OR(AND($AI$2=1, R246=\"Υ\", U245=0), AND($AI$2=2, S246=\"Υ\", U245=0), AND($AI$2=3, T246=\"Υ\", U245=0)), \"ΟΧΙ\", IF(OR(AND($AI$2=1, R246=\"Υ\", U245=1), AND($AI$2=2, S246=\"Υ\", U245=1), AND($AI$2=3, T246=\"Υ\", U245=1)), \"ΝΑΙ\",\"Δ/Ε\")))","v":"___"},null,null,null,null,{"$f":"IF(X246=\"ΟΧΙ\",CONCATENATE(E245,$AC$8),\"\")","v":""}]
[]
[null,null,null,null,null,"Ικανοποίηση Κριτηρίου? ( Ν =\"ΝΑΙ\", Χ = \"ΟΧΙ\"):",null,null,null,null,null,null,null,null,null,null,{"$f":"IF(P248=\"\",\"\",IF(OR(P248=\"X\",P248=\"Χ\",P248=0),0,IF(OR(P248=\"Ν\",P248=\"N\",P248=1),1)))","v":""}]
[]
[null,null,null,null,null,"ΣΗΜΕΙ-\nΩΣΕΙΣ:"]
[]
[]
[null,null,null,{"$f":"IF(X252=\"___\",\"?\",\"\")","v":""},5.15,"Σίδερο και σανίδα σιδερώματος",null,null,null,null,null,null,null,null,null,null,null,null,null,null,{"$f":"IF(OR(AND($AI$2=1,R254=\"Δ/Ε\"),AND($AI$2=2,S254=\"Δ/Ε\"),AND($AI$2=3, T254=\"Δ/Ε\")),2,IF(Q256=\"\",\"\",IF(Q256=1,1,IF(Q256=0,0))))","v":""}]
[null,{"$f":"IF(X254=\"___\",\"?\",\"ok\")","v":"?"},null,null,null,null,null,null,null,null,null,null,null,null,null,null,50,"ΠΡ","ΠΡ","ΠΡ",{"$f":"IF(U253=\"\",\"ΟΧΙ|ΝΑΙ\",IF(U253=0,\"ΟΧΙ\",IF(U253=1,\"ΝΑΙ\",IF(U253=2,\"Δ/Ε\"))))","v":"ΟΧΙ|ΝΑΙ"},null,{"$f":"IF(U253=\"\",\"___\",IF(U253=0,0,IF(AND(U253=1,OR(AND($AI$2=1,R254=\"ΠΡ\"),AND($AI$2=2,S254=\"ΠΡ\"),AND($AI$2=3, T254=\"ΠΡ\"))),Q254,0)))","v":"___"},{"$f":"IF(W254=\"___\",W254,IF(OR(AND($AI$2=1, R254=\"Υ\", U253=0), AND($AI$2=2, S254=\"Υ\", U253=0), AND($AI$2=3, T254=\"Υ\", U253=0)), \"ΟΧΙ\", IF(OR(AND($AI$2=1, R254=\"Υ\", U253=1), AND($AI$2=2, S254=\"Υ\", U253=1), AND($AI$2=3, T254=\"Υ\", U253=1)), \"ΝΑΙ\",\"Δ/Ε\")))","v":"___"},null,null,null,null,{"$f":"IF(X254=\"ΟΧΙ\",CONCATENATE(E253,$AC$8),\"\")","v":""}]
[]
[null,null,null,null,null,"Ικανοποίηση Κριτηρίου? ( Ν =\"ΝΑΙ\", Χ = \"ΟΧΙ\"):",null,null,null,null,null,null,null,null,null,null,{"$f":"IF(P256=\"\",\"\",IF(OR(P256=\"X\",P256=\"Χ\",P256=0),0,IF(OR(P256=\"Ν\",P256=\"N\",P256=1),1)))","v":""}]
[]
[null,null,null,null,null,"ΣΗΜΕΙ-\nΩΣΕΙΣ:"]
[]
[]
[null,null,null,{"$f":"IF(X260=\"___\",\"?\",\"\")","v":""},5.16,"Πρέσα παντελονιών",null,null,null,null,null,null,null,null,null,null,null,null,null,null,{"$f":"IF(OR(AND($AI$2=1,R262=\"Δ/Ε\"),AND($AI$2=2,S262=\"Δ/Ε\"),AND($AI$2=3, T262=\"Δ/Ε\")),2,IF(Q264=\"\",\"\",IF(Q264=1,1,IF(Q264=0,0))))","v":""}]
[null,{"$f":"IF(X262=\"___\",\"?\",\"ok\")","v":"?"},null,null,null,null,null,null,null,null,null,null,null,null,null,null,50,"ΠΡ","ΠΡ","ΠΡ",{"$f":"IF(U261=\"\",\"ΟΧΙ|ΝΑΙ\",IF(U261=0,\"ΟΧΙ\",IF(U261=1,\"ΝΑΙ\",IF(U261=2,\"Δ/Ε\"))))","v":"ΟΧΙ|ΝΑΙ"},null,{"$f":"IF(U261=\"\",\"___\",IF(U261=0,0,IF(AND(U261=1,OR(AND($AI$2=1,R262=\"ΠΡ\"),AND($AI$2=2,S262=\"ΠΡ\"),AND($AI$2=3, T262=\"ΠΡ\"))),Q262,0)))","v":"___"},{"$f":"IF(W262=\"___\",W262,IF(OR(AND($AI$2=1, R262=\"Υ\", U261=0), AND($AI$2=2, S262=\"Υ\", U261=0), AND($AI$2=3, T262=\"Υ\", U261=0)), \"ΟΧΙ\", IF(OR(AND($AI$2=1, R262=\"Υ\", U261=1), AND($AI$2=2, S262=\"Υ\", U261=1), AND($AI$2=3, T262=\"Υ\", U261=1)), \"ΝΑΙ\",\"Δ/Ε\")))","v":"___"},null,null,null,null,{"$f":"IF(X262=\"ΟΧΙ\",CONCATENATE(E261,$AC$8),\"\")","v":""}]
[]
[null,null,null,null,null,"Ικανοποίηση Κριτηρίου? ( Ν =\"ΝΑΙ\", Χ = \"ΟΧΙ\"):",null,null,null,null,null,null,null,null,null,null,{"$f":"IF(P264=\"\",\"\",IF(OR(P264=\"X\",P264=\"Χ\",P264=0),0,IF(OR(P264=\"Ν\",P264=\"N\",P264=1),1)))","v":""}]
[]
[null,null,null,null,null,"ΣΗΜΕΙ-\nΩΣΕΙΣ:"]
[]
[]
[null,null,null,{"$f":"IF(X268=\"___\",\"?\",\"\")","v":""},5.17,"\nΛοιπές ατομικές εξυπηρετήσεις  (σάκος ρούχων για καθαριστήριο, απαραίτητα υλικά για ράψιμο, φάκελος αλληλογραφίας, γραφική ύλη, βερνίκι και κόκαλο υποδημάτων)",null,null,null,null,null,null,null,null,null,null,null,null,null,null,{"$f":"IF(OR(AND($AI$2=1,R270=\"Δ/Ε\"),AND($AI$2=2,S270=\"Δ/Ε\"),AND($AI$2=3, T270=\"Δ/Ε\")),2,IF(Q272=\"\",\"\",IF(Q272=1,1,IF(Q272=0,0))))","v":""}]
[null,{"$f":"IF(X270=\"___\",\"?\",\"ok\")","v":"?"},null,null,null,null,null,null,null,null,null,null,null,null,null,null,50,"ΠΡ","ΠΡ","ΠΡ",{"$f":"IF(U269=\"\",\"ΟΧΙ|ΝΑΙ\",IF(U269=0,\"ΟΧΙ\",IF(U269=1,\"ΝΑΙ\",IF(U269=2,\"Δ/Ε\"))))","v":"ΟΧΙ|ΝΑΙ"},null,{"$f":"IF(U269=\"\",\"___\",IF(U269=0,0,IF(AND(U269=1,OR(AND($AI$2=1,R270=\"ΠΡ\"),AND($AI$2=2,S270=\"ΠΡ\"),AND($AI$2=3, T270=\"ΠΡ\"))),Q270,0)))","v":"___"},{"$f":"IF(W270=\"___\",W270,IF(OR(AND($AI$2=1, R270=\"Υ\", U269=0), AND($AI$2=2, S270=\"Υ\", U269=0), AND($AI$2=3, T270=\"Υ\", U269=0)), \"ΟΧΙ\", IF(OR(AND($AI$2=1, R270=\"Υ\", U269=1), AND($AI$2=2, S270=\"Υ\", U269=1), AND($AI$2=3, T270=\"Υ\", U269=1)), \"ΝΑΙ\",\"Δ/Ε\")))","v":"___"},null,null,null,null,{"$f":"IF(X270=\"ΟΧΙ\",CONCATENATE(E269,$AC$8),\"\")","v":""}]
[]
[null,null,null,null,null,"Ικανοποίηση Κριτηρίου? ( Ν =\"ΝΑΙ\", Χ = \"ΟΧΙ\"):",null,null,null,null,null,null,null,null,null,null,{"$f":"IF(P272=\"\",\"\",IF(OR(P272=\"X\",P272=\"Χ\",P272=0),0,IF(OR(P272=\"Ν\",P272=\"N\",P272=1),1)))","v":""}]
[]
[null,null,null,null,null,"ΣΗΜΕΙ-\nΩΣΕΙΣ:"]
[]
[]
[null,null,null,{"$f":"IF(X276=\"___\",\"?\",\"\")","v":""},5.18,"Καθαρισμός στρωμάτων σε ετήσια βάση",null,null,null,null,null,null,null,null,null,null,null,null,null,null,{"$f":"IF(OR(AND($AI$2=1,R278=\"Δ/Ε\"),AND($AI$2=2,S278=\"Δ/Ε\"),AND($AI$2=3, T278=\"Δ/Ε\")),2,IF(Q280=\"\",\"\",IF(Q280=1,1,IF(Q280=0,0))))","v":""}]
[null,{"$f":"IF(X278=\"___\",\"?\",\"ok\")","v":"?"},null,null,null,null,null,null,null,null,null,null,null,null,null,null,100,"Υ","ΠΡ","ΠΡ",{"$f":"IF(U277=\"\",\"ΟΧΙ|ΝΑΙ\",IF(U277=0,\"ΟΧΙ\",IF(U277=1,\"ΝΑΙ\",IF(U277=2,\"Δ/Ε\"))))","v":"ΟΧΙ|ΝΑΙ"},null,{"$f":"IF(U277=\"\",\"___\",IF(U277=0,0,IF(AND(U277=1,OR(AND($AI$2=1,R278=\"ΠΡ\"),AND($AI$2=2,S278=\"ΠΡ\"),AND($AI$2=3, T278=\"ΠΡ\"))),Q278,0)))","v":"___"},{"$f":"IF(W278=\"___\",W278,IF(OR(AND($AI$2=1, R278=\"Υ\", U277=0), AND($AI$2=2, S278=\"Υ\", U277=0), AND($AI$2=3, T278=\"Υ\", U277=0)), \"ΟΧΙ\", IF(OR(AND($AI$2=1, R278=\"Υ\", U277=1), AND($AI$2=2, S278=\"Υ\", U277=1), AND($AI$2=3, T278=\"Υ\", U277=1)), \"ΝΑΙ\",\"Δ/Ε\")))","v":"___"},null,null,null,null,{"$f":"IF(X278=\"ΟΧΙ\",CONCATENATE(E277,$AC$8),\"\")","v":""}]
[]
[null,null,null,null,null,"Ικανοποίηση Κριτηρίου? ( Ν =\"ΝΑΙ\", Χ = \"ΟΧΙ\"):",null,null,null,null,null,null,null,null,null,null,{"$f":"IF(P280=\"\",\"\",IF(OR(P280=\"X\",P280=\"Χ\",P280=0),0,IF(OR(P280=\"Ν\",P280=\"N\",P280=1),1)))","v":""}]
[]
[null,null,null,null,null,"ΣΗΜΕΙ-\nΩΣΕΙΣ:"]
[]
[]
[null,null,null,{"$f":"IF(X284=\"___\",\"?\",\"\")","v":""},5.19,"Επιλογή μαξιλαριών",null,null,null,null,null,null,null,null,null,null,null,null,null,null,{"$f":"IF(OR(AND($AI$2=1,R286=\"Δ/Ε\"),AND($AI$2=2,S286=\"Δ/Ε\"),AND($AI$2=3, T286=\"Δ/Ε\")),2,IF(Q288=\"\",\"\",IF(Q288=1,1,IF(Q288=0,0))))","v":""}]
[null,{"$f":"IF(X286=\"___\",\"?\",\"ok\")","v":"?"},null,null,null,null,null,null,null,null,null,null,null,null,null,null,50,"ΠΡ","ΠΡ","ΠΡ",{"$f":"IF(U285=\"\",\"ΟΧΙ|ΝΑΙ\",IF(U285=0,\"ΟΧΙ\",IF(U285=1,\"ΝΑΙ\",IF(U285=2,\"Δ/Ε\"))))","v":"ΟΧΙ|ΝΑΙ"},null,{"$f":"IF(U285=\"\",\"___\",IF(U285=0,0,IF(AND(U285=1,OR(AND($AI$2=1,R286=\"ΠΡ\"),AND($AI$2=2,S286=\"ΠΡ\"),AND($AI$2=3, T286=\"ΠΡ\"))),Q286,0)))","v":"___"},{"$f":"IF(W286=\"___\",W286,IF(OR(AND($AI$2=1, R286=\"Υ\", U285=0), AND($AI$2=2, S286=\"Υ\", U285=0), AND($AI$2=3, T286=\"Υ\", U285=0)), \"ΟΧΙ\", IF(OR(AND($AI$2=1, R286=\"Υ\", U285=1), AND($AI$2=2, S286=\"Υ\", U285=1), AND($AI$2=3, T286=\"Υ\", U285=1)), \"ΝΑΙ\",\"Δ/Ε\")))","v":"___"},null,null,null,null,{"$f":"IF(X286=\"ΟΧΙ\",CONCATENATE(E285,$AC$8),\"\")","v":""}]
[]
[null,null,null,null,null,"Ικανοποίηση Κριτηρίου? ( Ν =\"ΝΑΙ\", Χ = \"ΟΧΙ\"):",null,null,null,null,null,null,null,null,null,null,{"$f":"IF(P288=\"\",\"\",IF(OR(P288=\"X\",P288=\"Χ\",P288=0),0,IF(OR(P288=\"Ν\",P288=\"N\",P288=1),1)))","v":""}]
[]
[null,null,null,null,null,"ΣΗΜΕΙ-\nΩΣΕΙΣ:"]
[]
[]
[null,null,null,{"$f":"IF(X292=\"___\",\"?\",\"\")","v":""},5.2,"Ένα κάθισμα / καρέκλα ανά κλίνη",null,null,null,null,null,null,null,null,null,null,null,null,null,null,{"$f":"IF(OR(AND($AI$2=1,R294=\"Δ/Ε\"),AND($AI$2=2,S294=\"Δ/Ε\"),AND($AI$2=3, T294=\"Δ/Ε\")),2,IF(Q296=\"\",\"\",IF(Q296=1,1,IF(Q296=0,0))))","v":""}]
[null,{"$f":"IF(X294=\"___\",\"?\",\"ok\")","v":"?"},null,null,null,null,null,null,null,null,null,null,null,null,null,null,25,"ΠΡ","ΠΡ","ΠΡ",{"$f":"IF(U293=\"\",\"ΟΧΙ|ΝΑΙ\",IF(U293=0,\"ΟΧΙ\",IF(U293=1,\"ΝΑΙ\",IF(U293=2,\"Δ/Ε\"))))","v":"ΟΧΙ|ΝΑΙ"},null,{"$f":"IF(U293=\"\",\"___\",IF(U293=0,0,IF(AND(U293=1,OR(AND($AI$2=1,R294=\"ΠΡ\"),AND($AI$2=2,S294=\"ΠΡ\"),AND($AI$2=3, T294=\"ΠΡ\"))),Q294,0)))","v":"___"},{"$f":"IF(W294=\"___\",W294,IF(OR(AND($AI$2=1, R294=\"Υ\", U293=0), AND($AI$2=2, S294=\"Υ\", U293=0), AND($AI$2=3, T294=\"Υ\", U293=0)), \"ΟΧΙ\", IF(OR(AND($AI$2=1, R294=\"Υ\", U293=1), AND($AI$2=2, S294=\"Υ\", U293=1), AND($AI$2=3, T294=\"Υ\", U293=1)), \"ΝΑΙ\",\"Δ/Ε\")))","v":"___"},null,null,null,null,{"$f":"IF(X294=\"ΟΧΙ\",CONCATENATE(E293,$AC$8),\"\")","v":""}]
[]
[null,null,null,null,null,"Ικανοποίηση Κριτηρίου? ( Ν =\"ΝΑΙ\", Χ = \"ΟΧΙ\"):",null,null,null,null,null,null,null,null,null,null,{"$f":"IF(P296=\"\",\"\",IF(OR(P296=\"X\",P296=\"Χ\",P296=0),0,IF(OR(P296=\"Ν\",P296=\"N\",P296=1),1)))","v":""}]
[]
[null,null,null,null,null,"ΣΗΜΕΙ-\nΩΣΕΙΣ:"]
[]
[]
[null,null,null,{"$f":"IF(X300=\"___\",\"?\",\"\")","v":""},5.21,"Τραπεζάκι",null,null,null,null,null,null,null,null,null,null,null,null,null,null,{"$f":"IF(OR(AND($AI$2=1,R302=\"Δ/Ε\"),AND($AI$2=2,S302=\"Δ/Ε\"),AND($AI$2=3, T302=\"Δ/Ε\")),2,IF(Q304=\"\",\"\",IF(Q304=1,1,IF(Q304=0,0))))","v":""}]
[null,{"$f":"IF(X302=\"___\",\"?\",\"ok\")","v":"?"},null,null,null,null,null,null,null,null,null,null,null,null,null,null,50,"ΠΡ","ΠΡ","ΠΡ",{"$f":"IF(U301=\"\",\"ΟΧΙ|ΝΑΙ\",IF(U301=0,\"ΟΧΙ\",IF(U301=1,\"ΝΑΙ\",IF(U301=2,\"Δ/Ε\"))))","v":"ΟΧΙ|ΝΑΙ"},null,{"$f":"IF(U301=\"\",\"___\",IF(U301=0,0,IF(AND(U301=1,OR(AND($AI$2=1,R302=\"ΠΡ\"),AND($AI$2=2,S302=\"ΠΡ\"),AND($AI$2=3, T302=\"ΠΡ\"))),Q302,0)))","v":"___"},{"$f":"IF(W302=\"___\",W302,IF(OR(AND($AI$2=1, R302=\"Υ\", U301=0), AND($AI$2=2, S302=\"Υ\", U301=0), AND($AI$2=3, T302=\"Υ\", U301=0)), \"ΟΧΙ\", IF(OR(AND($AI$2=1, R302=\"Υ\", U301=1), AND($AI$2=2, S302=\"Υ\", U301=1), AND($AI$2=3, T302=\"Υ\", U301=1)), \"ΝΑΙ\",\"Δ/Ε\")))","v":"___"},null,null,null,null,{"$f":"IF(X302=\"ΟΧΙ\",CONCATENATE(E301,$AC$8),\"\")","v":""}]
[]
[null,null,null,null,null,"Ικανοποίηση Κριτηρίου? ( Ν =\"ΝΑΙ\", Χ = \"ΟΧΙ\"):",null,null,null,null,null,null,null,null,null,null,{"$f":"IF(P304=\"\",\"\",IF(OR(P304=\"X\",P304=\"Χ\",P304=0),0,IF(OR(P304=\"Ν\",P304=\"N\",P304=1),1)))","v":""}]
[]
[null,null,null,null,null,"ΣΗΜΕΙ-\nΩΣΕΙΣ:"]
[]
[]
[null,null,null,{"$f":"IF(X308=\"___\",\"?\",\"\")","v":""},5.22,"Τραπέζι ή γραφείο ή άλλη επιφάνεια εργασίας",null,null,null,null,null,null,null,null,null,null,null,null,null,null,{"$f":"IF(OR(AND($AI$2=1,R310=\"Δ/Ε\"),AND($AI$2=2,S310=\"Δ/Ε\"),AND($AI$2=3, T310=\"Δ/Ε\")),2,IF(Q312=\"\",\"\",IF(Q312=1,1,IF(Q312=0,0))))","v":""}]
[null,{"$f":"IF(X310=\"___\",\"?\",\"ok\")","v":"?"},null,null,null,null,null,null,null,null,null,null,null,null,null,null,50,"ΠΡ","ΠΡ","ΠΡ",{"$f":"IF(U309=\"\",\"ΟΧΙ|ΝΑΙ\",IF(U309=0,\"ΟΧΙ\",IF(U309=1,\"ΝΑΙ\",IF(U309=2,\"Δ/Ε\"))))","v":"ΟΧΙ|ΝΑΙ"},null,{"$f":"IF(U309=\"\",\"___\",IF(U309=0,0,IF(AND(U309=1,OR(AND($AI$2=1,R310=\"ΠΡ\"),AND($AI$2=2,S310=\"ΠΡ\"),AND($AI$2=3, T310=\"ΠΡ\"))),Q310,0)))","v":"___"},{"$f":"IF(W310=\"___\",W310,IF(OR(AND($AI$2=1, R310=\"Υ\", U309=0), AND($AI$2=2, S310=\"Υ\", U309=0), AND($AI$2=3, T310=\"Υ\", U309=0)), \"ΟΧΙ\", IF(OR(AND($AI$2=1, R310=\"Υ\", U309=1), AND($AI$2=2, S310=\"Υ\", U309=1), AND($AI$2=3, T310=\"Υ\", U309=1)), \"ΝΑΙ\",\"Δ/Ε\")))","v":"___"},null,null,null,null,{"$f":"IF(X310=\"ΟΧΙ\",CONCATENATE(E309,$AC$8),\"\")","v":""}]
[]
[null,null,null,null,null,"Ικανοποίηση Κριτηρίου? ( Ν =\"ΝΑΙ\", Χ = \"ΟΧΙ\"):",null,null,null,null,null,null,null,null,null,null,{"$f":"IF(P312=\"\",\"\",IF(OR(P312=\"X\",P312=\"Χ\",P312=0),0,IF(OR(P312=\"Ν\",P312=\"N\",P312=1),1)))","v":""}]
[]
[null,null,null,null,null,"ΣΗΜΕΙ-\nΩΣΕΙΣ:"]
[]
[]
[null,null,null,{"$f":"IF(X316=\"___\",\"?\",\"\")","v":""},5.23,"Κομοδίνα ή άλλη αντίστοιχη επιφάνεια",null,null,null,null,null,null,null,null,null,null,null,null,null,null,{"$f":"IF(OR(AND($AI$2=1,R318=\"Δ/Ε\"),AND($AI$2=2,S318=\"Δ/Ε\"),AND($AI$2=3, T318=\"Δ/Ε\")),2,IF(Q320=\"\",\"\",IF(Q320=1,1,IF(Q320=0,0))))","v":""}]
[null,{"$f":"IF(X318=\"___\",\"?\",\"ok\")","v":"?"},null,null,null,null,null,null,null,null,null,null,null,null,null,null,25,"ΠΡ","ΠΡ","ΠΡ",{"$f":"IF(U317=\"\",\"ΟΧΙ|ΝΑΙ\",IF(U317=0,\"ΟΧΙ\",IF(U317=1,\"ΝΑΙ\",IF(U317=2,\"Δ/Ε\"))))","v":"ΟΧΙ|ΝΑΙ"},null,{"$f":"IF(U317=\"\",\"___\",IF(U317=0,0,IF(AND(U317=1,OR(AND($AI$2=1,R318=\"ΠΡ\"),AND($AI$2=2,S318=\"ΠΡ\"),AND($AI$2=3, T318=\"ΠΡ\"))),Q318,0)))","v":"___"},{"$f":"IF(W318=\"___\",W318,IF(OR(AND($AI$2=1, R318=\"Υ\", U317=0), AND($AI$2=2, S318=\"Υ\", U317=0), AND($AI$2=3, T318=\"Υ\", U317=0)), \"ΟΧΙ\", IF(OR(AND($AI$2=1, R318=\"Υ\", U317=1), AND($AI$2=2, S318=\"Υ\", U317=1), AND($AI$2=3, T318=\"Υ\", U317=1)), \"ΝΑΙ\",\"Δ/Ε\")))","v":"___"},null,null,null,null,{"$f":"IF(X318=\"ΟΧΙ\",CONCATENATE(E317,$AC$8),\"\")","v":""}]
[]
[null,null,null,null,null,"Ικανοποίηση Κριτηρίου? ( Ν =\"ΝΑΙ\", Χ = \"ΟΧΙ\"):",null,null,null,null,null,null,null,null,null,null,{"$f":"IF(P320=\"\",\"\",IF(OR(P320=\"X\",P320=\"Χ\",P320=0),0,IF(OR(P320=\"Ν\",P320=\"N\",P320=1),1)))","v":""}]
[]
[null,null,null,null,null,"ΣΗΜΕΙ-\nΩΣΕΙΣ:"]
[]
[]
[null,null,null,{"$f":"IF(X324=\"___\",\"?\",\"\")","v":""},5.24,"Φωτισμός ανάγνωσης δίπλα στο κρεβάτι",null,null,null,null,null,null,null,null,null,null,null,null,null,null,{"$f":"IF(OR(AND($AI$2=1,R326=\"Δ/Ε\"),AND($AI$2=2,S326=\"Δ/Ε\"),AND($AI$2=3, T326=\"Δ/Ε\")),2,IF(Q328=\"\",\"\",IF(Q328=1,1,IF(Q328=0,0))))","v":""}]
[null,{"$f":"IF(X326=\"___\",\"?\",\"ok\")","v":"?"},null,null,null,null,null,null,null,null,null,null,null,null,null,null,25,"ΠΡ","ΠΡ","ΠΡ",{"$f":"IF(U325=\"\",\"ΟΧΙ|ΝΑΙ\",IF(U325=0,\"ΟΧΙ\",IF(U325=1,\"ΝΑΙ\",IF(U325=2,\"Δ/Ε\"))))","v":"ΟΧΙ|ΝΑΙ"},null,{"$f":"IF(U325=\"\",\"___\",IF(U325=0,0,IF(AND(U325=1,OR(AND($AI$2=1,R326=\"ΠΡ\"),AND($AI$2=2,S326=\"ΠΡ\"),AND($AI$2=3, T326=\"ΠΡ\"))),Q326,0)))","v":"___"},{"$f":"IF(W326=\"___\",W326,IF(OR(AND($AI$2=1, R326=\"Υ\", U325=0), AND($AI$2=2, S326=\"Υ\", U325=0), AND($AI$2=3, T326=\"Υ\", U325=0)), \"ΟΧΙ\", IF(OR(AND($AI$2=1, R326=\"Υ\", U325=1), AND($AI$2=2, S326=\"Υ\", U325=1), AND($AI$2=3, T326=\"Υ\", U325=1)), \"ΝΑΙ\",\"Δ/Ε\")))","v":"___"},null,null,null,null,{"$f":"IF(X326=\"ΟΧΙ\",CONCATENATE(E325,$AC$8),\"\")","v":""}]
[]
[null,null,null,null,null,"Ικανοποίηση Κριτηρίου? ( Ν =\"ΝΑΙ\", Χ = \"ΟΧΙ\"):",null,null,null,null,null,null,null,null,null,null,{"$f":"IF(P328=\"\",\"\",IF(OR(P328=\"X\",P328=\"Χ\",P328=0),0,IF(OR(P328=\"Ν\",P328=\"N\",P328=1),1)))","v":""}]
[]
[null,null,null,null,null,"ΣΗΜΕΙ-\nΩΣΕΙΣ:"]
[]
[]
[null,null,null,{"$f":"IF(X332=\"___\",\"?\",\"\")","v":""},5.25,"Κεντρικός διακόπτης φωτισμού δωματίου στην είσοδο.",null,null,null,null,null,null,null,null,null,null,null,null,null,null,{"$f":"IF(OR(AND($AI$2=1,R334=\"Δ/Ε\"),AND($AI$2=2,S334=\"Δ/Ε\"),AND($AI$2=3, T334=\"Δ/Ε\")),2,IF(Q336=\"\",\"\",IF(Q336=1,1,IF(Q336=0,0))))","v":""}]
[null,{"$f":"IF(X334=\"___\",\"?\",\"ok\")","v":"?"},null,null,null,null,null,null,null,null,null,null,null,null,null,null,50,"ΠΡ","ΠΡ","ΠΡ",{"$f":"IF(U333=\"\",\"ΟΧΙ|ΝΑΙ\",IF(U333=0,\"ΟΧΙ\",IF(U333=1,\"ΝΑΙ\",IF(U333=2,\"Δ/Ε\"))))","v":"ΟΧΙ|ΝΑΙ"},null,{"$f":"IF(U333=\"\",\"___\",IF(U333=0,0,IF(AND(U333=1,OR(AND($AI$2=1,R334=\"ΠΡ\"),AND($AI$2=2,S334=\"ΠΡ\"),AND($AI$2=3, T334=\"ΠΡ\"))),Q334,0)))","v":"___"},{"$f":"IF(W334=\"___\",W334,IF(OR(AND($AI$2=1, R334=\"Υ\", U333=0), AND($AI$2=2, S334=\"Υ\", U333=0), AND($AI$2=3, T334=\"Υ\", U333=0)), \"ΟΧΙ\", IF(OR(AND($AI$2=1, R334=\"Υ\", U333=1), AND($AI$2=2, S334=\"Υ\", U333=1), AND($AI$2=3, T334=\"Υ\", U333=1)), \"ΝΑΙ\",\"Δ/Ε\")))","v":"___"},null,null,null,null,{"$f":"IF(X334=\"ΟΧΙ\",CONCATENATE(E333,$AC$8),\"\")","v":""}]
[]
[null,null,null,null,null,"Ικανοποίηση Κριτηρίου? ( Ν =\"ΝΑΙ\", Χ = \"ΟΧΙ\"):",null,null,null,null,null,null,null,null,null,null,{"$f":"IF(P336=\"\",\"\",IF(OR(P336=\"X\",P336=\"Χ\",P336=0),0,IF(OR(P336=\"Ν\",P336=\"N\",P336=1),1)))","v":""}]
[]
[null,null,null,null,null,"ΣΗΜΕΙ-\nΩΣΕΙΣ:"]
[]
[]
[null,null,null,{"$f":"IF(X340=\"___\",\"?\",\"\")","v":""},5.26,"Κεντρικός διακόπτης φωτισμού δωματίου δίπλα στο κρεβάτι.",null,null,null,null,null,null,null,null,null,null,null,null,null,null,{"$f":"IF(OR(AND($AI$2=1,R342=\"Δ/Ε\"),AND($AI$2=2,S342=\"Δ/Ε\"),AND($AI$2=3, T342=\"Δ/Ε\")),2,IF(Q344=\"\",\"\",IF(Q344=1,1,IF(Q344=0,0))))","v":""}]
[null,{"$f":"IF(X342=\"___\",\"?\",\"ok\")","v":"?"},null,null,null,null,null,null,null,null,null,null,null,null,null,null,50,"ΠΡ","ΠΡ","ΠΡ",{"$f":"IF(U341=\"\",\"ΟΧΙ|ΝΑΙ\",IF(U341=0,\"ΟΧΙ\",IF(U341=1,\"ΝΑΙ\",IF(U341=2,\"Δ/Ε\"))))","v":"ΟΧΙ|ΝΑΙ"},null,{"$f":"IF(U341=\"\",\"___\",IF(U341=0,0,IF(AND(U341=1,OR(AND($AI$2=1,R342=\"ΠΡ\"),AND($AI$2=2,S342=\"ΠΡ\"),AND($AI$2=3, T342=\"ΠΡ\"))),Q342,0)))","v":"___"},{"$f":"IF(W342=\"___\",W342,IF(OR(AND($AI$2=1, R342=\"Υ\", U341=0), AND($AI$2=2, S342=\"Υ\", U341=0), AND($AI$2=3, T342=\"Υ\", U341=0)), \"ΟΧΙ\", IF(OR(AND($AI$2=1, R342=\"Υ\", U341=1), AND($AI$2=2, S342=\"Υ\", U341=1), AND($AI$2=3, T342=\"Υ\", U341=1)), \"ΝΑΙ\",\"Δ/Ε\")))","v":"___"},null,null,null,null,{"$f":"IF(X342=\"ΟΧΙ\",CONCATENATE(E341,$AC$8),\"\")","v":""}]
[]
[null,null,null,null,null,"Ικανοποίηση Κριτηρίου? ( Ν =\"ΝΑΙ\", Χ = \"ΟΧΙ\"):",null,null,null,null,null,null,null,null,null,null,{"$f":"IF(P344=\"\",\"\",IF(OR(P344=\"X\",P344=\"Χ\",P344=0),0,IF(OR(P344=\"Ν\",P344=\"N\",P344=1),1)))","v":""}]
[]
[null,null,null,null,null,"ΣΗΜΕΙ-\nΩΣΕΙΣ:"]
[]
[]
[null,null,null,{"$f":"IF(X348=\"___\",\"?\",\"\")","v":""},5.27,"Καλάθι αχρήστων.",null,null,null,null,null,null,null,null,null,null,null,null,null,null,{"$f":"IF(OR(AND($AI$2=1,R350=\"Δ/Ε\"),AND($AI$2=2,S350=\"Δ/Ε\"),AND($AI$2=3, T350=\"Δ/Ε\")),2,IF(Q352=\"\",\"\",IF(Q352=1,1,IF(Q352=0,0))))","v":""}]
[null,{"$f":"IF(X350=\"___\",\"?\",\"ok\")","v":"?"},null,null,null,null,null,null,null,null,null,null,null,null,null,null,"-","Υ","Υ","Υ",{"$f":"IF(U349=\"\",\"ΟΧΙ|ΝΑΙ\",IF(U349=0,\"ΟΧΙ\",IF(U349=1,\"ΝΑΙ\",IF(U349=2,\"Δ/Ε\"))))","v":"ΟΧΙ|ΝΑΙ"},null,{"$f":"IF(U349=\"\",\"___\",IF(U349=0,0,IF(AND(U349=1,OR(AND($AI$2=1,R350=\"ΠΡ\"),AND($AI$2=2,S350=\"ΠΡ\"),AND($AI$2=3, T350=\"ΠΡ\"))),Q350,0)))","v":"___"},{"$f":"IF(W350=\"___\",W350,IF(OR(AND($AI$2=1, R350=\"Υ\", U349=0), AND($AI$2=2, S350=\"Υ\", U349=0), AND($AI$2=3, T350=\"Υ\", U349=0)), \"ΟΧΙ\", IF(OR(AND($AI$2=1, R350=\"Υ\", U349=1), AND($AI$2=2, S350=\"Υ\", U349=1), AND($AI$2=3, T350=\"Υ\", U349=1)), \"ΝΑΙ\",\"Δ/Ε\")))","v":"___"},null,null,null,null,{"$f":"IF(X350=\"ΟΧΙ\",CONCATENATE(E349,$AC$8),\"\")","v":""}]
[]
[null,null,null,null,null,"Ικανοποίηση Κριτηρίου? ( Ν =\"ΝΑΙ\", Χ = \"ΟΧΙ\"):",null,null,null,null,null,null,null,null,null,null,{"$f":"IF(P352=\"\",\"\",IF(OR(P352=\"X\",P352=\"Χ\",P352=0),0,IF(OR(P352=\"Ν\",P352=\"N\",P352=1),1)))","v":""}]
[]
[null,null,null,null,null,"ΣΗΜΕΙ-\nΩΣΕΙΣ:"]
[]
[]
[null,null,null,{"$f":"IF(X356=\"___\",\"?\",\"\")","v":""},5.28,"Εξοπλισμός κουζίνας: Έπιπλα (τραπέζι και καρέκλες) και ανάλογος (με τον αρ. κλινών) εξοπλισμός εστίασης (μαχαιροπήρουνα, πιατικά, μαγειρικά σκευή, ποτήρια, φλυτζάνια)",null,null,null,null,null,null,null,null,null,null,null,null,null,null,{"$f":"IF(OR(AND($AI$2=1,R358=\"Δ/Ε\"),AND($AI$2=2,S358=\"Δ/Ε\"),AND($AI$2=3, T358=\"Δ/Ε\")),2,IF(Q360=\"\",\"\",IF(Q360=1,1,IF(Q360=0,0))))","v":""}]
[null,{"$f":"IF(X358=\"___\",\"?\",\"ok\")","v":"?"},null,null,null,null,null,null,null,null,null,null,null,null,null,null,"-","Υ","Υ","Υ",{"$f":"IF(U357=\"\",\"ΟΧΙ|ΝΑΙ\",IF(U357=0,\"ΟΧΙ\",IF(U357=1,\"ΝΑΙ\",IF(U357=2,\"Δ/Ε\"))))","v":"ΟΧΙ|ΝΑΙ"},null,{"$f":"IF(U357=\"\",\"___\",IF(U357=0,0,IF(AND(U357=1,OR(AND($AI$2=1,R358=\"ΠΡ\"),AND($AI$2=2,S358=\"ΠΡ\"),AND($AI$2=3, T358=\"ΠΡ\"))),Q358,0)))","v":"___"},{"$f":"IF(W358=\"___\",W358,IF(OR(AND($AI$2=1, R358=\"Υ\", U357=0), AND($AI$2=2, S358=\"Υ\", U357=0), AND($AI$2=3, T358=\"Υ\", U357=0)), \"ΟΧΙ\", IF(OR(AND($AI$2=1, R358=\"Υ\", U357=1), AND($AI$2=2, S358=\"Υ\", U357=1), AND($AI$2=3, T358=\"Υ\", U357=1)), \"ΝΑΙ\",\"Δ/Ε\")))","v":"___"},null,null,null,null,{"$f":"IF(X358=\"ΟΧΙ\",CONCATENATE(E357,$AC$8),\"\")","v":""}]
[]
[null,null,null,null,null,"Ικανοποίηση Κριτηρίου? ( Ν =\"ΝΑΙ\", Χ = \"ΟΧΙ\"):",null,null,null,null,null,null,null,null,null,null,{"$f":"IF(P360=\"\",\"\",IF(OR(P360=\"X\",P360=\"Χ\",P360=0),0,IF(OR(P360=\"Ν\",P360=\"N\",P360=1),1)))","v":""}]
[]
[null,null,null,null,null,"ΣΗΜΕΙ-\nΩΣΕΙΣ:"]
[]
[]
[null,null,null,{"$f":"IF(X364=\"___\",\"?\",\"\")","v":""},5.29,"Μαγειρική συσκευή με δύο τουλάχιστον εστίες",null,null,null,null,null,null,null,null,null,null,null,null,null,null,{"$f":"IF(OR(AND($AI$2=1,R366=\"Δ/Ε\"),AND($AI$2=2,S366=\"Δ/Ε\"),AND($AI$2=3, T366=\"Δ/Ε\")),2,IF(Q368=\"\",\"\",IF(Q368=1,1,IF(Q368=0,0))))","v":""}]
[null,{"$f":"IF(X366=\"___\",\"?\",\"ok\")","v":"?"},null,null,null,null,null,null,null,null,null,null,null,null,null,null,"-","Υ","Υ","Υ",{"$f":"IF(U365=\"\",\"ΟΧΙ|ΝΑΙ\",IF(U365=0,\"ΟΧΙ\",IF(U365=1,\"ΝΑΙ\",IF(U365=2,\"Δ/Ε\"))))","v":"ΟΧΙ|ΝΑΙ"},null,{"$f":"IF(U365=\"\",\"___\",IF(U365=0,0,IF(AND(U365=1,OR(AND($AI$2=1,R366=\"ΠΡ\"),AND($AI$2=2,S366=\"ΠΡ\"),AND($AI$2=3, T366=\"ΠΡ\"))),Q366,0)))","v":"___"},{"$f":"IF(W366=\"___\",W366,IF(OR(AND($AI$2=1, R366=\"Υ\", U365=0), AND($AI$2=2, S366=\"Υ\", U365=0), AND($AI$2=3, T366=\"Υ\", U365=0)), \"ΟΧΙ\", IF(OR(AND($AI$2=1, R366=\"Υ\", U365=1), AND($AI$2=2, S366=\"Υ\", U365=1), AND($AI$2=3, T366=\"Υ\", U365=1)), \"ΝΑΙ\",\"Δ/Ε\")))","v":"___"},null,null,null,null,{"$f":"IF(X366=\"ΟΧΙ\",CONCATENATE(E365,$AC$8),\"\")","v":""}]
[]
[null,null,null,null,null,"Ικανοποίηση Κριτηρίου? ( Ν =\"ΝΑΙ\", Χ = \"ΟΧΙ\"):",null,null,null,null,null,null,null,null,null,null,{"$f":"IF(P368=\"\",\"\",IF(OR(P368=\"X\",P368=\"Χ\",P368=0),0,IF(OR(P368=\"Ν\",P368=\"N\",P368=1),1)))","v":""}]
[]
[null,null,null,null,null,"ΣΗΜΕΙ-\nΩΣΕΙΣ:"]
[]
[]
[null,null,null,{"$f":"IF(X372=\"___\",\"?\",\"\")","v":""},5.3,"Μαγειρική συσκευή δύο ή τεσσάρων εστιών με φούρνο",null,null,null,null,null,null,null,null,null,null,null,null,null,null,{"$f":"IF(OR(AND($AI$2=1,R374=\"Δ/Ε\"),AND($AI$2=2,S374=\"Δ/Ε\"),AND($AI$2=3, T374=\"Δ/Ε\")),2,IF(OR(N378=\"\",O378=\"ERR.\"),\"\",IF(U378>=H376,1,0)))","v":""}]
[null,{"$f":"IF(X374=\"___\",\"?\",\"ok\")","v":"?"},null,null,null,null,null,null,null,null,null,null,null,null,null,null,{"$f":"IF(U378<H376,0,IF(AND(U378>=H376,U378<O376),L376,IF(AND(U378>=O376,U378<=1),S376,0)))","v":0},"ΠΡ","ΠΡ","ΠΡ",{"$f":"IF(U373=2,\"Δ/Ε\",IF(U373=\"\",\"ΟΧΙ|ΝΑΙ\",IF(U373=0,\"ΟΧΙ\",IF(U373=1,\"ΝΑΙ\"))))","v":"ΟΧΙ|ΝΑΙ"},null,{"$f":"IF(U373=\"\",\"___\",IF(U373=0,0,IF(AND(U373=1,OR(AND($AI$2=1,R374=\"ΠΡ\"),AND($AI$2=2,S374=\"ΠΡ\"),AND($AI$2=3, T374=\"ΠΡ\"))),Q374,0)))","v":"___"},{"$f":"IF(W374=\"___\",W374,IF(OR(AND($AI$2=1, R374=\"Υ\", U373=0), AND($AI$2=2, S374=\"Υ\", U373=0), AND($AI$2=3, T374=\"Υ\", U373=0)), \"ΟΧΙ\", IF(OR(AND($AI$2=1, R374=\"Υ\", U373=1), AND($AI$2=2, S374=\"Υ\", U373=1), AND($AI$2=3, T374=\"Υ\", U373=1)), \"ΝΑΙ\",\"Δ/Ε\")))","v":"___"},null,null,null,null,{"$f":"IF(X374=\"ΟΧΙ\",CONCATENATE(E373,$AC$8),\"\")","v":""}]
[]
[null,null,null,null,null,"α] στο",null,0.5,"των  διαμερ.,  βαθμοί:",null,null,50,"β] στο",null,1,"των  διαμερ.,  βαθμοί:",null,null,70]
[null,null,null,null,null,"Αριθμός διαμερισμάτων που \nδιαθέτουν μαγειρική συσκευή με φούρνο:"]
[null,null,null,null,null,null,null,null,null,null,null,null,null,null,{"$f":"IF(U378=\"\",\"\",IF(U378<=1,\"ok\",\"ERR.\"))","v":""},"Ποσοστό επι του συνόλου:",null,null,null,null,{"$f":"IF(N378=\"\",\"\",+N378/EISAGOGH!$AF$33)","v":""}]
[]
[]
[null,null,null,null,null,"ΣΗΜΕΙ-\nΩΣΕΙΣ:"]
[]
[]
[null,null,null,{"$f":"IF(X383=\"___\",\"?\",\"\")","v":""},5.31,"Ηλεκτρικό ψυγείο.",null,null,null,null,null,null,null,null,null,null,null,null,null,null,{"$f":"IF(OR(AND($AI$2=1,R385=\"Δ/Ε\"),AND($AI$2=2,S385=\"Δ/Ε\"),AND($AI$2=3, T385=\"Δ/Ε\")),2,IF(Q387=\"\",\"\",IF(Q387=1,1,IF(Q387=0,0))))","v":""}]
[null,{"$f":"IF(X385=\"___\",\"?\",\"ok\")","v":"?"},null,null,null,null,null,null,null,null,null,null,null,null,null,null,"-","Υ","Υ","Υ",{"$f":"IF(U384=\"\",\"ΟΧΙ|ΝΑΙ\",IF(U384=0,\"ΟΧΙ\",IF(U384=1,\"ΝΑΙ\",IF(U384=2,\"Δ/Ε\"))))","v":"ΟΧΙ|ΝΑΙ"},null,{"$f":"IF(U384=\"\",\"___\",IF(U384=0,0,IF(AND(U384=1,OR(AND($AI$2=1,R385=\"ΠΡ\"),AND($AI$2=2,S385=\"ΠΡ\"),AND($AI$2=3, T385=\"ΠΡ\"))),Q385,0)))","v":"___"},{"$f":"IF(W385=\"___\",W385,IF(OR(AND($AI$2=1, R385=\"Υ\", U384=0), AND($AI$2=2, S385=\"Υ\", U384=0), AND($AI$2=3, T385=\"Υ\", U384=0)), \"ΟΧΙ\", IF(OR(AND($AI$2=1, R385=\"Υ\", U384=1), AND($AI$2=2, S385=\"Υ\", U384=1), AND($AI$2=3, T385=\"Υ\", U384=1)), \"ΝΑΙ\",\"Δ/Ε\")))","v":"___"},null,null,null,null,{"$f":"IF(X385=\"ΟΧΙ\",CONCATENATE(E384,$AC$8),\"\")","v":""}]
[]
[null,null,null,null,null,"Ικανοποίηση Κριτηρίου? ( Ν =\"ΝΑΙ\", Χ = \"ΟΧΙ\"):",null,null,null,null,null,null,null,null,null,null,{"$f":"IF(P387=\"\",\"\",IF(OR(P387=\"X\",P387=\"Χ\",P387=0),0,IF(OR(P387=\"Ν\",P387=\"N\",P387=1),1)))","v":""}]
[]
[null,null,null,null,null,"ΣΗΜΕΙ-\nΩΣΕΙΣ:"]
[]
[]
[null,null,null,{"$f":"IF(X391=\"___\",\"?\",\"\")","v":""},5.32,"Καφετιέρα φίλτρου, φρυγανιέρα ή τοστιέρα, φούρνος μικροκυμάτων, βραστήρας νερού.",null,null,null,null,null,null,null,null,null,null,null,null,null,null,{"$f":"IF(OR(AND($AI$2=1,R393=\"Δ/Ε\"),AND($AI$2=2,S393=\"Δ/Ε\"),AND($AI$2=3, T393=\"Δ/Ε\")),2,IF(Q395=\"\",\"\",IF(Q395=1,1,IF(Q395=0,0))))","v":""}]
[null,{"$f":"IF(X393=\"___\",\"?\",\"ok\")","v":"?"},null,null,null,null,null,null,null,null,null,null,null,null,null,null,100,"ΠΡ","ΠΡ","ΠΡ",{"$f":"IF(U392=\"\",\"ΟΧΙ|ΝΑΙ\",IF(U392=0,\"ΟΧΙ\",IF(U392=1,\"ΝΑΙ\",IF(U392=2,\"Δ/Ε\"))))","v":"ΟΧΙ|ΝΑΙ"},null,{"$f":"IF(U392=\"\",\"___\",IF(U392=0,0,IF(AND(U392=1,OR(AND($AI$2=1,R393=\"ΠΡ\"),AND($AI$2=2,S393=\"ΠΡ\"),AND($AI$2=3, T393=\"ΠΡ\"))),Q393,0)))","v":"___"},{"$f":"IF(W393=\"___\",W393,IF(OR(AND($AI$2=1, R393=\"Υ\", U392=0), AND($AI$2=2, S393=\"Υ\", U392=0), AND($AI$2=3, T393=\"Υ\", U392=0)), \"ΟΧΙ\", IF(OR(AND($AI$2=1, R393=\"Υ\", U392=1), AND($AI$2=2, S393=\"Υ\", U392=1), AND($AI$2=3, T393=\"Υ\", U392=1)), \"ΝΑΙ\",\"Δ/Ε\")))","v":"___"},null,null,null,null,{"$f":"IF(X393=\"ΟΧΙ\",CONCATENATE(E392,$AC$8),\"\")","v":""}]
[]
[null,null,null,null,null,"Ικανοποίηση Κριτηρίου? ( Ν =\"ΝΑΙ\", Χ = \"ΟΧΙ\"):",null,null,null,null,null,null,null,null,null,null,{"$f":"IF(P395=\"\",\"\",IF(OR(P395=\"X\",P395=\"Χ\",P395=0),0,IF(OR(P395=\"Ν\",P395=\"N\",P395=1),1)))","v":""}]
[]
[null,null,null,null,null,"ΣΗΜΕΙ-\nΩΣΕΙΣ:"]
[]
[]
[null,null,null,null,5.33,"Ελάχιστη επιφάνεια δαπέδου υπνοδωματίου: \n \n(Αφορά μόνο στα υπνοδωμάτια των διαμερισμάτων ενός υπνοδωματίου και άνω, και όχι στα στούντιο.) "]
[null,null,null,null,"-"]
[null,null,null,{"$f":"IF(X401=\"___\",\"?\",\"\")","v":""},5.35,null,null,null,null,null,null,null,null,null,null,null,null,null,null,null,{"$f":"IF(OR($G$403=0,AND($AI$2=1,R403=\"Δ/Ε\"),AND($AI$2=2,S403=\"Δ/Ε\"),AND($AI$2=3, T403=\"Δ/Ε\")),2,IF(G407=\"\",\"\",IF(G407>=M403,1,0)))","v":""}]
[null,{"$f":"IF(X403=\"___\",\"?\",\"ok\")","v":"?"},null,null,"T.E.",null,{"$f":"IF(OR(EISAGOGH!T33=\"\",EISAGOGH!X33=\"\",EISAGOGH!AB33=\"\"),\"\",(+EISAGOGH!T33+EISAGOGH!X33+EISAGOGH!AB33))","v":""},null,null,null,5.33,"από",14,"τ.μ.  & άνω, βαθμ. =",null,null,100,"Υ","ΠΡ","ΠΡ",{"$f":"IF(U402=2,\"Δ/Ε\",IF(U402=\"\",\"ΟΧΙ|ΝΑΙ\",IF(U402=0,\"ΟΧΙ\",IF(U402=1,\"ΝΑΙ\"))))","v":"ΟΧΙ|ΝΑΙ"},null,{"$f":"IF(U402=\"\",\"___\",IF(U402=0,0,IF(AND(U402=1,OR(AND($AI$2=1,R403=\"ΠΡ\"),AND($AI$2=2,S403=\"ΠΡ\"),AND($AI$2=3, T403=\"ΠΡ\"))),Q403,0)))","v":"___"},{"$f":"IF(W403=\"___\",W403,IF(OR(AND($AI$2=1, R403=\"Υ\", U402=0), AND($AI$2=2, S403=\"Υ\", U402=0), AND($AI$2=3, T403=\"Υ\", U402=0)), \"ΟΧΙ\", IF(OR(AND($AI$2=1, R403=\"Υ\", U402=1), AND($AI$2=2, S403=\"Υ\", U402=1), AND($AI$2=3, T403=\"Υ\", U402=1)), \"ΝΑΙ\",\"Δ/Ε\")))","v":"___"},null,null,null,null,{"$f":"IF(X403=\"ΟΧΙ\",CONCATENATE(K403,$AC$8),\"\")","v":""}]
[null,null,null,null,null,"Ελάχιστο\nεμβαδό δαπέδου υπνοδωματίων",null,null,null,null,null,null,null,null,null,null,null,null,null,null,{"$f":"IF(OR($G$403=0,AND($AI$2=1,R405=\"Δ/Ε\"),AND($AI$2=2,S405=\"Δ/Ε\"),AND($AI$2=3, T405=\"Δ/Ε\")),2,IF(G407=\"\",\"\",IF(G407>=M405,1,0)))","v":""}]
[null,{"$f":"IF(X405=\"___\",\"?\",\"ok\")","v":"?"},null,null,null,null,null,null,null,null,5.34,"από",13,"τ.μ.  & άνω, βαθμ. =",null,null,{"$f":"IF($W$403>0,0,50)","v":0},"Δ/Ε","Υ","ΠΡ",{"$f":"IF(U404=2,\"Δ/Ε\",IF(U404=\"\",\"ΟΧΙ|ΝΑΙ\",IF(U404=0,\"ΟΧΙ\",IF(U404=1,\"ΝΑΙ\"))))","v":"ΟΧΙ|ΝΑΙ"},null,{"$f":"IF(U404=\"\",\"___\",IF(U404=0,0,IF(AND(U404=1,OR(AND($AI$2=1,R405=\"ΠΡ\"),AND($AI$2=2,S405=\"ΠΡ\"),AND($AI$2=3, T405=\"ΠΡ\"))),Q405,0)))","v":"___"},{"$f":"IF(W405=\"___\",W405,IF(OR(AND($AI$2=1, R405=\"Υ\", U404=0), AND($AI$2=2, S405=\"Υ\", U404=0), AND($AI$2=3, T405=\"Υ\", U404=0)), \"ΟΧΙ\", IF(OR(AND($AI$2=1, R405=\"Υ\", U404=1), AND($AI$2=2, S405=\"Υ\", U404=1), AND($AI$2=3, T405=\"Υ\", U404=1)), \"ΝΑΙ\",\"Δ/Ε\")))","v":"___"},null,null,null,null,{"$f":"IF(X405=\"ΟΧΙ\",CONCATENATE(K405,$AC$8),\"\")","v":""}]
[null,null,null,null,null,null,null,null,null,null,null,null,null,null,null,null,null,null,null,null,{"$f":"IF(OR($G$403=0,AND($AI$2=1,R407=\"Δ/Ε\"),AND($AI$2=2,S407=\"Δ/Ε\"),AND($AI$2=3, T407=\"Δ/Ε\")),2,IF(G407=\"\",\"\",IF(G407>=M407,1,0)))","v":""}]
[null,{"$f":"IF(X407=\"___\",\"?\",\"ok\")","v":"?"},null,null,null,null,null,null,"(τ.μ.)",null,5.35,"από",12,"τ.μ.  & άνω, βαθμ. =",null,null,0,"Δ/Ε","Δ/Ε","Υ",{"$f":"IF(U406=2,\"Δ/Ε\",IF(U406=\"\",\"ΟΧΙ|ΝΑΙ\",IF(U406=0,\"ΟΧΙ\",IF(U406=1,\"ΝΑΙ\"))))","v":"ΟΧΙ|ΝΑΙ"},null,{"$f":"IF(U406=\"\",\"___\",IF(U406=0,0,IF(AND(U406=1,OR(AND($AI$2=1,R407=\"ΠΡ\"),AND($AI$2=2,S407=\"ΠΡ\"),AND($AI$2=3, T407=\"ΠΡ\"))),Q407,0)))","v":"___"},{"$f":"IF(W407=\"___\",W407,IF(OR(AND($AI$2=1, R407=\"Υ\", U406=0), AND($AI$2=2, S407=\"Υ\", U406=0), AND($AI$2=3, T407=\"Υ\", U406=0)), \"ΟΧΙ\", IF(OR(AND($AI$2=1, R407=\"Υ\", U406=1), AND($AI$2=2, S407=\"Υ\", U406=1), AND($AI$2=3, T407=\"Υ\", U406=1)), \"ΝΑΙ\",\"Δ/Ε\")))","v":"___"},null,null,null,null,{"$f":"IF(X407=\"ΟΧΙ\",CONCATENATE(K407,$AC$8),\"\")","v":""}]
[null,null,null,null,{"$f":"IF((AND(G407>0,$AI$2=\"ER\")),\"Καθορίστε <<Αιτούμενη Τάξη>> στην Εισαγωγή!\",\"\")","v":""}]
[null,null,null,null,null,"ΣΗΜΕΙ-\nΩΣΕΙΣ:"]
[]
[]
[null,null,null,null,5.36,"Ελάχιστη επιφάνεια δαπέδου studio flats: \n(Αφορά μόνο στο εμβαδό των διαμερισμάτων τύπου στούντιο που διαθέτει η μονάδα.) "]
[null,null,null,null,"-"]
[null,null,null,{"$f":"IF(X413=\"___\",\"?\",\"\")","v":""},5.38,null,null,null,null,null,null,null,null,null,null,null,null,null,null,null,{"$f":"IF(OR($G$415=0,AND($AI$2=1,R415=\"Δ/Ε\"),AND($AI$2=2,S415=\"Δ/Ε\"),AND($AI$2=3, T415=\"Δ/Ε\")),2,IF(G$419=\"\",\"\",IF(G$419>=M415,1,0)))","v":""}]
[null,{"$f":"IF(X415=\"___\",\"?\",\"ok\")","v":"?"},null,null,"T.E.",null,{"$f":"IF(EISAGOGH!P33=\"\",\"\",(+EISAGOGH!P33))","v":""},null,null,null,5.36,"από",29,"τ.μ.  & άνω, βαθμ. =",null,null,100,"Υ","ΠΡ","ΠΡ",{"$f":"IF(U414=2,\"Δ/Ε\",IF(U414=\"\",\"ΟΧΙ|ΝΑΙ\",IF(U414=0,\"ΟΧΙ\",IF(U414=1,\"ΝΑΙ\"))))","v":"ΟΧΙ|ΝΑΙ"},null,{"$f":"IF(U414=\"\",\"___\",IF(U414=0,0,IF(AND(U414=1,OR(AND($AI$2=1,R415=\"ΠΡ\"),AND($AI$2=2,S415=\"ΠΡ\"),AND($AI$2=3, T415=\"ΠΡ\"))),Q415,0)))","v":"___"},{"$f":"IF(W415=\"___\",W415,IF(OR(AND($AI$2=1, R415=\"Υ\", U414=0), AND($AI$2=2, S415=\"Υ\", U414=0), AND($AI$2=3, T415=\"Υ\", U414=0)), \"ΟΧΙ\", IF(OR(AND($AI$2=1, R415=\"Υ\", U414=1), AND($AI$2=2, S415=\"Υ\", U414=1), AND($AI$2=3, T415=\"Υ\", U414=1)), \"ΝΑΙ\",\"Δ/Ε\")))","v":"___"},null,null,null,null,{"$f":"IF(X415=\"ΟΧΙ\",CONCATENATE(K415,$AC$8),\"\")","v":""}]
[null,null,null,null,null,"Ελάχιστο\nεμβαδό δαπέδου\n \"studio flats\"  ",null,null,null,null,null,null,null,null,null,null,null,null,null,null,{"$f":"IF(OR($G$415=0,AND($AI$2=1,R417=\"Δ/Ε\"),AND($AI$2=2,S417=\"Δ/Ε\"),AND($AI$2=3, T417=\"Δ/Ε\")),2,IF(G$419=\"\",\"\",IF(G$419>=M417,1,0)))","v":""}]
[null,{"$f":"IF(X417=\"___\",\"?\",\"ok\")","v":"?"},null,null,null,null,null,null,null,null,5.37,"από",26,"τ.μ.  & άνω, βαθμ. =",null,null,{"$f":"IF($W$415>0,0,50)","v":0},"Δ/Ε","Υ","ΠΡ",{"$f":"IF(U416=2,\"Δ/Ε\",IF(U416=\"\",\"ΟΧΙ|ΝΑΙ\",IF(U416=0,\"ΟΧΙ\",IF(U416=1,\"ΝΑΙ\"))))","v":"ΟΧΙ|ΝΑΙ"},null,{"$f":"IF(U416=\"\",\"___\",IF(U416=0,0,IF(AND(U416=1,OR(AND($AI$2=1,R417=\"ΠΡ\"),AND($AI$2=2,S417=\"ΠΡ\"),AND($AI$2=3, T417=\"ΠΡ\"))),Q417,0)))","v":"___"},{"$f":"IF(W417=\"___\",W417,IF(OR(AND($AI$2=1, R417=\"Υ\", U416=0), AND($AI$2=2, S417=\"Υ\", U416=0), AND($AI$2=3, T417=\"Υ\", U416=0)), \"ΟΧΙ\", IF(OR(AND($AI$2=1, R417=\"Υ\", U416=1), AND($AI$2=2, S417=\"Υ\", U416=1), AND($AI$2=3, T417=\"Υ\", U416=1)), \"ΝΑΙ\",\"Δ/Ε\")))","v":"___"},null,null,null,null,{"$f":"IF(X417=\"ΟΧΙ\",CONCATENATE(K417,$AC$8),\"\")","v":""}]
[null,null,null,null,null,null,null,null,null,null,null,null,null,null,null,null,null,null,null,null,{"$f":"IF(OR($G$415=0,AND($AI$2=1,R419=\"Δ/Ε\"),AND($AI$2=2,S419=\"Δ/Ε\"),AND($AI$2=3, T419=\"Δ/Ε\")),2,IF(G$419=\"\",\"\",IF(G$419>=M419,1,0)))","v":""}]
[null,{"$f":"IF(X419=\"___\",\"?\",\"ok\")","v":"?"},null,null,null,null,null,null,"(τ.μ.)",null,5.38,"από",24,"τ.μ.  & άνω, βαθμ. =",null,null,0,"Δ/Ε","Δ/Ε","Υ",{"$f":"IF(U418=2,\"Δ/Ε\",IF(U418=\"\",\"ΟΧΙ|ΝΑΙ\",IF(U418=0,\"ΟΧΙ\",IF(U418=1,\"ΝΑΙ\"))))","v":"ΟΧΙ|ΝΑΙ"},null,{"$f":"IF(U418=\"\",\"___\",IF(U418=0,0,IF(AND(U418=1,OR(AND($AI$2=1,R419=\"ΠΡ\"),AND($AI$2=2,S419=\"ΠΡ\"),AND($AI$2=3, T419=\"ΠΡ\"))),Q419,0)))","v":"___"},{"$f":"IF(W419=\"___\",W419,IF(OR(AND($AI$2=1, R419=\"Υ\", U418=0), AND($AI$2=2, S419=\"Υ\", U418=0), AND($AI$2=3, T419=\"Υ\", U418=0)), \"ΟΧΙ\", IF(OR(AND($AI$2=1, R419=\"Υ\", U418=1), AND($AI$2=2, S419=\"Υ\", U418=1), AND($AI$2=3, T419=\"Υ\", U418=1)), \"ΝΑΙ\",\"Δ/Ε\")))","v":"___"},null,null,null,null,{"$f":"IF(X419=\"ΟΧΙ\",CONCATENATE(K419,$AC$8),\"\")","v":""}]
[null,null,null,null,{"$f":"IF((AND(G419>0,$AI$2=\"ER\")),\"Καθορίστε <<Αιτούμενη Τάξη>> στην Εισαγωγή!\",\"\")","v":""}]
[null,null,null,null,null,"ΣΗΜΕΙ-\nΩΣΕΙΣ:"]
[]
[]
[null,null,null,{"$f":"IF(X423=\"___\",\"?\",\"\")","v":""},5.39,"Συμπληρωματικό αποχωρητήριο με νιπτήρα, καθρέφτη, λαμπτήρα και ρευματοδότη ξυριστικής μηχανής (Εφόσον διαθέτουν περισσότερα από δύο υπνοδωμάτια)",null,null,null,null,null,null,null,null,null,null,null,null,null,null,{"$f":"IF(OR(AND($AI$2=1,R425=\"Δ/Ε\"),AND($AI$2=2,S425=\"Δ/Ε\"),AND($AI$2=3, T425=\"Δ/Ε\")),2,IF(P427=\"\",\"\",IF(P427=1,1,IF(P427=0,0))))","v":""}]
[null,{"$f":"IF(X425=\"___\",\"?\",\"ok\")","v":"?"},null,null,null,null,null,null,null,null,null,null,null,null,null,null,100,{"$f":"IF(V427>0,\"ΠΡ\",\"Δ/Ε\")","v":"ΠΡ"},{"$f":"IF(V427>0,\"ΠΡ\",\"Δ/Ε\")","v":"ΠΡ"},{"$f":"IF(V427>0,\"ΠΡ\",\"Δ/Ε\")","v":"ΠΡ"},{"$f":"IF(U424=\"\",\"ΟΧΙ|ΝΑΙ\",IF(U424=0,\"ΟΧΙ\",IF(U424=1,\"ΝΑΙ\",IF(U424=2,\"Δ/Ε\"))))","v":"ΟΧΙ|ΝΑΙ"},null,{"$f":"IF(U424=\"\",\"___\",IF(U424=0,0,IF(AND(U424=1,OR(AND($AI$2=1,R425=\"ΠΡ\"),AND($AI$2=2,S425=\"ΠΡ\"),AND($AI$2=3, T425=\"ΠΡ\"))),Q425,0)))","v":"___"},{"$f":"IF(W425=\"___\",W425,IF(OR(AND($AI$2=1, R425=\"Υ\", U424=0), AND($AI$2=2, S425=\"Υ\", U424=0), AND($AI$2=3, T425=\"Υ\", U424=0)), \"ΟΧΙ\", IF(OR(AND($AI$2=1, R425=\"Υ\", U424=1), AND($AI$2=2, S425=\"Υ\", U424=1), AND($AI$2=3, T425=\"Υ\", U424=1)), \"ΝΑΙ\",\"Δ/Ε\")))","v":"___"},null,null,null,null,{"$f":"IF(X425=\"ΟΧΙ\",CONCATENATE(E424,$AC$8),\"\")","v":""}]
[null,null,null,null,null,null,null,null,null,null,null,null,null,null,null,null,"Διαμερίσματα 3ων Υπνοδωματίων\n(διαθέσιμος αριθμός):"]
[null,null,null,null,"T.E.",{"$f":"IF(V427>0,\"Ικανοποίηση Κριτηρίου? ( Ν = ΝΑΙ - Χ = ΟΧΙ):\",\"Το κριτήριο δεν εφαρμόζει\")","v":"Ικανοποίηση Κριτηρίου? ( Ν = ΝΑΙ - Χ = ΟΧΙ):"},null,null,null,null,null,null,null,null,null,{"$f":"IF(O427=\"\",\"\",IF(OR(O427=\"X\",O427=\"Χ\",O427=0),0,IF(OR(O427=\"Ν\",O427=\"N\",O427=1),1)))","v":""},null,null,null,null,null,{"$f":"IF(AI2=\"ER\",\"\",+EISAGOGH!AB33)","v":""}]
[null,null,null,null,null,"* Το κριτήριο ικανοποιείται μόνο εάν όλα τα διαθέσιμα διαμερίσματα 3ων υπνοδωματίων διαθέτουν 2ο (συμπληρωματικό) W/C"]
[null,null,null,null,null,"ΣΗΜΕΙ-\nΩΣΕΙΣ:"]
[]
[null,null,null,null,"6.  Διευκολύνσεις για ΑμεΑ"]
[]
[null,null,null,{"$f":"IF(X432=\"___\",\"?\",\"\")","v":""},6.1,"Διαμερίσματα ΑμεΑ:  Ποσοστό 5% των διαμερισμάτων πρέπει να διαμορφώνεται κατάλληλα ώστε να χρησιμοποιείται από ΑμεΑ, και τα ιδιαίτερα λουτρά των διαμερισμάτων αυτών πρέπει να διαμορφώνονται ανάλογα, επιτρέπεται δε να διαθέτουν ντουζιέρα αντί μπανιέρας. (Το ποσοστό θα διαμορφώνεται βάσει του περί Οδών και Οικοδομών Νόμου.)",null,null,null,null,null,null,null,null,null,null,null,null,null,null,{"$f":"IF(OR(AND($AI$2=1,R434=\"Δ/Ε\"),AND($AI$2=2,S434=\"Δ/Ε\"),AND($AI$2=3, T434=\"Δ/Ε\")),2,IF(V437=\"\",\"\",IF(AND(M439=0,V437=0),1,IF(V437<M439,0,IF(AND(V437>=M439,O439<>\"\"),1,\"\")))))","v":""}]
[null,{"$f":"IF(X434=\"___\",\"?\",\"ok\")","v":"?"},null,null,null,null,null,null,null,null,null,null,null,null,null,null,"-",{"$f":"IF(EISAGOGH!$AN$37=1,\"Υ\",IF(AND(EISAGOGH!V$37=1,EISAGOGH!AN$29=1),\"ΠΡ\",\"Υ\"))","v":"Υ"},{"$f":"IF(EISAGOGH!$AN$37=1,\"Υ\",IF(AND(EISAGOGH!V$37=1,EISAGOGH!AN$29=1),\"ΠΡ\",\"Υ\"))","v":"Υ"},{"$f":"IF(EISAGOGH!$AN$37=1,\"Υ\",IF(AND(EISAGOGH!V$37=1,EISAGOGH!AN$29=1),\"ΠΡ\",\"Υ\"))","v":"Υ"},{"$f":"IF(U433=2,\"Δ/Ε\",IF(U433=\"\",\"ΟΧΙ|ΝΑΙ\",IF(U433=0,\"ΟΧΙ\",IF(U433=1,\"ΝΑΙ\"))))","v":"ΟΧΙ|ΝΑΙ"},null,{"$f":"IF(U433=\"\",\"___\",IF(U433=0,0,IF(AND(U433=1,OR(AND($AI$2=1,R434=\"ΠΡ\"),AND($AI$2=2,S434=\"ΠΡ\"),AND($AI$2=3, T434=\"ΠΡ\"))),Q434,0)))","v":"___"},{"$f":"IF(W434=\"___\",W434,IF(OR(AND($AI$2=1, R434=\"Υ\", U433=0), AND($AI$2=2, S434=\"Υ\", U433=0), AND($AI$2=3, T434=\"Υ\", U433=0)), \"ΟΧΙ\", IF(OR(AND($AI$2=1, R434=\"Υ\", U433=1), AND($AI$2=2, S434=\"Υ\", U433=1), AND($AI$2=3, T434=\"Υ\", U433=1)), \"ΝΑΙ\",\"Δ/Ε\")))","v":"___"},null,null,null,null,{"$f":"IF(X434=\"ΟΧΙ\",CONCATENATE(E433,$AC$8),\"\")","v":""}]
[null,null,null,null,null,null,null,null,null,null,null,null,null,null,null,"Αριθμός διαθέσιμων και \nκατάλληλα διαμορφωμένων διαμερισμάτων για χρήση από ΑμεΑ:"]
[null,null,null,null,"T.E."]
[]
[null,null,null,null,"Αριθμός διαμερισμάτων για ΑμεΑ, \nβάσει των σχεδίων της Άδειας Οικοδομής:",null,null,null,null,null,null,null,null,null,"Καταχωρ. Αριθμούς θύρας διαμερισμάτων για ΑμεΑ:"]
[]
[]
[null,null,null,null,null,null,null,null,null,null,null,null,{"$f":"IF(N441=\"\",\"\",IF(N441=\"Δ/Ε\",0,ROUND(N441,0)))","v":""},{"$f":"IF(AI2=\"ER\",\"\",IF(EISAGOGH!$AF$33*0.05<2,2,IF(EISAGOGH!$AF$33<=200,EISAGOGH!$AF$33*0.05,IF(EISAGOGH!$AF$33>200,10+((EISAGOGH!$AF$33-200)*0.02)))))","v":""}]
[null,null,null,null,"Εάν στα σχέδια της Άδειας Οικοδομής προβλέπονται δωμάτια για ΑμεΑ, η δημιουργία και διαμόρφωση τους είναι\nυποχρεωτική, ανεξάρτητα από την ημερομηνία εξασφάλισης της ή/και την ημερομηνία έναρξης λειτουργίας του ξενοδοχείου!"]
[null,null,null,null,null,"ΣΗΜΕΙ-\nΩΣΕΙΣ:"]
[]
[null,null,null,{"$f":"+EISAGOGH!V27","v":"ER"},"7.  Τουριστικά Χωριά",null,null,null,null,null,{"$f":"IF(EISAGOGH!V27=2,\"(Τα πιο κάτω κριτήρια ΔΕΝ Εφαρμόζουν σε καταλύματα τύπου Οργανωμένων Διαμερισμάτων)\",\"\")","v":""}]
[]
[null,null,null,{"$f":"IF(X446=\"___\",\"?\",\"\")","v":""},7.1,"50 τουλάχιστον διαμερίσματα",null,null,null,null,null,null,null,null,null,null,null,null,null,null,{"$f":"IF(OR(AND($AI$2=1,R448=\"Δ/Ε\"),AND($AI$2=2,S448=\"Δ/Ε\"),AND($AI$2=3, T448=\"Δ/Ε\")),2,IF(J450=\"\",\"\",IF(J450<50,0,IF(J450>=50,1,\"\"))))","v":""}]
[null,{"$f":"IF(X448=\"___\",\"?\",\"ok\")","v":"?"},null,null,null,null,null,null,null,null,null,null,null,null,null,null,0,{"$f":"IF(EISAGOGH!$V$27=2,\"Δ/Ε\",\"Υ\")","v":"Υ"},{"$f":"IF(EISAGOGH!$V$27=2,\"Δ/Ε\",\"Υ\")","v":"Υ"},{"$f":"IF(EISAGOGH!$V$27=2,\"Δ/Ε\",\"Υ\")","v":"Υ"},{"$f":"IF(U447=2,\"Δ/Ε\",IF(U447=\"\",\"ΟΧΙ|ΝΑΙ\",IF(U447=0,\"ΟΧΙ\",IF(U447=1,\"ΝΑΙ\"))))","v":"ΟΧΙ|ΝΑΙ"},null,{"$f":"IF(U447=\"\",\"___\",IF(U447=0,0,IF(AND(U447=1,OR(AND($AI$2=1,R448=\"ΠΡ\"),AND($AI$2=2,S448=\"ΠΡ\"),AND($AI$2=3, T448=\"ΠΡ\"))),Q448,0)))","v":"___"},{"$f":"IF(W448=\"___\",W448,IF(OR(AND($AI$2=1, R448=\"Υ\", U447=0), AND($AI$2=2, S448=\"Υ\", U447=0), AND($AI$2=3, T448=\"Υ\", U447=0)), \"ΟΧΙ\", IF(OR(AND($AI$2=1, R448=\"Υ\", U447=1), AND($AI$2=2, S448=\"Υ\", U447=1), AND($AI$2=3, T448=\"Υ\", U447=1)), \"ΝΑΙ\",\"Δ/Ε\")))","v":"___"},null,null,null,null,{"$f":"IF(X448=\"ΟΧΙ\",CONCATENATE(E447,$AC$8),\"\")","v":""}]
[]
[null,null,null,null,"T.E.",{"$f":"IF(D445=1,\"Η μονάδα διαθέτει\",\"\")","v":""},null,null,null,{"$f":"IF(D445=1,EISAGOGH!AF33,\"\")","v":""},{"$f":"IF(D445=1,\"Διαμερίσματα.\",\"\")","v":""},null,null,{"$f":"IF(AND(D445=1,J450<50),\"Το κριτήριο απαντάται αρνητικά!\",IF(AND(D445=1,J450>=50),\"Το κριτήριο απαντάται θετικά!\",\"\"))","v":""}]
[null,null,null,null,null,"ΣΗΜΕΙ-\nΩΣΕΙΣ:"]
[]
[]
[null,null,null,{"$f":"IF(X453=\"___\",\"?\",\"\")","v":""},7.2,"Επιπρόσθετοι αθλητικοί χώροι (κλειστοί και υπαίθριοι)\n    (Επιπρόσθετος(οι) του ορισθέντος αθλητικού χώρου στο \n      κριτήριο αρ. 2.1)",null,null,null,null,null,null,null,null,null,null,null,null,null,null,{"$f":"IF(OR(AND($AI$2=1,R455=\"Δ/Ε\"),AND($AI$2=2,S455=\"Δ/Ε\"),AND($AI$2=3, T455=\"Δ/Ε\")),2,IF(N458=\"\",\"\",IF(N458=0,0,IF(AND(N458=1,P458<>\"\"),1,IF(AND(N458=1,P458=\"\"),\"\")))))","v":""}]
[null,{"$f":"IF(X455=\"___\",\"?\",\"ok\")","v":"?"},null,null,null,null,null,null,null,null,null,null,null,null,null,null,0,{"$f":"IF(EISAGOGH!$V$27=2,\"Δ/Ε\",\"Υ\")","v":"Υ"},{"$f":"IF(EISAGOGH!$V$27=2,\"Δ/Ε\",\"Υ\")","v":"Υ"},{"$f":"IF(EISAGOGH!$V$27=2,\"Δ/Ε\",\"Υ\")","v":"Υ"},{"$f":"IF(U454=2,\"Δ/Ε\",IF(U454=\"\",\"ΟΧΙ|ΝΑΙ\",IF(U454=0,\"ΟΧΙ\",IF(U454=1,\"ΝΑΙ\"))))","v":"ΟΧΙ|ΝΑΙ"},null,{"$f":"IF(U454=\"\",\"___\",IF(U454=0,0,IF(AND(U454=1,OR(AND($AI$2=1,R455=\"ΠΡ\"),AND($AI$2=2,S455=\"ΠΡ\"),AND($AI$2=3, T455=\"ΠΡ\"))),Q455,0)))","v":"___"},{"$f":"IF(W455=\"___\",W455,IF(OR(AND($AI$2=1, R455=\"Υ\", U454=0), AND($AI$2=2, S455=\"Υ\", U454=0), AND($AI$2=3, T455=\"Υ\", U454=0)), \"ΟΧΙ\", IF(OR(AND($AI$2=1, R455=\"Υ\", U454=1), AND($AI$2=2, S455=\"Υ\", U454=1), AND($AI$2=3, T455=\"Υ\", U454=1)), \"ΝΑΙ\",\"Δ/Ε\")))","v":"___"},null,null,null,null,{"$f":"IF(X455=\"ΟΧΙ\",CONCATENATE(E454,$AC$8),\"\")","v":""}]
[null,null,null,null,"T.E.",null,null,null,null,null,null,null,null,null,null,null,"Περιγραφή αθλητικών χώρων:"]
[]
[null,null,null,null,null,"Αριθμός επιπρόσθετων κλειστών\nή υπαίθριων αθλητικών χώρων:",null,null,null,null,null,null,null,{"$f":"IF(N459=\"\",\"\",IF(N459=0,0,IF(N459>0,1)))","v":""}]
[]
[]
[null,null,null,null,null,"ΣΗΜΕΙ-\nΩΣΕΙΣ:"]
[]
[]
[null,null,null,{"$f":"IF(X463=\"___\",\"?\",\"\")","v":""},7.3,"Παιδική χαρά (εξωτερική και εσωτερική)",null,null,null,null,null,null,null,null,null,null,null,null,null,null,{"$f":"IF(OR(AND($AI$2=1,R465=\"Δ/Ε\"),AND($AI$2=2,S465=\"Δ/Ε\"),AND($AI$2=3, T465=\"Δ/Ε\")),2,IF(Q467=\"\",\"\",IF(Q467=1,1,IF(Q467=0,0))))","v":""}]
[null,{"$f":"IF(X465=\"___\",\"?\",\"ok\")","v":"?"},null,null,null,null,null,null,null,null,null,null,null,null,null,null,0,{"$f":"IF(EISAGOGH!$V$27=2,\"Δ/Ε\",\"Υ\")","v":"Υ"},{"$f":"IF(EISAGOGH!$V$27=2,\"Δ/Ε\",\"Υ\")","v":"Υ"},{"$f":"IF(EISAGOGH!$V$27=2,\"Δ/Ε\",\"Υ\")","v":"Υ"},{"$f":"IF(U464=\"\",\"ΟΧΙ|ΝΑΙ\",IF(U464=0,\"ΟΧΙ\",IF(U464=1,\"ΝΑΙ\",IF(U464=2,\"Δ/Ε\"))))","v":"ΟΧΙ|ΝΑΙ"},null,{"$f":"IF(U464=\"\",\"___\",IF(U464=0,0,IF(AND(U464=1,OR(AND($AI$2=1,R465=\"ΠΡ\"),AND($AI$2=2,S465=\"ΠΡ\"),AND($AI$2=3, T465=\"ΠΡ\"))),Q465,0)))","v":"___"},{"$f":"IF(W465=\"___\",W465,IF(OR(AND($AI$2=1, R465=\"Υ\", U464=0), AND($AI$2=2, S465=\"Υ\", U464=0), AND($AI$2=3, T465=\"Υ\", U464=0)), \"ΟΧΙ\", IF(OR(AND($AI$2=1, R465=\"Υ\", U464=1), AND($AI$2=2, S465=\"Υ\", U464=1), AND($AI$2=3, T465=\"Υ\", U464=1)), \"ΝΑΙ\",\"Δ/Ε\")))","v":"___"},null,null,null,null,{"$f":"IF(X465=\"ΟΧΙ\",CONCATENATE(E464,$AC$8),\"\")","v":""}]
[]
[null,null,null,null,"T.E.","Ικανοποίηση Κριτηρίου? ( Ν =\"ΝΑΙ\", Χ = \"ΟΧΙ\"):",null,null,null,null,null,null,null,null,null,null,{"$f":"IF(P467=\"\",\"\",IF(OR(P467=\"X\",P467=\"Χ\",P467=0),0,IF(OR(P467=\"Ν\",P467=\"N\",P467=1),1)))","v":""}]
[]
[null,null,null,null,null,"ΣΗΜΕΙ-\nΩΣΕΙΣ:"]
[]
[]
[null,null,null,{"$f":"IF(X471=\"___\",\"?\",\"\")","v":""},7.4,"Κεντρική πλατεία (plazza) όπου δυνατό να συγκεντρώνονται καταστήματα, εργαστήρια, κέντρα αναψυχής και λοιποί κοινόχρηστοι χώροι. ",null,null,null,null,null,null,null,null,null,null,null,null,null,null,{"$f":"IF(OR(AND($AI$2=1,R473=\"Δ/Ε\"),AND($AI$2=2,S473=\"Δ/Ε\"),AND($AI$2=3, T473=\"Δ/Ε\")),2,IF(Q475=\"\",\"\",IF(Q475=1,1,IF(Q475=0,0))))","v":""}]
[null,{"$f":"IF(X473=\"___\",\"?\",\"ok\")","v":"?"},null,null,null,null,null,null,null,null,null,null,null,null,null,null,0,{"$f":"IF(EISAGOGH!$V$27=2,\"Δ/Ε\",\"Υ\")","v":"Υ"},{"$f":"IF(EISAGOGH!$V$27=2,\"Δ/Ε\",\"Υ\")","v":"Υ"},{"$f":"IF(EISAGOGH!$V$27=2,\"Δ/Ε\",\"Υ\")","v":"Υ"},{"$f":"IF(U472=\"\",\"ΟΧΙ|ΝΑΙ\",IF(U472=0,\"ΟΧΙ\",IF(U472=1,\"ΝΑΙ\",IF(U472=2,\"Δ/Ε\"))))","v":"ΟΧΙ|ΝΑΙ"},null,{"$f":"IF(U472=\"\",\"___\",IF(U472=0,0,IF(AND(U472=1,OR(AND($AI$2=1,R473=\"ΠΡ\"),AND($AI$2=2,S473=\"ΠΡ\"),AND($AI$2=3, T473=\"ΠΡ\"))),Q473,0)))","v":"___"},{"$f":"IF(W473=\"___\",W473,IF(OR(AND($AI$2=1, R473=\"Υ\", U472=0), AND($AI$2=2, S473=\"Υ\", U472=0), AND($AI$2=3, T473=\"Υ\", U472=0)), \"ΟΧΙ\", IF(OR(AND($AI$2=1, R473=\"Υ\", U472=1), AND($AI$2=2, S473=\"Υ\", U472=1), AND($AI$2=3, T473=\"Υ\", U472=1)), \"ΝΑΙ\",\"Δ/Ε\")))","v":"___"},null,null,null,null,{"$f":"IF(X473=\"ΟΧΙ\",CONCATENATE(E472,$AC$8),\"\")","v":""}]
[null,null,null,null,"T.E."]
[null,null,null,null,null,"Ικανοποίηση Κριτηρίου? ( Ν =\"ΝΑΙ\", Χ = \"ΟΧΙ\"):",null,null,null,null,null,null,null,null,null,null,{"$f":"IF(P475=\"\",\"\",IF(OR(P475=\"X\",P475=\"Χ\",P475=0),0,IF(OR(P475=\"Ν\",P475=\"N\",P475=1),1)))","v":""}]
[]
[null,null,null,null,null,"ΣΗΜΕΙ-\nΩΣΕΙΣ:"]
[]
[]
[null,null,null,{"$f":"IF(X479=\"___\",\"?\",\"\")","v":""},7.5,"Επιχείρηση αποτελείται από αυτοτελείς μεμονωμένους οικίσκους ή ομάδες οικίσκων (μπλοκ) διαμερισμάτων με άθροισμα μέχρι 8 διαμερίσματα ανά οικίσκο.  (Ποσοστό μέχρι 20% της συνολικής δυναμικότητας της επιχείρησης μπορεί να συγκεντρώνεται σε οικίσκους των 12 διαμερισμάτων το μέγιστο.) ",null,null,null,null,null,null,null,null,null,null,{"$f":"IF(S486=\"\",\"\",IF(AND(H484=S486,U485<=0.2),1,0))","v":""},null,null,null,{"$f":"IF(OR(AND($AI$2=1,R481=\"Δ/Ε\"),AND($AI$2=2,S481=\"Δ/Ε\"),AND($AI$2=3, T481=\"Δ/Ε\")),2,IF(Q480=\"\",\"\",IF(Q480=1,1,IF(Q480=0,0))))","v":""}]
[null,{"$f":"IF(X481=\"___\",\"?\",\"ok\")","v":"?"},null,null,null,null,null,null,null,null,null,null,null,null,null,null,0,{"$f":"IF(EISAGOGH!$V$27=2,\"Δ/Ε\",\"Υ\")","v":"Υ"},{"$f":"IF(EISAGOGH!$V$27=2,\"Δ/Ε\",\"Υ\")","v":"Υ"},{"$f":"IF(EISAGOGH!$V$27=2,\"Δ/Ε\",\"Υ\")","v":"Υ"},{"$f":"IF(U480=\"\",\"ΟΧΙ|ΝΑΙ\",IF(U480=0,\"ΟΧΙ\",IF(U480=1,\"ΝΑΙ\",IF(U480=2,\"Δ/Ε\"))))","v":"ΟΧΙ|ΝΑΙ"},null,{"$f":"IF(U480=\"\",\"___\",IF(U480=0,0,IF(AND(U480=1,OR(AND($AI$2=1,R481=\"ΠΡ\"),AND($AI$2=2,S481=\"ΠΡ\"),AND($AI$2=3, T481=\"ΠΡ\"))),Q481,0)))","v":"___"},{"$f":"IF(W481=\"___\",W481,IF(OR(AND($AI$2=1, R481=\"Υ\", U480=0), AND($AI$2=2, S481=\"Υ\", U480=0), AND($AI$2=3, T481=\"Υ\", U480=0)), \"ΟΧΙ\", IF(OR(AND($AI$2=1, R481=\"Υ\", U480=1), AND($AI$2=2, S481=\"Υ\", U480=1), AND($AI$2=3, T481=\"Υ\", U480=1)), \"ΝΑΙ\",\"Δ/Ε\")))","v":"___"},null,null,null,null,{"$f":"IF(X481=\"ΟΧΙ\",CONCATENATE(E480,$AC$8),\"\")","v":""}]
[]
[null,null,null,null,"T.E.",null,null,null,null,null,null,null,null,null,null,null,"Αριθμός\nοικίσκων",null,"Συνολ.\nΑριθμός\nΔιαμερ/μάτων",null,"Ποσοστό\n( % )"]
[null,null,null,null,null,null,null,{"$f":"+EISAGOGH!AF33","v":""},"Οικίσκοι (μπλοκ) των  1ος έως  8  διαμερισμάτων:",null,null,null,null,null,null,null,null,null,null,null,{"$f":"IF(S484=\"\",\"\",S484/$S$486)","v":""}]
[null,null,null,null,null,null,null,null,"Οικίσκοι (μπλοκ) των  9  έως 12   διαμερισμάτων:",null,null,null,null,null,null,null,null,null,null,null,{"$f":"IF(S485=\"\",\"\",S485/$S$486)","v":""}]
[null,null,null,null,{"$f":"IF(AND(S486<>\"\",S486<>H484),\"Ο συνολ. αριθμός διαμερισμάτων διαφέρει από αυτόν που καταχωρήθηκε στην Εισαγωγή:\",\"Συνολικός αριθμός Διαμερισμάτων:\")","v":"Συνολικός αριθμός Διαμερισμάτων:"},null,null,null,null,null,null,null,null,null,null,null,null,null,{"$f":"IF(SUM(S484,S485)=0,\"\",SUM(S484,S485))","v":""},null,{"$f":"IF(S486=\"\",\"\",S486/$S$486)","v":""}]
[null,null,null,null,null,{"$f":"IF(AND(S485<>\"\",U485>0.2),\"Το ποσοστό διαμερισμάτων σε οικίσκους των 9 - 12 διαμερισμάτων, υπερβαίνει το 20% (μέγιστ. επιτρεπόμενο)\",\"\")","v":""}]
[]
[null,null,null,null,null,"ΣΗΜΕΙ-\nΩΣΕΙΣ:"]
[]
[null,null,null,null,"ΣΥΝΟΛΑ:",null,null,null,null,null,null,null,null,null,null,null,null,null,null,null,null,null,{"$f":"SUM(W10:W490)","v":0},{"$f":"COUNTIF(X10:X490,\"ΟΧΙ\")","v":0}]

{"sheet":"INDEX","index":5,"n_rows":25,"n_cols":28,"rows_kept":25,"cut":false,"hidden":false,"merged":[[2,2,2,38],[14,27,14,38],[15,27,15,38],[7,16,7,25],[0,2,0,4]]}
[null,null,"L"]
[]
[null,null,"Ευρετήριο Κριτηρίων"]
[null,null,"1.  Κτιριακές Εγκαταστάσεις",null,null,null,null,null,null,null,null,null,null,null,null,"5.  Διαμερίσματα  ",null,null,null,null,null,null,null,null,null,null,5.22,"Τραπέζι ή γραφείο ή άλλη επιφάνεια εργασίας"]
[null,null,1.1000000000000001,"Ανελκυστήρας πελατών.",null,null,null,null,null,null,null,null,null,null,null,5.01,"Ελάχιστες διαστάσεις κρεβατιών:",null,null,null,null,null,null,null,null,null,5.23,"Κομοδίνα ή άλλη αντίστοιχη επιφάνεια"]
[null,null,"2.   Αθλητικοί και παρόμοιοι χώροι ",null,null,null,null,null,null,null,null,null,null,null,null,5.0199999999999996,"Διαστάσεις κρεβατιών μεγαλύτ. από ελάχιστες",null,null,null,null,null,null,null,null,null,5.24,"Φωτισμός ανάγνωσης δίπλα στο κρεβάτι"]
[null,null,2.1,"Ένα (1) τουλ. γήπεδο αντισφαίρισης ή άλλο αθλ. χώρο.",null,null,null,null,null,null,null,null,null,null,null,5.03,"Τζάκι στο δωμάτιο",null,null,null,null,null,null,null,null,null,5.25,"Κεντρικός διακόπτης φωτισμού δωματ. στην είσοδο."]
[null,null,2.2000000000000002,"Επιπλέον άλλος αθλητικός χώρος.",null,null,null,null,null,null,null,null,null,null,null,5.04,"- 5.05  Τηλεόραση στα διαμερίσματα:",null,null,null,null,null,null,null,null,null,5.26,"Κεντρ. διακόπτης φωτισμού δωμ. δίπλα στο κρεβάτι."]
[null,null,2.2999999999999998,"Κολυμβητική δεξαμενή.",null,null,null,null,null,null,null,null,null,null,null,5.0599999999999996,"Δορυφορική τηλεόραση",null,null,null,null,null,null,null,null,null,5.27,"Καλάθι αχρήστων."]
[null,null,2.4,"Βοηθητικοί χώροι κολυμβητικής δεξαμενής.",null,null,null,null,null,null,null,null,null,null,null,5.07,"Πρόσβαση στο διαδίκτυο",null,null,null,null,null,null,null,null,null,5.28,"Εξοπλισμός κουζίνας, έπιπλα (τραπέζι−καρέκλες) και .."]
[null,null,2.5,"Θερμαινόμενη κολυμβητική δεξαμενή ",null,null,null,null,null,null,null,null,null,null,null,5.08,"Ελεύθερη πρόσβαση στο διαδίκτυο",null,null,null,null,null,null,null,null,null,5.29,"Μαγειρική συσκευή με δύο τουλάχιστον εστίες"]
[null,null,2.6,"Κήποι και χώροι πρασίνου ",null,null,null,null,null,null,null,null,null,null,null,5.09,"PAY TV− Movie channels",null,null,null,null,null,null,null,null,null,5.3,"Μαγειρική συσκευή δύο ή τεσσάρων εστιών με φούρνο"]
[null,null,"3.  Κοινόχρηστοι χώροι",null,null,null,null,null,null,null,null,null,null,null,null,5.0999999999999996,"Δυνατότ. ασφαλούς κλειδώματος εξωτ. πόρτας.",null,null,null,null,null,null,null,null,null,5.31,"Ηλεκτρικό ψυγείο."]
[null,null,3.1,"Προθάλαμος προσέλευσης και υποδοχή",null,null,null,null,null,null,null,null,null,null,null,5.1100000000000003,"Κλειδαριά ασφαλείας στην μπαλκονόπορτα.",null,null,null,null,null,null,null,null,null,5.32,"Καφετιέρα φίλτρου, φρυγανιέρα ή τοστιέρα, φούρνος μικρ.."]
[null,null,3.2,"Κοινόχρηστη αίθουσα παραμονής (σαλόνι) και μπαρ",null,null,null,null,null,null,null,null,null,null,null,5.12,"Σύστημα ελέγχου λειτουργίας κλιματισμού ..",null,null,null,null,null,null,null,null,null,5.33,"- 5.35  Ελάχιστη επιφάνεια δαπέδου υπνοδωματίου: "]
[null,null,3.3,"Αίθουσα εστίασης (εστιατόριο / καφετέρια) ",null,null,null,null,null,null,null,null,null,null,null,5.13,"Δυνατότητα προσθήκης παιδικού κρεβατιού",null,null,null,null,null,null,null,null,null,5.36,"- 5.38  Ελάχιστη επιφάνεια δαπέδου studio flats: "]
[null,null,3.4,"Αίθουσα πολλαπλής χρήσης",null,null,null,null,null,null,null,null,null,null,null,5.14,"Χρηματοκιβώτιο",null,null,null,null,null,null,null,null,null,5.39,"Συμπληρωματικό αποχωρητήριο."]
[null,null,3.5,"Αίθουσα απασχόλησης παιδιών/αίθουσα παιχνιδιών ",null,null,null,null,null,null,null,null,null,null,null,5.15,"Σίδερο και σανίδα σιδερώματος",null,null,null,null,null,null,null,null,null,"6.  Διευκολύνσεις για ΑμεΑ"]
[null,null,3.6,"Κοινόχρηστοι χώροι υγιεινής ",null,null,null,null,null,null,null,null,null,null,null,5.16,"Πρέσα παντελονιών",null,null,null,null,null,null,null,null,null,6.1,"Διαμερίσματα ΑμεΑ: Ποσοστό 5% των διαμερισμάτων.."]
[null,null,"4.  Χώρος στάθμευσης  ",null,null,null,null,null,null,null,null,null,null,null,null,5.17,"Λοιπές ατομικές εξυπηρετήσεις..",null,null,null,null,null,null,null,null,null,"7.  Τουριστικά χωριά "]
[null,null,4.0999999999999996,"Διαθ. χώρος στάθμευσης πέραν του υποχρεωτικού.",null,null,null,null,null,null,null,null,null,null,null,5.18,"Καθαρισμός στρωμάτων σε ετήσια βάση",null,null,null,null,null,null,null,null,null,7.1,"Δυναμικότητα 50 τουλάχιστον διαμερίσματα"]
[null,null,null,null,null,null,null,null,null,null,null,null,null,null,null,5.19,"Επιλογή μαξιλαριών",null,null,null,null,null,null,null,null,null,7.2,"Επιπρόσθετους αθλητικούς χώρους."]
[null,null,null,null,null,null,null,null,null,null,null,null,null,null,null,5.2,"Ένα κάθισμα / καρέκλα ανά κλίνη",null,null,null,null,null,null,null,null,null,7.3,"Παιδική χαρά (εξωτερική και εσωτερική)"]
[null,null,null,null,null,null,null,null,null,null,null,null,null,null,null,5.21,"Τραπεζάκι",null,null,null,null,null,null,null,null,null,7.4,"Κεντρική πλατεία (plazza)."]
[null,null,null,null,null,null,null,null,null,null,null,null,null,null,null,null,null,null,null,null,null,null,null,null,null,null,7.5,"Επιχείρηση αποτελείται από αυτοτελείς μεμονωμ. οικίσκους."]

{"sheet":"PLHROFORIES","index":6,"n_rows":3,"n_cols":3,"rows_kept":3,"cut":false,"hidden":false,"merged":[]}
[null,null,"L"]
[]
["ΑΡΧΗ ΣΕΛ."]

{"sheet":"Text_ODHGIES","index":7,"n_rows":21,"n_cols":43,"rows_kept":21,"cut":false,"hidden":true,"merged":[[16,3,16,37],[17,3,17,37],[18,3,18,37],[19,3,19,37],[20,3,20,37],[15,3,15,37],[2,2,3,37],[5,3,5,37],[6,3,6,37],[7,3,7,37],[8,3,8,37],[9,3,9,37],[10,3,10,37],[11,3,11,37],[12,3,12,37],[13,3,13,37],[14,3,14,37],[2,41,3,76],[5,42,5,76],[6,42,6,76],[7,42,7,76],[8,42,8,76],[14,42,14,76],[15,42,15,76],[16,42,16,76],[9,42,9,76],[10,42,10,76],[11,42,11,76],[12,42,12,76],[13,42,13,76]]}
[null,null,"L",null,null,null,null,null,null,null,null,null,null,null,null,null,null,null,null,null,null,null,null,null,null,null,null,null,null,null,null,null,null,null,null,null,null,null,null,null,null,"Οδηγιες Public"]
[]
["Αρχή Σελ.",null,"Οδηγίες Χρήσης του Πλαισίου Βαθμολόγησης Κριτηρίων\nγια σκοπούς Αρχικής / Ανανέωσης Κατάταξης Οργανωμένων Διαμερισμάτων και Τουριστικών Χωριών -\nΒάσει των περί της Ρύθμισης της Ίδρυσης και Λειτουργίας Ξενοδοχείων και Τουριστικών Καταλυμάτων Νόμων 34(Ι)2019, 9(I)2020  και Κ.Δ.Π. 90/2019",null,null,null,null,null,null,null,null,null,null,null,null,null,null,null,null,null,null,null,null,null,null,null,null,null,null,null,null,null,null,null,null,null,null,null,null,null,null,"Οδηγίες Χρήσης του Πλαισίου Βαθμολόγησης Κριτηρίων\nγια σκοπούς Αρχικής / Ανανέωσης Κατάταξης Οργανωμένων Διαμερισμάτων και Τουριστικών Χωριών -\nΒάσει των περί της Ρύθμισης της Ίδρυσης και Λειτουργίας Ξενοδοχείων και Τουριστικών Καταλυμάτων Νόμων 34(Ι)2019, 9(I)2020  και Κ.Δ.Π. 90/2019"]
["Τέλος Σελ."]
[]
[null,null,1,"Η παρούσα εφαρμογή χρησιμοποιείται για σκοπούς ελέγχου της ικανοποίησης των κριτηρίων κατάταξης ή ανανέωσης κατάταξης των Οργανωμένων Διαμερισμάτων και Τουριστικών Χωριών, ως αυτά έχουν καθοριστεί στους περί της Ρύθμισης της Ίδρυσης και Λειτουργίας Ξενοδοχείων και Τουριστικών Καταλυμάτων Νόμους 34(Ι)2019, 9(I)2020 και Κ.Δ.Π. 90/2019\n_",null,null,null,null,null,null,null,null,null,null,null,null,null,null,null,null,null,null,null,null,null,null,null,null,null,null,null,null,null,null,null,null,null,null,null,null,null,1,"Η παρούσα εφαρμογή χρησιμοποιείται για σκοπούς ελέγχου της ικανοποίησης των κριτηρίων κατάταξης ή ανανέωσης κατάταξης των Οργανωμένων Διαμερισμάτων και Τουριστικών Χωριών, ως αυτά έχουν καθοριστεί στους περί της Ρύθμισης της Ίδρυσης και Λειτουργίας Ξενοδοχείων και Τουριστικών Καταλυμάτων Νόμους 34(Ι)2019, 9(I)2020 και Κ.Δ.Π. 90/2019\n_"]
[null,null,{"$f":"+C6+1","v":2},"H πλέον πρόσφατη έκδοση της εφαρμογής διατίθεται σε μορφή \"Excel Template\", η οποία και βρίσκεται στον υπηρεσιακό φάκελο του Υφυπουργείου (Public Server), στην διεύθυνση:  \\\\Kyreneia\\_ΤΜ_ΔΙΑΣΦ_ΠΟΙΟΤ\\Epitheoriseis\\_Templates .   Η πρόσβαση στον υπό αναφορά φάκελο επιτυγχάνεται μέσω του υπηρεσιακού σας υπολογιστή, εφόσον είστε συνδεδεμένοι με το υπηρεσιακό δίκτυο (ctodomain), πληκτρολογώντας την πιο πάνω διεύθυνση στην εφαρμογή \"File Explorer\" των \"Windows\".   Η εφαρμογή θα πρέπει να μεταφερθεί (Copy / Paste) στον υπολογιστή ή laptop που θα χρησιμοποιηθεί για την επιθεώρηση.\n_",null,null,null,null,null,null,null,null,null,null,null,null,null,null,null,null,null,null,null,null,null,null,null,null,null,null,null,null,null,null,null,null,null,null,null,null,null,{"$f":"+AP6+1","v":2},"Κατά την εκάστοτε ενεργοποίηση (Open) της εφαρμογής, εμφανίζεται στο πάνω μέρος της οθόνης (σε κίτρινο φόντο), μια προειδοποίηση (Security Warning) η οποία αφορά στην ενεργοποίηση των μακροεντολών που υπάρχουν, η οποία και θα πρέπει να γίνει αποδεχτή (Enable Content).   Στην συνεχεια, θα πρέπει να καταχωρηθούν στα αντίστοιχα πεδία της σελίδας \"Εισαγωγή Στοιχείων\" (EISAGOGH), όλα τα στοιχεία της αξιολογούμενης επιχείρησης.\n_  "]
[null,null,{"$f":"+C7+1","v":3},"Κατά την εκάστοτε ενεργοποίηση (Open) της εφαρμογής, εμφανίζεται στο πάνω μέρος της οθόνης (σε κίτρινο φόντο), μια προειδοποίηση (Security Warning) η οποία αφορά στην ενεργοποίηση των μακροεντολών που υπάρχουν, η οποία και θα πρέπει να γίνει αποδεχτή (Enable Content).   Στην συνεχεια, θα πρέπει να καταχωρηθούν στα αντίστοιχα πεδία της σελίδας \"Εισαγωγή Στοιχείων\" (EISAGOGH), όλα τα στοιχεία της αξιολογούμενης επιχείρησης.\n_  ",null,null,null,null,null,null,null,null,null,null,null,null,null,null,null,null,null,null,null,null,null,null,null,null,null,null,null,null,null,null,null,null,null,null,null,null,null,{"$f":"+AP7+1","v":3},"Προϋπόθεση για τη σωστή απάντηση των κριτηρίων και απόδοση των βαθμολογίων, είναι το πλήρες συμπλήρωμα όλων των πεδίων στην σελίδα \"Εισαγωγή Στοιχείων\", ειδικότερα εκείνων που είναι χρωματισμένα με ανοικτό κόκκινο.  Μόνο μετά την συμπλήρωση αυτών των πεδίων, θα πρέπει να αρχίσει η καταχώρηση των απαντήσεων στα διάφορα κριτήρια εντός της σχετικής σελίδας (KPITHPIA), ακλουθώντας τον αύξοντα αριθμό τους (από πάνω προς τα κάτω).. \n_ "]
[null,null,4,"Προϋπόθεση για τη σωστή απάντηση των κριτηρίων και απόδοση των βαθμολογίων, είναι το πλήρες συμπλήρωμα όλων των πεδίων στην σελίδα \"Εισαγωγή Στοιχείων\", ειδικότερα εκείνων που είναι χρωματισμένα με ανοικτό κόκκινο.  Μόνο μετά την συμπλήρωση αυτών των πεδίων, θα πρέπει να αρχίσει η καταχώρηση των απαντήσεων στα διάφορα κριτήρια εντός της σχετικής σελίδας (KPITHPIA), ακλουθώντας τον αύξοντα αριθμό τους (από πάνω προς τα κάτω).. \n_ ",null,null,null,null,null,null,null,null,null,null,null,null,null,null,null,null,null,null,null,null,null,null,null,null,null,null,null,null,null,null,null,null,null,null,null,null,null,4,"Με την συμπλήρωση των πεδίων \"Ημερομηνία Επιθεώρησης\" (αρ. 02) και  \"Όνομα Μονάδας\" (αρ. 03), εντός της σελίδας \"Εισαγωγή Στοιχείων\",  θα πρέπει να ενεργοποιηθεί η εντολή \"SAVE AS\", στο πάνω αριστερό μέρος της σελίδας,  ώστε αυτόματα να δημιουργηθεί ειδικό  αρχείο με τα αποτελέσματα της αξιολογούμενης μονάδας, το οποίο θα φέρει το καταχωρηθέν της όνομα και την ημερομηνία διενέργειας του ελέγχου / επιθεώρησης.  Το νεοδημιουργηθέν αρχείο αποθηκεύεται αυτόματα στον κοινόχρηστο φάκελο (Public Folder) του υπολογιστή σας,  που βρίσκεται στη διεύθυνση \"C:\\Users\\Public\\Documents\".   Εισήγηση είναι όπως για δική σας ευκολία, δημιουργήσετε \"Shortcut\" στο \"Desktop\" του υπολογιστή σας, για γρήγορη πρόσβαση στον υπό αναφορά φάκελο.\n_ "]
[null,null,5,"Με την συμπλήρωση των πεδίων \"Ημερομηνία Επιθεώρησης\" (αρ. 02) και  \"Όνομα Μονάδας\" (αρ. 03), εντός της σελίδας \"Εισαγωγή Στοιχείων\",  θα πρέπει να ενεργοποιηθεί η εντολή \"SAVE AS\", στο πάνω αριστερό μέρος της σελίδας,  ώστε αυτόματα να δημιουργηθεί ειδικό  αρχείο με τα αποτελέσματα της αξιολογούμενης μονάδας, το οποίο θα φέρει το καταχωρηθέν της όνομα και την ημερομηνία διενέργειας του ελέγχου / επιθεώρησης.  Το νεοδημιουργηθέν αρχείο αποθηκεύεται αυτόματα στον κοινόχρηστο φάκελο (Public Folder) του υπολογιστή σας,  που βρίσκεται στη διεύθυνση \"C:\\Users\\Public\\Documents\".   Εισήγηση είναι όπως για δική σας ευκολία, δημιουργήσετε \"Shortcut\" στο \"Desktop\" του υπολογιστή σας, για γρήγορη πρόσβαση στον υπό αναφορά φάκελο.\n_ ",null,null,null,null,null,null,null,null,null,null,null,null,null,null,null,null,null,null,null,null,null,null,null,null,null,null,null,null,null,null,null,null,null,null,null,null,null,5,"Απαραίτητη είναι η εκ μέρους σας συχνή αποθήκευση της διεκπεραιωθείσας εργασίας, μέσω της εντολής \"SAVE\" που επίσης βρίσκεται στο πάνω αριστερό μέρος κάθε σελίδας εντός της εφαρμογής.  Αυτό θα πρέπει να γίνεται καθ' όλη τη διάρκεια χρήσης της εφαρμογής, ώστε να ελαχιστοποιηθεί ο κίνδυνος απώλειας εργασίας σε ενδεχόμενη απροειδοποίητη απενεργοποίηση του υπολογιστή.   Σε κάθε περίπτωση επανανοίγματος της εφαρμογής για συνέχιση της καταχώρησης στοιχείων σε σχέση με την επιθεωρούμενη μονάδα, το αρχείο που πρέπει να ενεργοποιηθεί είναι αυτό που έχει αποθηκευτεί στον ειδικό φάκελο (Public Folder) και φέρει το όνομα της μονάδας και την ημερομηνία.\n_"]
[null,null,6,"Απαραίτητη είναι η εκ μέρους σας συχνή αποθήκευση της διεκπεραιωθείσας εργασίας, μέσω της εντολής \"SAVE\" που επίσης βρίσκεται στο πάνω αριστερό μέρος κάθε σελίδας εντός της εφαρμογής.  Αυτό θα πρέπει να γίνεται καθ' όλη τη διάρκεια χρήσης της εφαρμογής, ώστε να ελαχιστοποιηθεί ο κίνδυνος απώλειας εργασίας σε ενδεχόμενη απροειδοποίητη απενεργοποίηση του υπολογιστή.   Σε κάθε περίπτωση επανανοίγματος της εφαρμογής για συνέχιση της καταχώρησης στοιχείων σε σχέση με την επιθεωρούμενη μονάδα, το αρχείο που πρέπει να ενεργοποιηθεί είναι αυτό που έχει αποθηκευτεί στον ειδικό φάκελο (Public Folder) και φέρει το όνομα της μονάδας και την ημερομηνία.\n_",null,null,null,null,null,null,null,null,null,null,null,null,null,null,null,null,null,null,null,null,null,null,null,null,null,null,null,null,null,null,null,null,null,null,null,null,null,6,"Τα κριτήρια είναι ομαδοποιημένα με βάση τον χώρο (περιοχή) μιας επιχείρησης με την οποία σχετίζονται, όπως π.χ. Κτιριακές Εγκαταστάσεις, Αθλητικοί χώροι , Κοινόχρηστοι χώροι, Προδιαγραφές Διαμερισμάτων, κ.ο.κ.  Στη σελίδα Περιεχομένων (INDEX), μπορεί κάποιος να δει την συνοπτική εικόνα του τρόπου ομαδοποίησης των κριτηρίων, ως επίσης και να μεταβεί από εκεί σε οποιοδήποτε από αυτά, πατώντας στο πεδίο με τον αύξοντα αριθμό του.  Η τελευταία ενότητα κριτηρίων (αρ. 7) αφορά μόνο τα Τουριστικά Χωριά, και δύναται να απαντηθεί μόνο εφόσον η αξιολογούμενη μονάδα είναι ή έχει οριστεί ως τέτοια, στο πεδίο αρ. 13 της σελίδας \"Εισαγωγή\". \n_"]
[null,null,7,"Τα κριτήρια είναι ομαδοποιημένα με βάση τον χώρο (περιοχή) μιας επιχείρησης με την οποία σχετίζονται, όπως π.χ. Κτιριακές Εγκαταστάσεις, Αθλητικοί χώροι , Κοινόχρηστοι χώροι, Προδιαγραφές Διαμερισμάτων, κ.ο.κ.  Στη σελίδα Περιεχομένων (INDEX), μπορεί κάποιος να δει την συνοπτική εικόνα του τρόπου ομαδοποίησης των κριτηρίων, ως επίσης και να μεταβεί από εκεί σε οποιοδήποτε από αυτά, πατώντας στο πεδίο με τον αύξοντα αριθμό του.  Η τελευταία ενότητα κριτηρίων (αρ. 7) αφορά μόνο τα Τουριστικά Χωριά, και δύναται να απαντηθεί μόνο εφόσον η αξιολογούμενη μονάδα είναι ή έχει οριστεί ως τέτοια, στο πεδίο αρ. 13 της σελίδας \"Εισαγωγή\". \n_",null,null,null,null,null,null,null,null,null,null,null,null,null,null,null,null,null,null,null,null,null,null,null,null,null,null,null,null,null,null,null,null,null,null,null,null,null,7,"Κάθε κριτήριο παρουσιάζεται εντός αριθμημένου πλαισίου στο οποίο υπάρχει η περιγραφή του και κατά πόσο αυτό είναι υποχρεωτικό (Υ) ή προαιρετικό (ΠΡ) για κάθε μια από τις 3 διαθέσιμες τάξεις (Πολυτελείας, Α' Τάξης και Β' Τάξης),  ως επίσης και οι διαθέσιμοι βαθμοί σε περίπτωση ικανοποίησης του.  Οι διαθέσιμοι βαθμοί πιστώνονται στην αξιολογούμενη μονάδα μόνο στην περίπτωση που το κριτήριο είναι προαιρετικό για την αιτούμενη τάξη.  Σε περίπτωση που έστω και ένα υποχρεωτικό κριτήριο δεν ικανοποιείται, η μονάδα θεωρείται ότι αποτυγχάνει ότι και δεν μπορεί να καταταγεί στη συγκεκριμένη τάξη.\n_"]
[null,null,8,"Κάθε κριτήριο παρουσιάζεται εντός αριθμημένου πλαισίου στο οποίο υπάρχει η περιγραφή του και κατά πόσο αυτό είναι υποχρεωτικό (Υ) ή προαιρετικό (ΠΡ) για κάθε μια από τις 3 διαθέσιμες τάξεις (Πολυτελείας, Α' Τάξης και Β' Τάξης),  ως επίσης και οι διαθέσιμοι βαθμοί σε περίπτωση ικανοποίησης του.  Οι διαθέσιμοι βαθμοί πιστώνονται στην αξιολογούμενη μονάδα μόνο στην περίπτωση που το κριτήριο είναι προαιρετικό για την αιτούμενη τάξη.  Σε περίπτωση που έστω και ένα υποχρεωτικό κριτήριο δεν ικανοποιείται, η μονάδα θεωρείται ότι αποτυγχάνει ότι και δεν μπορεί να καταταγεί στη συγκεκριμένη τάξη.\n_",null,null,null,null,null,null,null,null,null,null,null,null,null,null,null,null,null,null,null,null,null,null,null,null,null,null,null,null,null,null,null,null,null,null,null,null,null,8,"Υπάρχουν δυο γενικότερες μέθοδοι απάντησης των κριτηρίων.  Η μια είναι τα κριτήρια που απαντώνται απευθείας με \"ΝΑΙ\" (Ν) ή \"ΌΧΙ\" (Χ), εντός του ορισθέντος πεδίου με κίτρινο χρώμα.  Η άλλη είναι τα κριτήρια στα οποία το ζητούμενο είναι η εισαγωγή κάποιων στοιχείων όπως αριθμοί, εμβαδά, διαστάσεις, κ.ο.κ.  Σε αυτή την περίπτωση, υπάρχει η ανάλογη επεξήγηση των ζητουμένων, δίπλα ή πάνω από τα πεδία στα οποία θα πρέπει να καταχωρηθούν αυτά τα στοιχεία.\n_   "]
[null,null,9,"Υπάρχουν δυο γενικότερες μέθοδοι απάντησης των κριτηρίων.  Η μια είναι τα κριτήρια που απαντώνται απευθείας με \"ΝΑΙ\" (Ν) ή \"ΌΧΙ\" (Χ), εντός του ορισθέντος πεδίου με κίτρινο χρώμα.  Η άλλη είναι τα κριτήρια στα οποία το ζητούμενο είναι η εισαγωγή κάποιων στοιχείων όπως αριθμοί, εμβαδά, διαστάσεις, κ.ο.κ.  Σε αυτή την περίπτωση, υπάρχει η ανάλογη επεξήγηση των ζητουμένων, δίπλα ή πάνω από τα πεδία στα οποία θα πρέπει να καταχωρηθούν αυτά τα στοιχεία.\n_   ",null,null,null,null,null,null,null,null,null,null,null,null,null,null,null,null,null,null,null,null,null,null,null,null,null,null,null,null,null,null,null,null,null,null,null,null,null,9,"Στο κάτω μέρος κάθε κριτηρίου, σε ανοιχτό πράσινο, υπάρχει πεδίο στο οποίο μπορούν να αναγράφουν σχόλια ή παρατηρήσεις σε σχέση με τα ευρήματα και την δοθείσα απάντηση.   Η έκταση του σχολιασμού δεν μπορεί να υπερβεί τις δύο γραμμές (περίπου 35 λέξεις).  Επιπρόσθετα, υπάρχει δυνατότητα ορθογραφικής διόρθωσης του κειμένου, επιλέγοντας πρώτα το πεδίο σχολιασμού και ενεργοποιώντας την μακροεντολή \"ΟΡΘΟΓΡΑΦΟΣ\", που βρίσκεται στο πάνω μέρος κάθε σελίδας.\n_"]
[null,null,10,"Ένεκα του ότι κατά την διάρκεια της επιθεώρησης ελέγχου των σχετικών κριτηρίων, η εμβαδομέτρηση όλων των κοινόχρηστων χώρων, δωματίων και άλλων εγκαταστάσεων είναι χρονοβόρα και παρουσιάζει πρακτικές δυσκολίες, ιδίως όταν η επιχείρηση είναι σε λειτουργία, η εργασία αυτή διενεργείται προκαταρκτικά από την Τεχνική Υπηρεσία του Υφυπουργείου, με βάση τα υποβληθέντα αρχιτεκτονικά σχέδια των αδειών οικοδομής.   Η Τεχνική Υπηρεσία ετοιμάζει ειδική Τεχνική Έκθεση, η οποία και θα πρέπει να ευρίσκεται στην διάθεση των λειτουργών, πριν την διενέργεια της επιθεώρησης κατάταξης. \n_ ",null,null,null,null,null,null,null,null,null,null,null,null,null,null,null,null,null,null,null,null,null,null,null,null,null,null,null,null,null,null,null,null,null,null,null,null,null,10,"Στη αριστερή στήλη του πλαισίου κάθε ενός από τα κριτήρια, υπάρχει ένα ερωτηματικό (?) σε κόκκινο φόντο.  Αυτό είναι ένδειξη ότι το συγκεκριμένο κριτήριο δεν έχει ακόμη απαντηθεί.   Με την απάντηση του κριτηρίου, το ερωτηματικό αντικαθίσταται αυτόματα με την ένδειξη \"ok\" σε ανοιχτό πράσινο.  Θα πρέπει να βεβαιωθείτε ότι όλα τα κριτήρια έχουν απαντηθεί, και ότι δεν έχουν απομείνει ερωτηματικά στην υπό αναφορά στήλη, ως επίσης και ότι έχει μηδενιστεί ο αριθμός αναπάντητων κριτηρίων στην άνω δεξιά λεζάντα.\n_"]
[null,null,11,"Κάθε ένα από τα τεχνικής υφής κριτήρια φέρει στο κάτω μέρος του αύξοντα αριθμού του την ένδειξη \"Τ.Ε.\".  Αυτή η ένδειξη συνιστά παραπομπή στη υπό αναφορά Τεχνική Έκθεση.   Στη τελευταία (3η) σελίδα της Τεχνικής έκθεσης, παρατίθεται αριθμημένος πίνακας με όλα τα τεχνικής υφής κριτήρια, μαζί με τα αναγκαία στοιχεία (μετρήσεις).   Αυτά τα στοιχεία  θα πρέπει να εισαχθούν στα σχετικά πεδία των αντίστοιχων κριτήριων, αφού πρώτα ελεγχθούν και επιβεβαιωθούν οι σχετικοί χώροι της μονάδας κατά την επιθεώρηση κατάταξης.\n_   \n",null,null,null,null,null,null,null,null,null,null,null,null,null,null,null,null,null,null,null,null,null,null,null,null,null,null,null,null,null,null,null,null,null,null,null,null,null,11,"Τα τελικά αποτελέσματα της μονάδας και οι πίνακες όλων των κριτηρίων δύναται να εξαχθούν (εκτυπωθούν) στην μορφή αρχείου \"PDF\", πατώντας την μακροεντολή \"ΕΚΤΥΠΩΣΗ σε Pdf\" που βρίσκεται στο πάνω δεξιό μέρος της σελίδας «Εισαγωγή Στοιχείων».  Η αποθήκευση του αρχείου \"PDF\" γίνεται αυτόματα στον ίδιο φάκελο (Public Folder), στον οποίο έχει αποθηκευτεί και το το αρχείο \"EXCEL\" με τα αποτελέσματα της επιθεωρούμενης μονάδας.\n_"]
[null,null,12,"Στο κάτω μέρος κάθε κριτηρίου, σε ανοιχτό πράσινο, υπάρχει πεδίο στο οποίο μπορούν να αναγράφουν σχόλια ή παρατηρήσεις σε σχέση με τα ευρήματα και την δοθείσα απάντηση.   Η έκταση του σχολιασμού δεν μπορεί να υπερβεί τις δύο γραμμές (περίπου 35 λέξεις).  Επιπρόσθετα, υπάρχει δυνατότητα ορθογραφικής διόρθωσης του κειμένου, επιλέγοντας πρώτα το πεδίο σχολιασμού και ενεργοποιώντας την μακροεντολή \"ΟΡΘΟΓΡΑΦΟΣ\", που βρίσκεται στο πάνω μέρος κάθε σελίδας.\n_",null,null,null,null,null,null,null,null,null,null,null,null,null,null,null,null,null,null,null,null,null,null,null,null,null,null,null,null,null,null,null,null,null,null,null,null,null,null,"\nΓια περαιτέρω πληροφορίες / βοήθεια σε σχέση με την χρήση της εφαρμογής, μπορείτε να επικοινωνήσετε με τον:  \n\nΝίκος Χατζηπέτρου\nΛειτουργός Διασφάλισης Ποιότητας.\nΥφυπουργείο Τουρισμού\nΤηλέφωνα: 26938388, 99413326\nnicoshadjipetrou@visitcyprus.com"]
[null,null,13,"Στη αριστερή στήλη του πλαισίου κάθε ενός από τα κριτήρια, υπάρχει ένα ερωτηματικό (?) σε κόκκινο φόντο.  Αυτό είναι ένδειξη ότι το συγκεκριμένο κριτήριο δεν έχει ακόμη απαντηθεί.   Με την απάντηση του κριτηρίου, το ερωτηματικό αντικαθίσταται αυτόματα με την ένδειξη \"ok\" σε ανοιχτό πράσινο.  Θα πρέπει να βεβαιωθείτε ότι όλα τα κριτήρια έχουν απαντηθεί, και ότι δεν έχουν απομείνει ερωτηματικά στην υπό αναφορά στήλη, ως επίσης και ότι έχει μηδενιστεί ο αριθμός αναπάντητων κριτηρίων στην άνω δεξιά λεζάντα.\n_"]
[null,null,14,"Τα τελικά αποτελέσματα της μονάδας και οι πίνακες όλων των κριτηρίων δύναται να εξαχθούν (εκτυπωθούν) στην μορφή αρχείου \"PDF\", πατώντας την μακροεντολή \"ΕΚΤΥΠΩΣΗ σε Pdf\" που βρίσκεται στο πάνω δεξιό μέρος της σελίδας «Εισαγωγή Στοιχείων».  Η αποθήκευση του αρχείου \"PDF\" γίνεται αυτόματα στον ίδιο φάκελο (Public Folder), στον οποίο έχει αποθηκευτεί και το το αρχείο \"EXCEL\" με τα αποτελέσματα της επιθεωρούμενης μονάδας.\n_"]
[null,null,15,"Τα αρχεία \"EXCEL\" και \"PDF\", με τα αποτελέσματα της επιθεώρησης, θα πρέπει να αποσταλούν ως συνημμένα ηλεκτρονικού μηνύματος στον αρμόδιο λειτουργό της κεντρικής υπηρεσίας, για περαιτέρω διαχείριση των αποτελεσμάτων και ολοκλήρωση της διαδικασίας κατάταξης.\n_"]
[null,null,null,"Για περαιτέρω πληροφορίες / βοήθεια σε σχέση με την χρήση της εφαρμογής, μπορείτε να επικοινωνήσετε με τον:  \n\nΝίκος Χατζηπέτρου\nΛειτουργός Διασφάλισης Ποιότητας.\nΥφυπουργείο Τουρισμού\nΤηλέφωνα: 26938388, 99413326\nnicoshadjipetrou@visitcyprus.com"]

{"sheet":"CONTROL","index":8,"n_rows":54,"n_cols":7,"rows_kept":54,"cut":false,"hidden":true,"merged":[[24,3,24,4],[10,14,10,19],[22,3,22,5],[23,3,23,4],[21,3,21,4],[34,3,34,4],[35,3,35,4],[36,3,36,4],[25,3,25,4],[26,3,26,4],[27,3,27,5],[32,3,32,5],[33,3,33,4],[31,3,31,4]]}
["t1991EAaP",null,"L",null,null,null,{"$f":"+C1","v":"L"}]
[null,null,"5 Αστέρων"]
["01","2021","4 Αστέρων",null,"ΝΑΙ"]
["02","2022","3 Αστέρων",null,"ΟΧΙ"]
["03","2023","2 Αστέρων",null,"Δ/Ε"]
["04","2024","1 Αστέρα",null,null,"Ν"]
["05","2025","Άνευ Αστέρα",null,null,"Χ"]
["06","2026",null,null,null,"N"]
["07","2027",null,null,"ΕΠΙΤΥΧΙΑ","X"]
["08","2028","Αμμόχωστος",null,"ΑΠΟΤΥΧΙΑ",0]
["09","2029","Λάρνακα",null,null,1]
["10","2030","Λεμεσός",null,"Gold"]
["11",null,"Λευκωσία",null,"Silver","N"]
["12",null,"Πάφος",null,"Bronze","Ν"]
["13",null,null,null,null,1]
["14",null,"ΝΑΙ",null,"Ξενοδοχείο εκτός Αστικού Κέντρου ή ΚΕΠ"]
["15",null,"ΌΧΙ",null,"Ξενοδοχείο (Παραδοσιακή Οικοδομή)"]
["16",null,null,null,"Ξενοδοχείο Αστικού Κέντρου ή ΚΕΠ"]
["17"]
["18",null,null,null,"Date now:",{"$f":"NOW()","v":45154.442805208331}]
["19",null,null,null,"Date in 2 years after law enforcement:",{"$f":"DATE(2019,3,15)+365+365","v":44269}]
["20",null,null,{"$f":"IF(OR(D24=0,D24=\"\"),\"Org.Diamerismata _Kritiria Katataksis _Empty\",CONCATENATE(D24,\" _Epitheorisi _\",D25,\".\",D26,\".\",D27))","v":"Org.Diamerismata _Kritiria Katataksis _Empty"}]
["21",null,"Save as string:",{"$f":"CONCATENATE(D24,\" _EPI8EORHSH _\",D25,\".\",D26,\".\",D27,\".xlsm\")","v":"0 _EPI8EORHSH _0.0.0.xlsm"}]
["22",null,"Property name:",{"$f":"+EISAGOGH!M14","v":0}]
["23",null,"Inspection Day:",{"$f":"+EISAGOGH!AF12","v":0}]
["24",null,"Inspection Month:",{"$f":"+EISAGOGH!AI12","v":0}]
["25",null,"Inspection Year:",{"$f":"+EISAGOGH!AL12","v":0}]
["26"]
["27"]
["28"]
["29"]
["30",null,null,{"$f":"IF(OR(D34=0,D34=\"\"),\"Org.Diamerismata _Texn.Ekthesi _Empty\",CONCATENATE(D34,\" _Texn.Ekthesi _\",D35,\".\",D36,\".\",D37))","v":"Org.Diamerismata _Texn.Ekthesi _Empty"}]
["31",null,"Save as string:",{"$f":"CONCATENATE(D34,\" _Texn.Ekthesi _\",D35,\".\",D36,\".\",D37,\".xlsm\")","v":"0 _Texn.Ekthesi _0.0.0.xlsm"}]
[null,null,"Property name:",{"$f":"+TEX.EK8ESH!H14","v":0}]
[null,null,"Inspection Day:",{"$f":"+TEX.EK8ESH!X12","v":0}]
["Πολυτελείας",null,"Inspection Month:",{"$f":"+TEX.EK8ESH!AA12","v":0}]
["Α' Τάξης",null,"Inspection Year:",{"$f":"+TEX.EK8ESH!AC12","v":0}]
["Β' Τάξης"]
[]
[null,null,"Προσαύξ. >0% ",null,"Διαμορφωμένος πάγκος υποδοχής"]
["Αμμόχωστος",null,"Προσαύξ. ≥10%",null,"Μηχανισμός καθέλκυσης κολυμβ. δεξαμενής"]
["Λάρνακα",null,null,null,"Ειδικό κάθισμα για την μπανιέρα"]
["Λεμεσός",null,null,null,"Ειδικά διαρρυθμισμένα τραπέζια εστίασης "]
["Λευκωσία",null,null,null,"Παροχή τροχοκαθίσματος"]
["Πάφος",null,null,null,"Ειδικός διάδρομος & τροχοκάθισμα παραλίας"]
[null,null,null,null,"Οδηγός υπηρεσιών στη γραφή Braille"]
["ΝΑΙ"]
["ΌΧΙ"]
[null,null,null,null,"ΕΝΤΟΣ Αστικού Κέντρου ή ΚΕΠ"]
["ΕΠΙΤΥΧΙΑ",null,null,null,"ΕΚΤΟΣ Αστικού Κέντρου ή ΚΕΠ"]
["ΑΠΟΤΥΧΙΑ"]
[]
["Τουριστικό Χωριό"]
["Οργανωμένα Διαμερίσματα"]